Workbook

Sheet Instructions
B1: ='Event Details'!D5 -> Heart of England League
B3: Instructions
B5: General
B6: This Spreadsheet come cleared down and ready to go. If you require a copy with test data loaded contact Martin Smith (msmith46@talktalk.net).
B7: If you enter test data to familiarise yourself with the layout, there are three macros to clear down the data ready for the new meeting. The first two macros are found in the 'Event Details' spreadsheet. Macro Button1 ('Clear Competitors Names for Teamsheet Male') will clear down the names from the male teamsheet. Macro 2 will clear down the female teamsheet.
B8: The third macro is also found in the 'Results Entry' spreadsheets. Clicking on the button 'Clear Results Table'- will clear down the previous meetings results. It is recommended that you make a Back-Up copy prior to deleting the data.
B9: New for 2013 - Guests are allowed in the 800m and 1500m at the discretion of the Track Referee. They must wear the number sequence allocated for the U11 (not club Letter). Also, a 'Howler' has been introduced as a new event in the U11's.
B11: Event Details
B12: The first spreadsheet shows details of the Athletic Meeting. Changing the Division number changes the club details for that division. The details are taken from the 'Club Details' spreadsheet. The field highlighted in 'Green' can be amended as required.
B13: To amend or delete the Club Names for clubs promoted or relegated see 'Club Details' spreadsheet.
B14: To clear the Competitors Names , click on the two macro buttons 'Clear Competitors Names from Teamsheet Male' and 'Clear Competitors Names from Female Teamsheet'.
B16: Timetable
B17: This spreadsheet shows the 'League Programme'. Each event has been given a unique 'Event Number.' which arranges the events in time order. These fields can be amended for any changes at the beginning of the season. Also ensure that 'Non Scoring Events (NS) are shown as separate events in the Programme and identified with 'NS' in column G.
B18: The Timetable can be printed off at anytime.
B20: Team Declaration Sheet
B21: This spreadsheet is a blank Declaration Sheet for both Male and Female competitors. If any amendments are made to the 'Timetable' , please ensure that this spreadsheet is updated by changing the appropriate 'Event Number' (if required). Ideally, the Team Declaration Sheets should be Emailed to the Results Team 2 Days before the event.
B23: Team Sheets Male & Teamsheet Female
B24: There are two Team Sheets, one for Male and one for Female. Scroll across to see the eight Clubs
B25: Scroll along to the right to find the appropriate Club and enter the name of the 'A' and 'B'. competitor for each event. Also enter the names of competitors in the relay teams. There is a section at the bottom for Guests.
B26: U11 Non Scoring and Guests - Each athlete should wear a unique number (not letter). Remember to enter the number against the competitors name.
B27: If clubs have Emailed their Declaration Sheets in advance of the meeting, then the names can be 'Cut and Pasted' into the spreadsheet. ( Note. Take care to copy to the correct rows.)
B29: Results Entry
B30: Enter all Events (including U11 Scoring & U11 Relay NS)
B31: Enter the Event number In the 'green' box (cell B4) to bring up details of the event. In the 'blue area' you will see all the competitors names which have been taken from the Teamsheets.
B32: To enter the Result for the first competitor, enter the Club letter into the first green box,(i.e. 'C' for Bromsgrove ). For the 'B' race, enter 'CC' which will identify the 'B' runner. A Table of the Club letters is shown at the left of the spreadsheet.
B33: Note: if the B Competitor does the best throw/ jump/ time, you can enter the double letter (i.e.'CC') in Event A and single letter ('C') in the Event B. This will select the right name from the teamsheet.
B34: Next move right, and enter the time or distance ( i.e. '2.71' metres or '2.12.13' mins.) If a competitor did not finish, enter 'DNF' in the time box.
B35: Move down and enter the second competitor results. Move to next column right and enter the time/ distance.
B36: Once all the results for Event A have been completed, repeat the same for Event B. Entering the single or double letter as appropriate (i.e. "C" or "CC").
B37: Once all the results have been entered, click on the button "Save Data". If you wish to Amend this data at a later stage, enter the Event No. and click on the "Edit Data" button and the results are restored.
B38: To manually adjust the points for equal scores i.e joint 2nd.- see Results by Age Group.
B40: Results in Event Order
B41: If on the day you are connected to a printer, this report is useful for printing off and putting on the noticeboard.
B42: There are 7 pages in the spread sheet ‘Results in Event Order’. There are 10 results per page.
B43: After entering the first 10 results, print page one off and the page can be stuck on the notice board.
B44: The clubs can then see the results and the points position
B46: Results by Age Group
B47: This spreadsheet is automatically updated from the previous sheet. This sheet can be printed off at anytime to get the latest points position.
B48: In the points section on the right, a manual adjustment can be made if points need to be shared. In the green highlighted area above the points, enter for example, '-0.5' to take off half a point from one team and add '0.5' to the another team.
B49: Enter your club letter at cell H5 and this will highlight your club throughout the results.
B51: Match Position
B52: This spreadsheet gives a summary of the 'Match Position' at any point in time. This is useful for the announcer who can read the information from the screen or print it off at any time.
B54: Results Summary
B55: This spreadsheet automatically calculates the Points and Position for each Age Group, and includes points added for providing Officials.
B57: Results by Club
B58: Enter a Club Letter in the Green Box (Cell B3). Enter each Club Letter in turn and it will produce the results for each Club. Can be printed off anytime.
B60: Adjustment for Officials
B61: 2 points per Official can be added up to a maximum of 10 for each Age Group i.e. U13 Females,U15 Females, U17 Females, U13 Male,U15 Male and U17 Men.
B62: New for 2016 - Bonus of 4 points added for providing officials of 2b and above.
B64: Club Details by Division
B65: To amend or delete the Club Names in each Division for clubs promoted or relegated, enter the details here.
B67: Competitor Change Form
B68: This spreadsheet is a blank 'Change Form' and issued to Team Manager on the day of the event. Ideally, the Team Declaration Sheets should be Emailed to the Results Team 2 Days before the event. If any amendments are made to the 'Team Sheet' on the day, the Team Manager should use this sheet to notify the Results Team of any changes.
B70: Track Lane Draw
B71: This Spreadsheet is for the assistance of the Starter. It produces a printed list of randomly selected clubs over the 8 lanes of the track. The random sequence can be changed by entering 1 to 8 in the yellow highlighted area.
B73: Field Jumps and Field Throws and Timekeepers Slip
B74: These three spread sheets are optional but can be used for printing 'Field Event Cards'. Enter the 'Event Number' from the list on the left into Cell J4 the top of the 'card' and the events details are updated. If you also wish to print the Competitors names, enter "Y" into Cell S3. This only works if the names have already been entered into the Team Declaration Sheets. Also the clubs order is different for each event as they are randomly drawn from ' Lane Draw' spread sheet. The Timekeepers recording slip can also be printed off as required.

Sheet Event Details
D3: Event Details
J4: Notes
B5: Event Title | D5: Heart of England League | I5: 1 | J5: Changing the Division number (cell 'D9')
J6: updates the Club Details accordingly.
B7: Year | D7: 2016 | I7: 2 | J7: Clubs promoted or relegated are
J8: amended in the spreadsheet 'Club Details'.
B9: Division | D9: 2 | I9: 3 | J9: At Cell 'A17', enter the meeting
J10: number i.e. 1,2 or 3.
A11: Match | B11: Date | D11: Venue | F11: Host | I11: 4 | J11: At Cell 'C32', enter the number of
A12: 1 | B12: =VLOOKUP($A12,EventDates,C$43,FALSE) -> 7th May 2016 | D12: =VLOOKUP($A12,EventDates,E$43,FALSE) -> Kettering | F12: =VLOOKUP($A12,EventDates,F$43,FALSE) -> Kettering | J12: Teams in the Division i.e. 8.
A13: 2 | B13: =VLOOKUP($A13,EventDates,C$43,FALSE) -> 5th June 2016 | D13: =VLOOKUP($A13,EventDates,E$43,FALSE) -> Nunnery Wood | F13: =VLOOKUP($A13,EventDates,F$43,FALSE) -> Worcester | I13: 5 | J13: Fields highlighted in 'Green' can be
A14: 3 | B14: =VLOOKUP($A14,EventDates,C$43,FALSE) -> 10th July 2016 | D14: =VLOOKUP($A14,EventDates,E$43,FALSE) -> Banbury | F14: =VLOOKUP($A14,EventDates,F$43,FALSE) -> Banbury &Bicester | J14: amended as required.
I15: 6
B16: Next meeting
A17: 2 | B17: =IF($A17=3,B14,IF($A17=2,B13,B12)) -> 5th June 2016 | D17: =IF($A17=3,D14,IF($A17=2,D13,D12)) -> Nunnery Wood | F17: =IF($A17=3,F14,IF($A17=2,F13,F12)) -> Worcester
B20: Teams | C20: Letter | D20: Club Name | E20: U11 No's | G20: Short
G21: Name
B22: 1 | C22: =VLOOKUP($B22,ClubDetail,C$42,FALSE) -> J | D22: Banbury | E22: 550 | F22: 599 | G22: Ban | J22: Macros
B23: 2 | C23: P | D23: Bicester | E23: 800 | F23: 849 | G23: Bic
B24: 3 | C24: B | D24: Dudley & S'bridge | E24: 200 | F24: 249 | G24: DASH
B25: 4 | C25: I | D25: Kettering | E25: 50 | F25: 99 | G25: Kett | I25: 1
B26: 5 | C26: R | D26: Radley | E26: 500 | F26: 549 | G26: Rad
B27: 6 | C27: F | D27: Tamworth | E27: 1 | F27: 49 | G27: Tam
B28: 7 | C28: X | D28: Wreake Runners | E28: 400 | F28: 449 | G28: Wreake
B29: 8 | C29: Y | D29: Worcester | E29: 100 | F29: 149 | G29: Worc
B30: 9 | C30: 0 | D30: 0 | E30: 0 | F30: 0 | G30: 0 | I30: 2
B32: Points | C32: =COUNTIF(C22:C30,"?") -> 8 | D32: (Total Number of Teams)
B42: =IF($D9=1,1,IF($D9=2,8,IF($D9=3,15,IF($D$9=4,22," ")))) -> 8 | C42: =IF($D9=1,2,IF($D9=2,9,IF($D9=3,16,IF($D$9=4,23," ")))) -> 9 | D42: =IF($D9=1,3,IF($D9=2,10,IF($D9=3,17,IF($D$9=4,24," ")))) -> 10 | E42: =IF($D9=1,4,IF($D9=2,11,IF($D9=3,18,IF($D$9=4,25," ")))) -> 11 | F42: =IF($D9=1,5,IF($D9=2,12,IF($D9=3,19,IF($D$9=4,26," ")))) -> 12 | G42: =IF($D9=1,6,IF($D9=2,13,IF($D9=3,20,IF($D$9=4,27," ")))) -> 13
C43: =IF($D9=1,2,IF($D9=2,9,IF($D9=3,16,IF($D$9=4,23," ")))) -> 9 | E43: =IF($D9=1,4,IF($D9=2,11,IF($D9=3,18,IF($D$9=4,25," ")))) -> 11 | F43: =IF($D9=1,5,IF($D9=2,12,IF($D9=3,19,IF($D$9=4,26," ")))) -> 12

Sheet Timetable
F1: ='Event Details'!D5&" Programme" -> Heart of England League Programme | T1: ='Event Details'!D5&" Programme by Age Group" -> Heart of England League Programme by Age Group
G2: ="Revised for "&'Event Details'!D7 -> Revised for 2016 | T2: ="Revised for "&'Event Details'!D7 -> Revised for 2016
C4: Event | G4: Non | I4: Event | Q4: Event | U4: Event
C5: No | D5: Time | E5: Event | F5: Age | G5: Scoring | I5: No | J5: Time | K5: Event | L5: Age | M5: Comment | Q5: No | R5: Time | S5: Event | U5: No | V5: Time | W5: Event
C7: Track Events | I7: Field Events
C9: 1 | D9: 11.45 | E9: 1500m | F9: U13 Female | I9: 2 | J9: 11.45 | K9: Howler | L9: U11 Male | S9: U11 Female | W9: U11 Male
C10: 4 | D10: 11.55 | E10: 1500m | F10: U15 Female | I10: 3 | J10: 11.45 | K10: Howler | L10: U11 Female | Q10: 3 | R10: =IF($Q10>0,VLOOKUP($Q10,EventsOrder,2,FALSE)," ") -> 11.45 | S10: =IF($Q10>0,VLOOKUP($Q10,EventsOrder,6,FALSE)," ") -> Howler | U10: 2 | V10: =IF($U10>0,VLOOKUP($U10,EventsOrder,2,FALSE)," ") -> 11.45 | W10: =IF($U10>0,VLOOKUP($U10,EventsOrder,6,FALSE)," ") -> Howler
C11: 7 | D11: 12.05 | E11: 1500m | F11: U17 F/Women | I11: 5 | J11: 12 | K11: High Jump | L11: U13 Male | Q11: 29 | R11: 1.5 | S11: 600m | U11: 14 | V11: 12.3 | W11: Long Jump Pit 1
C12: 11 | D12: 12.15 | E12: 70m hurdles | F12: U13 Female | I12: 6 | J12: 12 | K12: Long Jump | L12: U15 Male | M12: Pit 2 | Q12: 30 | R12: 1.55 | S12: 600m NS | U12: 33 | V12: 2 | W12: 600m
C13: 12 | D13: 12.2 | E13: 800m | F13: U13 Male | I13: 8 | J13: 12.15 | K13: Shot | L13: U17 Men | Q13: 44 | R13: 2.1 | S13: Long Jump Pit 2 | U13: 34 | V13: 2.05 | W13: 600m NS
C14: 13 | D14: 12.3 | E14: 75m hurdles | F14: U15 Female | I14: 9 | J14: 12.15 | K14: Discus | L14: U15 Female | M14: Match 2 | Q14: 58 | R14: 3.1 | S14: 75m | U14: 61 | V14: 3.2 | W14: 75m
C15: 15 | D15: 12.35 | E15: 75m hurdles | F15: U13 Male | I15: 10 | J15: 12.15 | K15: Javelin (U17) | L15: U17 Female | M15: Match 1 & 3 | Q15: 59 | R15: 3.15 | S15: 75m NS | U15: 62 | V15: 3.25 | W15: 75m NS
C16: 16 | D16: 12.4 | E16: 800m | F16: U15 Male | I16: 14 | J16: 12.3 | K16: Long Jump | L16: U11 Male | M16: Pit 1 | Q16: 81 | R16: 4.5 | S16: 4 x 100m Mixed NS | U16: 81 | V16: 4.5 | W16: 4 x 100m Mixed NS
C17: 18 | D17: 12.5 | E17: 800m | F17: U17 Men | I17: 17 | J17: 12.55 | K17: High Jump | L17: U15 Female
C18: 19 | D18: 1 | E18: 80m hurdles (U17) | F18: U17 Female | I18: 21 | J18: 1 | K18: Long Jump | L18: U15 Female | M18: Pit 2 | S18: U13 Female | W18: U13 Male
C19: 20 | D19: 1.05 | E19: 80m hurdles | F19: U15 Male | I19: 22 | J19: 1 | K19: Shot | L19: U15 Male | Q19: 1 | R19: =IF($Q19>0,VLOOKUP($Q19,EventsOrder,2,FALSE)," ") -> 11.45 | S19: =IF($Q19>0,VLOOKUP($Q19,EventsOrder,6,FALSE)," ") -> 1500m | U19: 5 | V19: =IF($U19>0,VLOOKUP($U19,EventsOrder,2,FALSE)," ") -> 12 | W19: =IF($U19>0,VLOOKUP($U19,EventsOrder,6,FALSE)," ") -> High Jump
C20: 25 | D20: 1.15 | E20: 800m | F20: U13 Female | I20: 23 | J20: 1 | K20: Discus | L20: U17 Men | M20: Match 2 | Q20: 11 | R20: 12.15 | S20: 70m hurdles | U20: 12 | V20: 12.2 | W20: 800m
C21: 26 | D21: 1.25 | E21: 800m | F21: U15 Female | I21: 24 | J21: 1 | K21: Javelin | L21: U13 Male | M21: Match 1 & 3 | Q21: 25 | R21: 1.15 | S21: 800m | U21: 15 | V21: 12.35 | W21: 75m hurdles
C22: 27 | D22: 1.35 | E22: 100m hurdles | F22: U17 Men | I22: 31 | J22: 1.4 | K22: High Jump | L22: U13 Female | Q22: 31 | R22: 1.4 | S22: High Jump | U22: 24 | V22: 1 | W22: Javelin Match 1 & 3
C23: 28 | D23: 1.4 | E23: 800m | F23: U17 F/Women | I23: 32 | J23: 1.3 | K23: Long Jump | L23: U17 Men | M23: Pit1 | Q23: 35 | R23: 2.1 | S23: 100m | U23: 41 | V23: 2.25 | W23: 100m
C24: 29 | D24: 1.5 | E24: 600m | F24: U11 Female | I24: 37 | J24: 1.5 | K24: Shot (U17) | L24: U17 Female | Q24: 38 | R24: 1.5 | S24: Discus Match 2 | U24: 52 | V24: 2.4 | W24: Shot
C25: 30 | D25: 1.55 | E25: 600m | F25: U11 Female | G25: NS | I25: 38 | J25: 1.5 | K25: Discus | L25: U13 Female | M25: Match 2 | Q25: 56 | R25: 2.5 | S25: Long Jump Pit 1 | U25: 64 | V25: 3.2 | W25: Long Jump Pit 2
C26: 33 | D26: 2 | E26: 600m | F26: U11 Male | I26: 39 | J26: 1.5 | K26: Javelin | L26: U15 Male | M26: Match 1 & 3 | Q26: 63 | R26: 3.35 | S26: 200m | U26: 70 | V26: 3.5 | W26: 200m
C27: 34 | D27: 2.05 | E27: 600m | F27: U11 Male | G27: NS | I27: 44 | J27: 2.1 | K27: Long Jump | L27: U11 Female | M27: Pit 2 | Q27: 65 | R27: 3.3 | S27: Shot | U27: 73 | V27: 4.2 | W27: 1500m
C28: 35 | D28: 2.1 | E28: 100m | F28: U13 Female | I28: 45 | J28: 2.25 | K28: High Jump | L28: U15 Male | Q28: 79 | R28: 4.2 | S28: Javelin Match 1 & 3 | U28: 78 | V28: 4.2 | W28: Discus Match 2
C29: 36 | D29: 2.15 | E29: 100m | F29: U15 Female | I29: 52 | J29: 2.4 | K29: Shot | L29: U13 Male | Q29: 82 | R29: 4.55 | S29: 4 x 100m | U29: 85 | V29: 5.1 | W29: 4 x 100m
C30: 40 | D30: 2.2 | E30: 100m | F30: U17 F/Women | I30: 53 | J30: 2.4 | K30: Discus (U17) | L30: U17 Female | M30: Match 2
C31: 41 | D31: 2.25 | E31: 100m | F31: U13 Male | I31: 54 | J31: 2.4 | K31: Javelin | L31: U15 Female | M31: Match 1 & 3 | S31: U15 Female | W31: U15 Male
C32: 42 | D32: 2.3 | E32: 100m | F32: U15 Male | I32: 56 | J32: 2.5 | K32: Long Jump | L32: U13 Female | M32: Pit 1 | Q32: 4 | R32: =IF($Q32>0,VLOOKUP($Q32,EventsOrder,2,FALSE)," ") -> 11.55 | S32: =IF($Q32>0,VLOOKUP($Q32,EventsOrder,6,FALSE)," ") -> 1500m | U32: 6 | V32: =IF($U32>0,VLOOKUP($U32,EventsOrder,2,FALSE)," ") -> 12 | W32: =IF($U32>0,VLOOKUP($U32,EventsOrder,6,FALSE)," ") -> Long Jump Pit 2
C33: 43 | D33: 2.35 | E33: 100m | F33: U17 Men | I33: 60 | J33: 3.1 | K33: High Jump | L33: U17 F/Women | Q33: 9 | R33: 12.15 | S33: Discus Match 2 | U33: 16 | V33: 12.4 | W33: 800m
C34: 50 | D34: 2.4 | E34: 300m | F34: U15 Female | I34: 64 | J34: 3.2 | K34: Long Jump | L34: U13 Male | M34: Pit 2 | Q34: 13 | R34: 12.3 | S34: 75m hurdles | U34: 20 | V34: 1.05 | W34: 80m hurdles
C35: 51 | D35: 2.45 | E35: 300m | F35: U17 F/Women | I35: 65 | J35: 3.3 | K35: Shot | L35: U13 Female | Q35: 17 | R35: 12.55 | S35: High Jump | U35: 22 | V35: 1 | W35: Shot
C36: 55 | D36: 2.55 | E36: 300m | F36: U15 Male | I36: 66 | J36: 3.3 | K36: Discus | L36: U15 Male | M36: Match 2 | Q36: 21 | R36: 1 | S36: Long Jump Pit 2 | U36: 39 | V36: 1.5 | W36: Javelin Match 1 & 3
C37: 57 | D37: 3 | E37: 400m | F37: U17 Men | I37: 67 | J37: 3.3 | K37: Javelin | L37: U17 Men | M37: Match 1 & 3 | Q37: 26 | R37: 1.25 | S37: 800m | U37: 42 | V37: 2.3 | W37: 100m
C38: 58 | D38: 3.1 | E38: 75m | F38: U11 Female | I38: 74 | J38: 4.1 | K38: High Jump | L38: U17 Men | Q38: 36 | R38: 2.15 | S38: 100m | U38: 45 | V38: 2.25 | W38: High Jump
C39: 59 | D39: 3.15 | E39: 75m | F39: U11 Female | G39: NS | I39: 75 | J39: 4 | K39: Long Jump | L39: U17 F/Women | M39: Pit1 | Q39: 50 | R39: 2.4 | S39: 300m | U39: 55 | V39: 2.55 | W39: 300m
C40: 61 | D40: 3.2 | E40: 75m | F40: U11 Male | I40: 77 | J40: 4.2 | K40: Shot | L40: U15 Female | Q40: 54 | R40: 2.4 | S40: Javelin Match 1 & 3 | U40: 66 | V40: 3.3 | W40: Discus Match 2
C41: 62 | D41: 3.25 | E41: 75m | F41: U11 Male | G41: NS | I41: 78 | J41: 4.2 | K41: Discus | L41: U13 Male | M41: Match 2 | Q41: 68 | R41: 3.4 | S41: 200m | U41: 71 | V41: 3.55 | W41: 200m
C42: 63 | D42: 3.35 | E42: 200m | F42: U13 Female | I42: 79 | J42: 4.2 | K42: Javelin | L42: U13 Female | M42: Match 1 & 3 | Q42: 77 | R42: 4.2 | S42: Shot | U42: 76 | V42: 4.3 | W42: 1500m
C43: 68 | D43: 3.4 | E43: 200m | F43: U15 Female | Q43: 83 | R43: 5 | S43: 4 x 100m | U43: 86 | V43: 5.15 | W43: 4 x 100m
C44: 69 | D44: 3.45 | E44: 200m | F44: U17 F/Women | J44: Guests - Non Scoring
C45: 70 | D45: 3.5 | E45: 200m | F45: U13 Male | I45: 88 | J45: 11.45 | K45: 1500m | L45: U13 Female | S45: U17 F/Women | W45: U17 Men
C46: 71 | D46: 3.55 | E46: 200m | F46: U15 Male | I46: 89 | J46: 11.55 | K46: 1500m | L46: U15 Female | Q46: 7 | R46: =IF($Q46>0,VLOOKUP($Q46,EventsOrder,2,FALSE)," ") -> 12.05 | S46: =IF($Q46>0,VLOOKUP($Q46,EventsOrder,6,FALSE)," ") -> 1500m | U46: 8 | V46: =IF($U46>0,VLOOKUP($U46,EventsOrder,2,FALSE)," ") -> 12.15 | W46: =IF($U46>0,VLOOKUP($U46,EventsOrder,6,FALSE)," ") -> Shot
C47: 72 | D47: 4 | E47: 200m | F47: U17 Men | I47: 90 | J47: 12.05 | K47: 1500m | L47: U17 F/Women | Q47: 10 | R47: 12.15 | S47: Javelin (U17) Match 1 & 3 | U47: 18 | V47: 12.5 | W47: 800m
C48: 73 | D48: 4.2 | E48: 1500m | F48: U13 Male | I48: 91 | J48: 12.2 | K48: 800m | L48: U13 Male | Q48: 19 | R48: 1 | S48: 80m hurdles (U17) | U48: 23 | V48: 1 | W48: Discus Match 2
C49: 76 | D49: 4.3 | E49: 1500m | F49: U15 Male | I49: 92 | J49: 12.4 | K49: 800m | L49: U15 Male | Q49: 28 | R49: 1.4 | S49: 800m | U49: 27 | V49: 1.35 | W49: 100m hurdles
C50: 80 | D50: 4.4 | E50: 1500m | F50: U17 Men | I50: 93 | J50: 12.5 | K50: 800m | L50: U17 Men | Q50: 37 | R50: 1.5 | S50: Shot (U17) | U50: 32 | V50: 1.3 | W50: Long Jump Pit1
C51: 81 | D51: 4.5 | E51: 4 x 100m Mixed | F51: U11 Fem/Male | G51: NS | I51: 94 | J51: 1.15 | K51: 800m | L51: U13 Female | Q51: 40 | R51: 2.2 | S51: 100m | U51: 43 | V51: 2.35 | W51: 100m
C52: 82 | D52: 4.55 | E52: 4 x 100m | F52: U13 Female | I52: 95 | J52: 1.25 | K52: 800m | L52: U15 Female | Q52: 51 | R52: 2.45 | S52: 300m | U52: 57 | V52: 3 | W52: 400m
C53: 83 | D53: 5 | E53: 4 x 100m | F53: U15 Female | I53: 96 | J53: 1.4 | K53: 800m | L53: U17 F/Women | Q53: 53 | R53: 2.4 | S53: Discus (U17) Match 2 | U53: 67 | V53: 3.3 | W53: Javelin Match 1 & 3
C54: 84 | D54: 5.05 | E54: 4 x 100m | F54: U17 F/Women | I54: 97 | J54: 4.2 | K54: 1500m | L54: U13 Male | Q54: 60 | R54: 3.1 | S54: High Jump | U54: 72 | V54: 4 | W54: 200m
C55: 85 | D55: 5.1 | E55: 4 x 100m | F55: U13 Male | I55: 98 | J55: 4.3 | K55: 1500m | L55: U15 Male | Q55: 69 | R55: 3.45 | S55: 200m | U55: 74 | V55: 4.1 | W55: High Jump
C56: 86 | D56: 5.15 | E56: 4 x 100m | F56: U15 Male | I56: 99 | J56: 4.4 | K56: 1500m | L56: U17 Men | Q56: 75 | R56: 4 | S56: Long Jump Pit1 | U56: 80 | V56: 4.4 | W56: 1500m
C57: 87 | D57: 5.2 | E57: 4 x 100m | F57: U17 Men | Q57: 84 | R57: 5.05 | S57: 4 x 100m | U57: 87 | V57: 5.2 | W57: 4 x 100m
K59: No of Trials | S59: Guests - Non Scoring
I60: Jumps | K60: 3 | L60: Long Jump - 2 Pits required | S60: Female | W60: Male
I61: Discus | K61: 3 | Q61: 88 | R61: =IF($Q61>0,VLOOKUP($Q61,EventsOrder,2,FALSE)," ") -> 11.45 | S61: =IF($Q61>0,VLOOKUP($Q61,EventsOrder,6,FALSE)," ") -> 1500m U13 Female | U61: 91 | V61: =IF($U61>0,VLOOKUP($U61,EventsOrder,2,FALSE)," ") -> 12.2 | W61: =IF($U61>0,VLOOKUP($U61,EventsOrder,6,FALSE)," ") -> 800m U13 Male
I62: Javelin | K62: 4 | Q62: 89 | R62: 11.55 | S62: 1500m U15 Female | U62: 92 | V62: 12.4 | W62: 800m U15 Male
I63: Shot | K63: 4 | Q63: 90 | R63: 12.05 | S63: 1500m U17 F/Women | U63: 93 | V63: 12.5 | W63: 800m U17 Men
Q64: 94 | R64: 1.15 | S64: 800m U13 Female | U64: 97 | V64: 4.2 | W64: 1500m U13 Male
J65: High Jump | Q65: 95 | R65: =IF($Q65>0,VLOOKUP($Q65,EventsOrder,2,FALSE)," ") -> 1.25 | S65: =IF($Q65>0,VLOOKUP($Q65,EventsOrder,6,FALSE)," ") -> 800m U15 Female | U65: 98 | V65: =IF($U65>0,VLOOKUP($U65,EventsOrder,2,FALSE)," ") -> 4.3 | W65: =IF($U65>0,VLOOKUP($U65,EventsOrder,6,FALSE)," ") -> 1500m U15 Male
J66: Opening Heights | Q66: 96 | R66: =IF($Q66>0,VLOOKUP($Q66,EventsOrder,2,FALSE)," ") -> 1.4 | S66: =IF($Q66>0,VLOOKUP($Q66,EventsOrder,6,FALSE)," ") -> 800m U17 F/Women | U66: 99 | V66: =IF($U66>0,VLOOKUP($U66,EventsOrder,2,FALSE)," ") -> 4.4 | W66: =IF($U66>0,VLOOKUP($U66,EventsOrder,6,FALSE)," ") -> 1500m U17 Men
J67: Male | K67: Female | R67: =IF($Q67>0,VLOOKUP($Q67,EventsOrder,2,FALSE)," ") ->  | S67: =IF($Q67>0,VLOOKUP($Q67,EventsOrder,6,FALSE)," ") ->  | V67: =IF($U67>0,VLOOKUP($U67,EventsOrder,2,FALSE)," ") ->  | W67: =IF($Q67>0,VLOOKUP($Q67,EventsOrder,6,FALSE)," ") -> 
I68: U13 | J68: 1.10m | K68: 1.00m
I69: U15 | J69: 1.20m | K69: 1.10m
I70: U17 | J70: 1.30m | K70: 1.20m
C74: Event No's - In Order of Time
C76: Event
C77: No | D77: Time | E77: Event | F77: Age | G77: Comment | I77: Event
G78: =E78&" "&IF(J78>0,J78,"") -> 
C79: 0 | G79: =E79&" "&IF(J79>0,J79,"") -> 
C80: 1 | D80: =VLOOKUP($C80,IF(ISNA(VLOOKUP($C80,Track,1,FALSE)),Field,Track),2,FALSE) -> 11.45 | E80: =VLOOKUP($C80,IF(ISNA(VLOOKUP($C80,Track,1,FALSE)),Field,Track),3,FALSE) -> 1500m | F80: =VLOOKUP($C80,IF(ISNA(VLOOKUP($C80,Track,1,FALSE)),Field,Track),4,FALSE) -> U13 Female | G80: =VLOOKUP($C80,IF(ISNA(VLOOKUP($C80,Track,1,FALSE)),Field,Track),5,FALSE) ->  | H80: =VLOOKUP($C80,IF(ISNA(VLOOKUP($C80,Track,1,FALSE)),Field,Track),3,FALSE)&" "&G80 -> 1500m
C81: 2 | D81: 11.45 | E81: Howler | F81: U11 Male | H81: Howler
C82: 3 | D82: 11.45 | E82: Howler | F82: U11 Female | H82: Howler
C83: 4 | D83: 11.55 | E83: 1500m | F83: U15 Female | H83: 1500m
C84: 5 | D84: 12 | E84: High Jump | F84: U13 Male | H84: High Jump
C85: 6 | D85: 12 | E85: Long Jump | F85: U15 Male | G85: Pit 2 | H85: Long Jump Pit 2
C86: 7 | D86: 12.05 | E86: 1500m | F86: U17 F/Women | H86: 1500m
C87: 8 | D87: 12.15 | E87: Shot | F87: U17 Men | H87: Shot
C88: 9 | D88: 12.15 | E88: Discus | F88: U15 Female | G88: Match 2 | H88: Discus Match 2
C89: 10 | D89: 12.15 | E89: Javelin (U17) | F89: U17 Female | G89: Match 1 & 3 | H89: Javelin (U17) Match 1 & 3
C90: 11 | D90: 12.15 | E90: 70m hurdles | F90: U13 Female | H90: 70m hurdles
C91: 12 | D91: 12.2 | E91: 800m | F91: U13 Male | H91: 800m
C92: 13 | D92: 12.3 | E92: 75m hurdles | F92: U15 Female | H92: 75m hurdles
C93: 14 | D93: 12.3 | E93: Long Jump | F93: U11 Male | G93: Pit 1 | H93: Long Jump Pit 1
C94: 15 | D94: 12.35 | E94: 75m hurdles | F94: U13 Male | H94: 75m hurdles
C95: 16 | D95: 12.4 | E95: 800m | F95: U15 Male | H95: 800m
C96: 17 | D96: 12.55 | E96: High Jump | F96: U15 Female | H96: High Jump
C97: 18 | D97: 12.5 | E97: 800m | F97: U17 Men | H97: 800m
C98: 19 | D98: 1 | E98: 80m hurdles (U17) | F98: U17 Female | H98: 80m hurdles (U17)
C99: 20 | D99: 1.05 | E99: 80m hurdles | F99: U15 Male | H99: 80m hurdles
C100: 21 | D100: 1 | E100: Long Jump | F100: U15 Female | G100: Pit 2 | H100: Long Jump Pit 2
C101: 22 | D101: 1 | E101: Shot | F101: U15 Male | H101: Shot
C102: 23 | D102: 1 | E102: Discus | F102: U17 Men | G102: Match 2 | H102: Discus Match 2
C103: 24 | D103: 1 | E103: Javelin | F103: U13 Male | G103: Match 1 & 3 | H103: Javelin Match 1 & 3
C104: 25 | D104: 1.15 | E104: 800m | F104: U13 Female | H104: 800m
C105: 26 | D105: 1.25 | E105: 800m | F105: U15 Female | H105: 800m
C106: 27 | D106: 1.35 | E106: 100m hurdles | F106: U17 Men | H106: 100m hurdles
C107: 28 | D107: 1.4 | E107: 800m | F107: U17 F/Women | H107: 800m
C108: 29 | D108: 1.5 | E108: 600m | F108: U11 Female | H108: 600m
C109: 30 | D109: 1.55 | E109: 600m | F109: U11 Female | G109: NS | H109: 600m NS
C110: 31 | D110: 1.4 | E110: High Jump | F110: U13 Female | H110: High Jump
C111: 32 | D111: 1.3 | E111: Long Jump | F111: U17 Men | G111: Pit1 | H111: Long Jump Pit1
C112: 33 | D112: =VLOOKUP($C112,IF(ISNA(VLOOKUP($C112,Track,1,FALSE)),Field,Track),2,FALSE) -> 2 | E112: =VLOOKUP($C112,IF(ISNA(VLOOKUP($C112,Track,1,FALSE)),Field,Track),3,FALSE) -> 600m | F112: =VLOOKUP($C112,IF(ISNA(VLOOKUP($C112,Track,1,FALSE)),Field,Track),4,FALSE) -> U11 Male | G112: =VLOOKUP($C112,IF(ISNA(VLOOKUP($C112,Track,1,FALSE)),Field,Track),5,FALSE) ->  | H112: =VLOOKUP($C112,IF(ISNA(VLOOKUP($C112,Track,1,FALSE)),Field,Track),3,FALSE)&" "&G112 -> 600m
C113: 34 | D113: 2.05 | E113: 600m | F113: U11 Male | G113: NS | H113: 600m NS
C114: 35 | D114: 2.1 | E114: 100m | F114: U13 Female | H114: 100m
C115: 36 | D115: 2.15 | E115: 100m | F115: U15 Female | H115: 100m
C116: 37 | D116: 1.5 | E116: Shot (U17) | F116: U17 Female | H116: Shot (U17)
C117: 38 | D117: 1.5 | E117: Discus | F117: U13 Female | G117: Match 2 | H117: Discus Match 2
C118: 39 | D118: 1.5 | E118: Javelin | F118: U15 Male | G118: Match 1 & 3 | H118: Javelin Match 1 & 3
C119: 40 | D119: 2.2 | E119: 100m | F119: U17 F/Women | H119: 100m
C120: 41 | D120: 2.25 | E120: 100m | F120: U13 Male | H120: 100m
C121: 42 | D121: 2.3 | E121: 100m | F121: U15 Male | H121: 100m
C122: 43 | D122: 2.35 | E122: 100m | F122: U17 Men | H122: 100m
C123: 44 | D123: 2.1 | E123: Long Jump | F123: U11 Female | G123: Pit 2 | H123: Long Jump Pit 2
C124: 45 | D124: 2.25 | E124: High Jump | F124: U15 Male | H124: High Jump
C125: 46
C126: 47
C127: 48
C128: 49
C129: 50 | D129: 2.4 | E129: 300m | F129: U15 Female | H129: 300m
C130: 51 | D130: 2.45 | E130: 300m | F130: U17 F/Women | H130: 300m
C131: 52 | D131: 2.4 | E131: Shot | F131: U13 Male | H131: Shot
C132: 53 | D132: 2.4 | E132: Discus (U17) | F132: U17 Female | G132: Match 2 | H132: Discus (U17) Match 2
C133: 54 | D133: 2.4 | E133: Javelin | F133: U15 Female | G133: Match 1 & 3 | H133: Javelin Match 1 & 3
C134: 55 | D134: 2.55 | E134: 300m | F134: U15 Male | H134: 300m
C135: 56 | D135: 2.5 | E135: Long Jump | F135: U13 Female | G135: Pit 1 | H135: Long Jump Pit 1
C136: 57 | D136: 3 | E136: 400m | F136: U17 Men | H136: 400m
C137: 58 | D137: 3.1 | E137: 75m | F137: U11 Female | H137: 75m
C138: 59 | D138: 3.15 | E138: 75m | F138: U11 Female | G138: NS | H138: 75m NS
C139: 60 | D139: 3.1 | E139: High Jump | F139: U17 F/Women | H139: High Jump
C140: 61 | D140: 3.2 | E140: 75m | F140: U11 Male | H140: 75m
C141: 62 | D141: 3.25 | E141: 75m | F141: U11 Male | G141: NS | H141: 75m NS
C142: 63 | D142: 3.35 | E142: 200m | F142: U13 Female | H142: 200m
C143: 64 | D143: 3.2 | E143: Long Jump | F143: U13 Male | G143: Pit 2 | H143: Long Jump Pit 2
C144: 65 | D144: =VLOOKUP($C144,IF(ISNA(VLOOKUP($C144,Track,1,FALSE)),Field,Track),2,FALSE) -> 3.3 | E144: =VLOOKUP($C144,IF(ISNA(VLOOKUP($C144,Track,1,FALSE)),Field,Track),3,FALSE) -> Shot | F144: =VLOOKUP($C144,IF(ISNA(VLOOKUP($C144,Track,1,FALSE)),Field,Track),4,FALSE) -> U13 Female | G144: =VLOOKUP($C144,IF(ISNA(VLOOKUP($C144,Track,1,FALSE)),Field,Track),5,FALSE) ->  | H144: =VLOOKUP($C144,IF(ISNA(VLOOKUP($C144,Track,1,FALSE)),Field,Track),3,FALSE)&" "&G144 -> Shot
C145: 66 | D145: 3.3 | E145: Discus | F145: U15 Male | G145: Match 2 | H145: Discus Match 2
C146: 67 | D146: 3.3 | E146: Javelin | F146: U17 Men | G146: Match 1 & 3 | H146: Javelin Match 1 & 3
C147: 68 | D147: 3.4 | E147: 200m | F147: U15 Female | H147: 200m
C148: 69 | D148: 3.45 | E148: 200m | F148: U17 F/Women | H148: 200m
C149: 70 | D149: 3.5 | E149: 200m | F149: U13 Male | H149: 200m
C150: 71 | D150: 3.55 | E150: 200m | F150: U15 Male | H150: 200m
C151: 72 | D151: 4 | E151: 200m | F151: U17 Men | H151: 200m
C152: 73 | D152: 4.2 | E152: 1500m | F152: U13 Male | H152: 1500m
C153: 74 | D153: 4.1 | E153: High Jump | F153: U17 Men | H153: High Jump
C154: 75 | D154: 4 | E154: Long Jump | F154: U17 F/Women | G154: Pit1 | H154: Long Jump Pit1
C155: 76 | D155: 4.3 | E155: 1500m | F155: U15 Male | H155: 1500m
C156: 77 | D156: 4.2 | E156: Shot | F156: U15 Female | H156: Shot
C157: 78 | D157: 4.2 | E157: Discus | F157: U13 Male | G157: Match 2 | H157: Discus Match 2
C158: 79 | D158: 4.2 | E158: Javelin | F158: U13 Female | G158: Match 1 & 3 | H158: Javelin Match 1 & 3
C159: 80 | D159: 4.4 | E159: 1500m | F159: U17 Men | H159: 1500m
C160: 81 | D160: 4.5 | E160: 4 x 100m Mixed | F160: U11 Fem/Male | G160: NS | H160: 4 x 100m Mixed NS
C161: 82 | D161: 4.55 | E161: 4 x 100m | F161: U13 Female | H161: 4 x 100m
C162: 83 | D162: 5 | E162: 4 x 100m | F162: U15 Female | H162: 4 x 100m
C163: 84 | D163: 5.05 | E163: 4 x 100m | F163: U17 F/Women | H163: 4 x 100m
C164: 85 | D164: 5.1 | E164: 4 x 100m | F164: U13 Male | H164: 4 x 100m
C165: 86 | D165: 5.15 | E165: 4 x 100m | F165: U15 Male | H165: 4 x 100m
C166: =C165+1 -> 87 | D166: 5.2 | E166: 4 x 100m | F166: U17 Men | H166: 4 x 100m
C167: =C166+1 -> 88 | D167: 11.45 | E167: 1500m | F167: U13 Female | G167: 0 | H167: =VLOOKUP($C167,IF(ISNA(VLOOKUP($C167,Track,1,FALSE)),Field,Track),3,FALSE)&" "&F167 -> 1500m U13 Female
C168: =C167+1 -> 89 | D168: 11.55 | E168: 1500m | F168: U15 Female | G168: 0 | H168: 1500m U15 Female
C169: =C168+1 -> 90 | D169: 12.05 | E169: 1500m | F169: U17 F/Women | H169: 1500m U17 F/Women
C170: 91 | D170: 12.2 | E170: 800m | F170: U13 Male | H170: =VLOOKUP($C170,IF(ISNA(VLOOKUP($C170,Track,1,FALSE)),Field,Track),3,FALSE)&" "&F170 -> 800m U13 Male
C171: 92 | D171: 12.4 | E171: 800m | F171: U15 Male | H171: 800m U15 Male
C172: 93 | D172: 12.5 | E172: 800m | F172: U17 Men | H172: 800m U17 Men
C173: 94 | D173: 1.15 | E173: 800m | F173: U13 Female | H173: 800m U13 Female
C174: 95 | D174: 1.25 | E174: 800m | F174: U15 Female | H174: 800m U15 Female
C175: 96 | D175: 1.4 | E175: 800m | F175: U17 F/Women | H175: 800m U17 F/Women
C176: 97 | D176: 4.2 | E176: 1500m | F176: U13 Male | H176: 1500m U13 Male
C177: 98 | D177: 4.3 | E177: 1500m | F177: U15 Male | H177: 1500m U15 Male
C178: 99 | D178: 4.4 | E178: 1500m | F178: U17 Men | H178: 1500m U17 Men

Sheet Team Declaration Sheet
C3: ='Event Details'!D5&" "&"Declaration Sheets Male" -> Heart of England League Declaration Sheets Male | J3: ='Event Details'!D7 -> 2016 | M3: ='Event Details'!D$5&" "&"Declaration Sheets Female" -> Heart of England League Declaration Sheets Female | T3: ='Event Details'!D$7 -> 2016
C4: Club | H4: Only 2 non scorers allowed per race | M4: Club | N4: =D4 -> 0 | R4: Only 2 non scorers allowed per race
B6: Event | C6: Time | D6: Events | G6: No | H6: A String | I6: No | J6: B String | L6: Event | M6: Time | N6: Events | Q6: No | R6: A String | S6: No | T6: B String
D7: Under 11 Male | N7: Under 11 Female
B8: 2 | C8: =IF($B8>0,VLOOKUP($B8,EventsOrder,2,FALSE)," ") -> 11.45 | D8: =IF($B8>0,VLOOKUP($B8,EventsOrder,6,FALSE)," ") -> Howler | L8: 3 | M8: =IF($L8>0,VLOOKUP($L8,EventsOrder,2,FALSE)," ") -> 11.45 | N8: =IF($L8>0,VLOOKUP($L8,EventsOrder,6,FALSE)," ") -> Howler
B9: 14 | C9: =IF($B9>0,VLOOKUP($B9,EventsOrder,2,FALSE)," ") -> 12.3 | D9: =IF($B9>0,VLOOKUP($B9,EventsOrder,6,FALSE)," ") -> Long Jump Pit 1 | L9: 29 | M9: =IF($L9>0,VLOOKUP($L9,EventsOrder,2,FALSE)," ") -> 1.5 | N9: =IF($L9>0,VLOOKUP($L9,EventsOrder,6,FALSE)," ") -> 600m
B10: 33 | C10: =IF($B10>0,VLOOKUP($B10,EventsOrder,2,FALSE)," ") -> 2 | D10: =IF($B10>0,VLOOKUP($B10,EventsOrder,6,FALSE)," ") -> 600m | L10: 44 | M10: =IF($L10>0,VLOOKUP($L10,EventsOrder,2,FALSE)," ") -> 2.1 | N10: =IF($L10>0,VLOOKUP($L10,EventsOrder,6,FALSE)," ") -> Long Jump Pit 2
B11: 61 | C11: =IF($B11>0,VLOOKUP($B11,EventsOrder,2,FALSE)," ") -> 3.2 | D11: =IF($B11>0,VLOOKUP($B11,EventsOrder,6,FALSE)," ") -> 75m | L11: 58 | M11: =IF($L11>0,VLOOKUP($L11,EventsOrder,2,FALSE)," ") -> 3.1 | N11: =IF($L11>0,VLOOKUP($L11,EventsOrder,6,FALSE)," ") -> 75m
B12: Non-Scoring | G12: No's | H12: (enter Competitor No) | I12: No's | J12: (enter Competitor No) | L12: Non-Scoring | Q12: No's | R12: (enter Competitor No) | S12: No's | T12: (enter Competitor No)
C13: =IF($B13>0,VLOOKUP($B13,EventsOrder,2,FALSE)," ") ->  | D13: =IF($B13>0,VLOOKUP($B13,EventsOrder,6,FALSE)," ") ->  | M13: =IF($L13>0,VLOOKUP($L13,EventsOrder,2,FALSE)," ") ->  | N13: =IF($L13>0,VLOOKUP($L13,EventsOrder,6,FALSE)," ") -> 
B14: 34 | C14: =IF($B14>0,VLOOKUP($B14,EventsOrder,2,FALSE)," ") -> 2.05 | D14: =IF($B14>0,VLOOKUP($B14,EventsOrder,6,FALSE)," ") -> 600m NS | L14: 30 | M14: =IF($L14>0,VLOOKUP($L14,EventsOrder,2,FALSE)," ") -> 1.55 | N14: =IF($L14>0,VLOOKUP($L14,EventsOrder,6,FALSE)," ") -> 600m NS
B15: 62 | C15: =IF($B15>0,VLOOKUP($B15,EventsOrder,2,FALSE)," ") -> 3.25 | D15: =IF($B15>0,VLOOKUP($B15,EventsOrder,6,FALSE)," ") -> 75m NS | L15: 59 | M15: =IF($L15>0,VLOOKUP($L15,EventsOrder,2,FALSE)," ") -> 3.15 | N15: =IF($L15>0,VLOOKUP($L15,EventsOrder,6,FALSE)," ") -> 75m NS
L16: 81 | M16: =IF($L16>0,VLOOKUP($L16,EventsOrder,2,FALSE)," ") -> 4.5 | N16: =IF($L16>0,VLOOKUP($L16,EventsOrder,6,FALSE)," ") -> 4 x 100m Mixed NS | R16: =N$4 -> 0
B17: Event | C17: Time | D17: Events | G17: No | H17: A String | I17: No | J17: B String | L17: =L16&"R" -> 81R | Q17: 1 | S17: 2
D18: Under 13 Male | L18: =L16&"S" -> 81S | Q18: 3 | S18: 4
B19: 5 | C19: =IF($B19>0,VLOOKUP($B19,EventsOrder,2,FALSE)," ") -> 12 | D19: =IF($B19>0,VLOOKUP($B19,EventsOrder,6,FALSE)," ") -> High Jump
B20: 12 | C20: 12.2 | D20: 800m | L20: Event | M20: Time | N20: Events | Q20: No | R20: A String | S20: No | T20: B String
B21: 15 | C21: 12.35 | D21: 75m hurdles | N21: Under 13 Female
B22: 24 | C22: 1 | D22: Javelin Match 1 & 3 | L22: 1 | M22: =IF($L22>0,VLOOKUP($L22,EventsOrder,2,FALSE)," ") -> 11.45 | N22: =IF($L22>0,VLOOKUP($L22,EventsOrder,6,FALSE)," ") -> 1500m
B23: 41 | C23: 2.25 | D23: 100m | L23: 11 | M23: 12.15 | N23: 70m hurdles
B24: 52 | C24: 2.4 | D24: Shot | L24: 25 | M24: 1.15 | N24: 800m
B25: 64 | C25: =IF($B25>0,VLOOKUP($B25,EventsOrder,2,FALSE)," ") -> 3.2 | D25: =IF($B25>0,VLOOKUP($B25,EventsOrder,6,FALSE)," ") -> Long Jump Pit 2 | L25: 31 | M25: 1.4 | N25: High Jump
B26: 70 | C26: 3.5 | D26: 200m | L26: 35 | M26: 2.1 | N26: 100m
B27: 73 | C27: 4.2 | D27: 1500m | L27: 38 | M27: 1.5 | N27: Discus Match 2
B28: 78 | C28: 4.2 | D28: Discus Match 2 | L28: 56 | M28: 2.5 | N28: Long Jump Pit 1
B29: 85 | C29: 5.1 | D29: 4 x 100m | H29: =D$4 -> 0 | L29: 63 | M29: 3.35 | N29: 200m
B30: =B29&"R" -> 85R | G30: 1 | I30: 2 | L30: 65 | M30: 3.3 | N30: Shot
B31: =B29&"S" -> 85S | G31: 3 | I31: 4 | L31: 79 | M31: 4.2 | N31: Javelin Match 1 & 3
L32: 82 | M32: 4.55 | N32: 4 x 100m | R32: =N$4 -> 0
L33: =L32&"R" -> 82R | Q33: 1 | S33: 2
B34: Event | C34: Time | D34: Events | G34: No | H34: A String | I34: No | J34: B String | L34: =L32&"S" -> 82S | Q34: 3 | S34: 4
D35: Under 15 Male | M35: =IF($B35>0,VLOOKUP($B35,EventsOrder,2,FALSE)," ") ->  | N35: =IF($B35>0,VLOOKUP($B35,EventsOrder,6,FALSE)," ") -> 
B36: 6 | C36: =IF($B36>0,VLOOKUP($B36,EventsOrder,2,FALSE)," ") -> 12 | D36: =IF($B36>0,VLOOKUP($B36,EventsOrder,6,FALSE)," ") -> Long Jump Pit 2
B37: 16 | C37: 12.4 | D37: 800m | L37: Event | M37: Time | N37: Events | Q37: No | R37: A String | S37: No | T37: B String
B38: 20 | C38: 1.05 | D38: 80m hurdles | N38: Under 15 Female
B39: 22 | C39: 1 | D39: Shot | L39: 4 | M39: =IF($L39>0,VLOOKUP($L39,EventsOrder,2,FALSE)," ") -> 11.55 | N39: =IF($L39>0,VLOOKUP($L39,EventsOrder,6,FALSE)," ") -> 1500m
B40: 39 | C40: 1.5 | D40: Javelin Match 1 & 3 | L40: 9 | M40: 12.15 | N40: Discus Match 2
B41: 42 | C41: 2.3 | D41: 100m | L41: 13 | M41: 12.3 | N41: 75m hurdles
B42: 45 | C42: 2.25 | D42: High Jump | L42: 17 | M42: 12.55 | N42: High Jump
B43: 55 | C43: =IF($B43>0,VLOOKUP($B43,EventsOrder,2,FALSE)," ") -> 2.55 | D43: =IF($B43>0,VLOOKUP($B43,EventsOrder,6,FALSE)," ") -> 300m | L43: 21 | M43: 1 | N43: Long Jump Pit 2
B44: 66 | C44: 3.3 | D44: Discus Match 2 | L44: 26 | M44: 1.25 | N44: 800m
B45: 71 | C45: 3.55 | D45: 200m | L45: 36 | M45: 2.15 | N45: 100m
B46: 76 | C46: 4.3 | D46: 1500m | L46: 50 | M46: 2.4 | N46: 300m
B47: 86 | C47: 5.15 | D47: 4 x 100m | H47: =D$4 -> 0 | L47: 54 | M47: 2.4 | N47: Javelin Match 1 & 3
B48: =B47&"R" -> 86R | G48: 1 | I48: 2 | L48: 68 | M48: 3.4 | N48: 200m
B49: =B47&"S" -> 86S | G49: 3 | I49: 4 | L49: 77 | M49: 4.2 | N49: Shot
L50: 83 | M50: 5 | N50: 4 x 100m | R50: =N$4 -> 0
L51: =L50&"R" -> 83R | Q51: 1 | S51: 2
B52: Event | C52: Time | D52: Events | G52: No | H52: A String | I52: No | J52: B String | L52: =L50&"S" -> 83S | Q52: 3 | S52: 4
D53: Under 17 Male | M53: =IF($B53>0,VLOOKUP($B53,EventsOrder,2,FALSE)," ") ->  | N53: =IF($B53>0,VLOOKUP($B53,EventsOrder,6,FALSE)," ") -> 
B54: 8 | C54: =IF($B54>0,VLOOKUP($B54,EventsOrder,2,FALSE)," ") -> 12.15 | D54: =IF($B54>0,VLOOKUP($B54,EventsOrder,6,FALSE)," ") -> Shot
B55: 18 | C55: 12.5 | D55: 800m | L55: Event | M55: Time | N55: Events | Q55: No | R55: A String | S55: No | T55: B String
B56: 23 | C56: 1 | D56: Discus Match 2 | N56: U17 Female / Women
B57: 27 | C57: 1.35 | D57: 100m hurdles | L57: 7 | M57: =IF($L57>0,VLOOKUP($L57,EventsOrder,2,FALSE)," ") -> 12.05 | N57: =IF($L57>0,VLOOKUP($L57,EventsOrder,6,FALSE)," ") -> 1500m
B58: 32 | C58: 1.3 | D58: Long Jump Pit1 | L58: 10 | M58: 12.15 | N58: Javelin (U17) Match 1 & 3
B59: 43 | C59: 2.35 | D59: 100m | L59: 19 | M59: 1 | N59: 80m hurdles (U17)
B60: 57 | C60: 3 | D60: 400m | L60: 28 | M60: 1.4 | N60: 800m
B61: 67 | C61: =IF($B61>0,VLOOKUP($B61,EventsOrder,2,FALSE)," ") -> 3.3 | D61: =IF($B61>0,VLOOKUP($B61,EventsOrder,6,FALSE)," ") -> Javelin Match 1 & 3 | L61: 37 | M61: 1.5 | N61: Shot (U17)
B62: 72 | C62: 4 | D62: 200m | L62: 40 | M62: 2.2 | N62: 100m
B63: 74 | C63: 4.1 | D63: High Jump | L63: 51 | M63: 2.45 | N63: 300m | R63: =R$3 -> 0
B64: 80 | C64: 4.4 | D64: 1500m | L64: 53 | M64: 2.4 | N64: Discus (U17) Match 2
B65: 87 | C65: 5.2 | D65: 4 x 100m | H65: =D$4 -> 0 | L65: 60 | M65: 3.1 | N65: High Jump
B66: =B65&"R" -> 87R | G66: 1 | I66: 2 | L66: 69 | M66: 3.45 | N66: 200m
B67: =B65&"S" -> 87S | G67: 3 | I67: 4 | L67: 75 | M67: 4 | N67: Long Jump Pit1
L68: 84 | M68: 5.05 | N68: 4 x 100m | R68: =N$4 -> 0
L69: =L68&"R" -> 84R | Q69: 1 | S69: 2
L70: =L68&"S" -> 84S | Q70: 3 | S70: 4
C71: ='Event Details'!D$5&" "&"Declaration Sheets - Guests" -> Heart of England League Declaration Sheets - Guests | J71: ='Event Details'!D$7 -> 2016
C72: Club | D72: =D4 -> 0 | H72: Only 1 non scorers allowed per race
M73: ='Event Details'!D$5&" "&"Declaration Sheets - Guests" -> Heart of England League Declaration Sheets - Guests | T73: ='Event Details'!N$7 -> 0
B74: Event | C74: Time | D74: Events | G74: No | H74: A String | M74: Club | N74: =D4 -> 0 | R74: Only 1 non scorers allowed per race
D76: Male | L76: Event | M76: Time | N76: Events | Q76: No | R76: A String
B77: 91 | C77: =IF($B77>0,VLOOKUP($B77,EventsOrder,2,FALSE)," ") -> 12.2 | D77: =IF($B77>0,VLOOKUP($B77,EventsOrder,6,FALSE)," ") -> 800m U13 Male | N77: Female
B78: 92 | C78: 12.4 | D78: 800m U15 Male | L78: 88 | M78: =IF($L78>0,VLOOKUP($L78,EventsOrder,2,FALSE)," ") -> 11.45 | N78: =IF($L78>0,VLOOKUP($L78,EventsOrder,6,FALSE)," ") -> 1500m U13 Female
B79: 93 | C79: 12.5 | D79: 800m U17 Men | L79: 89 | M79: 11.55 | N79: 1500m U15 Female
B80: 97 | C80: 4.2 | D80: 1500m U13 Male | L80: 90 | M80: 12.05 | N80: 1500m U17 F/Women
B81: 98 | C81: 4.3 | D81: 1500m U15 Male | L81: 94 | M81: 1.15 | N81: 800m U13 Female
B82: 99 | C82: 4.4 | D82: 1500m U17 Men | L82: 95 | M82: 1.25 | N82: 800m U15 Female
L83: 96 | M83: 1.4 | N83: 800m U17 F/Women

Sheet Teamsheet Male
BA1: For Test data
C2: Heart of England League | H2: Club | J2: Date | M2: Club | O2: Date | R2: Club | T2: Date | W2: Club | Y2: Date | AB2: Club | AD2: Date | AG2: Club | AI2: Date | AL2: Club | AN2: Date | AQ2: Club | AS2: Date
C3: Declaration Sheets | G3: ='Event Details'!$C$22 -> J | H3: ='Event Details'!$D$22 -> Banbury | J3: ='Event Details'!$B$17 -> 5th June 2016 | L3: ='Event Details'!$C$23 -> P | M3: ='Event Details'!$D$23 -> Bicester | O3: ='Event Details'!$B$17 -> 5th June 2016 | Q3: ='Event Details'!$C$24 -> B | R3: ='Event Details'!$D$24 -> Dudley & S'bridge | T3: ='Event Details'!$B$17 -> 5th June 2016 | V3: ='Event Details'!$C$25 -> I | W3: ='Event Details'!$D$25 -> Kettering | Y3: ='Event Details'!$B$17 -> 5th June 2016 | AA3: ='Event Details'!$C$26 -> R | AB3: ='Event Details'!$D$26 -> Radley | AD3: ='Event Details'!$B$17 -> 5th June 2016 | AF3: ='Event Details'!$C$27 -> F | AG3: ='Event Details'!$D$27 -> Tamworth | AI3: ='Event Details'!$B$17 -> 5th June 2016 | AK3: ='Event Details'!$C$28 -> X | AL3: ='Event Details'!$D$28 -> Wreake Runners | AN3: ='Event Details'!$B$17 -> 5th June 2016 | AP3: ='Event Details'!$C$29 -> Y | AQ3: ='Event Details'!$D$29 -> Worcester | AS3: ='Event Details'!$B$17 -> 5th June 2016
C4: Only 2 non scorers allowed per race
B6: Event | C6: Time | D6: Events | G6: No | H6: A String | I6: No | J6: B String | L6: No | M6: A String | N6: No | O6: B String | Q6: No | R6: A String | S6: No | T6: B String | V6: No | W6: A String | X6: No | Y6: B String | AA6: No | AB6: A String | AC6: No | AD6: B String | AF6: No | AG6: A String | AH6: No | AI6: B String | AK6: No | AL6: A String | AM6: No | AN6: B String | AP6: No | AQ6: A String | AR6: No | AS6: B String | AU6: No | AV6: A String | AW6: No | AX6: B String | AZ6: No | BA6: A String | BB6: No | BC6: B String
D7: Under 11 Male
B8: 2 | C8: =IF($B8>0,VLOOKUP($B8,EventsOrder,2,FALSE)," ") -> 11.45 | D8: =IF($B8>0,VLOOKUP($B8,EventsOrder,6,FALSE)," ") -> Howler | H8: Archie Street | J8: Toby Jones | M8: Seion Alexander | N8: PP | O8: Timothy Jones | R8: Corey Lees | T8: Reece Lees | W8: Alfie Frayne | X8: II | Y8: Aaron Holloway | AB8: Quinn Miell-Ingram | AD8: Caspar Cumberland | AL8: Jonty Brotherton | AN8: Sam Orange | AQ8: Linus Burnage | AS8: Ellis Hartland | BA8: =CONCATENATE(LEFT(BA$3,3),$B8,LEFT(BA$6,1)) -> 2A | BC8: =CONCATENATE(LEFT(BA$3,3),$B8,LEFT(BC$6,1)) -> 2B
B9: 14 | C9: =IF($B9>0,VLOOKUP($B9,EventsOrder,2,FALSE)," ") -> 12.3 | D9: =IF($B9>0,VLOOKUP($B9,EventsOrder,6,FALSE)," ") -> Long Jump Pit 1 | H9: Ethan Aldous | J9: Archie Street | M9: Joshua Parker | N9: PP | O9: Seion Alexander | R9: Joel Harrison | W9: Aaron Holloway | X9: II | Y9: Theo Crick | AB9: Quinn Miell-Ingram | AD9: Jake Edwards | AG9: Ashley Johnson | AH9: FF | AL9: Sam Orange | AN9: Jonty Brotherton | AQ9: Harry Ferrett | AS9: Jack Adams | BA9: =CONCATENATE(LEFT(BA$3,3),$B9,LEFT(BA$6,1)) -> 14A | BC9: =CONCATENATE(LEFT(BA$3,3),$B9,LEFT(BC$6,1)) -> 14B
B10: 33 | C10: =IF($B10>0,VLOOKUP($B10,EventsOrder,2,FALSE)," ") -> 2 | D10: =IF($B10>0,VLOOKUP($B10,EventsOrder,6,FALSE)," ") -> 600m | H10: Ethan Aldous | J10: Ruben Snelson | M10: Timothy Jones | N10: PP | O10: Seion Alexander | R10: Corey Lees | T10: Reece Lees | W10: Alfie Frayne | X10: II | Y10: Theo Crick | AB10: Quinn Miell-Ingram | AD10: Jake Edwards | AG10: Luca Bradley | AH10: FF | AI10: Ashley Johnson | AL10: Jonty Brotherton | AN10: Theo York | AQ10: Ellis Hartland | AS10: Jack Adams | BA10: 33A | BC10: 33B
B11: 61 | C11: =IF($B11>0,VLOOKUP($B11,EventsOrder,2,FALSE)," ") -> 3.2 | D11: =IF($B11>0,VLOOKUP($B11,EventsOrder,6,FALSE)," ") -> 75m | H11: Ethan Aldous | J11: Leo Anderson | M11: Joshua Parker | N11: PP | O11: Timothy Jones | R11: Joel Harrison | W11: Aaron Holloway | X11: II | Y11: Oliver McAllister | AB11: Jake Edwards | AD11: Caspar Cumberland | AG11: Luca Bradley | AH11: FF | AI11: Ashley Johnson | AL11: Theo York | AN11: Sam Orange | AQ11: Linus Burnage | AS11: Harry Ferrett
B12: Non-Scoring | G12: No's | H12: (enter Competitor No) | I12: No's | J12: (enter Competitor No) | L12: No's | M12: (enter Competitor No) | N12: No's | O12: (enter Competitor No) | Q12: No's | R12: (enter Competitor No) | S12: No's | T12: (enter Competitor No) | V12: No's | W12: (enter Competitor No) | X12: No's | Y12: (enter Competitor No) | AA12: No's | AB12: (enter Competitor No) | AC12: No's | AD12: (enter Competitor No) | AF12: No's | AG12: (enter Competitor No) | AH12: No's | AI12: (enter Competitor No) | AK12: No's | AL12: (enter Competitor No) | AM12: No's | AN12: (enter Competitor No) | AP12: No's | AQ12: (enter Competitor No) | AR12: No's | AS12: (enter Competitor No) | AU12: No's | AV12: (enter Competitor No) | AW12: No's | AX12: (enter Competitor No) | AZ12: No's | BA12: (enter Competitor No) | BB12: No's | BC12: (enter Competitor No)
C13: =IF($B13>0,VLOOKUP($B13,EventsOrder,2,FALSE)," ") ->  | D13: =IF($B13>0,VLOOKUP($B13,EventsOrder,6,FALSE)," ") ->  | AZ13: =$B13 -> 0 | BA13: =CONCATENATE(LEFT(BA$3,3),$B13,LEFT(BA$6,1)) -> A | BB13: =$B13 -> 0 | BC13: =CONCATENATE(LEFT(BA$3,3),$B13,LEFT(BC$6,1)) -> B
B14: 34 | C14: =IF($B14>0,VLOOKUP($B14,EventsOrder,2,FALSE)," ") -> 2.05 | D14: =IF($B14>0,VLOOKUP($B14,EventsOrder,6,FALSE)," ") -> 600m NS | G14: 554 | H14: Leo Anderson | I14: 555 | J14: Archie Street | V14: 61 | W14: Ellis Watts | AC14: 524 | AD14: Caspar Cumberland | AP14: 107 | AQ14: Henry Adams | AR14: 108 | AS14: Linus Burnage | AZ14: =$B14 -> 34 | BA14: 34A | BB14: =$B14 -> 34 | BC14: 34B
B15: 62 | C15: =IF($B15>0,VLOOKUP($B15,EventsOrder,2,FALSE)," ") -> 3.25 | D15: =IF($B15>0,VLOOKUP($B15,EventsOrder,6,FALSE)," ") -> 75m NS | G15: 556 | H15: Toby Jones | I15: 557 | J15: Ruben Snelson | V15: 58 | W15: Theo Crick | X15: 59 | Y15: Ellis Watts | AP15: 107 | AQ15: Henry Adams | AR15: 109 | AS15: Jack Adams | AZ15: 62 | BA15: 62A | BB15: 62 | BC15: 62B
B17: Event | C17: Time | D17: Events | G17: No | H17: A String | I17: No | J17: B String | L17: No | M17: A String | N17: No | O17: B String | Q17: No | R17: A String | S17: No | T17: B String | V17: No | W17: A String | X17: No | Y17: B String | AA17: No | AB17: A String | AC17: No | AD17: B String | AF17: No | AG17: A String | AH17: No | AI17: B String | AK17: No | AL17: A String | AM17: No | AN17: B String | AP17: No | AQ17: A String | AR17: No | AS17: B String | AU17: No | AV17: A String | AW17: No | AX17: B String | AZ17: No | BA17: A String | BB17: No | BC17: B String
D18: Under 13 Male
B19: 5 | C19: =IF($B19>0,VLOOKUP($B19,EventsOrder,2,FALSE)," ") -> 12 | D19: =IF($B19>0,VLOOKUP($B19,EventsOrder,6,FALSE)," ") -> High Jump | L19: P | M19: Ben Groves | O19: A String only | R19: Jack Compton | W19: Cole Sinnott | Y19: A String only | AB19: Theau Seabrook | AD19: A String only | AN19: A String only | AQ19: Jacob Khan | AS19: A String only | BA19: =CONCATENATE(LEFT(BA$3,3),$B19,LEFT(BA$6,1)) -> 5A | BC19: A String only
B20: 12 | C20: 12.2 | D20: 800m | H20: Archie Jones | L20: P | M20: Michael Cadle | N20: PP | O20: Ciaran Flynn | R20: John Sparry | W20: Ben Brooker | X20: II | Y20: Joshua Geddes | AB20: Rowan Miell-Ingram | AD20: Roan Stillion | AG20: Daniel Aston | AH20: FF | AI20: Kian Dickson | AL20: Ethan Patel | AN20: Euan Gibbs | AQ20: Ben Harle | AS20: Riley Carpenter | BA20: =CONCATENATE(LEFT(BA$3,3),$B20,LEFT(BA$6,1)) -> 12A | BC20: =CONCATENATE(LEFT(BA$3,3),$B20,LEFT(BC$6,1)) -> 12B
B21: 15 | C21: 12.35 | D21: 75m hurdles | H21: Christopher Charles | L21: P | M21: Samuel Rayson | N21: PP | O21: Callum Hewett | W21: Oliver Laskey | AB21: Theau Seabrook | AD21: Josh Cumberland | AQ21: Alfie Robbins | BA21: 15A | BC21: 15B
B22: 24 | C22: 1 | D22: Javelin Match 1 & 3 | BA22: 24A | BC22: 24B
B23: 41 | C23: 2.25 | D23: 100m | H23: Christopher Charles | J23: Archie Jones | L23: P | M23: Ryan Simpson | N23: PP | O23: Michael Cadle | R23: Jack Compton | T23: Tom Fallon | W23: Max Mowforth | X23: II | Y23: Cole Sinnott | AB23: Samuel Rose | AD23: Theau Seabrook | AG23: Oran Au | AH23: FF | AI23: Kai Buckley | AL23: David Seidu | AN23: Mackenzie Bloxham | AQ23: Adam Dudley | AS23: Harry Cunningham | BA23: 41A | BC23: 41B
B24: 52 | C24: 2.4 | D24: Shot | H24: Charlie Evans | L24: P | M24: Samuel Rayson | N24: PP | O24: Sean Lock | R24: John Sparry | T24: Nathan Pearson | W24: Samuel Harrison | X24: II | Y24: Ben Brooker | AB24: Benjamin Cumberland | AD24: Rowan Miell-Ingram | AG24: Kai Buckley | AH24: FF | AI24: Daniel Aston | AL24: David Seidu | AN24: Matthew Reuben | AQ24: Alex Santafe | AS24: Spike Burnage | BA24: 52A | BC24: 52B
B25: 64 | C25: =IF($B25>0,VLOOKUP($B25,EventsOrder,2,FALSE)," ") -> 3.2 | D25: =IF($B25>0,VLOOKUP($B25,EventsOrder,6,FALSE)," ") -> Long Jump Pit 2 | H25: Archie Jones | L25: P | M25: Ben Groves | N25: PP | O25: Samuel Rayson | R25: Jack Compton | T25: Nathan Pearson | W25: Cole Sinnott | X25: II | Y25: Oliver Laskey | AB25: Benjamin Cumberland | AD25: Samuel Rose | AG25: Kai Buckley | AH25: FF | AI25: Oran Au | AL25: Euan Gibbs | AN25: Matthew Reuben | AQ25: Harry Cunningham | AS25: Reuben Taylor-George | BA25: 64A | BC25: 64B
B26: 70 | C26: 3.5 | D26: 200m | H26: Christopher Charles | L26: P | M26: Callum Hewett | N26: PP | O26: Ryan Simpson | R26: Tom Fallon | T26: Nathan Pearson | W26: Max Mowforth | X26: II | Y26: Samuel Harrison | AB26: Samuel Rose | AD26: Joshua Cumberlnad | AG26: Oran Au | AH26: FF | AI26: Kian Dickson | AL26: David Seidu | AN26: Ethan Patel | AQ26: Adam Dudley | AS26: Reuben Taylor-George | BA26: 70A | BC26: 70B
B27: 73 | C27: 4.2 | D27: 1500m | L27: P | M27: Sean Lock | N27: PP | O27: Ben Groves | W27: Ollie Read | AB27: Benjamin Cumberland | AD27: Euan Stillion | AL27: Mackenzie Bloxham | AN27: Matthew Reuben | AQ27: Ronan Williams | AS27: Hugo Robinson | BA27: 73A | BC27: 73B
B28: 78 | C28: 4.2 | D28: Discus Match 2 | H28: Charlie Evans | L28: P | M28: Callum Hewett | N28: PP | O28: Ryan Simpson | R28: John Sparry | AB28: Joshua Cumberland | AD28: Roan Stillion | AG28: Daniel Aston | AH28: FF | AI28: Kian Dickson | AL28: Ethan Patel | AN28: Euan Gibbs | AQ28: Alex Santafe | AS28: Riley Carpenter | BA28: 78A | BC28: 78B
B29: 85 | C29: 5.1 | D29: 4 x 100m | H29: =H$3 -> Banbury | R29: =R$3 -> Dudley & S'bridge | AV29: =AV$3 -> 0 | BA29: =BA$3 -> 0
B30: =B29&"R" -> 85R | G30: 1 | I30: 2 | L30: 1 | M30: Ben Groves | N30: 2 | O30: Ciaran Flynn | Q30: 1 | R30: Jack Compton | S30: 2 | T30: Nathan Pearson | V30: 1 | W30: Cole Sinnott | X30: 2 | Y30: Oliver Laskey | AA30: 1 | AB30: Theau Seabrrok | AC30: 2 | AD30: Roan Stillion | AF30: 1 | AG30: Daniel Aston | AH30: 2 | AI30: Kian Dickson | AK30: 1 | AL30: David Seidu | AM30: 2 | AN30: Mackenzie Bloxham | AP30: 1 | AQ30: Ronan Williams | AR30: 2 | AS30: Adam Dudley | AU30: 1 | AW30: 2 | AZ30: 1 | BA30: =CONCATENATE(LEFT(BA$3,3),$B30,LEFT(BA$6,1)) -> 85RA | BB30: 2 | BC30: =CONCATENATE(LEFT(BA$3,3),$B30,LEFT(BC$6,1)) -> 85RB
B31: =B29&"S" -> 85S | G31: 3 | I31: 4 | L31: 3 | M31: Callum Hewett | N31: 4 | O31: Ryan Simpson | Q31: 3 | R31: Tom Fallon | S31: 4 | T31: John Sparry | V31: 3 | W31: Samuel Harrison | X31: 4 | Y31: Max Mowforth | AA31: 3 | AB31: Samuel Rose | AC31: 4 | AD31: Benjanim Cumberland | AF31: 3 | AG31: Kai Buckley | AH31: 4 | AI31: Oran Au | AK31: 3 | AL31: Euan Gibbs | AM31: 4 | AN31: Ethan Patel | AP31: 3 | AQ31: Reuben Taylor-George | AR31: 4 | AS31: Jacob Khan | AU31: 3 | AW31: 4 | AZ31: 3 | BA31: 85SA | BB31: 4 | BC31: 85SB
B34: Event | C34: Time | D34: Events | G34: No | H34: A String | I34: No | J34: B String | L34: No | M34: A String | N34: No | O34: B String | Q34: No | R34: A String | S34: No | T34: B String | V34: No | W34: A String | X34: No | Y34: B String | AA34: No | AB34: A String | AC34: No | AD34: B String | AF34: No | AG34: A String | AH34: No | AI34: B String | AK34: No | AL34: A String | AM34: No | AN34: B String | AP34: No | AQ34: A String | AR34: No | AS34: B String | AU34: No | AV34: A String | AW34: No | AX34: B String | AZ34: No | BA34: A String | BB34: No | BC34: B String
D35: Under 15 Male
B36: 6 | C36: =IF($B36>0,VLOOKUP($B36,EventsOrder,2,FALSE)," ") -> 12 | D36: =IF($B36>0,VLOOKUP($B36,EventsOrder,6,FALSE)," ") -> Long Jump Pit 2 | H36: Will Andrews | L36: P | M36: Jamil Welham | N36: PP | R36: Zak Thurley | W36: Ethan Nelis | AB36: Daniel Gifford | AQ36: Darian Moore | AS36: Marco Miller | BA36: =CONCATENATE(LEFT(BA$3,3),$B36,LEFT(BA$6,1)) -> 6A | BC36: =CONCATENATE(LEFT(BA$3,3),$B36,LEFT(BC$6,1)) -> 6B
B37: 16 | C37: 12.4 | D37: 800m | L37: P | N37: PP | R37: Tom Slater | T37: Adam Boon | W37: Dylan Bowley | AG37: James Walker | AQ37: Sam Davey | AS37: Reece Westwood | BA37: 16A | BC37: 16B
B38: 20 | C38: 1.05 | D38: 80m hurdles | L38: P | N38: PP | W38: Lewis-Morgan Barton | BA38: 20A | BC38: 20B
B39: 22 | C39: 1 | D39: Shot | L39: P | M39: Will Simms | N39: PP | O39: Samuel Worfolk | R39: Zak Thurley | T39: Harry Walters | W39: Dylan Bowley | X39: II | Y39: Ethan Nelis | AB39: Will Smith | AD39: Cameron King | AG39: James Walker | AL39: Euan Jones | AN39: Josh Rocks | AQ39: Andrew Jay | AS39: Reece Westwood | BA39: 22A | BC39: 22B
B40: 39 | C40: 1.5 | D40: Javelin Match 1 & 3 | BA40: 39A | BC40: 39B
B41: 42 | C41: 2.3 | D41: 100m | H41: WillAndrews | L41: P | M41: Will Simms | N41: PP | R41: Talinder Kumar | T41: Jamie Tranter | W41: Dylan Mukhtar | AB41: Daniel Gifford | AD41: Richard Bungay | AG41: James Sherriff | AL41: Euan Jones | AN41: Josh Rocks | AQ41: Marco Miller | AS41: Charlie Bloomfield | BA41: 42A | BC41: 42B
B42: 45 | C42: 2.25 | D42: High Jump | L42: P | M42: Jamil Welham | O42: A String only | R42: Tom Slater | W42: Lewis-Morgan Barton | Y42: A String only | AD42: A String only | AI42: A String only | AN42: A String only | AQ42: Andrew Jay | AS42: A String only | BA42: =CONCATENATE(LEFT(BA$3,3),$B42,LEFT(BA$6,1)) -> 45A | BC42: A String only
B43: 55 | C43: =IF($B43>0,VLOOKUP($B43,EventsOrder,2,FALSE)," ") -> 2.55 | D43: =IF($B43>0,VLOOKUP($B43,EventsOrder,6,FALSE)," ") -> 300m | H43: Skip Snelson | L43: P | M43: Jamil Welham | N43: PP | R43: Adam Boon | T43: Talinder Kumar | W43: Henri Codling | X43: II | Y43: Ethan Nelis | AB43: Cameron King | AD43: Richard Bungay | AG43: Max Kent | AL43: Roman Watson-Quilter | AN43: Lucca Watson-Quilter | AQ43: Sam Davey | BA43: =CONCATENATE(LEFT(BA$3,3),$B43,LEFT(BA$6,1)) -> 55A | BC43: =CONCATENATE(LEFT(BA$3,3),$B43,LEFT(BC$6,1)) -> 55B
B44: 66 | C44: 3.3 | D44: Discus Match 2 | L44: P | M44: Will Simms | N44: PP | O44: Samuel Worfolk | R44: Zak Thurley | T44: Harry Walters | W44: Henri Codling | X44: II | Y44: Dylan Bowley | AB44: Will Smith | AG44: James Sherriff | AH44: FF | AI44: Max Kent | AL44: Roman Watson-Quilter | AN44: Lucca Watson-Quilter | AQ44: Reece Westwood | BA44: 66A | BC44: 66B
B45: 71 | C45: 3.55 | D45: 200m | H45: Will Andrews | L45: P | N45: PP | R45: Tom Slater | T45: Jamie Tranter | W45: Dylan Mukhtar | X45: II | Y45: Lewis-Morgan Barton | AB45: Daniel Gifford | AD45: Richard Bungay | AG45: James Walker | AL45: Euan Jones | AN45: Josh Rocks | AQ45: Darian Moore | AS45: Andrew Jay | BA45: 71A | BC45: 71B
B46: 76 | C46: 4.3 | D46: 1500m | H46: Skip Snelson | L46: P | M46: Samuel Worfolk | N46: PP | R46: Harry Walters | W46: Oliver Sutton | AB46: Cameron King | AG46: Max Kent | AH46: FF | AI46: James Sherriff | AL46: Roman Watson-Quilter | AN46: Lucca Watson-Quilter | AQ46: James Dale | AS46: Josh Williams | BA46: 76A | BC46: 76B
B47: 86 | C47: 5.15 | D47: 4 x 100m | H47: =H$3 -> Banbury | M47: =I4 -> 0 | R47: =R$3 -> Dudley & S'bridge | W47: Kettering Town Harriers | AB47: =AB$3 -> Radley | AG47: =AG$3 -> Tamworth | AL47: Wreake Runners | AQ47: Worcester | AV47: =AV$3 -> 0 | BA47: =BA$3 -> 0
B48: =B47&"R" -> 86R | G48: 1 | I48: 2 | L48: 1 | N48: 2 | Q48: 1 | R48: Tom Slater | S48: 2 | T48: Jamie Tranter | V48: 1 | W48: Lewis-Morgan Barton | X48: 2 | Y48: Dylan Bowley | AA48: 1 | AC48: 2 | AF48: 1 | AH48: 2 | AK48: 1 | AL48: Euan Jones | AM48: 2 | AN48: Josh Rocks | AP48: 1 | AQ48: Charlie Bloomfield | AR48: 2 | AS48: Andrew Jay | AU48: 1 | AW48: 2 | AZ48: 1 | BA48: =CONCATENATE(LEFT(BA$3,3),$B48,LEFT(BA$6,1)) -> 86RA | BB48: 2 | BC48: =CONCATENATE(LEFT(BA$3,3),$B48,LEFT(BC$6,1)) -> 86RB
B49: =B47&"S" -> 86S | G49: 3 | I49: 4 | L49: 3 | N49: 4 | Q49: 3 | R49: Talinder Kumar | S49: 4 | T49: Adam Boon | V49: 3 | W49: Dylan Mukhtar | X49: 4 | Y49: Henri-Codling | AA49: 3 | AC49: 4 | AF49: 3 | AH49: 4 | AK49: 3 | AL49: Roman Watson-Quilter | AM49: 4 | AN49: Lucca Watson-Quilter | AP49: 3 | AQ49: Marco Miller | AR49: 4 | AS49: Darian Moore | AU49: 3 | AW49: 4 | AZ49: 3 | BA49: 86SA | BB49: 4 | BC49: 86SB
B52: Event | C52: Time | D52: Events | G52: No | H52: A String | I52: No | J52: B String | L52: No | M52: A String | N52: No | O52: B String | Q52: No | R52: A String | S52: No | T52: B String | V52: No | W52: A String | X52: No | Y52: B String | AA52: No | AB52: A String | AC52: No | AD52: B String | AF52: No | AG52: A String | AH52: No | AI52: B String | AK52: No | AL52: A String | AM52: No | AN52: B String | AP52: No | AQ52: A String | AR52: No | AS52: B String | AU52: No | AV52: A String | AW52: No | AX52: B String | AZ52: No | BA52: A String | BB52: No | BC52: B String
D53: Under 17 Male
B54: 8 | C54: =IF($B54>0,VLOOKUP($B54,EventsOrder,2,FALSE)," ") -> 12.15 | D54: =IF($B54>0,VLOOKUP($B54,EventsOrder,6,FALSE)," ") -> Shot | W54: Josh Cannell | X54: II | AB54: Harry Woodcock | AD54: Rory Sear | AL54: Charlie McGlinchey | AN54: George Palmer | AQ54: Reiss Francis | AS54: Josh Bentley | BA54: =CONCATENATE(LEFT(BA$3,3),$B54,LEFT(BA$6,1)) -> 8A | BC54: =CONCATENATE(LEFT(BA$3,3),$B54,LEFT(BC$6,1)) -> 8B
B55: 18 | C55: 12.5 | D55: 800m | R55: Jayvana Pramolo | AB55: Blake Strickland Bennett | AD55: Rory Sear | AL55: Charlie McGlinchey | AN55: George Palmer | AQ55: Phil Capewell | AS55: Jacob Harding | BA55: 18A | BC55: 18B
B56: 23 | C56: 1 | D56: Discus Match 2 | W56: Josh Cannell | X56: II | AB56: Harry Woodcock | AD56: Sam Nelson | AL56: Chris Nealon | AQ56: Phil Capewell | BA56: 23A | BC56: 23B
B57: 27 | C57: 1.35 | D57: 100m hurdles | AB57: Blake Strickland Bennett | AD57: Harry New | BA57: 27A | BC57: 27B
B58: 32 | C58: 1.3 | D58: Long Jump Pit1 | H58: Charlie Yates | R58: Jayvana Pramolo | AB58: Elliot Couse | AD58: Blake Strickland Bennett | AG58: Andrew Woods | AL58: Charlie McGlinchey | AQ58: Ollie Gould | AS58: Josh Bentley | BA58: 32A | BC58: 32B
B59: 43 | C59: 2.35 | D59: 100m | H59: Ollie Sprio | J59: Felix Noble | W59: Tyrese Paris-Smith | X59: II | Y59: Achim Loibl | AB59: Harry New | AD59: Brett Halsey | AQ59: Claudio Oliviera | AS59: Reiss Francis | BA59: 43A | BC59: 43B
B60: 57 | C60: 3 | D60: 400m | R60: Jayvana Pramolo | W60: Chris Owen | X60: II | Y60: Josh Owen | AB60: Rory Sear | AD60: Sam Nelson | AG60: Andrew Woods | AL60: George Palmer | AN60: Chris Nealon | AQ60: Sam Lowe | BA60: 57A | BC60: 57B
B61: 67 | C61: =IF($B61>0,VLOOKUP($B61,EventsOrder,2,FALSE)," ") -> 3.3 | D61: =IF($B61>0,VLOOKUP($B61,EventsOrder,6,FALSE)," ") -> Javelin Match 1 & 3 | BA61: 67A | BC61: 67B
B62: 72 | C62: 4 | D62: 200m | H62: Ollie Sprio | J62: Felix Noble | W62: Tyrese Paris-Smith | X62: II | Y62: Achim Loibl | AB62: Harry New | AD62: Elliot Couse | AQ62: Ollie Gould | AS62: Josh Bentley | BA62: 72A | BC62: 72B
B63: 74 | C63: 4.1 | D63: High Jump | H63: Charlie Yates | J63: A String only | Y63: A String only | AB63: Brett Halsey | AD63: A String only | AN63: A String only | AQ63: Reiss Francis | AS63: A String only | BA63: =CONCATENATE(LEFT(BA$3,3),$B63,LEFT(BA$6,1)) -> 74A | BC63: A String only
B64: 80 | C64: 4.4 | D64: 1500m | H64: Reuben Trotter | W64: Josh Cannell | X64: II | Y64: Josh Owen | AG64: Andrew Woods | AL64: Charlie McGlinchey | AQ64: Jake Cavens | AS64: Phil Capewell | BA64: =CONCATENATE(LEFT(BA$3,3),$B64,LEFT(BA$6,1)) -> 80A | BC64: =CONCATENATE(LEFT(BA$3,3),$B64,LEFT(BC$6,1)) -> 80B
B65: 87 | C65: 5.2 | D65: 4 x 100m | H65: =H$3 -> Banbury | M65: =M$3 -> Bicester | R65: =R$3 -> Dudley & S'bridge | W65: Kettering Town Harriers | AB65: =AB$3 -> Radley | AG65: =AG$3 -> Tamworth | AQ65: Worcester | AV65: =AV$3 -> 0 | BA65: =BA$3 -> 0
B66: =B65&"R" -> 87R | G66: 1 | I66: 2 | L66: 1 | N66: 2 | Q66: 1 | S66: 2 | V66: 1 | W66: Tyrese Paris-Smith | X66: 2 | Y66: Achim Loibl | AA66: 1 | AB66: Harry New | AC66: 2 | AD66: Brett Halsey | AF66: 1 | AH66: 2 | AK66: 1 | AM66: 2 | AP66: 1 | AQ66: Josh Bentley | AR66: 2 | AS66: Reiss Francis | AU66: 1 | AW66: 2 | AZ66: 1 | BA66: =CONCATENATE(LEFT(BA$3,3),$B66,LEFT(BA$6,1)) -> 87RA | BB66: 2 | BC66: =CONCATENATE(LEFT(BA$3,3),$B66,LEFT(BC$6,1)) -> 87RB
B67: =B65&"S" -> 87S | G67: 3 | I67: 4 | L67: 3 | N67: 4 | Q67: 3 | S67: 4 | V67: 3 | W67: Josh Cannell | X67: 4 | Y67: Josh Owen | AA67: 3 | AB67: Blake Strickland Bennett | AC67: 4 | AD67: Sam Nelson | AF67: 3 | AH67: 4 | AK67: 3 | AM67: 4 | AP67: 3 | AQ67: Sam Lowe | AR67: 4 | AS67: Ollie Gould | AU67: 3 | AW67: 4 | AZ67: 3 | BA67: 87SA | BB67: 4 | BC67: 87SB
C72: Guests - Non-Scoring
B74: Event | C74: Time | D74: Events | G74: No | H74: A String | L74: No | M74: A String | Q74: No | R74: A String | V74: No | W74: A String | AA74: No | AB74: A String | AF74: No | AG74: A String | AK74: No | AL74: A String | AP74: No | AQ74: A String | AU74: No | AV74: A String | AZ74: No | BA74: A String
D76: Male
B77: 91 | C77: =IF($B77>0,VLOOKUP($B77,EventsOrder,2,FALSE)," ") -> 12.2 | D77: =IF($B77>0,VLOOKUP($B77,EventsOrder,6,FALSE)," ") -> 800m U13 Male | AP77: 113 | AQ77: Theo Taylor-George | AZ77: =$B77 -> 91 | BA77: =CONCATENATE(LEFT(BA$3,3),$B77,LEFT(BA$6,1)) -> 91A
B78: 92 | C78: 12.4 | D78: 800m U15 Male | AZ78: =$B78 -> 92 | BA78: 92A
B79: 93 | C79: 12.5 | D79: 800m U17 Men | AZ79: 93 | BA79: 93A
B80: 97 | C80: 4.2 | D80: 1500m U13 Male | AP80: 149 | AQ80: Josh Capewell | AZ80: 97 | BA80: 97A
B81: 98 | C81: 4.3 | D81: 1500m U15 Male | AZ81: 98 | BA81: 98A
B82: 99 | C82: 4.4 | D82: 1500m U17 Men | AZ82: 99 | BA82: 99A
B89: =COLUMN(B1) -> 2 | C89: 3 | D89: 4 | E89: 5 | F89: 6 | G89: 7 | H89: 8 | I89: 9 | J89: 10 | K89: 11 | L89: 12 | M89: 13 | N89: 14 | O89: 15 | P89: 16 | Q89: 17 | R89: 18 | S89: 19 | T89: 20 | U89: 21 | V89: 22 | W89: 23 | X89: 24 | Y89: 25 | Z89: 26 | AA89: 27 | AB89: 28 | AC89: 29 | AD89: 30 | AE89: 31 | AF89: 32 | AG89: 33 | AH89: 34 | AI89: 35 | AJ89: 36 | AK89: 37 | AL89: 38 | AM89: 39 | AN89: 40 | AO89: 41 | AP89: 42 | AQ89: 43 | AR89: 44 | AS89: 45

Sheet Teamsheet Female
C2: Heart of England League | H2: Female | M2: Female | R2: Female | W2: Female | AB2: Female | AG2: Female | AL2: Female | AQ2: Female
C3: Declaration Sheets | G3: ='Event Details'!$C$22 -> J | H3: ='Event Details'!$D$22 -> Banbury | J3: ='Event Details'!$B$17 -> 5th June 2016 | L3: ='Event Details'!$C$23 -> P | M3: ='Event Details'!$D$23 -> Bicester | O3: ='Event Details'!$B$17 -> 5th June 2016 | Q3: ='Event Details'!$C$24 -> B | R3: ='Event Details'!$D$24 -> Dudley & S'bridge | T3: ='Event Details'!$B$17 -> 5th June 2016 | V3: ='Event Details'!$C$25 -> I | W3: ='Event Details'!$D$25 -> Kettering | Y3: ='Event Details'!$B$17 -> 5th June 2016 | AA3: ='Event Details'!$C$26 -> R | AB3: ='Event Details'!$D$26 -> Radley | AD3: ='Event Details'!$B$17 -> 5th June 2016 | AF3: ='Event Details'!$C$27 -> F | AG3: ='Event Details'!$D$27 -> Tamworth | AI3: ='Event Details'!$B$17 -> 5th June 2016 | AK3: ='Event Details'!$C$28 -> X | AL3: ='Event Details'!$D$28 -> Wreake Runners | AN3: ='Event Details'!$B$17 -> 5th June 2016 | AP3: ='Event Details'!$C$29 -> Y | AQ3: ='Event Details'!$D$29 -> Worcester | AS3: ='Event Details'!$B$17 -> 5th June 2016
C4: Only 2 non scorers allowed per race
B6: Event | C6: Time | D6: Events | G6: No | H6: A String | I6: No | J6: B String | L6: No | M6: A String | N6: No | O6: B String | Q6: No | R6: A String | S6: No | T6: B String | V6: No | W6: A String | X6: No | Y6: B String | AA6: No | AB6: A String | AC6: No | AD6: B String | AF6: No | AG6: A String | AH6: No | AI6: B String | AK6: No | AL6: A String | AM6: No | AN6: B String | AP6: No | AQ6: A String | AR6: No | AS6: B String | AU6: No | AV6: A String | AW6: No | AX6: B String | AZ6: No | BA6: A String | BB6: No | BC6: B String
D7: Under 11 Female
B8: 3 | C8: =IF($B8>0,VLOOKUP($B8,EventsOrder,2,FALSE)," ") -> 11.45 | D8: =IF($B8>0,VLOOKUP($B8,EventsOrder,6,FALSE)," ") -> Howler | H8: Eimear Moss | J8: Ellie Williams | M8: Imogen Cox | N8: PP | O8: Isla Bohannon | W8: Isabella Brockway | X8: II | Y8: Niamh Sinnott | AB8: Ainhara Ly | AD8: Erin Bungay | AL8: Isabelle Parker | AN8: Harriett Lethridge | AQ8: Jasmine Stokes | AS8: Posie Forrester | BA8: =CONCATENATE(LEFT(BA$3,3),$B8,LEFT(BA$6,1)) -> 3A | BC8: =CONCATENATE(LEFT(BA$3,3),$B8,LEFT(BC$6,1)) -> 3B
B9: 29 | C9: =IF($B9>0,VLOOKUP($B9,EventsOrder,2,FALSE)," ") -> 1.5 | D9: =IF($B9>0,VLOOKUP($B9,EventsOrder,6,FALSE)," ") -> 600m | H9: Tilly Lainchbury | J9: Ellie Williams | M9: Imogen Cox | N9: PP | O9: Isla Bohannon | R9: Neve Gibbs | T9: Kiera Davis | W9: Niamh Sinnott | X9: II | Y9: Isabella Brockway | AB9: Lily Black | AD9: Ainhara Ly | AF9: F | AG9: Daisy Smith | AH9: FF | AI9: Madison Rose Blencowe | AL9: Isla Cullen | AN9: Sophie Dunbobbin | AQ9: Molly Davey | AS9: Georgia Wharton | BA9: =CONCATENATE(LEFT(BA$3,3),$B9,LEFT(BA$6,1)) -> 29A | BC9: =CONCATENATE(LEFT(BA$3,3),$B9,LEFT(BC$6,1)) -> 29B
B10: 44 | C10: =IF($B10>0,VLOOKUP($B10,EventsOrder,2,FALSE)," ") -> 2.1 | D10: =IF($B10>0,VLOOKUP($B10,EventsOrder,6,FALSE)," ") -> Long Jump Pit 2 | H10: Eimear Moss | J10: Tilly Lainchbury | M10: Imogen Cox | N10: PP | O10: Josephine Parker | R10: Ella Pearson | T10: Kiera Adams | W10: Kate Nelis | X10: II | Y10: Isabella Brockway | AB10: Audrey Winstone | AD10: Lily Black | AF10: F | AG10: Saoirse Au | AH10: FF | AI10: Angelica Ramkee | AL10: Isla Cullen | AN10: Sophie Dunbobbin | AQ10: Beth Hallam | AS10: Alice Dixon | BA10: =CONCATENATE(LEFT(BA$3,3),$B10,LEFT(BA$6,1)) -> 44A | BC10: =CONCATENATE(LEFT(BA$3,3),$B10,LEFT(BC$6,1)) -> 44B
B11: 58 | C11: =IF($B11>0,VLOOKUP($B11,EventsOrder,2,FALSE)," ") -> 3.1 | D11: =IF($B11>0,VLOOKUP($B11,EventsOrder,6,FALSE)," ") -> 75m | H11: Eimear Moss | J11: Ellie Williams | M11: Josephine Parker | N11: PP | O11: Isla Bohannon | R11: Kiera Adams | T11: Neve Gibbs | W11: Kate Nelis | X11: II | Y11: Niamh Sinnott | AB11: Audrey Winstone | AD11: Lily Black | AF11: F | AG11: Saoirse Au | AH11: FF | AI11: Angelica Ramkee | AL11: Kiyomi Topham | AN11: Bronte Cameron | AQ11: Molly Davey | AS11: Georgia Wharton
B12: Non-Scoring | G12: No's | H12: (enter Competitor No) | I12: No's | J12: (enter Competitor No) | L12: No's | M12: (enter Competitor No) | N12: No's | O12: (enter Competitor No) | Q12: No's | R12: (enter Competitor No) | S12: No's | T12: (enter Competitor No) | V12: No's | W12: (enter Competitor No) | X12: No's | Y12: (enter Competitor No) | AA12: No's | AB12: (enter Competitor No) | AC12: No's | AD12: (enter Competitor No) | AF12: No's | AG12: (enter Competitor No) | AH12: No's | AI12: (enter Competitor No) | AK12: No's | AL12: (enter Competitor No) | AM12: No's | AN12: (enter Competitor No) | AP12: No's | AQ12: (enter Competitor No) | AR12: No's | AS12: (enter Competitor No) | AU12: No's | AV12: (enter Competitor No) | AW12: No's | AX12: (enter Competitor No) | AZ12: No's | BA12: (enter Competitor No) | BB12: No's | BC12: (enter Competitor No)
C13: =IF($B13>0,VLOOKUP($B13,EventsOrder,2,FALSE)," ") ->  | D13: =IF($B13>0,VLOOKUP($B13,EventsOrder,6,FALSE)," ") ->  | AZ13: =$B13 -> 0 | BA13: =CONCATENATE(LEFT(BA$3,3),$B13,LEFT(BA$6,1)) -> A | BB13: =$B13 -> 0 | BC13: =CONCATENATE(LEFT(BA$3,3),$B13,LEFT(BC$6,1)) -> B
B14: 30 | C14: =IF($B14>0,VLOOKUP($B14,EventsOrder,2,FALSE)," ") -> 1.55 | D14: =IF($B14>0,VLOOKUP($B14,EventsOrder,6,FALSE)," ") -> 600m NS | G14: 559 | H14: Olivia Cook | AA14: 523 | AB14: Audrey Winstone | AC14: 525 | AD14: Erin Bungay | AK14: 401 | AL14: Harriett Lethridge | AM14: 402 | AN14: Isabelle Parker | AP14: 110 | AQ14: Posie Forrester | AR14: 115 | AS14: Beth Hallam | AZ14: =$B14 -> 30 | BA14: =CONCATENATE(LEFT(BA$3,3),$B14,LEFT(BA$6,1)) -> 30A | BB14: =$B14 -> 30 | BC14: =CONCATENATE(LEFT(BA$3,3),$B14,LEFT(BC$6,1)) -> 30B
B15: 59 | C15: =IF($B15>0,VLOOKUP($B15,EventsOrder,2,FALSE)," ") -> 3.15 | D15: =IF($B15>0,VLOOKUP($B15,EventsOrder,6,FALSE)," ") -> 75m NS | G15: 558 | H15: Tilly Lainchbury | I15: 559 | J15: Olivia Cook | Q15: 201 | R15: Ella Pearson | AA15: 524 | AB15: Ainhara Ly | AC15: 525 | AD15: Erin Bungay | AF15: 25 | AG15: Daisy Smith | AH15: 26 | AI15: Madison Rose Blencowe | AK15: 401 | AL15: Harriett Lethridge | AM15: 402 | AN15: Isabelle Parker | AP15: 117 | AQ15: Jasmine Stokes | AR15: 120 | AS15: Alice Dixon | AZ15: =$B15 -> 59 | BA15: =CONCATENATE(LEFT(BA$3,3),$B15,LEFT(BA$6,1)) -> 59A | BB15: =$B15 -> 59 | BC15: =CONCATENATE(LEFT(BA$3,3),$B15,LEFT(BC$6,1)) -> 59B
B16: 81 | C16: =IF($B16>0,VLOOKUP($B16,EventsOrder,2,FALSE)," ") -> 4.5 | D16: =IF($B16>0,VLOOKUP($B16,EventsOrder,6,FALSE)," ") -> 4 x 100m Mixed NS | H16: =H$3 -> Banbury | M16: =M$3 -> Bicester | R16: =R$3 -> Dudley & S'bridge | W16: =W$3 -> Kettering | AB16: =AB$3 -> Radley | AG16: =AG$3 -> Tamworth | AL16: Wreake Runners | AQ16: =AQ$3 -> Worcester | AV16: =AV$3 -> 0 | BA16: =BA$3 -> 0
B17: =B16&"R" -> 81R | G17: 1 | H17: Tilly Lainchbury | I17: 2 | J17: Ethan Aldous | L17: 1 | M17: Isla Bohannon | N17: 2 | O17: Josephine Parker | Q17: 1 | S17: 2 | V17: 1 | W17: Alfie Frayne | Y17: Aaron Holloway | AA17: 1 | AB17: Lily Black | AC17: 2 | AD17: Audrey Winstone | AF17: 1 | AG17: Daisy Smith | AH17: 2 | AI17: Angelica Ramkee | AK17: 1 | AL17: Kiyomi Topham | AM17: 2 | AN17: Isla Cullen | AP17: 1 | AQ17: Beth Hallam | AR17: 2 | AS17: Ellis Hartland | AU17: 1 | AW17: 2 | AZ17: 1 | BA17: =CONCATENATE(LEFT(BA$3,3),$B17,LEFT(BA$6,1)) -> 81RA | BB17: 2 | BC17: =CONCATENATE(LEFT(BC$3,3),$B17,LEFT(BC$6,1)) -> 81RB
B18: =B16&"S" -> 81S | G18: 3 | H18: Eimear Moss | I18: 4 | J18: Archie Street | L18: 3 | M18: Seion Alexander | N18: 4 | O18: Joshua Parker | Q18: 3 | S18: 4 | V18: 3 | W18: Kate Nelis | X18: 4 | Y18: Niamh Sinnott | AA18: 3 | AB18: Jake Edwards | AC18: 4 | AD18: Quinn Miell-Ingram | AF18: 3 | AG18: Madison Rose Blencowe | AH18: 4 | AI18: Saoirse Au | AK18: 3 | AL18: Finley Venables | AM18: 4 | AN18: Sam Orange | AP18: 3 | AQ18: Molly Davey | AR18: 4 | AS18: Linus Burnage | AU18: 3 | AW18: 4 | AZ18: 3 | BA18: 81SA | BB18: 4 | BC18: 81SB
B20: Event | C20: Time | D20: Events | G20: No | H20: A String | I20: No | J20: B String | L20: No | M20: A String | N20: No | O20: B String | Q20: No | R20: A String | S20: No | T20: B String | V20: No | W20: A String | X20: No | Y20: B String | AA20: No | AB20: A String | AC20: No | AD20: B String | AF20: No | AG20: A String | AH20: No | AI20: B String | AK20: No | AL20: A String | AM20: No | AN20: B String | AP20: No | AQ20: A String | AR20: No | AS20: B String | AU20: No | AV20: A String | AW20: No | AX20: B String | AZ20: No | BA20: A String | BB20: No | BC20: B String
D21: Under 13 Female
B22: 1 | C22: =IF($B22>0,VLOOKUP($B22,EventsOrder,2,FALSE)," ") -> 11.45 | D22: =IF($B22>0,VLOOKUP($B22,EventsOrder,6,FALSE)," ") -> 1500m | H22: Nikola Bishop | M22: Georgia Usher | O22: Amelia Cox | R22: Kiera Avery | W22: Mia Brockway | X22: II | Y22: Maddie Moxey | AB22: Poppy Edwards | AG22: Tegan Vickery | AL22: Katie Parker | AN22: Aoife Brotherton | AQ22: Ruby Jarman | AS22: Megan Williams | BA22: =CONCATENATE(LEFT(BA$3,3),$B22,LEFT(BA$6,1)) -> 1A | BC22: =CONCATENATE(LEFT(BA$3,3),$B22,LEFT(BC$6,1)) -> 1B
B23: 11 | C23: 12.15 | D23: 70m hurdles | H23: Tegan Armstrong | J23: Maddy Dowden | W23: Scarlett Maxwell-Munn | X23: II | Y23: Imogen Nix | AB23: Erin Mcmillan | AD23: Maddison Hurley | AG23: Niamh Kilgallen | AL23: Flora Miskin-Young | AN23: Indie King | AQ23: Lucy Marriott | AS23: Amber Hopkins | BA23: 11A | BC23: =CONCATENATE(LEFT(BA$3,3),$B23,LEFT(BC$6,1)) -> 11B
B24: 25 | C24: 1.15 | D24: 800m | H24: Raegan Sellers | J24: Elizabeth Anderson | M24: Emilia Sims | O24: Erin Fabri | R24: Zara Gibbs | T24: Libby Davis | W24: Mia Watts | X24: II | Y24: Imogen Nix | AB24: Kaela Nelson | AD24: Amelia Brew | AG24: Emily Pearce | AH24: FF | AI24: Alice Mason | AL24: Indie King | AN24: Flora Miskin-Young | AQ24: Katelyn Griffiths | AS24: Olivia Tonkinson | BA24: 25A | BC24: =CONCATENATE(LEFT(BA$3,3),$B24,LEFT(BC$6,1)) -> 25B
B25: 31 | C25: 1.4 | D25: High Jump | H25: Sophie Howie | J25: A String only | M25: Georgia Usher | O25: A String only | R25: Kiki Thurley | T25: A String only | W25: Scarlett Maxwell-Munn | Y25: A String only | AB25: Kaela Nelson | AD25: A String only | AG25: Sian Hubbard | AI25: A String only | AL25: Rebecca Cullen | AN25: A String only | AQ25: Amber Hopkins | AS25: A String only | BA25: 31A | BC25: A String only
B26: 35 | C26: 2.1 | D26: 100m | H26: Tegan Armstrong | J26: Maddy Dowden | M26: Erin Fabri | O26: Imogen Ansell | R26: Hannah Gadd | T26: Kiki Thurley | W26: Charlotte Cox | X26: II | Y26: Robyn Beale | AB26: Poppy Edwards | AD26: Erin McMillian | AG26: Niamh Kilgallen | AH26: FF | AI26: Emily Pearce | AL26: Isobel Orencas | AN26: Isabelle Wilson | AQ26: Lottie Bentley | AS26: Evelyn Clarke | BA26: 35A | BC26: =CONCATENATE(LEFT(BA$3,3),$B26,LEFT(BC$6,1)) -> 35B
B27: 38 | C27: 1.5 | D27: Discus Match 2 | H27: Lucy Thompson | J27: Nikola Bishop | M27: Amber Parker | O27: Amelia Cox | R27: Zara Gibbs | T27: Alina Gunnard | W27: Charlotte Cox | X27: II | Y27: Maddie Moxey | AB27: Amelia Brew | AG27: Alice Mason | AH27: FF | AI27: Emily Pearce | AL27: Katie Parker | AN27: Aoife Brotherton | AQ27: Lucy Marriott | AS27: Amy Dale | BA27: 38A | BC27: 38B
B28: 56 | C28: =IF($B28>0,VLOOKUP($B28,EventsOrder,2,FALSE)," ") -> 2.5 | D28: =IF($B28>0,VLOOKUP($B28,EventsOrder,6,FALSE)," ") -> Long Jump Pit 1 | H28: Tegan Armstrong | J28: Elizabeth Anderson | M28: Amelia Cox | O28: emilia simms | R28: Libby Davis | T28: Alina Gunnard | W28: Millie Webb | X28: II | Y28: Robyn Beale | AB28: Erin Mcmillan | AD28: Poppy Edwards | AG28: Sian Hubbard | AH28: FF | AI28: Niamh Kilgallen | AL28: Isobel Orencas | AN28: Flora Miskin-Young | AQ28: Katie Dudley | AS28: Bethany Harris | BA28: 56A | BC28: 56B
B29: 63 | C29: 3.35 | D29: 200m | H29: Raegan Sellers | J29: Sophie Howie | M29: Emilia Sims | O29: Imogen Ansell | R29: Hannah Gadd | T29: Libby Davis | W29: Millie Webb | X29: II | Y29: Scarlett Maxwell-Munn | AB29: Maddison Hurley | AD29: Kaela Nelson | AG29: Sian Hubbard | AH29: FF | AI29: Georgina Weal | AL29: Isobel Orencas | AN29: Rebecca Cullen | AQ29: Aimee Cochrane | AS29: Jemima Hobby | BA29: 63A | BC29: 63B
B30: 65 | C30: 3.3 | D30: Shot | H30: Lucy Thompson | J30: Maddy Dowden | M30: Amber Parker | O30: Erin Fabri | R30: Zara Gibbs | T30: Alina Gunnard | W30: Charlotte Cox | X30: II | Y30: Imogen Nix | AB30: Amelia Brew | AD30: Maddison Hurley | AG30: Alice Mason | AH30: FF | AI30: Tegan Vickery | AL30: Indie King | AN30: Isabelle Wilson | AQ30: Ani Patrick | AS30: Amber Hopkins | BA30: 65A | BC30: 65B
B31: 79 | C31: 4.2 | D31: Javelin Match 1 & 3 | BA31: 79A | BC31: 79B
B32: 82 | C32: 4.55 | D32: 4 x 100m | H32: Banbury | M32: Bicester | R32: =R$3 -> Dudley & S'bridge | W32: Kettering Town Harriers | AB32: Radley | AG32: =AG$3 -> Tamworth | AL32: Wreake Runners | AQ32: Worcester | AV32: =AV$3 -> 0 | BA32: =BA$3 -> 0
B33: =B32&"R" -> 82R | G33: 1 | H33: Maddy Dowden | I33: 2 | J33: Raegan Sellers | L33: 1 | M33: Erin Fabri | N33: 2 | O33: Emilia Simms | Q33: 1 | R33: Kiki Thurley | S33: 2 | T33: Hannah Gadd | V33: 1 | W33: Millie Webb | X33: 2 | Y33: Scarlett Maxwell-Munn | AA33: 1 | AB33: Erin Mcmillan | AC33: 2 | AD33: Kaela Nelson | AF33: 1 | AG33: Niamh Kilgallen | AH33: 2 | AI33: Tegan Vickery | AK33: 1 | AL33: Isobel Orencas | AM33: 2 | AN33: Flora Miskin-Young | AP33: 1 | AQ33: Lottie Bentley | AR33: 2 | AS33: Aimee Cochrane | AU33: 1 | AW33: 2 | AZ33: 1 | BA33: =CONCATENATE(LEFT(BA$3,3),$B33,LEFT(BA$6,1)) -> 82RA | BB33: 2 | BC33: =CONCATENATE(LEFT(BC$3,3),$B33,LEFT(BC$6,1)) -> 82RB
B34: =B32&"S" -> 82S | G34: 3 | H34: Sophie Howie | I34: 4 | J34: Tegan Armstrong | L34: 3 | M34: imogen ansell | N34: 4 | O34: Amelia Cox | Q34: 3 | R34: Libby Davis | S34: 4 | T34: Zara Gibbs | V34: 3 | W34: Charlotte Cox | X34: 4 | Y34: Mia Brockway | AA34: 3 | AB34: Poppy Edwards | AC34: 4 | AD34: Maddison Hurley | AF34: 3 | AG34: Emily Pearce | AH34: 4 | AI34: Sian Hubbard | AK34: 3 | AL34: Indie King | AM34: 4 | AN34: Katie Parker | AP34: 3 | AQ34: Millie Stanley | AR34: 4 | AS34: Jemima Hobby | AU34: 3 | AW34: 4 | AZ34: 3 | BA34: 82SA | BB34: 4 | BC34: 82SB
B37: Event | C37: Time | D37: Events | G37: No | H37: A String | I37: No | J37: B String | L37: No | M37: A String | N37: No | O37: B String | Q37: No | R37: A String | S37: No | T37: B String | V37: No | W37: A String | X37: No | Y37: B String | AA37: No | AB37: A String | AC37: No | AD37: B String | AF37: No | AG37: A String | AH37: No | AI37: B String | AK37: No | AL37: A String | AM37: No | AN37: B String | AP37: No | AQ37: A String | AR37: No | AS37: B String | AU37: No | AV37: A String | AW37: No | AX37: B String | AZ37: No | BA37: A String | BB37: No | BC37: B String
D38: Under 15 Female
B39: 4 | C39: =IF($B39>0,VLOOKUP($B39,EventsOrder,2,FALSE)," ") -> 11.55 | D39: =IF($B39>0,VLOOKUP($B39,EventsOrder,6,FALSE)," ") -> 1500m | M39: Holly Hunter | R39: Jasmine Pramolo | W39: Daisy Robinson | X39: II | Y39: Isabella Moxey | AB39: Rachel Burton | AD39: Hermione Jewel | AG39: Eve Clawley | AL39: Rachel Nealon | AN39: Rosie Timlock | AQ39: Holly Love | AS39: Lauren Matthews | BA39: =CONCATENATE(LEFT(BA$3,3),$B39,LEFT(BA$6,1)) -> 4A | BC39: =CONCATENATE(LEFT(BA$3,3),$B39,LEFT(BC$6,1)) -> 4B
B40: 9 | C40: 12.15 | D40: Discus Match 2 | H40: Elizabeth Eskender | J40: Emelina Darvell | M40: Molly Acton | R40: Grace Slater | T40: Jessica Grainger | W40: Matilda Braithwaite | X40: II | Y40: Millie Toseland | AB40: Rachel Burton | AD40: Hermione Jewel | AG40: Alice Jones | AL40: Rachel Nealon | AN40: Rosie Timlock | AQ40: Samantha Bowkett | AS40: Katie Harris | BA40: 9A | BC40: =CONCATENATE(LEFT(BA$3,3),$B40,LEFT(BC$6,1)) -> 9B
B41: 13 | C41: 12.3 | D41: 75m hurdles | H41: Sydney Sellers | M41: Holly Hunter | O41: Charotte Hewett | R41: Isobel Fisher | T41: Niamh Darby | W41: Matilda Braithwaite | AB41: Holly Griffiths-Brown | AD41: Hannah Mott | AL41: Ravenn Cook | AQ41: Deanna Clarke | AS41: Sarah-Jane Ollis | BA41: 13A | BC41: =CONCATENATE(LEFT(BA$3,3),$B41,LEFT(BC$6,1)) -> 13B
B42: 17 | C42: 12.55 | D42: High Jump | J42: A String only | O42: A String only | R42: Emma Shorwood | W42: Alex Beale | Y42: A String only | AB42: Holly Griffiths-Brown | AD42: A String only | AN42: A String only | AQ42: Danielle Hopkins | AS42: A String only | BA42: 17A | BC42: A String only
B43: 21 | C43: 1 | D43: Long Jump Pit 2 | H43: Emelina Darvell | J43: Elizabeth Eskender | M43: Lauren Garside | O43: Tia Brown | R43: Jessica Grainger | T43: Niamh Darby | W43: Blainne Conway | X43: II | Y43: Harmony Hart | AB43: Olivia Butler | AD43: Robyn Swain | AG43: Eve Clawley | AL43: Poppy Tott-Buswell | AN43: Sophie Thorpe | AQ43: Ellie Harrison | AS43: Sarah-Jane Ollis | BA43: 21A | BC43: =CONCATENATE(LEFT(BA$3,3),$B43,LEFT(BC$6,1)) -> 21B
B44: 26 | C44: 1.25 | D44: 800m | M44: Molly Acton | R44: Grace Slater | T44: Jasmine Pramolo | W44: Olivia Knibb | AB44: Martha Adams | AD44: Hannah Mott | AG44: Sian Lewis | AL44: Zena Challenger | AN44: Sophie Thorpe | AQ44: Deanna Clarke | AS44: Elise Blake | BA44: 26A | BC44: 26B
B45: 36 | C45: 2.15 | D45: 100m | H45: Sydney Sellers | M45: Lauren Garside | O45: Charotte Hewett | R45: Isobel Fisher | T45: Niamh Darby | W45: Annabelle Clotworthy | X45: II | Y45: Alex Beale | AB45: Olivia Butler | AD45: Robyn Swain | AG45: Sian Lewis | AL45: Josie Orange | AN45: Poppy Tott-Buswell | AQ45: Sarah-Jane Ollis | BA45: 36A | BC45: 36B
B46: 50 | C46: =IF($B46>0,VLOOKUP($B46,EventsOrder,2,FALSE)," ") -> 2.4 | D46: =IF($B46>0,VLOOKUP($B46,EventsOrder,6,FALSE)," ") -> 300m | H46: Sydney Sellers | J46: Elizabeth Eskender | M46: Molly Acton | R46: Emma Shorwood | T46: Claudia Lee | W46: Emily Williams | X46: II | Y46: Blainne Conway | AB46: Martha Adams | AD46: Rachel Burton | AG46: Sian Lewis | AL46: Rachel Nealon | AN46: Zena Challenger | AQ46: Danielle Hopkins | AS46: Elise Blake | BA46: 50A | BC46: 50B
B47: 54 | C47: 2.4 | D47: Javelin Match 1 & 3 | BA47: 54A | BC47: 54B
B48: 68 | C48: 3.4 | D48: 200m | H48: Emelina Darvell | M48: Charlotte Hewett | R48: Claudia Lee | T48: Grace Slater | W48: Ellen Smith | X48: II | Y48: Harmony Hart | AB48: Holly Griffiths-Brown | AD48: Olivia Butler | AG48: Eve Clawley | AL48: Josie Orange | AN48: Poppy Tott-Buswell | AQ48: Lydia Wehling | AS48: Deanna Clarke | BA48: 68A | BC48: 68B
B49: 77 | C49: 4.2 | D49: Shot | H49: Emelina Darvell | J49: Maddison Cooper | M49: Lauren Garside | O49: Holly Hunter | R49: Jasmine Pramolo | T49: Jessica Grainger | W49: Matilda Braithwaite | X49: II | Y49: Millie Toseland | AB49: Hannah Mott | AD49: Hermione Jewel | AG49: Alice Jones | AL49: Rosie Timlock | AN49: Ravenn Cook | AQ49: Danielle Hopkins | AS49: Katie Harris | BA49: 77A | BC49: 77B
B50: 83 | C50: 5 | D50: 4 x 100m | M50: Bicester | R50: =R$3 -> Dudley & S'bridge | W50: Kettering Town Harriers | AB50: =AB$3 -> Radley | AG50: =AG$3 -> Tamworth | AL50: Wreake Runners | AQ50: Worcester | AV50: =AV$3 -> 0 | BA50: =BA$3 -> 0
B51: =B50&"R" -> 83R | G51: 1 | I51: 2 | L51: 1 | M51: Charlotte Hewett | N51: 2 | O51: Lauren Garside | Q51: 1 | R51: Grace Slater | S51: 2 | T51: Niamh Darby | V51: 1 | W51: Annabelle Clotworthy | X51: 2 | Y51: Ellen Smith | AA51: 1 | AB51: Holly Griffith Brown | AC51: 2 | AD51: Robyn Swain | AF51: 1 | AH51: 2 | AK51: 1 | AL51: Poppy Tott-Buswell | AM51: 2 | AN51: Josie Orange | AP51: 1 | AQ51: Emily Kavanagh | AR51: 2 | AS51: Ellie Harrison | AU51: 1 | AW51: 2 | AZ51: 1 | BA51: =CONCATENATE(LEFT(BA$3,3),$B51,LEFT(BA$6,1)) -> 83RA | BB51: 2 | BC51: =CONCATENATE(LEFT(BC$3,3),$B51,LEFT(BC$6,1)) -> 83RB
B52: =B50&"S" -> 83S | G52: 3 | I52: 4 | L52: 3 | M52: Molly Acton | N52: 4 | O52: Holly Hunter | Q52: 3 | R52: Jessica Grainger | S52: 4 | T52: Emma Shorwood | V52: 3 | W52: Harmony Hart | X52: 4 | Y52: Alex Beale | AA52: 3 | AB52: Olivia Butler | AC52: 4 | AD52: Rachel Burton | AF52: 3 | AH52: 4 | AK52: 3 | AL52: Zena Challenger | AM52: 4 | AN52: Sophie Thorpe | AP52: 3 | AQ52: Sarah-Jane Ollis | AR52: 4 | AS52: Danielle Hopkins | AU52: 3 | AW52: 4 | AZ52: 3 | BA52: 83SA | BB52: 4 | BC52: 83SB
B55: Event | C55: Time | D55: Events | G55: No | H55: A String | I55: No | J55: B String | L55: No | M55: A String | N55: No | O55: B String | Q55: No | R55: A String | S55: No | T55: B String | V55: No | W55: A String | X55: No | Y55: B String | AA55: No | AB55: A String | AC55: No | AD55: B String | AF55: No | AG55: A String | AH55: No | AI55: B String | AK55: No | AL55: A String | AM55: No | AN55: B String | AP55: No | AQ55: A String | AR55: No | AS55: B String | AU55: No | AV55: A String | AW55: No | AX55: B String | AZ55: No | BA55: A String | BB55: No | BC55: B String
D56: U17 Female / Women
B57: 7 | C57: =IF($B57>0,VLOOKUP($B57,EventsOrder,2,FALSE)," ") -> 12.05 | D57: =IF($B57>0,VLOOKUP($B57,EventsOrder,6,FALSE)," ") -> 1500m | W57: Amanda Marlow | X57: II | Y57: Alison Moxey | AB57: Jess Anstice U23 | AF57: F | AG57: Charlotte Bush | AH57: FF | AI57: Laura Lewis (Senior) | AL57: Fern Harrison | BA57: =CONCATENATE(LEFT(BA$3,3),$B57,LEFT(BA$6,1)) -> 7A | BC57: =CONCATENATE(LEFT(BA$3,3),$B57,LEFT(BC$6,1)) -> 7B
B58: 10 | C58: 12.15 | D58: Javelin (U17) Match 1 & 3 | BA58: 10A | BC58: 10B
B59: 19 | C59: 1 | D59: 80m hurdles (U17) | H59: Helen Dubber | J59: Paige Cooper | AB59: Victoria Harte | AD59: Megan Baker | AQ59: Georgia Clarke | AS59: Abigail Gill | BA59: 19A | BC59: 19B
B60: 28 | C60: 1.4 | D60: 800m | W60: Harriett Jolley | X60: II | Y60: Charlotte Maywood | AB60: Faith Brew U20 | AD60: Jess Anstice U23 | AL60: Fern Harrison | BA60: 28A | BC60: 28B
B61: 37 | C61: 1.5 | D61: Shot (U17) | H61: Paige Cooper | R61: Lauren Millward | T61: Zara Millward | W61: Harriett Jolley | Y61: Charlotte Maywood | AB61: Petrina Chantler-Edmond | AD61: Victoria Harte | AF61: F | AG61: Laura Lewis (Senior) | AL61: Megan Luxford | AQ61: Cara Clarke | AS61: Hannah Kenwright | BA61: 37A | BC61: 37B
B62: 40 | C62: 2.2 | D62: 100m | M62: U20 Emily Benfield | R62: Lauren Millward | T62: Zara Millward | W62: Niamh Monaghan | X62: II | Y62: Niamh Ruffles | AB62: Leah Brown | AD62: Megan Baker | AL62: Ella Grainger | AN62: Megan Luxford | AQ62: Cara Clarke | AS62: Georgia Clarke | BA62: 40A | BC62: 40B
B63: 51 | C63: 2.45 | D63: 300m | H63: Rebecca Scott | R63: Becky Freeman | W63: Niamh Monaghan | X63: II | Y63: Harriett Jolley | AB63: Stephanie Mott | AD63: Leah Brown | BA63: 51A | BC63: 51B
B64: 53 | C64: =IF($B64>0,VLOOKUP($B64,EventsOrder,2,FALSE)," ") -> 2.4 | D64: =IF($B64>0,VLOOKUP($B64,EventsOrder,6,FALSE)," ") -> Discus (U17) Match 2 | H64: Paige Cooper | J64: Helen Dubber | AB64: Petrina Chantler-Edmond | AD64: Stephanie Mott | AL64: Fern Harrison | AQ64: Cara Clarke | BA64: 53A | BC64: 53B
B65: 60 | C65: 3.1 | D65: High Jump | H65: Rebecca Scott | J65: A String only | O65: A String only | Y65: A String only | AB65: Megan Baker | AD65: A String only | AN65: A String only | AQ65: Grace Murray | AS65: A String only | BA65: 60A | BC65: A String only
B66: 69 | C66: 3.45 | D66: 200m | H66: Helen Dubber | M66: U20 Emily Benfield | R66: Lauren Millward | T66: Becky Freeman | W66: Erin Healy | X66: II | Y66: Ellie Boulton | AB66: Stephanie Mott | AD66: Jess Anstice U23 | AL66: Ella Grainger | AN66: Megan Luxford | AQ66: Hannah Kenwright | AS66: Becky Donnelly (senior) | BA66: 69A | BC66: =CONCATENATE(LEFT(BA$3,3),$B66,LEFT(BC$6,1)) -> 69B
B67: 75 | C67: 4 | D67: Long Jump Pit1 | H67: Rebecca Scott | M67: U20 Emily Benfield | R67: Becky Freeman | W67: Ellie Boulton | Y67: Niamh Monaghan | AB67: Petrina Chantler-Edmond | AD67: Leah Brown | AL67: Ella Grainger | AN67: Eve Cameron | AQ67: Becky Donnelly (senior) | AS67: Hannah Kenwright | BA67: 75A | BC67: =CONCATENATE(LEFT(BA$3,3),$B67,LEFT(BC$6,1)) -> 75B
B68: 84 | C68: 5.05 | D68: 4 x 100m | H68: =H$3 -> Banbury | M68: =M$3 -> Bicester | R68: =R$3 -> Dudley & S'bridge | W68: Kettering | AB68: Radley | AG68: =AG$3 -> Tamworth | AL68: Wreake Runners | AQ68: =AQ$3 -> Worcester | AV68: =AV$3 -> 0 | BA68: =BA$3 -> 0
B69: =B68&"R" -> 84R | G69: 1 | I69: 2 | L69: 1 | N69: 2 | Q69: 1 | R69: Lauren Millward | S69: 2 | T69: Zara Millward | V69: 1 | W69: Niamh Monaghan | X69: 2 | Y69: Niamh Ruffles | AA69: 1 | AB69: Stephanie Mott | AC69: 2 | AD69: Megan Baker | AF69: 1 | AH69: 2 | AK69: 1 | AL69: Megan Luxford | AM69: 2 | AN69: Ella Grainger | AP69: 1 | AQ69: Brooke Clarke | AR69: 2 | AS69: Abigail Gill | AU69: 1 | AW69: 2 | AZ69: 1 | BA69: =CONCATENATE(LEFT(BA$3,3),$B69,LEFT(BA$6,1)) -> 84RA | BB69: 2 | BC69: =CONCATENATE(LEFT(BC$3,3),$B69,LEFT(BC$6,1)) -> 84RB
B70: =B68&"S" -> 84S | G70: 3 | I70: 4 | L70: 3 | N70: 4 | Q70: 3 | R70: Becky Freeman | S70: 4 | T70: Claudia Lee | V70: 3 | W70: Ellie Boulton | X70: 4 | Y70: Harriett Jolley | AA70: 3 | AB70: Petrina Chantler-Edmond | AC70: 4 | AD70: Leah Brown | AF70: 3 | AH70: 4 | AK70: 3 | AL70: Fern Harrison | AM70: 4 | AP70: 3 | AQ70: Hannah Kenwright | AR70: 4 | AS70: Becky Donnelly (senior) | AU70: 3 | AW70: 4 | AZ70: 3 | BA70: 84SA | BB70: 4 | BC70: 84SB
C75: Guests - Non-Scoring
B77: Event | C77: Time | D77: Events | G77: No | H77: A String | L77: No | M77: A String | Q77: No | R77: A String | V77: No | W77: A String | AA77: No | AB77: A String | AF77: No | AG77: A String | AK77: No | AL77: A String | AP77: No | AQ77: A String | AU77: No | AV77: A String | AZ77: No | BA77: A String
D79: Female
B80: 88 | C80: =IF($B80>0,VLOOKUP($B80,EventsOrder,2,FALSE)," ") -> 11.45 | D80: =IF($B80>0,VLOOKUP($B80,EventsOrder,6,FALSE)," ") -> 1500m U13 Female | AK80: 405 | AL80: Isabelle Wilson | AP80: 104 | AQ80: Emma Pound | AZ80: =$B80 -> 88 | BA80: =CONCATENATE(LEFT(BA$3,3),$B80,LEFT(BA$6,1)) -> 88A
B81: 89 | C81: 11.55 | D81: 1500m U15 Female | AZ81: 89 | BA81: 89A
B82: 90 | C82: 12.05 | D82: 1500m U17 F/Women | AZ82: 90 | BA82: 90A
B83: 94 | C83: 1.15 | D83: 800m U13 Female | L83: 802 | M83: imogen Ansell | AF83: 30 | AG83: Georgina Weal | AK83: 403 | AL83: Rebecca Cullen | AP83: 106 | AQ83: Maya Stewart | AZ83: 94 | BA83: =CONCATENATE(LEFT(BA$3,3),$B83,LEFT(BA$6,1)) -> 94A
B84: 95 | C84: 1.25 | D84: 800m U15 Female | AK84: 404 | AL84: Ravenn Cook | AZ84: 95 | BA84: 95A
B85: 96 | C85: 1.4 | D85: 800m U17 F/Women | AZ85: 96 | BA85: 96A
B88: =COLUMN(B1) -> 2 | C88: 3 | D88: 4 | E88: 5 | F88: 6 | G88: 7 | H88: 8 | I88: 9 | J88: 10 | K88: 11 | L88: 12 | M88: 13 | N88: 14 | O88: 15 | P88: 16 | Q88: 17 | R88: 18 | S88: 19 | T88: 20 | U88: 21 | V88: 22 | W88: 23 | X88: 24 | Y88: 25 | Z88: 26 | AA88: 27 | AB88: 28 | AC88: 29 | AD88: 30 | AE88: 31 | AF88: 32 | AG88: 33 | AH88: 34 | AI88: 35 | AJ88: 36 | AK88: 37 | AL88: 38 | AM88: 39 | AN88: 40 | AO88: 41 | AP88: 42 | AQ88: 43 | AR88: 44 | AS88: 45

Sheet Results Entry
B2: Event | D2: Age | AD2: ='Event Details'!C32 -> 8 | AE2: =AD2-1 -> 7 | AF2: 6 | AG2: 5 | AH2: 4 | AI2: 3 | AJ2: 2 | AK2: 1 | AT2: =BC29&BC29 -> JJ | AU2: PP | AV2: BB | AW2: II | AX2: RR | AY2: FF | AZ2: XX | BA2: YY
B3: No | C3: Time | D3: Group | E3: Event | H3: NS | I3: M/F
B4: 1 | C4: =VLOOKUP($B$4,EventsOrder,2,FALSE) -> 11.45 | D4: =VLOOKUP($B$4,EventsOrder,4,FALSE) -> U13 Female | E4: =VLOOKUP($B$4,EventsOrder,3,FALSE) -> 1500m | H4: =VLOOKUP($B$4,EventsOrder,5,FALSE) ->  | I4: =IF(MID(D4,5,1)="F","F","M") -> F | Q4: Results Entry | T4: ="Enter single or double letter for Club Letter i.e. as "&A10&" or "&A10&A10 -> Enter single or double letter for Club Letter i.e. as J or JJ
T5: Enter Club Letter for both SCORING and NON SCORING results.
D6: Names from Club Teamsheet | T6: Enter Time as "2.10.5" for mins or "12.55" for mtrs
R7: Event A | Y7: Event B
A8: Club | B8: Club | E8: U11 | F8: Event A | J8: U11 | K8: Event B | P8: Club | Q8: Time/ | R8: U11 | S8: Name | W8: Club | X8: Time/ | Y8: U11 | Z8: Name
A9: Letter | E9: No. | F9: Name | J9: No. | K9: Name | P9: Letter | Q9: Dist | R9: No. | W9: Letter | X9: Dist | Y9: No.
A10: ='Event Details'!$C22 -> J | B10: ='Event Details'!$D22 -> Banbury | E10: =VLOOKUP($B$4,IF($I$4="F",TeamSheetFemale,TeamSheetMale),AD10-1,FALSE) -> 0 | F10: =VLOOKUP($B$4,IF($I$4="F",TeamSheetFemale,TeamSheetMale),AD10,FALSE) -> Nikola Bishop | J10: =VLOOKUP($B$4,IF($I$4="F",TeamSheetFemale,TeamSheetMale),AD10+1,FALSE) -> 0 | K10: =VLOOKUP($B$4,IF($I$4="F",TeamSheetFemale,TeamSheetMale),AD10+2,FALSE) -> 0 | O10: 1st | R10: =IF(LEN($P10)=1,VLOOKUP(LEFT($P10,1),Result2,5,FALSE),IF(LEN($P10)=2,VLOOKUP(LEFT($P10,1),Result2,10,FALSE),"")) ->  | S10: =IF(LEN($P10)=1,VLOOKUP(LEFT($P10,1),Result2,6,FALSE),IF(LEN($P10)=2,VLOOKUP(LEFT($P10,1),Result2,11,FALSE),"")) ->  | V10: 1st | Y10: =IF(LEN($W10)=1,VLOOKUP(LEFT($W10,1),Result2,5,FALSE),IF(LEN($W10)=2,VLOOKUP(LEFT($W10,1),Result2,10,FALSE),"")) ->  | Z10: =IF(LEN(W10)=1,VLOOKUP(LEFT(W10,1),Result2,6,FALSE),IF(LEN(W10)=2,VLOOKUP(LEFT(W10,1),Result2,11,FALSE),"")) ->  | AC10: =AD10-1 -> 6 | AD10: 7 | AE10: =AD10+1 -> 8 | AF10: =AE10+1 -> 9
A11: ='Event Details'!$C23 -> P | B11: ='Event Details'!$D23 -> Bicester | E11: 0 | F11: Georgia Usher | J11: 0 | K11: Amelia Cox | O11: 2nd | R11: =IF(LEN($P11)=1,VLOOKUP(LEFT($P11,1),Result2,5,FALSE),IF(LEN($P11)=2,VLOOKUP(LEFT($P11,1),Result2,10,FALSE),"")) ->  | S11: =IF(LEN(P11)=1,VLOOKUP(LEFT(P11,1),Result2,6,FALSE),IF(LEN(P11)=2,VLOOKUP(LEFT(P11,1),Result2,11,FALSE),"")) ->  | V11: 2nd | Y11: =IF(LEN($W11)=1,VLOOKUP(LEFT($W11,1),Result2,5,FALSE),IF(LEN($W11)=2,VLOOKUP(LEFT($W11,1),Result2,10,FALSE),"")) ->  | Z11: =IF(LEN(W11)=1,VLOOKUP(LEFT(W11,1),Result2,6,FALSE),IF(LEN(W11)=2,VLOOKUP(LEFT(W11,1),Result2,11,FALSE),"")) ->  | AC11: =AD11-1 -> 11 | AD11: 12 | AE11: =AD11+1 -> 13 | AF11: 14
A12: ='Event Details'!$C24 -> B | B12: ='Event Details'!$D24 -> Dudley & S'bridge | E12: 0 | F12: Kiera Avery | J12: 0 | K12: 0 | O12: 3rd | V12: 3rd | AC12: 16 | AD12: 17 | AE12: 18 | AF12: 19
A13: ='Event Details'!$C25 -> I | B13: ='Event Details'!$D25 -> Kettering | E13: 0 | F13: Mia Brockway | J13: II | K13: Maddie Moxey | O13: 4th | V13: 4th | AC13: 21 | AD13: 22 | AE13: 23 | AF13: 24
A14: ='Event Details'!$C26 -> R | B14: ='Event Details'!$D26 -> Radley | E14: 0 | F14: Poppy Edwards | J14: 0 | K14: 0 | O14: 5th | V14: 5th | AC14: 26 | AD14: 27 | AE14: 28 | AF14: 29
A15: ='Event Details'!$C27 -> F | B15: ='Event Details'!$D27 -> Tamworth | E15: 0 | F15: Tegan Vickery | J15: 0 | K15: 0 | O15: 6th | V15: 6th | AC15: 31 | AD15: 32 | AE15: 33 | AF15: 34
A16: ='Event Details'!$C28 -> X | B16: ='Event Details'!$D28 -> Wreake Runners | E16: 0 | F16: Katie Parker | J16: 0 | K16: Aoife Brotherton | O16: 7th | V16: 7th | AC16: 36 | AD16: 37 | AE16: 38 | AF16: 39
A17: ='Event Details'!$C29 -> Y | B17: ='Event Details'!$D29 -> Worcester | E17: 0 | F17: Ruby Jarman | J17: 0 | K17: Megan Williams | O17: 8th | V17: 8th | AC17: 41 | AD17: 42 | AE17: 43 | AF17: 44
AM25: Points | AU25: Time / Distance | BC25: Position | BK25: Placing | CE25: Col No. in Team Names
K26: ='Event Details'!D5 -> Heart of England League | O26: Results | AM26: ='Event Details'!$D22 -> Banbury | AN26: ='Event Details'!$D23 -> Bicester | AO26: ='Event Details'!$D24 -> Dudley & S'bridge | AP26: ='Event Details'!$D25 -> Kettering | AQ26: ='Event Details'!$D26 -> Radley | AR26: ='Event Details'!$D27 -> Tamworth | AS26: ='Event Details'!$D28 -> Wreake Runners | AT26: ='Event Details'!$D29 -> Worcester | AU26: ='Event Details'!$D22 -> Banbury | AV26: ='Event Details'!$D23 -> Bicester | AW26: ='Event Details'!$D24 -> Dudley & S'bridge | AX26: ='Event Details'!$D25 -> Kettering | AY26: ='Event Details'!$D26 -> Radley | AZ26: ='Event Details'!$D27 -> Tamworth | BA26: ='Event Details'!$D28 -> Wreake Runners | BB26: ='Event Details'!$D29 -> Worcester | BC26: ='Event Details'!$D22 -> Banbury | BD26: ='Event Details'!$D23 -> Bicester | BE26: ='Event Details'!$D24 -> Dudley & S'bridge | BF26: ='Event Details'!$D25 -> Kettering | BG26: ='Event Details'!$D26 -> Radley | BH26: ='Event Details'!$D27 -> Tamworth | BI26: ='Event Details'!$D28 -> Wreake Runners | BJ26: ='Event Details'!$D29 -> Worcester | CC26: =BC29 -> J | CD26: P | CE26: B | CF26: I | CG26: R | CH26: F | CI26: X | CJ26: Y
D27: Division | E27: ='Event Details'!D9 -> 2 | I27: Venue | K27: ='Event Details'!F17 -> Worcester | Q27: Date | R27: ='Event Details'!B17 -> 5th June 2016 | BK27: 1St | BL27: 2nd | BM27: 3rd | BN27: 4th | BO27: 5th | BP27: 6th | BQ27: 7th | BR27: 8th | CC27: 7 | CD27: 12 | CE27: 17 | CF27: 22 | CG27: 27 | CH27: 32 | CI27: 37 | CJ27: 42
B28: Event | G28: Club Letter | O28: Time / Distance | W28: U11 No's | AE28: Competitor's Name
B29: No | C29: Time | D29: Event | G29: 1st | H29: 2nd | I29: 3rd | J29: 4th | K29: 5th | L29: 6th | M29: 7th | N29: 8th | O29: 1st | P29: 2nd | Q29: 3rd | R29: 4th | S29: 5th | T29: 6th | U29: 7th | V29: 8th | W29: 1st | X29: 2nd | Y29: 3rd | Z29: 4th | AA29: 5th | AB29: 6th | AC29: 7th | AD29: 8th | AE29: 1st | AF29: 2nd | AG29: 3rd | AH29: 4th | AI29: 5th | AJ29: 6th | AK29: 7th | AL29: 8th | AM29: ='Event Details'!$C22 -> J | AN29: ='Event Details'!$C23 -> P | AO29: ='Event Details'!$C24 -> B | AP29: ='Event Details'!$C25 -> I | AQ29: ='Event Details'!$C26 -> R | AR29: ='Event Details'!$C27 -> F | AS29: ='Event Details'!$C28 -> X | AT29: ='Event Details'!$C29 -> Y | AU29: ='Event Details'!$C22 -> J | AV29: ='Event Details'!$C23 -> P | AW29: ='Event Details'!$C24 -> B | AX29: ='Event Details'!$C25 -> I | AY29: ='Event Details'!$C26 -> R | AZ29: ='Event Details'!$C27 -> F | BA29: ='Event Details'!$C28 -> X | BB29: ='Event Details'!$C29 -> Y | BC29: ='Event Details'!$C22 -> J | BD29: ='Event Details'!$C23 -> P | BE29: ='Event Details'!$C24 -> B | BF29: ='Event Details'!$C25 -> I | BG29: ='Event Details'!$C26 -> R | BH29: ='Event Details'!$C27 -> F | BI29: ='Event Details'!$C28 -> X | BJ29: ='Event Details'!$C29 -> Y | BK29: ='Event Details'!C32 -> 8 | BL29: =BK29-1 -> 7 | BM29: 6 | BN29: 5 | BO29: 4 | BP29: 3 | BQ29: 2 | BR29: 1 | BS29: 1 | BT29: =BS29+1 -> 2 | BU29: 3 | BV29: 4 | BW29: 5 | BX29: 6 | BY29: 7 | BZ29: 8 | CC29: 1 | CD29: =CC29+1 -> 2 | CE29: 3 | CF29: 4 | CG29: 5 | CH29: 6 | CI29: 7 | CJ29: 8
A30: =B30&"A" -> 1A | B30: 1 | C30: =VLOOKUP(B30,EventsOrder,2,FALSE) -> 11.45 | D30: =VLOOKUP(B30,EventsOrder,4,FALSE) -> U13 Female | E30: A | F30: =IF(MID(D30,5,1)="F","F","M") -> F | G30: X | H30: P | I30: Y | J30: R | K30: F | L30: I | M30: J | O30: 5.12.0 | P30: 5.41.7 | Q30: 5.44.0 | R30: 5.45.6 | S30: 5.56.2 | T30: 6.02.7 | U30: 6.08.2 | W30: 0 | X30: 0 | Y30: 0 | Z30: 0 | AA30: 0 | AB30: 0 | AC30: 0 | AE30: =IF(LEN(G30)=0,"",VLOOKUP($B30,IF($F30="F",TeamSheetFemale,TeamSheetMale),CC30,FALSE)) -> Katie Parker | AF30: Georgia Usher | AG30: Ruby Jarman | AH30: Poppy Edwards | AI30: Tegan Vickery | AJ30: Mia Brockway | AK30: Nikola Bishop | AM30: =IF(OR($F30="NS",AU30="DNF"),0,IF(BC30>0,$BK$29+1-BC30,0)) -> 2 | AN30: =IF(OR($F30="NS",AV30="DNF"),0,IF(BD30>0,$BK$29+1-BD30,0)) -> 7 | AO30: =IF(OR($F30="NS",AW30="DNF"),0,IF(BE30>0,$BK$29+1-BE30,0)) -> 0 | AP30: =IF(OR($F30="NS",AX30="DNF"),0,IF(BF30>0,$BK$29+1-BF30,0)) -> 3 | AQ30: =IF(OR($F30="NS",AY30="DNF"),0,IF(BG30>0,$BK$29+1-BG30,0)) -> 5 | AR30: =IF(OR($F30="NS",AZ30="DNF"),0,IF(BH30>0,$BK$29+1-BH30,0)) -> 4 | AS30: =IF(OR($F30="NS",BA30="DNF"),0,IF(BI30>0,$BK$29+1-BI30,0)) -> 8 | AT30: =IF(OR($F30="NS",BB30="DNF"),0,IF(BJ30>0,$BK$29+1-BJ30,0)) -> 6 | AU30: =OFFSET($N30,0,BC30) -> 6.08.2 | AV30: 5.41.7 | AW30: 0 | AX30: 6.02.7 | AY30: 5.45.6 | AZ30: 5.56.2 | BA30: 5.12.0 | BB30: 5.44.0 | BC30: =IF(ISNA(MATCH(BC$29,$BS30:$BZ30,0)),0,MATCH(BC$29,$BS30:$BZ30,0)) -> 7 | BD30: 2 | BE30: 0 | BF30: 6 | BG30: 4 | BH30: 5 | BI30: 1 | BJ30: 3 | BK30: =IF(LEN(G30)>0,VLOOKUP(LEFT(G30,1),Clubs,5,FALSE),0) -> Wreake | BL30: =IF(LEN(H30)>0,VLOOKUP(LEFT(H30,1),Clubs,5,FALSE),0) -> Bic | BM30: Worc | BN30: Rad | BO30: Tam | BP30: Kett | BQ30: Ban | BR30: 0 | BS30: =LEFT(G30,1) -> X | BT30: P | BU30: Y | BV30: R | BW30: F | BX30: I | BY30: J | CC30: =IF(LEN(G30)=0,"",HLOOKUP(BS30,$CC$26:$CJ$28,2,FALSE)+IF(LEN(G30)=2,2,0)) -> 37 | CD30: =IF(LEN(H30)=0,"",HLOOKUP(BT30,$CC$26:$CJ$28,2,FALSE)+IF(LEN(H30)=2,2,0)) -> 12 | CE30: 42 | CF30: 27 | CG30: 32 | CH30: 22 | CI30: 7
A31: =B30&"B" -> 1B | D31: =VLOOKUP(B30,EventsOrder,3,FALSE) -> 1500m | E31: B | G31: XX | H31: YY | I31: II | J31: PP | O31: 5.32.3 | P31: 5.55.1 | Q31: 6.27.8 | R31: DNF | W31: 0 | X31: 0 | Y31: II | Z31: 0 | AE31: =IF(LEN(G31)=0,"",VLOOKUP($B30,IF($F30="F",TeamSheetFemale,TeamSheetMale),CC31,FALSE)) -> Aoife Brotherton | AF31: Megan Williams | AG31: Maddie Moxey | AH31: Amelia Cox | AM31: =IF(OR($F31="NS",AU31="DNF"),0,IF(BC31>0,$BK$29+1-BC31,0)) -> 0 | AN31: 0 | AO31: 0 | AP31: 6 | AQ31: 0 | AR31: 0 | AS31: 8 | AT31: 7 | AU31: 0 | AV31: DNF | AW31: 0 | AX31: 6.27.8 | AY31: 0 | AZ31: 0 | BA31: 5.32.3 | BB31: 5.55.1 | BC31: 0 | BD31: 4 | BE31: 0 | BF31: 3 | BG31: 0 | BH31: 0 | BI31: 1 | BJ31: 2 | BK31: Wreake | BL31: Worc | BM31: Kett | BN31: Bic | BO31: 0 | BP31: 0 | BQ31: 0 | BR31: 0 | BS31: X | BT31: Y | BU31: I | BV31: P | CC31: =IF(LEN(G31)=0,"",HLOOKUP(BS31,$CC$26:$CJ$28,2,FALSE)+IF(LEN(G31)=2,2,0)) -> 39 | CD31: 44 | CE31: 24 | CF31: 14
A32: =B32&"A" -> 2A | B32: 2 | C32: =VLOOKUP(B32,EventsOrder,2,FALSE) -> 11.45 | D32: =VLOOKUP(B32,EventsOrder,4,FALSE) -> U11 Male | E32: A | F32: =IF(MID(D32,5,1)="F","F","M") -> M | G32: I | H32: J | I32: XX | J32: PP | K32: R | L32: Y | M32: BB | O32: 33.63 | P32: 30.03 | Q32: 28.72 | R32: 26.32 | S32: 25.54 | T32: 23.67 | U32: 11.5 | W32: 0 | X32: 0 | Y32: 0 | Z32: PP | AA32: 0 | AB32: 0 | AC32: 0 | AE32: =IF(LEN(G32)=0,"",VLOOKUP($B32,IF($F32="F",TeamSheetFemale,TeamSheetMale),CC32,FALSE)) -> Alfie Frayne | AF32: Archie Street | AG32: Sam Orange | AH32: Timothy Jones | AI32: Quinn Miell-Ingram | AJ32: Linus Burnage | AK32: Reece Lees | AM32: 7 | AN32: 5 | AO32: 2 | AP32: 8 | AQ32: 4 | AR32: 0 | AS32: 6 | AT32: 3 | AU32: 30.03 | AV32: 26.32 | AW32: 11.5 | AX32: 33.63 | AY32: 25.54 | AZ32: 0 | BA32: 28.72 | BB32: 23.67 | BC32: 2 | BD32: 4 | BE32: 7 | BF32: 1 | BG32: 5 | BH32: 0 | BI32: 3 | BJ32: 6 | BK32: Kett | BL32: Ban | BM32: Wreake | BN32: Bic | BO32: Rad | BP32: Worc | BQ32: DASH | BR32: 0 | BS32: I | BT32: J | BU32: X | BV32: P | BW32: R | BX32: Y | BY32: B | CC32: 22 | CD32: =IF(LEN(H32)=0,"",HLOOKUP(BT32,$CC$26:$CJ$28,2,FALSE)+IF(LEN(H32)=2,2,0)) -> 7 | CE32: 39 | CF32: 14 | CG32: 27 | CH32: 42 | CI32: 19
A33: =B32&"B" -> 2B | D33: =VLOOKUP(B32,EventsOrder,3,FALSE) -> Howler | E33: B | G33: P | H33: II | I33: X | J33: RR | K33: YY | L33: JJ | M33: B | O33: 23.75 | P33: 21.88 | Q33: 20.08 | R33: 15.82 | S33: 15.76 | T33: 13.48 | U33: 10.38 | W33: 0 | X33: II | Y33: 0 | Z33: 0 | AA33: 0 | AB33: 0 | AC33: 0 | AE33: =IF(LEN(G33)=0,"",VLOOKUP($B32,IF($F32="F",TeamSheetFemale,TeamSheetMale),CC33,FALSE)) -> Seion Alexander | AF33: Aaron Holloway | AG33: Jonty Brotherton | AH33: Caspar Cumberland | AI33: Ellis Hartland | AJ33: Toby Jones | AK33: Corey Lees | AM33: 3 | AN33: 8 | AO33: 2 | AP33: 7 | AQ33: 5 | AR33: 0 | AS33: 6 | AT33: 4 | AU33: 13.48 | AV33: 23.75 | AW33: 10.38 | AX33: 21.88 | AY33: 15.82 | AZ33: 0 | BA33: 20.08 | BB33: 15.76 | BC33: 6 | BD33: 1 | BE33: 7 | BF33: 2 | BG33: 4 | BH33: 0 | BI33: 3 | BJ33: 5 | BK33: Bic | BL33: Kett | BM33: Wreake | BN33: Rad | BO33: Worc | BP33: Ban | BQ33: DASH | BR33: 0 | BS33: P | BT33: I | BU33: X | BV33: R | BW33: Y | BX33: J | BY33: B | CC33: 12 | CD33: 24 | CE33: 37 | CF33: 29 | CG33: 44 | CH33: 9 | CI33: 17
A34: =B34&"A" -> 3A | B34: 3 | C34: =VLOOKUP(B34,EventsOrder,2,FALSE) -> 11.45 | D34: =VLOOKUP(B34,EventsOrder,4,FALSE) -> U11 Female | E34: A | F34: =IF(MID(D34,5,1)="F","F","M") -> F | G34: Y | H34: P | I34: J | J34: X | K34: RR | L34: II | O34: 23.63 | P34: 21.04 | Q34: 17.46 | R34: 12.79 | S34: 10.83 | T34: 10.51 | W34: 0 | X34: 0 | Y34: 0 | Z34: 0 | AA34: 0 | AB34: II | AE34: =IF(LEN(G34)=0,"",VLOOKUP($B34,IF($F34="F",TeamSheetFemale,TeamSheetMale),CC34,FALSE)) -> Jasmine Stokes | AF34: Imogen Cox | AG34: Eimear Moss | AH34: Isabelle Parker | AI34: Erin Bungay | AJ34: Niamh Sinnott | AM34: 6 | AN34: 7 | AO34: 0 | AP34: 3 | AQ34: 4 | AR34: 0 | AS34: 5 | AT34: 8 | AU34: 17.46 | AV34: 21.04 | AW34: 0 | AX34: 10.51 | AY34: 10.83 | AZ34: 0 | BA34: 12.79 | BB34: 23.63 | BC34: =IF(ISNA(MATCH(BC$29,$BS34:$BZ34,0)),0,MATCH(BC$29,$BS34:$BZ34,0)) -> 3 | BD34: 2 | BE34: 0 | BF34: 6 | BG34: 5 | BH34: 0 | BI34: 4 | BJ34: 1 | BK34: =IF(LEN(G34)>0,VLOOKUP(LEFT(G34,1),Clubs,5,FALSE),0) -> Worc | BL34: Bic | BM34: Ban | BN34: Wreake | BO34: Rad | BP34: Kett | BQ34: 0 | BR34: 0 | BS34: =LEFT(G34,1) -> Y | BT34: =LEFT(H34,1) -> P | BU34: J | BV34: X | BW34: R | BX34: I | CC34: 42 | CD34: 12 | CE34: 7 | CF34: 37 | CG34: 29 | CH34: 24
A35: =B34&"B" -> 3B | D35: =VLOOKUP(B34,EventsOrder,3,FALSE) -> Howler | E35: B | G35: PP | H35: JJ | I35: XX | J35: R | K35: I | O35: 12.8 | P35: 12.02 | Q35: 11 | R35: 8.51 | S35: 7.56 | W35: PP | X35: 0 | Y35: 0 | Z35: 0 | AA35: 0 | AE35: =IF(LEN(G35)=0,"",VLOOKUP($B34,IF($F34="F",TeamSheetFemale,TeamSheetMale),CC35,FALSE)) -> Isla Bohannon | AF35: Ellie Williams | AG35: Harriett Lethridge | AH35: Ainhara Ly | AI35: Isabella Brockway | AM35: 7 | AN35: 8 | AO35: 0 | AP35: 4 | AQ35: 5 | AR35: 0 | AS35: 6 | AT35: 0 | AU35: =OFFSET($N35,0,BC35) -> 12.02 | AV35: =OFFSET($N35,0,BD35) -> 12.8 | AW35: =OFFSET($N35,0,BE35) -> 0 | AX35: =OFFSET($N35,0,BF35) -> 7.56 | AY35: =OFFSET($N35,0,BG35) -> 8.51 | AZ35: =OFFSET($N35,0,BH35) -> 0 | BA35: =OFFSET($N35,0,BI35) -> 11 | BB35: =OFFSET($N35,0,BJ35) -> 0 | BC35: 2 | BD35: 1 | BE35: 0 | BF35: 5 | BG35: 4 | BH35: 0 | BI35: 3 | BJ35: 0 | BK35: Bic | BL35: Ban | BM35: Wreake | BN35: Rad | BO35: Kett | BP35: 0 | BQ35: 0 | BR35: 0 | BS35: P | BT35: =LEFT(H35,1) -> J | BU35: X | BV35: R | BW35: I | CC35: 14 | CD35: 9 | CE35: 39 | CF35: 27 | CG35: 22
A36: =B36&"A" -> 4A | B36: 4 | C36: =VLOOKUP(B36,EventsOrder,2,FALSE) -> 11.55 | D36: =VLOOKUP(B36,EventsOrder,4,FALSE) -> U15 Female | E36: A | F36: =IF(MID(D36,5,1)="F","F","M") -> F | G36: F | H36: X | I36: Y | J36: R | K36: I | L36: P | O36: 4.58.5 | P36: 5.01.2 | Q36: 5.13.3 | R36: 5.21.6 | S36: 5.40.2 | T36: 6.35.7 | W36: 0 | X36: 0 | Y36: 0 | Z36: 0 | AA36: 0 | AB36: 0 | AE36: =IF(LEN(G36)=0,"",VLOOKUP($B36,IF($F36="F",TeamSheetFemale,TeamSheetMale),CC36,FALSE)) -> Eve Clawley | AF36: Rachel Nealon | AG36: Holly Love | AH36: Rachel Burton | AI36: Daisy Robinson | AJ36: Holly Hunter | AM36: 0 | AN36: 3 | AO36: 0 | AP36: 4 | AQ36: 5 | AR36: 8 | AS36: 7 | AT36: 6 | AU36: 0 | AV36: 6.35.7 | AW36: 0 | AX36: 5.40.2 | AY36: 5.21.6 | AZ36: 4.58.5 | BA36: 5.01.2 | BB36: 5.13.3 | BC36: 0 | BD36: 6 | BE36: 0 | BF36: 5 | BG36: 4 | BH36: 1 | BI36: 2 | BJ36: 3 | BK36: Tam | BL36: Wreake | BM36: Worc | BN36: Rad | BO36: Kett | BP36: Bic | BQ36: 0 | BR36: 0 | BS36: F | BT36: X | BU36: Y | BV36: R | BW36: I | BX36: P | CC36: 32 | CD36: =IF(LEN(H36)=0,"",HLOOKUP(BT36,$CC$26:$CJ$28,2,FALSE)+IF(LEN(H36)=2,2,0)) -> 37 | CE36: =IF(LEN(I36)=0,"",HLOOKUP(BU36,$CC$26:$CJ$28,2,FALSE)+IF(LEN(I36)=2,2,0)) -> 42 | CF36: =IF(LEN(J36)=0,"",HLOOKUP(BV36,$CC$26:$CJ$28,2,FALSE)+IF(LEN(J36)=2,2,0)) -> 27 | CG36: =IF(LEN(K36)=0,"",HLOOKUP(BW36,$CC$26:$CJ$28,2,FALSE)+IF(LEN(K36)=2,2,0)) -> 22 | CH36: =IF(LEN(L36)=0,"",HLOOKUP(BX36,$CC$26:$CJ$28,2,FALSE)+IF(LEN(L36)=2,2,0)) -> 12 | CI36: =IF(LEN(M36)=0,"",HLOOKUP(BY36,$CC$26:$CJ$28,2,FALSE)+IF(LEN(M36)=2,2,0)) ->  | CJ36: =IF(LEN(N36)=0,"",HLOOKUP(BZ36,$CC$26:$CJ$28,2,FALSE)+IF(LEN(N36)=2,2,0)) -> 
A37: =B36&"B" -> 4B | D37: =VLOOKUP(B36,EventsOrder,3,FALSE) -> 1500m | E37: B | G37: XX | H37: RR | I37: YY | J37: II | O37: 5.16.0 | P37: 5.24.1 | Q37: 5.31.6 | R37: 6.53.8 | W37: 0 | X37: 0 | Y37: 0 | Z37: II | AE37: =IF(LEN(G37)=0,"",VLOOKUP($B36,IF($F36="F",TeamSheetFemale,TeamSheetMale),CC37,FALSE)) -> Rosie Timlock | AF37: Hermione Jewel | AG37: Lauren Matthews | AH37: Isabella Moxey | AM37: 0 | AN37: 0 | AO37: 0 | AP37: 5 | AQ37: 7 | AR37: 0 | AS37: 8 | AT37: 6 | AU37: 0 | AV37: 0 | AW37: 0 | AX37: 6.53.8 | AY37: 5.24.1 | AZ37: 0 | BA37: 5.16.0 | BB37: 5.31.6 | BC37: 0 | BD37: 0 | BE37: 0 | BF37: 4 | BG37: 2 | BH37: 0 | BI37: 1 | BJ37: 3 | BK37: Wreake | BL37: Rad | BM37: Worc | BN37: Kett | BO37: 0 | BP37: 0 | BQ37: 0 | BR37: 0 | BS37: X | BT37: R | BU37: Y | BV37: I | CC37: 39 | CD37: 29 | CE37: 44 | CF37: 24
A38: =B38&"A" -> 5A | B38: 5 | C38: =VLOOKUP(B38,EventsOrder,2,FALSE) -> 12 | D38: =VLOOKUP(B38,EventsOrder,4,FALSE) -> U13 Male | E38: A | F38: =IF(MID(D38,5,1)="F","F","M") -> M | G38: I | H38: R | I38: B | J38: Y | O38: 1.35 | P38: 1.3 | Q38: 1.2 | R38: 1.1 | W38: 0 | X38: 0 | Y38: 0 | Z38: 0 | AE38: =IF(LEN(G38)=0,"",VLOOKUP($B38,IF($F38="F",TeamSheetFemale,TeamSheetMale),CC38,FALSE)) -> Cole Sinnott | AF38: Theau Seabrook | AG38: Jack Compton | AH38: Jacob Khan | AM38: 0 | AN38: 0 | AO38: 6 | AP38: 8 | AQ38: 7 | AR38: 0 | AS38: 0 | AT38: 5 | AU38: 0 | AV38: 0 | AW38: 1.2 | AX38: 1.35 | AY38: 1.3 | AZ38: 0 | BA38: 0 | BB38: 1.1 | BC38: 0 | BD38: 0 | BE38: 3 | BF38: 1 | BG38: 2 | BH38: 0 | BI38: 0 | BJ38: 4 | BK38: Kett | BL38: Rad | BM38: DASH | BN38: Worc | BO38: 0 | BP38: 0 | BQ38: 0 | BR38: 0 | BS38: I | BT38: R | BU38: B | BV38: Y | CC38: 22 | CD38: 27 | CE38: 17 | CF38: 42
A39: =B38&"B" -> 5B | D39: =VLOOKUP(B38,EventsOrder,3,FALSE) -> High Jump | E39: B | AE39: =IF(LEN(G39)=0,"",VLOOKUP($B38,IF($F38="F",TeamSheetFemale,TeamSheetMale),CC39,FALSE)) ->  | AM39: 0 | AN39: 0 | AO39: 0 | AP39: 0 | AQ39: 0 | AR39: 0 | AS39: 0 | AT39: 0 | AU39: 0 | AV39: 0 | AW39: 0 | AX39: 0 | AY39: 0 | AZ39: 0 | BA39: 0 | BB39: 0 | BC39: 0 | BD39: 0 | BE39: 0 | BF39: 0 | BG39: 0 | BH39: 0 | BI39: 0 | BJ39: 0 | BK39: 0 | BL39: 0 | BM39: 0 | BN39: 0 | BO39: 0 | BP39: 0 | BQ39: 0 | BR39: 0
A40: =B40&"A" -> 6A | B40: 6 | C40: =VLOOKUP(B40,EventsOrder,2,FALSE) -> 12 | D40: =VLOOKUP(B40,EventsOrder,4,FALSE) -> U15 Male | E40: A | F40: =IF(MID(D40,5,1)="F","F","M") -> M | G40: Y | H40: P | I40: J | J40: I | K40: B | L40: R | O40: 5.58 | P40: 4.66 | Q40: 4.29 | R40: 3.45 | S40: 2.38 | T40: NDR | W40: 0 | X40: P | Y40: 0 | Z40: 0 | AA40: 0 | AB40: 0 | AE40: =IF(LEN(G40)=0,"",VLOOKUP($B40,IF($F40="F",TeamSheetFemale,TeamSheetMale),CC40,FALSE)) -> Darian Moore | AF40: Jamil Welham | AG40: Will Andrews | AH40: Ethan Nelis | AI40: Zak Thurley | AJ40: Daniel Gifford | AM40: 6 | AN40: 7 | AO40: 4 | AP40: 5 | AQ40: 3 | AR40: 0 | AS40: 0 | AT40: 8 | AU40: 4.29 | AV40: 4.66 | AW40: 2.38 | AX40: 3.45 | AY40: NDR | AZ40: 0 | BA40: 0 | BB40: 5.58 | BC40: 3 | BD40: 2 | BE40: 5 | BF40: 4 | BG40: 6 | BH40: 0 | BI40: 0 | BJ40: 1 | BK40: =IF(LEN(G40)>0,VLOOKUP(LEFT(G40,1),Clubs,5,FALSE),0) -> Worc | BL40: =IF(LEN(H40)>0,VLOOKUP(LEFT(H40,1),Clubs,5,FALSE),0) -> Bic | BM40: =IF(LEN(I40)>0,VLOOKUP(LEFT(I40,1),Clubs,5,FALSE),0) -> Ban | BN40: =IF(LEN(J40)>0,VLOOKUP(LEFT(J40,1),Clubs,5,FALSE),0) -> Kett | BO40: =IF(LEN(K40)>0,VLOOKUP(LEFT(K40,1),Clubs,5,FALSE),0) -> DASH | BP40: =IF(LEN(L40)>0,VLOOKUP(LEFT(L40,1),Clubs,5,FALSE),0) -> Rad | BQ40: =IF(LEN(M40)>0,VLOOKUP(LEFT(M40,1),Clubs,5,FALSE),0) -> 0 | BR40: =IF(LEN(N40)>0,VLOOKUP(LEFT(N40,1),Clubs,5,FALSE),0) -> 0 | BS40: =LEFT(G40,1) -> Y | BT40: P | BU40: J | BV40: I | BW40: B | BX40: R | CC40: 42 | CD40: 12 | CE40: 7 | CF40: 22 | CG40: 17 | CH40: 27
A41: =B40&"B" -> 6B | D41: =VLOOKUP(B40,EventsOrder,3,FALSE) -> Long Jump | E41: B | G41: YY | O41: 4.03 | W41: 0 | AE41: =IF(LEN(G41)=0,"",VLOOKUP($B40,IF($F40="F",TeamSheetFemale,TeamSheetMale),CC41,FALSE)) -> Marco Miller | AM41: 0 | AN41: 0 | AO41: 0 | AP41: 0 | AQ41: 0 | AR41: 0 | AS41: 0 | AT41: 8 | AU41: 0 | AV41: 0 | AW41: 0 | AX41: 0 | AY41: =OFFSET($N41,0,BG41) -> 0 | AZ41: =OFFSET($N41,0,BH41) -> 0 | BA41: =OFFSET($N41,0,BI41) -> 0 | BB41: =OFFSET($N41,0,BJ41) -> 4.03 | BC41: 0 | BD41: 0 | BE41: 0 | BF41: 0 | BG41: 0 | BH41: 0 | BI41: 0 | BJ41: 1 | BK41: Worc | BL41: 0 | BM41: 0 | BN41: 0 | BO41: 0 | BP41: 0 | BQ41: 0 | BR41: 0 | BS41: Y | BT41: =LEFT(H41,1) ->  | BU41: =LEFT(I41,1) ->  | BV41: =LEFT(J41,1) ->  | BW41: =LEFT(K41,1) ->  | BX41: =LEFT(L41,1) ->  | BY41: =LEFT(M41,1) ->  | BZ41: =LEFT(N41,1) ->  | CC41: 44
A42: =B42&"A" -> 7A | B42: 7 | C42: =VLOOKUP(B42,EventsOrder,2,FALSE) -> 12.05 | D42: =VLOOKUP(B42,EventsOrder,4,FALSE) -> U17 F/Women | E42: A | F42: =IF(MID(D42,5,1)="F","F","M") -> F | G42: F | H42: X | I42: R | O42: 5.12.1 | P42: 5.16.9 | Q42: 7.34.8 | W42: F | X42: 0 | Y42: 0 | AE42: =IF(LEN(G42)=0,"",VLOOKUP($B42,IF($F42="F",TeamSheetFemale,TeamSheetMale),CC42,FALSE)) -> Charlotte Bush | AF42: Fern Harrison | AG42: Jess Anstice U23 | AM42: 0 | AN42: 0 | AO42: 0 | AP42: 0 | AQ42: 6 | AR42: 8 | AS42: 7 | AT42: 0 | AU42: 0 | AV42: 0 | AW42: 0 | AX42: 0 | AY42: 7.34.8 | AZ42: 5.12.1 | BA42: 5.16.9 | BB42: 0 | BC42: 0 | BD42: 0 | BE42: 0 | BF42: 0 | BG42: 3 | BH42: 1 | BI42: 2 | BJ42: 0 | BK42: Tam | BL42: Wreake | BM42: Rad | BN42: 0 | BO42: 0 | BP42: 0 | BQ42: 0 | BR42: 0 | BS42: F | BT42: X | BU42: R | CC42: 32 | CD42: 37 | CE42: 27
A43: =B42&"B" -> 7B | D43: =VLOOKUP(B42,EventsOrder,3,FALSE) -> 1500m | E43: B | G43: FF | O43: 5.59.0 | W43: FF | AE43: =IF(LEN(G43)=0,"",VLOOKUP($B42,IF($F42="F",TeamSheetFemale,TeamSheetMale),CC43,FALSE)) -> Laura Lewis (Senior) | AM43: 0 | AN43: 0 | AO43: 0 | AP43: 0 | AQ43: 0 | AR43: 8 | AS43: 0 | AT43: 0 | AU43: 0 | AV43: 0 | AW43: 0 | AX43: 0 | AY43: 0 | AZ43: 5.59.0 | BA43: 0 | BB43: 0 | BC43: 0 | BD43: 0 | BE43: 0 | BF43: 0 | BG43: 0 | BH43: 1 | BI43: 0 | BJ43: 0 | BK43: Tam | BL43: 0 | BM43: 0 | BN43: 0 | BO43: 0 | BP43: 0 | BQ43: 0 | BR43: 0 | BS43: F | CC43: 34
A44: =B44&"A" -> 8A | B44: 8 | C44: =VLOOKUP(B44,EventsOrder,2,FALSE) -> 12.15 | D44: =VLOOKUP(B44,EventsOrder,4,FALSE) -> U17 Men | E44: A | F44: =IF(MID(D44,5,1)="F","F","M") -> M | G44: Y | H44: R | I44: X | J44: I | O44: 8.41 | P44: 8.33 | Q44: 7.1 | R44: 6.33 | W44: 0 | X44: 0 | Y44: 0 | Z44: 0 | AE44: =IF(LEN(G44)=0,"",VLOOKUP($B44,IF($F44="F",TeamSheetFemale,TeamSheetMale),CC44,FALSE)) -> Reiss Francis | AF44: Harry Woodcock | AG44: Charlie McGlinchey | AH44: Josh Cannell | AM44: 0 | AN44: 0 | AO44: 0 | AP44: 5 | AQ44: 7 | AR44: 0 | AS44: 6 | AT44: 8 | AU44: 0 | AV44: 0 | AW44: 0 | AX44: 6.33 | AY44: 8.33 | AZ44: 0 | BA44: 7.1 | BB44: 8.41 | BC44: 0 | BD44: 0 | BE44: 0 | BF44: 4 | BG44: 2 | BH44: 0 | BI44: 3 | BJ44: 1 | BK44: Worc | BL44: Rad | BM44: Wreake | BN44: Kett | BO44: 0 | BP44: 0 | BQ44: 0 | BR44: 0 | BS44: Y | BT44: R | BU44: X | BV44: I | CC44: 42 | CD44: =IF(LEN(H44)=0,"",HLOOKUP(BT44,$CC$26:$CJ$28,2,FALSE)+IF(LEN(H44)=2,2,0)) -> 27 | CE44: =IF(LEN(I44)=0,"",HLOOKUP(BU44,$CC$26:$CJ$28,2,FALSE)+IF(LEN(I44)=2,2,0)) -> 37 | CF44: =IF(LEN(J44)=0,"",HLOOKUP(BV44,$CC$26:$CJ$28,2,FALSE)+IF(LEN(J44)=2,2,0)) -> 22 | CG44: =IF(LEN(K44)=0,"",HLOOKUP(BW44,$CC$26:$CJ$28,2,FALSE)+IF(LEN(K44)=2,2,0)) ->  | CH44: =IF(LEN(L44)=0,"",HLOOKUP(BX44,$CC$26:$CJ$28,2,FALSE)+IF(LEN(L44)=2,2,0)) ->  | CI44: =IF(LEN(M44)=0,"",HLOOKUP(BY44,$CC$26:$CJ$28,2,FALSE)+IF(LEN(M44)=2,2,0)) ->  | CJ44: =IF(LEN(N44)=0,"",HLOOKUP(BZ44,$CC$26:$CJ$28,2,FALSE)+IF(LEN(N44)=2,2,0)) -> 
A45: =B44&"B" -> 8B | D45: =VLOOKUP(B44,EventsOrder,3,FALSE) -> Shot | E45: B | G45: RR | H45: YY | O45: 7.89 | P45: 6.8 | W45: 0 | X45: 0 | AE45: =IF(LEN(G45)=0,"",VLOOKUP($B44,IF($F44="F",TeamSheetFemale,TeamSheetMale),CC45,FALSE)) -> Rory Sear | AF45: Josh Bentley | AM45: 0 | AN45: 0 | AO45: 0 | AP45: 0 | AQ45: 8 | AR45: 0 | AS45: 0 | AT45: 7 | AU45: 0 | AV45: 0 | AW45: 0 | AX45: 0 | AY45: 7.89 | AZ45: 0 | BA45: 0 | BB45: 6.8 | BC45: 0 | BD45: 0 | BE45: 0 | BF45: 0 | BG45: 1 | BH45: 0 | BI45: 0 | BJ45: 2 | BK45: Rad | BL45: Worc | BM45: 0 | BN45: 0 | BO45: 0 | BP45: 0 | BQ45: 0 | BR45: 0 | BS45: R | BT45: Y | CC45: 29 | CD45: 44
A46: =B46&"A" -> 9A | B46: 9 | C46: =VLOOKUP(B46,EventsOrder,2,FALSE) -> 12.15 | D46: =VLOOKUP(B46,EventsOrder,4,FALSE) -> U15 Female | E46: A | F46: =IF(MID(D46,5,1)="F","F","M") -> F | G46: R | H46: I | I46: Y | J46: J | K46: F | L46: P | M46: B | N46: XX | O46: 24.28 | P46: 18.98 | Q46: 16.01 | R46: 15.55 | S46: 14.82 | T46: 12.86 | U46: 11.85 | V46: 10.92 | W46: 0 | X46: 0 | Y46: 0 | Z46: 0 | AA46: 0 | AB46: 0 | AC46: 0 | AD46: 0 | AE46: =IF(LEN(G46)=0,"",VLOOKUP($B46,IF($F46="F",TeamSheetFemale,TeamSheetMale),CC46,FALSE)) -> Rachel Burton | AF46: Matilda Braithwaite | AG46: Samantha Bowkett | AH46: Elizabeth Eskender | AI46: Alice Jones | AJ46: Molly Acton | AK46: Grace Slater | AL46: Rosie Timlock | AM46: 5 | AN46: 3 | AO46: 2 | AP46: 7 | AQ46: 8 | AR46: 4 | AS46: 1 | AT46: 6 | AU46: 15.55 | AV46: 12.86 | AW46: 11.85 | AX46: 18.98 | AY46: 24.28 | AZ46: 14.82 | BA46: 10.92 | BB46: 16.01 | BC46: 4 | BD46: 6 | BE46: 7 | BF46: 2 | BG46: 1 | BH46: 5 | BI46: 8 | BJ46: 3 | BK46: Rad | BL46: Kett | BM46: Worc | BN46: Ban | BO46: Tam | BP46: Bic | BQ46: DASH | BR46: Wreake | BS46: R | BT46: I | BU46: Y | BV46: J | BW46: F | BX46: P | BY46: B | BZ46: X | CC46: 27 | CD46: 22 | CE46: 42 | CF46: 7 | CG46: 32 | CH46: 12 | CI46: 17 | CJ46: 39
A47: =B46&"B" -> 9B | D47: =VLOOKUP(B46,EventsOrder,3,FALSE) -> Discus | E47: B | G47: YY | H47: RR | I47: II | J47: BB | K47: X | O47: 13.8 | P47: 10.58 | Q47: 10.34 | R47: 10.1 | S47: 9.85 | W47: 0 | X47: 0 | Y47: II | Z47: 0 | AA47: 0 | AE47: =IF(LEN(G47)=0,"",VLOOKUP($B46,IF($F46="F",TeamSheetFemale,TeamSheetMale),CC47,FALSE)) -> Katie Harris | AF47: Hermione Jewel | AG47: Millie Toseland | AH47: Jessica Grainger | AI47: Rachel Nealon | AM47: 0 | AN47: 0 | AO47: 5 | AP47: 6 | AQ47: 7 | AR47: 0 | AS47: 4 | AT47: 8 | AU47: 0 | AV47: 0 | AW47: 10.1 | AX47: 10.34 | AY47: 10.58 | AZ47: 0 | BA47: 9.85 | BB47: 13.8 | BC47: 0 | BD47: 0 | BE47: 4 | BF47: 3 | BG47: 2 | BH47: 0 | BI47: 5 | BJ47: 1 | BK47: Worc | BL47: Rad | BM47: Kett | BN47: DASH | BO47: Wreake | BP47: 0 | BQ47: 0 | BR47: 0 | BS47: Y | BT47: R | BU47: I | BV47: B | BW47: X | CC47: 44 | CD47: 29 | CE47: 24 | CF47: 19 | CG47: 37
A48: =B48&"A" -> 10A | B48: 10 | C48: =VLOOKUP(B48,EventsOrder,2,FALSE) -> 12.15 | D48: =VLOOKUP(B48,EventsOrder,4,FALSE) -> U17 Female | E48: A | F48: =IF(MID(D48,5,1)="F","F","M") -> F | AE48: =IF(LEN(G48)=0,"",VLOOKUP($B48,IF($F48="F",TeamSheetFemale,TeamSheetMale),CC48,FALSE)) ->  | AM48: 0 | AN48: 0 | AO48: 0 | AP48: 0 | AQ48: 0 | AR48: 0 | AS48: 0 | AT48: 0 | AU48: 0 | AV48: 0 | AW48: 0 | AX48: 0 | AY48: 0 | AZ48: 0 | BA48: 0 | BB48: 0 | BC48: 0 | BD48: 0 | BE48: 0 | BF48: 0 | BG48: 0 | BH48: 0 | BI48: 0 | BJ48: 0 | BK48: 0 | BL48: 0 | BM48: 0 | BN48: 0 | BO48: 0 | BP48: 0 | BQ48: 0 | BR48: 0
A49: =B48&"B" -> 10B | D49: =VLOOKUP(B48,EventsOrder,3,FALSE) -> Javelin (U17) | E49: B | AE49: =IF(LEN(G49)=0,"",VLOOKUP($B48,IF($F48="F",TeamSheetFemale,TeamSheetMale),CC49,FALSE)) ->  | AM49: 0 | AN49: 0 | AO49: 0 | AP49: 0 | AQ49: 0 | AR49: 0 | AS49: 0 | AT49: 0 | AU49: 0 | AV49: 0 | AW49: 0 | AX49: 0 | AY49: 0 | AZ49: 0 | BA49: 0 | BB49: 0 | BC49: 0 | BD49: 0 | BE49: 0 | BF49: 0 | BG49: 0 | BH49: 0 | BI49: 0 | BJ49: 0 | BK49: 0 | BL49: 0 | BM49: 0 | BN49: 0 | BO49: 0 | BP49: 0 | BQ49: 0 | BR49: 0
A50: =B50&"A" -> 11A | B50: 11 | C50: =VLOOKUP(B50,EventsOrder,2,FALSE) -> 12.15 | D50: =VLOOKUP(B50,EventsOrder,4,FALSE) -> U13 Female | E50: A | F50: =IF(MID(D50,5,1)="F","F","M") -> F | G50: F | H50: J | I50: X | J50: Y | K50: R | L50: I | O50: 11.8 | P50: 11.8 | Q50: 12.4 | R50: 12.5 | S50: 14.5 | T50: 14.5 | W50: 0 | X50: 0 | Y50: 0 | Z50: 0 | AA50: 0 | AB50: 0 | AE50: =IF(LEN(G50)=0,"",VLOOKUP($B50,IF($F50="F",TeamSheetFemale,TeamSheetMale),CC50,FALSE)) -> Niamh Kilgallen | AF50: Tegan Armstrong | AG50: Flora Miskin-Young | AH50: Lucy Marriott | AI50: Erin Mcmillan | AJ50: Scarlett Maxwell-Munn | AM50: 7 | AN50: 0 | AO50: 0 | AP50: 3 | AQ50: 4 | AR50: 8 | AS50: 6 | AT50: 5 | AU50: 11.8 | AV50: 0 | AW50: 0 | AX50: 14.5 | AY50: 14.5 | AZ50: 11.8 | BA50: 12.4 | BB50: 12.5 | BC50: =IF(ISNA(MATCH(BC$29,$BS50:$BZ50,0)),0,MATCH(BC$29,$BS50:$BZ50,0)) -> 2 | BD50: 0 | BE50: 0 | BF50: 6 | BG50: 5 | BH50: 1 | BI50: 3 | BJ50: 4 | BK50: Tam | BL50: Ban | BM50: Wreake | BN50: Worc | BO50: Rad | BP50: Kett | BQ50: 0 | BR50: 0 | BS50: F | BT50: J | BU50: X | BV50: Y | BW50: R | BX50: I | CC50: 32 | CD50: 7 | CE50: 37 | CF50: 42 | CG50: 27 | CH50: 22
A51: =B50&"B" -> 11B | D51: =VLOOKUP(B50,EventsOrder,3,FALSE) -> 70m hurdles | E51: B | G51: JJ | H51: XX | I51: RR | J51: YY | O51: 12.7 | P51: 13.3 | Q51: 13.6 | R51: 13.9 | W51: 0 | X51: 0 | Y51: 0 | Z51: 0 | AE51: =IF(LEN(G51)=0,"",VLOOKUP($B50,IF($F50="F",TeamSheetFemale,TeamSheetMale),CC51,FALSE)) -> Maddy Dowden | AF51: Indie King | AG51: Maddison Hurley | AH51: Amber Hopkins | AM51: 8 | AN51: 0 | AO51: 0 | AP51: 0 | AQ51: 6 | AR51: 0 | AS51: 7 | AT51: 5 | AU51: 12.7 | AV51: 0 | AW51: 0 | AX51: 0 | AY51: 13.6 | AZ51: 0 | BA51: 13.3 | BB51: 13.9 | BC51: 1 | BD51: 0 | BE51: 0 | BF51: 0 | BG51: 3 | BH51: 0 | BI51: 2 | BJ51: 4 | BK51: Ban | BL51: Wreake | BM51: Rad | BN51: Worc | BO51: 0 | BP51: 0 | BQ51: 0 | BR51: 0 | BS51: J | BT51: X | BU51: R | BV51: Y | CC51: 9 | CD51: 39 | CE51: 29 | CF51: 44
A52: =B52&"A" -> 12A | B52: 12 | C52: =VLOOKUP(B52,EventsOrder,2,FALSE) -> 12.2 | D52: =VLOOKUP(B52,EventsOrder,4,FALSE) -> U13 Male | E52: A | F52: =IF(MID(D52,5,1)="F","F","M") -> M | G52: R | H52: Y | I52: X | J52: J | K52: P | L52: I | M52: F | N52: B | O52: 2.28.5 | P52: 2.38.7 | Q52: 2.42.4 | R52: 2.44.4 | S52: 2.44.4 | T52: 2.46.3 | U52: 2.48.6 | V52: 2.53.8 | W52: 0 | X52: 0 | Y52: 0 | Z52: 0 | AA52: P | AB52: 0 | AC52: 0 | AD52: 0 | AE52: =IF(LEN(G52)=0,"",VLOOKUP($B52,IF($F52="F",TeamSheetFemale,TeamSheetMale),CC52,FALSE)) -> Rowan Miell-Ingram | AF52: Ben Harle | AG52: Ethan Patel | AH52: Archie Jones | AI52: Michael Cadle | AJ52: Ben Brooker | AK52: Daniel Aston | AL52: John Sparry | AM52: 5 | AN52: 4 | AO52: 1 | AP52: 3 | AQ52: 8 | AR52: 2 | AS52: 6 | AT52: 7 | AU52: 2.44.4 | AV52: 2.44.4 | AW52: 2.53.8 | AX52: 2.46.3 | AY52: 2.28.5 | AZ52: 2.48.6 | BA52: 2.42.4 | BB52: 2.38.7 | BC52: 4 | BD52: 5 | BE52: 8 | BF52: 6 | BG52: 1 | BH52: 7 | BI52: 3 | BJ52: 2 | BK52: =IF(LEN(G52)>0,VLOOKUP(LEFT(G52,1),Clubs,5,FALSE),0) -> Rad | BL52: =IF(LEN(H52)>0,VLOOKUP(LEFT(H52,1),Clubs,5,FALSE),0) -> Worc | BM52: =IF(LEN(I52)>0,VLOOKUP(LEFT(I52,1),Clubs,5,FALSE),0) -> Wreake | BN52: =IF(LEN(J52)>0,VLOOKUP(LEFT(J52,1),Clubs,5,FALSE),0) -> Ban | BO52: =IF(LEN(K52)>0,VLOOKUP(LEFT(K52,1),Clubs,5,FALSE),0) -> Bic | BP52: =IF(LEN(L52)>0,VLOOKUP(LEFT(L52,1),Clubs,5,FALSE),0) -> Kett | BQ52: =IF(LEN(M52)>0,VLOOKUP(LEFT(M52,1),Clubs,5,FALSE),0) -> Tam | BR52: =IF(LEN(N52)>0,VLOOKUP(LEFT(N52,1),Clubs,5,FALSE),0) -> DASH | BS52: =LEFT(G52,1) -> R | BT52: Y | BU52: X | BV52: J | BW52: P | BX52: I | BY52: F | BZ52: B | CC52: 27 | CD52: 42 | CE52: 37 | CF52: 7 | CG52: 12 | CH52: 22 | CI52: 32 | CJ52: 17
A53: =B52&"B" -> 12B | D53: =VLOOKUP(B52,EventsOrder,3,FALSE) -> 800m | E53: B | G53: XX | H53: RR | I53: YY | J53: II | K53: FF | O53: 2.35.6 | P53: 2.41.2 | Q53: 2.44.0 | R53: 2.46.3 | S53: 2.59.0 | W53: 0 | X53: 0 | Y53: 0 | Z53: II | AA53: FF | AE53: =IF(LEN(G53)=0,"",VLOOKUP($B52,IF($F52="F",TeamSheetFemale,TeamSheetMale),CC53,FALSE)) -> Euan Gibbs | AF53: Roan Stillion | AG53: Riley Carpenter | AH53: Joshua Geddes | AI53: Kian Dickson | AM53: 0 | AN53: 0 | AO53: 0 | AP53: 5 | AQ53: 7 | AR53: 4 | AS53: 8 | AT53: 6 | AU53: 0 | AV53: 0 | AW53: 0 | AX53: 2.46.3 | AY53: =OFFSET($N53,0,BG53) -> 2.41.2 | AZ53: =OFFSET($N53,0,BH53) -> 2.59.0 | BA53: =OFFSET($N53,0,BI53) -> 2.35.6 | BB53: =OFFSET($N53,0,BJ53) -> 2.44.0 | BC53: 0 | BD53: 0 | BE53: 0 | BF53: 4 | BG53: 2 | BH53: 5 | BI53: 1 | BJ53: 3 | BK53: Wreake | BL53: Rad | BM53: Worc | BN53: Kett | BO53: Tam | BP53: 0 | BQ53: 0 | BR53: 0 | BS53: X | BT53: =LEFT(H53,1) -> R | BU53: =LEFT(I53,1) -> Y | BV53: =LEFT(J53,1) -> I | BW53: =LEFT(K53,1) -> F | BX53: =LEFT(L53,1) ->  | BY53: =LEFT(M53,1) ->  | BZ53: =LEFT(N53,1) ->  | CC53: 39 | CD53: 29 | CE53: 44 | CF53: 24 | CG53: 34
A54: =B54&"A" -> 13A | B54: 13 | C54: =VLOOKUP(B54,EventsOrder,2,FALSE) -> 12.3 | D54: =VLOOKUP(B54,EventsOrder,4,FALSE) -> U15 Female | E54: A | F54: =IF(MID(D54,5,1)="F","F","M") -> F | G54: Y | H54: R | I54: J | J54: B | K54: P | L54: X | O54: 12.9 | P54: 13 | Q54: 13.1 | R54: 14.1 | S54: 15.2 | T54: 15.3 | W54: 0 | X54: 0 | Y54: 0 | Z54: 0 | AA54: 0 | AB54: 0 | AE54: =IF(LEN(G54)=0,"",VLOOKUP($B54,IF($F54="F",TeamSheetFemale,TeamSheetMale),CC54,FALSE)) -> Deanna Clarke | AF54: Holly Griffiths-Brown | AG54: Sydney Sellers | AH54: Isobel Fisher | AI54: Holly Hunter | AJ54: Ravenn Cook | AM54: 6 | AN54: 4 | AO54: 5 | AP54: 0 | AQ54: 7 | AR54: 0 | AS54: 3 | AT54: 8 | AU54: 13.1 | AV54: 15.2 | AW54: 14.1 | AX54: 0 | AY54: 13 | AZ54: 0 | BA54: 15.3 | BB54: 12.9 | BC54: 3 | BD54: 5 | BE54: 4 | BF54: 0 | BG54: 2 | BH54: 0 | BI54: 6 | BJ54: 1 | BK54: Worc | BL54: Rad | BM54: Ban | BN54: DASH | BO54: Bic | BP54: Wreake | BQ54: 0 | BR54: 0 | BS54: Y | BT54: R | BU54: J | BV54: B | BW54: P | BX54: X | CC54: 42 | CD54: 27 | CE54: 7 | CF54: 17 | CG54: 12 | CH54: 37
A55: =B54&"B" -> 13B | D55: =VLOOKUP(B54,EventsOrder,3,FALSE) -> 75m hurdles | E55: B | G55: YY | H55: BB | I55: RR | J55: PP | O55: 13.4 | P55: 14 | Q55: 15.5 | R55: 16.3 | W55: 0 | X55: 0 | Y55: 0 | Z55: 0 | AE55: =IF(LEN(G55)=0,"",VLOOKUP($B54,IF($F54="F",TeamSheetFemale,TeamSheetMale),CC55,FALSE)) -> Sarah-Jane Ollis | AF55: Niamh Darby | AG55: Hannah Mott | AH55: Charotte Hewett | AM55: 0 | AN55: 5 | AO55: 7 | AP55: 0 | AQ55: 6 | AR55: 0 | AS55: 0 | AT55: 8 | AU55: 0 | AV55: 16.3 | AW55: 14 | AX55: 0 | AY55: 15.5 | AZ55: 0 | BA55: 0 | BB55: 13.4 | BC55: 0 | BD55: 4 | BE55: 2 | BF55: 0 | BG55: 3 | BH55: 0 | BI55: 0 | BJ55: 1 | BK55: Worc | BL55: DASH | BM55: Rad | BN55: Bic | BO55: 0 | BP55: 0 | BQ55: 0 | BR55: 0 | BS55: Y | BT55: B | BU55: R | BV55: P | CC55: 44 | CD55: 19 | CE55: 29 | CF55: 14
A56: =B56&"A" -> 14A | B56: 14 | C56: =VLOOKUP(B56,EventsOrder,2,FALSE) -> 12.3 | D56: =VLOOKUP(B56,EventsOrder,4,FALSE) -> U11 Male | E56: A | F56: =IF(MID(D56,5,1)="F","F","M") -> M | G56: Y | H56: J | I56: X | J56: P | K56: F | L56: II | M56: B | N56: R | O56: 3.92 | P56: 3.85 | Q56: 3.63 | R56: 3.61 | S56: 3.22 | T56: 3.21 | U56: 3.12 | V56: 3.06 | W56: 0 | X56: 0 | Y56: 0 | Z56: 0 | AA56: 0 | AB56: II | AC56: 0 | AD56: 0 | AE56: =IF(LEN(G56)=0,"",VLOOKUP($B56,IF($F56="F",TeamSheetFemale,TeamSheetMale),CC56,FALSE)) -> Harry Ferrett | AF56: Ethan Aldous | AG56: Sam Orange | AH56: Joshua Parker | AI56: Ashley Johnson | AJ56: Theo Crick | AK56: Joel Harrison | AL56: Quinn Miell-Ingram | AM56: 7 | AN56: 5 | AO56: 2 | AP56: 3 | AQ56: 1 | AR56: 4 | AS56: 6 | AT56: 8 | AU56: 3.85 | AV56: 3.61 | AW56: 3.12 | AX56: 3.21 | AY56: 3.06 | AZ56: 3.22 | BA56: 3.63 | BB56: 3.92 | BC56: 2 | BD56: 4 | BE56: 7 | BF56: 6 | BG56: 8 | BH56: 5 | BI56: 3 | BJ56: 1 | BK56: Worc | BL56: Ban | BM56: Wreake | BN56: Bic | BO56: Tam | BP56: Kett | BQ56: DASH | BR56: Rad | BS56: Y | BT56: J | BU56: X | BV56: P | BW56: F | BX56: I | BY56: B | BZ56: R | CC56: 42 | CD56: 7 | CE56: 37 | CF56: 12 | CG56: 32 | CH56: 24 | CI56: 17 | CJ56: 27
A57: =B56&"B" -> 14B | D57: =VLOOKUP(B56,EventsOrder,3,FALSE) -> Long Jump | E57: B | G57: JJ | H57: I | I57: PP | J57: RR | K57: YY | L57: XX | O57: 3.79 | P57: 3.01 | Q57: 2.92 | R57: 2.91 | S57: 2.76 | T57: 2.58 | W57: 0 | X57: 0 | Y57: PP | Z57: 0 | AA57: 0 | AB57: 0 | AE57: =IF(LEN(G57)=0,"",VLOOKUP($B56,IF($F56="F",TeamSheetFemale,TeamSheetMale),CC57,FALSE)) -> Archie Street | AF57: Aaron Holloway | AG57: Seion Alexander | AH57: Jake Edwards | AI57: Jack Adams | AJ57: Jonty Brotherton | AM57: 8 | AN57: 6 | AO57: 0 | AP57: 7 | AQ57: 5 | AR57: 0 | AS57: 3 | AT57: 4 | AU57: 3.79 | AV57: 2.92 | AW57: 0 | AX57: 3.01 | AY57: 2.91 | AZ57: 0 | BA57: 2.58 | BB57: 2.76 | BC57: 1 | BD57: 3 | BE57: 0 | BF57: 2 | BG57: 4 | BH57: 0 | BI57: 6 | BJ57: 5 | BK57: Ban | BL57: Kett | BM57: Bic | BN57: Rad | BO57: Worc | BP57: Wreake | BQ57: 0 | BR57: 0 | BS57: J | BT57: I | BU57: P | BV57: R | BW57: Y | BX57: X | CC57: 9 | CD57: 22 | CE57: 14 | CF57: 29 | CG57: 44 | CH57: 39
A58: =B58&"A" -> 15A | B58: 15 | C58: =VLOOKUP(B58,EventsOrder,2,FALSE) -> 12.35 | D58: =VLOOKUP(B58,EventsOrder,4,FALSE) -> U13 Male | E58: A | F58: =IF(MID(D58,5,1)="F","F","M") -> M | G58: J | H58: I | I58: P | J58: R | K58: Y | O58: 12.6 | P58: 14 | Q58: 14.5 | R58: 14.6 | S58: 16.9 | W58: 0 | X58: 0 | Y58: P | Z58: 0 | AA58: 0 | AE58: =IF(LEN(G58)=0,"",VLOOKUP($B58,IF($F58="F",TeamSheetFemale,TeamSheetMale),CC58,FALSE)) -> Christopher Charles | AF58: Oliver Laskey | AG58: Samuel Rayson | AH58: Theau Seabrook | AI58: Alfie Robbins | AM58: 8 | AN58: 6 | AO58: 0 | AP58: 7 | AQ58: 5 | AR58: 0 | AS58: 0 | AT58: 4 | AU58: 12.6 | AV58: 14.5 | AW58: 0 | AX58: 14 | AY58: 14.6 | AZ58: 0 | BA58: 0 | BB58: 16.9 | BC58: 1 | BD58: 3 | BE58: 0 | BF58: 2 | BG58: 4 | BH58: 0 | BI58: 0 | BJ58: 5 | BK58: Ban | BL58: Kett | BM58: Bic | BN58: Rad | BO58: Worc | BP58: 0 | BQ58: 0 | BR58: 0 | BS58: J | BT58: I | BU58: P | BV58: R | BW58: Y | CC58: 7 | CD58: 22 | CE58: 12 | CF58: 27 | CG58: 42
A59: =B58&"B" -> 15B | D59: =VLOOKUP(B58,EventsOrder,3,FALSE) -> 75m hurdles | E59: B | G59: RR | O59: 18 | W59: 0 | AE59: =IF(LEN(G59)=0,"",VLOOKUP($B58,IF($F58="F",TeamSheetFemale,TeamSheetMale),CC59,FALSE)) -> Josh Cumberland | AM59: 0 | AN59: 0 | AO59: 0 | AP59: 0 | AQ59: 8 | AR59: 0 | AS59: 0 | AT59: 0 | AU59: 0 | AV59: 0 | AW59: 0 | AX59: 0 | AY59: 18 | AZ59: 0 | BA59: 0 | BB59: 0 | BC59: 0 | BD59: 0 | BE59: 0 | BF59: 0 | BG59: 1 | BH59: 0 | BI59: 0 | BJ59: 0 | BK59: Rad | BL59: 0 | BM59: 0 | BN59: 0 | BO59: 0 | BP59: 0 | BQ59: 0 | BR59: 0 | BS59: R | CC59: 29
A60: =B60&"A" -> 16A | B60: 16 | C60: =VLOOKUP(B60,EventsOrder,2,FALSE) -> 12.4 | D60: =VLOOKUP(B60,EventsOrder,4,FALSE) -> U15 Male | E60: A | F60: =IF(MID(D60,5,1)="F","F","M") -> M | G60: I | H60: B | I60: X | J60: F | K60: YY | O60: 2.10.8 | P60: 2.19.3 | Q60: 2.26.0 | R60: 2.34.8 | W60: 0 | X60: 0 | Y60: 0 | Z60: 0 | AA60: 0 | AE60: =IF(LEN(G60)=0,"",VLOOKUP($B60,IF($F60="F",TeamSheetFemale,TeamSheetMale),CC60,FALSE)) -> Dylan Bowley | AF60: Tom Slater | AG60: 0 | AH60: James Walker | AI60: Reece Westwood | AM60: 0 | AN60: 0 | AO60: 7 | AP60: 8 | AQ60: 0 | AR60: 5 | AS60: 6 | AT60: 4 | AU60: 0 | AV60: 0 | AW60: 2.19.3 | AX60: 2.10.8 | AY60: 0 | AZ60: 2.34.8 | BA60: 2.26.0 | BB60: 0 | BC60: 0 | BD60: 0 | BE60: 2 | BF60: 1 | BG60: 0 | BH60: 4 | BI60: 3 | BJ60: 5 | BK60: Kett | BL60: DASH | BM60: Wreake | BN60: Tam | BO60: Worc | BP60: 0 | BQ60: 0 | BR60: 0 | BS60: I | BT60: B | BU60: X | BV60: F | BW60: Y | CC60: 22 | CD60: =IF(LEN(H60)=0,"",HLOOKUP(BT60,$CC$26:$CJ$28,2,FALSE)+IF(LEN(H60)=2,2,0)) -> 17 | CE60: =IF(LEN(I60)=0,"",HLOOKUP(BU60,$CC$26:$CJ$28,2,FALSE)+IF(LEN(I60)=2,2,0)) -> 37 | CF60: =IF(LEN(J60)=0,"",HLOOKUP(BV60,$CC$26:$CJ$28,2,FALSE)+IF(LEN(J60)=2,2,0)) -> 32 | CG60: =IF(LEN(K60)=0,"",HLOOKUP(BW60,$CC$26:$CJ$28,2,FALSE)+IF(LEN(K60)=2,2,0)) -> 44 | CH60: =IF(LEN(L60)=0,"",HLOOKUP(BX60,$CC$26:$CJ$28,2,FALSE)+IF(LEN(L60)=2,2,0)) ->  | CI60: =IF(LEN(M60)=0,"",HLOOKUP(BY60,$CC$26:$CJ$28,2,FALSE)+IF(LEN(M60)=2,2,0)) ->  | CJ60: =IF(LEN(N60)=0,"",HLOOKUP(BZ60,$CC$26:$CJ$28,2,FALSE)+IF(LEN(N60)=2,2,0)) -> 
A61: =B60&"B" -> 16B | D61: =VLOOKUP(B60,EventsOrder,3,FALSE) -> 800m | E61: B | G61: BB | H61: YY | O61: 2.20.5 | P61: 2.50.3 | W61: 0 | X61: 0 | AE61: =IF(LEN(G61)=0,"",VLOOKUP($B60,IF($F60="F",TeamSheetFemale,TeamSheetMale),CC61,FALSE)) -> Adam Boon | AF61: Reece Westwood | AM61: 0 | AN61: 0 | AO61: 8 | AP61: 0 | AQ61: 0 | AR61: 0 | AS61: 0 | AT61: 7 | AU61: 0 | AV61: 0 | AW61: 2.20.5 | AX61: 0 | AY61: 0 | AZ61: 0 | BA61: 0 | BB61: 2.50.3 | BC61: 0 | BD61: 0 | BE61: 1 | BF61: 0 | BG61: 0 | BH61: 0 | BI61: 0 | BJ61: 2 | BK61: DASH | BL61: Worc | BM61: 0 | BN61: 0 | BO61: 0 | BP61: 0 | BQ61: 0 | BR61: 0 | BS61: B | BT61: Y | CC61: 19 | CD61: 44
A62: =B62&"A" -> 17A | B62: 17 | C62: =VLOOKUP(B62,EventsOrder,2,FALSE) -> 12.55 | D62: =VLOOKUP(B62,EventsOrder,4,FALSE) -> U15 Female | E62: A | F62: =IF(MID(D62,5,1)="F","F","M") -> F | G62: B | H62: Y | I62: R | J62: I | O62: 1.65 | P62: 1.6 | Q62: 1.45 | R62: 1.1 | W62: 0 | X62: 0 | Y62: 0 | Z62: 0 | AE62: =IF(LEN(G62)=0,"",VLOOKUP($B62,IF($F62="F",TeamSheetFemale,TeamSheetMale),CC62,FALSE)) -> Emma Shorwood | AF62: Danielle Hopkins | AG62: Holly Griffiths-Brown | AH62: Alex Beale | AM62: =IF(OR($F62="NS",AU62="DNF"),0,IF(BC62>0,$BK$29+1-BC62,0)) -> 0 | AN62: =IF(OR($F62="NS",AV62="DNF"),0,IF(BD62>0,$BK$29+1-BD62,0)) -> 0 | AO62: =IF(OR($F62="NS",AW62="DNF"),0,IF(BE62>0,$BK$29+1-BE62,0)) -> 8 | AP62: =IF(OR($F62="NS",AX62="DNF"),0,IF(BF62>0,$BK$29+1-BF62,0)) -> 5 | AQ62: =IF(OR($F62="NS",AY62="DNF"),0,IF(BG62>0,$BK$29+1-BG62,0)) -> 6 | AR62: =IF(OR($F62="NS",AZ62="DNF"),0,IF(BH62>0,$BK$29+1-BH62,0)) -> 0 | AS62: =IF(OR($F62="NS",BA62="DNF"),0,IF(BI62>0,$BK$29+1-BI62,0)) -> 0 | AT62: =IF(OR($F62="NS",BB62="DNF"),0,IF(BJ62>0,$BK$29+1-BJ62,0)) -> 7 | AU62: 0 | AV62: 0 | AW62: 1.65 | AX62: 1.1 | AY62: 1.45 | AZ62: 0 | BA62: 0 | BB62: 1.6 | BC62: 0 | BD62: 0 | BE62: 1 | BF62: 4 | BG62: 3 | BH62: 0 | BI62: 0 | BJ62: 2 | BK62: DASH | BL62: Worc | BM62: Rad | BN62: Kett | BO62: 0 | BP62: 0 | BQ62: 0 | BR62: 0 | BS62: B | BT62: Y | BU62: R | BV62: I | CC62: =IF(LEN(G62)=0,"",HLOOKUP(BS62,$CC$26:$CJ$28,2,FALSE)+IF(LEN(G62)=2,2,0)) -> 17 | CD62: 42 | CE62: 27 | CF62: 22
A63: =B62&"B" -> 17B | D63: =VLOOKUP(B62,EventsOrder,3,FALSE) -> High Jump | E63: B | AE63: =IF(LEN(G63)=0,"",VLOOKUP($B62,IF($F62="F",TeamSheetFemale,TeamSheetMale),CC63,FALSE)) ->  | AM63: 0 | AN63: 0 | AO63: 0 | AP63: 0 | AQ63: 0 | AR63: 0 | AS63: 0 | AT63: 0 | AU63: 0 | AV63: 0 | AW63: 0 | AX63: 0 | AY63: 0 | AZ63: 0 | BA63: 0 | BB63: 0 | BC63: 0 | BD63: 0 | BE63: 0 | BF63: 0 | BG63: 0 | BH63: 0 | BI63: 0 | BJ63: 0 | BK63: 0 | BL63: 0 | BM63: 0 | BN63: 0 | BO63: 0 | BP63: 0 | BQ63: 0 | BR63: 0
A64: =B64&"A" -> 18A | B64: 18 | C64: =VLOOKUP(B64,EventsOrder,2,FALSE) -> 12.5 | D64: =VLOOKUP(B64,EventsOrder,4,FALSE) -> U17 Men | E64: C | F64: =IF(MID(D64,5,1)="F","F","M") -> M | G64: B | H64: R | I64: X | J64: Y | O64: 2.10.3 | P64: 2.11.2 | Q64: 2.11.7 | R64: 2.15.8 | W64: 0 | X64: 0 | Y64: 0 | Z64: 0 | AE64: =IF(LEN(G64)=0,"",VLOOKUP($B64,IF($F64="F",TeamSheetFemale,TeamSheetMale),CC64,FALSE)) -> Jayvana Pramolo | AF64: Blake Strickland Bennett | AG64: Charlie McGlinchey | AH64: Phil Capewell | AM64: 0 | AN64: 0 | AO64: 8 | AP64: 0 | AQ64: 7 | AR64: 0 | AS64: 6 | AT64: 5 | AU64: 0 | AV64: 0 | AW64: 2.10.3 | AX64: 0 | AY64: 2.11.2 | AZ64: 0 | BA64: 2.11.7 | BB64: 2.15.8 | BC64: 0 | BD64: 0 | BE64: 1 | BF64: 0 | BG64: 2 | BH64: 0 | BI64: 3 | BJ64: 4 | BK64: DASH | BL64: Rad | BM64: Wreake | BN64: Worc | BO64: 0 | BP64: 0 | BQ64: 0 | BR64: 0 | BS64: B | BT64: R | BU64: X | BV64: Y | CC64: 17 | CD64: 27 | CE64: 37 | CF64: 42
A65: =B64&"B" -> 18B | D65: =VLOOKUP(B64,EventsOrder,3,FALSE) -> 800m | E65: D | G65: XX | H65: RR | O65: 2.21.5 | P65: 2.29.2 | W65: 0 | X65: 0 | AE65: =IF(LEN(G65)=0,"",VLOOKUP($B64,IF($F64="F",TeamSheetFemale,TeamSheetMale),CC65,FALSE)) -> George Palmer | AF65: Rory Sear | AM65: 0 | AN65: 0 | AO65: 0 | AP65: 0 | AQ65: 7 | AR65: 0 | AS65: 8 | AT65: 0 | AU65: 0 | AV65: 0 | AW65: 0 | AX65: 0 | AY65: 2.29.2 | AZ65: 0 | BA65: 2.21.5 | BB65: 0 | BC65: 0 | BD65: 0 | BE65: 0 | BF65: 0 | BG65: 2 | BH65: 0 | BI65: 1 | BJ65: 0 | BK65: Wreake | BL65: Rad | BM65: 0 | BN65: 0 | BO65: 0 | BP65: 0 | BQ65: 0 | BR65: 0 | BS65: X | BT65: R | CC65: 39 | CD65: 29
A66: =B66&"A" -> 19A | B66: 19 | C66: =VLOOKUP(B66,EventsOrder,2,FALSE) -> 1 | D66: =VLOOKUP(B66,EventsOrder,4,FALSE) -> U17 Female | E66: A | F66: =IF(MID(D66,5,1)="F","F","M") -> F | G66: Y | H66: J | I66: R | O66: 12.7 | P66: 12.9 | Q66: 13.8 | W66: 0 | X66: 0 | Y66: 0 | AE66: =IF(LEN(G66)=0,"",VLOOKUP($B66,IF($F66="F",TeamSheetFemale,TeamSheetMale),CC66,FALSE)) -> Georgia Clarke | AF66: Helen Dubber | AG66: Victoria Harte | AM66: 7 | AN66: 0 | AO66: 0 | AP66: 0 | AQ66: 6 | AR66: 0 | AS66: 0 | AT66: 8 | AU66: 12.9 | AV66: 0 | AW66: 0 | AX66: 0 | AY66: 13.8 | AZ66: 0 | BA66: 0 | BB66: 12.7 | BC66: =IF(ISNA(MATCH(BC$29,$BS66:$BZ66,0)),0,MATCH(BC$29,$BS66:$BZ66,0)) -> 2 | BD66: 0 | BE66: 0 | BF66: 0 | BG66: 3 | BH66: 0 | BI66: 0 | BJ66: 1 | BK66: Worc | BL66: Ban | BM66: Rad | BN66: 0 | BO66: 0 | BP66: 0 | BQ66: 0 | BR66: 0 | BS66: Y | BT66: J | BU66: R | CC66: 42 | CD66: =IF(LEN(H66)=0,"",HLOOKUP(BT66,$CC$26:$CJ$28,2,FALSE)+IF(LEN(H66)=2,2,0)) -> 7 | CE66: 27
A67: =B66&"B" -> 19B | D67: =VLOOKUP(B66,EventsOrder,3,FALSE) -> 80m hurdles (U17) | E67: B | G67: RR | H67: YY | I67: JJ | O67: 14 | P67: 16.1 | Q67: DNF | W67: 0 | X67: 0 | Y67: 0 | AE67: =IF(LEN(G67)=0,"",VLOOKUP($B66,IF($F66="F",TeamSheetFemale,TeamSheetMale),CC67,FALSE)) -> Megan Baker | AF67: Abigail Gill | AG67: Paige Cooper | AM67: 0 | AN67: 0 | AO67: 0 | AP67: 0 | AQ67: 8 | AR67: 0 | AS67: 0 | AT67: 7 | AU67: =OFFSET($N67,0,BC67) -> DNF | AV67: =OFFSET($N67,0,BD67) -> 0 | AW67: =OFFSET($N67,0,BE67) -> 0 | AX67: =OFFSET($N67,0,BF67) -> 0 | AY67: 14 | AZ67: 0 | BA67: 0 | BB67: 16.1 | BC67: 3 | BD67: 0 | BE67: 0 | BF67: 0 | BG67: 1 | BH67: 0 | BI67: 0 | BJ67: 2 | BK67: Rad | BL67: Worc | BM67: Ban | BN67: 0 | BO67: 0 | BP67: 0 | BQ67: 0 | BR67: 0 | BS67: R | BT67: Y | BU67: J | CC67: 29 | CD67: 44 | CE67: 9
A68: =B68&"A" -> 20A | B68: 20 | C68: =VLOOKUP(B68,EventsOrder,2,FALSE) -> 1.05 | D68: =VLOOKUP(B68,EventsOrder,4,FALSE) -> U15 Male | E68: A | F68: =IF(MID(D68,5,1)="F","F","M") -> M | G68: I | O68: 13.8 | W68: 0 | AE68: =IF(LEN(G68)=0,"",VLOOKUP($B68,IF($F68="F",TeamSheetFemale,TeamSheetMale),CC68,FALSE)) -> Lewis-Morgan Barton | AM68: 0 | AN68: 0 | AO68: 0 | AP68: 8 | AQ68: 0 | AR68: 0 | AS68: 0 | AT68: 0 | AU68: 0 | AV68: 0 | AW68: 0 | AX68: 13.8 | AY68: 0 | AZ68: 0 | BA68: 0 | BB68: 0 | BC68: 0 | BD68: 0 | BE68: 0 | BF68: 1 | BG68: 0 | BH68: 0 | BI68: 0 | BJ68: 0 | BK68: Kett | BL68: 0 | BM68: 0 | BN68: 0 | BO68: 0 | BP68: 0 | BQ68: 0 | BR68: 0 | BS68: I | CC68: =IF(LEN(G68)=0,"",HLOOKUP(BS68,$CC$26:$CJ$28,2,FALSE)+IF(LEN(G68)=2,2,0)) -> 22
A69: =B68&"B" -> 20B | D69: =VLOOKUP(B68,EventsOrder,3,FALSE) -> 80m hurdles | E69: B | AE69: =IF(LEN(G69)=0,"",VLOOKUP($B68,IF($F68="F",TeamSheetFemale,TeamSheetMale),CC69,FALSE)) ->  | AM69: 0 | AN69: 0 | AO69: 0 | AP69: 0 | AQ69: 0 | AR69: 0 | AS69: 0 | AT69: 0 | AU69: 0 | AV69: 0 | AW69: 0 | AX69: 0 | AY69: 0 | AZ69: 0 | BA69: 0 | BB69: 0 | BC69: 0 | BD69: 0 | BE69: 0 | BF69: 0 | BG69: 0 | BH69: 0 | BI69: 0 | BJ69: 0 | BK69: 0 | BL69: 0 | BM69: 0 | BN69: 0 | BO69: 0 | BP69: 0 | BQ69: 0 | BR69: 0
A70: =B70&"A" -> 21A | B70: 21 | C70: =VLOOKUP(B70,EventsOrder,2,FALSE) -> 1 | D70: =VLOOKUP(B70,EventsOrder,4,FALSE) -> U15 Female | E70: C | F70: =IF(MID(D70,5,1)="F","F","M") -> F | G70: Y | H70: I | I70: P | J70: BB | K70: RR | L70: J | M70: X | N70: F | O70: 4.53 | P70: 4.23 | Q70: 4.15 | R70: 4.07 | S70: 3.97 | T70: 3.97 | U70: 3.83 | V70: 3.78 | W70: 0 | X70: 0 | Y70: 0 | Z70: 0 | AA70: 0 | AB70: 0 | AC70: 0 | AD70: 0 | AE70: =IF(LEN(G70)=0,"",VLOOKUP($B70,IF($F70="F",TeamSheetFemale,TeamSheetMale),CC70,FALSE)) -> Ellie Harrison | AF70: Blainne Conway | AG70: Lauren Garside | AH70: Niamh Darby | AI70: Robyn Swain | AJ70: Emelina Darvell | AK70: Poppy Tott-Buswell | AL70: Eve Clawley | AM70: 3 | AN70: 6 | AO70: 5 | AP70: 7 | AQ70: 4 | AR70: 1 | AS70: 2 | AT70: 8 | AU70: 3.97 | AV70: 4.15 | AW70: 4.07 | AX70: 4.23 | AY70: 3.97 | AZ70: 3.78 | BA70: 3.83 | BB70: 4.53 | BC70: 6 | BD70: 3 | BE70: 4 | BF70: 2 | BG70: 5 | BH70: 8 | BI70: 7 | BJ70: 1 | BK70: Worc | BL70: Kett | BM70: Bic | BN70: DASH | BO70: Rad | BP70: Ban | BQ70: Wreake | BR70: Tam | BS70: Y | BT70: I | BU70: P | BV70: B | BW70: R | BX70: J | BY70: X | BZ70: F | CC70: 42 | CD70: 22 | CE70: 12 | CF70: 19 | CG70: 29 | CH70: 7 | CI70: 37 | CJ70: 32
A71: =B70&"B" -> 21B | D71: =VLOOKUP(B70,EventsOrder,3,FALSE) -> Long Jump | E71: D | G71: YY | H71: JJ | I71: B | J71: R | K71: XX | L71: II | M71: PP | O71: 4.2 | P71: 3.89 | Q71: 3.87 | R71: 3.66 | S71: 3.45 | T71: 3.32 | U71: 3.03 | W71: 0 | X71: 0 | Y71: 0 | Z71: 0 | AA71: 0 | AB71: II | AC71: 0 | AE71: =IF(LEN(G71)=0,"",VLOOKUP($B70,IF($F70="F",TeamSheetFemale,TeamSheetMale),CC71,FALSE)) -> Sarah-Jane Ollis | AF71: Elizabeth Eskender | AG71: Jessica Grainger | AH71: Olivia Butler | AI71: Sophie Thorpe | AJ71: Harmony Hart | AK71: Tia Brown | AM71: 7 | AN71: 2 | AO71: 6 | AP71: 3 | AQ71: 5 | AR71: 0 | AS71: 4 | AT71: 8 | AU71: 3.89 | AV71: 3.03 | AW71: 3.87 | AX71: 3.32 | AY71: 3.66 | AZ71: 0 | BA71: 3.45 | BB71: 4.2 | BC71: 2 | BD71: 7 | BE71: 3 | BF71: 6 | BG71: 4 | BH71: 0 | BI71: 5 | BJ71: 1 | BK71: Worc | BL71: Ban | BM71: DASH | BN71: Rad | BO71: Wreake | BP71: Kett | BQ71: Bic | BR71: 0 | BS71: Y | BT71: J | BU71: B | BV71: R | BW71: X | BX71: I | BY71: P | CC71: 44 | CD71: 9 | CE71: 17 | CF71: 27 | CG71: 39 | CH71: 24 | CI71: 14
A72: =B72&"A" -> 22A | B72: 22 | C72: =VLOOKUP(B72,EventsOrder,2,FALSE) -> 1 | D72: =VLOOKUP(B72,EventsOrder,4,FALSE) -> U15 Male | E72: A | F72: =IF(MID(D72,5,1)="F","F","M") -> M | G72: R | H72: X | I72: Y | J72: I | K72: P | L72: BB | M72: F | O72: 8.61 | P72: 8.43 | Q72: 7.98 | R72: 6.76 | S72: 6.4 | T72: 6.04 | U72: 5.7 | W72: 0 | X72: 0 | Y72: 0 | Z72: 0 | AA72: P | AB72: 0 | AC72: 0 | AE72: =IF(LEN(G72)=0,"",VLOOKUP($B72,IF($F72="F",TeamSheetFemale,TeamSheetMale),CC72,FALSE)) -> Will Smith | AF72: Euan Jones | AG72: Andrew Jay | AH72: Dylan Bowley | AI72: Will Simms | AJ72: Harry Walters | AK72: James Walker | AM72: 0 | AN72: 4 | AO72: 3 | AP72: 5 | AQ72: 8 | AR72: 2 | AS72: 7 | AT72: 6 | AU72: 0 | AV72: 6.4 | AW72: 6.04 | AX72: 6.76 | AY72: 8.61 | AZ72: 5.7 | BA72: 8.43 | BB72: 7.98 | BC72: 0 | BD72: 5 | BE72: 6 | BF72: 4 | BG72: 1 | BH72: 7 | BI72: 2 | BJ72: 3 | BK72: Rad | BL72: Wreake | BM72: Worc | BN72: Kett | BO72: Bic | BP72: DASH | BQ72: Tam | BR72: 0 | BS72: R | BT72: X | BU72: Y | BV72: I | BW72: P | BX72: B | BY72: F | CC72: 27 | CD72: 37 | CE72: 42 | CF72: 22 | CG72: 12 | CH72: 19 | CI72: 32
A73: =B72&"B" -> 22B | D73: =VLOOKUP(B72,EventsOrder,3,FALSE) -> Shot | E73: B | G73: II | H73: XX | I73: YY | J73: PP | K73: RR | L73: B | O73: 6.4 | P73: 5.99 | Q73: 5.75 | R73: 5.69 | S73: 4.07 | T73: 3.83 | W73: II | X73: 0 | Y73: 0 | Z73: PP | AA73: 0 | AB73: 0 | AE73: =IF(LEN(G73)=0,"",VLOOKUP($B72,IF($F72="F",TeamSheetFemale,TeamSheetMale),CC73,FALSE)) -> Ethan Nelis | AF73: Josh Rocks | AG73: Reece Westwood | AH73: Samuel Worfolk | AI73: Cameron King | AJ73: Zak Thurley | AM73: 0 | AN73: 5 | AO73: 3 | AP73: 8 | AQ73: 4 | AR73: 0 | AS73: 7 | AT73: 6 | AU73: 0 | AV73: 5.69 | AW73: 3.83 | AX73: 6.4 | AY73: 4.07 | AZ73: 0 | BA73: 5.99 | BB73: 5.75 | BC73: 0 | BD73: 4 | BE73: 6 | BF73: 1 | BG73: 5 | BH73: 0 | BI73: 2 | BJ73: 3 | BK73: Kett | BL73: Wreake | BM73: Worc | BN73: Bic | BO73: Rad | BP73: DASH | BQ73: 0 | BR73: 0 | BS73: I | BT73: X | BU73: Y | BV73: P | BW73: R | BX73: B | CC73: 24 | CD73: 39 | CE73: 44 | CF73: 14 | CG73: 29 | CH73: 17
A74: =B74&"A" -> 23A | B74: 23 | C74: =VLOOKUP(B74,EventsOrder,2,FALSE) -> 1 | D74: =VLOOKUP(B74,EventsOrder,4,FALSE) -> U17 Men | E74: A | F74: =IF(MID(D74,5,1)="F","F","M") -> M | G74: R | H74: I | O74: 19.04 | P74: 13.76 | W74: 0 | X74: 0 | AE74: =IF(LEN(G74)=0,"",VLOOKUP($B74,IF($F74="F",TeamSheetFemale,TeamSheetMale),CC74,FALSE)) -> Harry Woodcock | AF74: Josh Cannell | AM74: 0 | AN74: 0 | AO74: 0 | AP74: 7 | AQ74: 8 | AR74: 0 | AS74: 0 | AT74: 0 | AU74: 0 | AV74: 0 | AW74: 0 | AX74: 13.76 | AY74: 19.04 | AZ74: 0 | BA74: 0 | BB74: 0 | BC74: 0 | BD74: 0 | BE74: 0 | BF74: 2 | BG74: 1 | BH74: 0 | BI74: 0 | BJ74: 0 | BK74: Rad | BL74: Kett | BM74: 0 | BN74: 0 | BO74: 0 | BP74: 0 | BQ74: 0 | BR74: 0 | BS74: R | BT74: I | CC74: 27 | CD74: 22
A75: =B74&"B" -> 23B | D75: =VLOOKUP(B74,EventsOrder,3,FALSE) -> Discus | E75: B | AE75: =IF(LEN(G75)=0,"",VLOOKUP($B74,IF($F74="F",TeamSheetFemale,TeamSheetMale),CC75,FALSE)) ->  | AM75: 0 | AN75: 0 | AO75: 0 | AP75: 0 | AQ75: 0 | AR75: 0 | AS75: 0 | AT75: 0 | AU75: 0 | AV75: 0 | AW75: 0 | AX75: 0 | AY75: 0 | AZ75: 0 | BA75: 0 | BB75: 0 | BC75: 0 | BD75: 0 | BE75: 0 | BF75: 0 | BG75: 0 | BH75: 0 | BI75: 0 | BJ75: 0 | BK75: 0 | BL75: 0 | BM75: 0 | BN75: 0 | BO75: 0 | BP75: 0 | BQ75: 0 | BR75: 0
A76: =B76&"A" -> 24A | B76: 24 | C76: =VLOOKUP(B76,EventsOrder,2,FALSE) -> 1 | D76: =VLOOKUP(B76,EventsOrder,4,FALSE) -> U13 Male | E76: A | F76: =IF(MID(D76,5,1)="F","F","M") -> M | AE76: =IF(LEN(G76)=0,"",VLOOKUP($B76,IF($F76="F",TeamSheetFemale,TeamSheetMale),CC76,FALSE)) ->  | AM76: 0 | AN76: 0 | AO76: 0 | AP76: 0 | AQ76: 0 | AR76: 0 | AS76: 0 | AT76: 0 | AU76: 0 | AV76: 0 | AW76: 0 | AX76: 0 | AY76: 0 | AZ76: 0 | BA76: 0 | BB76: 0 | BC76: 0 | BD76: 0 | BE76: 0 | BF76: 0 | BG76: 0 | BH76: 0 | BI76: 0 | BJ76: 0 | BK76: =IF(LEN(G76)>0,VLOOKUP(LEFT(G76,1),Clubs,5,FALSE),0) -> 0 | BL76: =IF(LEN(H76)>0,VLOOKUP(LEFT(H76,1),Clubs,5,FALSE),0) -> 0 | BM76: =IF(LEN(I76)>0,VLOOKUP(LEFT(I76,1),Clubs,5,FALSE),0) -> 0 | BN76: =IF(LEN(J76)>0,VLOOKUP(LEFT(J76,1),Clubs,5,FALSE),0) -> 0 | BO76: =IF(LEN(K76)>0,VLOOKUP(LEFT(K76,1),Clubs,5,FALSE),0) -> 0 | BP76: =IF(LEN(L76)>0,VLOOKUP(LEFT(L76,1),Clubs,5,FALSE),0) -> 0 | BQ76: =IF(LEN(M76)>0,VLOOKUP(LEFT(M76,1),Clubs,5,FALSE),0) -> 0 | BR76: =IF(LEN(N76)>0,VLOOKUP(LEFT(N76,1),Clubs,5,FALSE),0) -> 0 | BS76: =LEFT(G76,1) -> 
A77: =B76&"B" -> 24B | D77: =VLOOKUP(B76,EventsOrder,3,FALSE) -> Javelin | E77: B | AE77: =IF(LEN(G77)=0,"",VLOOKUP($B76,IF($F76="F",TeamSheetFemale,TeamSheetMale),CC77,FALSE)) ->  | AM77: 0 | AN77: 0 | AO77: 0 | AP77: 0 | AQ77: 0 | AR77: 0 | AS77: 0 | AT77: 0 | AU77: 0 | AV77: 0 | AW77: 0 | AX77: 0 | AY77: =OFFSET($N77,0,BG77) -> 0 | AZ77: =OFFSET($N77,0,BH77) -> 0 | BA77: =OFFSET($N77,0,BI77) -> 0 | BB77: =OFFSET($N77,0,BJ77) -> 0 | BC77: 0 | BD77: 0 | BE77: 0 | BF77: 0 | BG77: 0 | BH77: 0 | BI77: 0 | BJ77: 0 | BK77: 0 | BL77: 0 | BM77: 0 | BN77: 0 | BO77: 0 | BP77: 0 | BQ77: 0 | BR77: 0 | BT77: =LEFT(H77,1) ->  | BU77: =LEFT(I77,1) ->  | BV77: =LEFT(J77,1) ->  | BW77: =LEFT(K77,1) ->  | BX77: =LEFT(L77,1) ->  | BY77: =LEFT(M77,1) ->  | BZ77: =LEFT(N77,1) -> 
A78: =B78&"A" -> 25A | B78: 25 | C78: =VLOOKUP(B78,EventsOrder,2,FALSE) -> 1.15 | D78: =VLOOKUP(B78,EventsOrder,4,FALSE) -> U13 Female | E78: A | F78: =IF(MID(D78,5,1)="F","F","M") -> F | G78: X | H78: Y | I78: R | J78: F | K78: I | L78: B | M78: P | N78: J | O78: 2.35.0 | P78: 2.39.5 | Q78: 2.43.5 | R78: 2.47.8 | S78: 2.56.4 | T78: 2.58.6 | U78: 3.07.2 | V78: 3.11.9 | W78: 0 | X78: 0 | Y78: 0 | Z78: 0 | AA78: 0 | AB78: 0 | AC78: 0 | AD78: 0 | AE78: =IF(LEN(G78)=0,"",VLOOKUP($B78,IF($F78="F",TeamSheetFemale,TeamSheetMale),CC78,FALSE)) -> Indie King | AF78: Katelyn Griffiths | AG78: Kaela Nelson | AH78: Emily Pearce | AI78: Mia Watts | AJ78: Zara Gibbs | AK78: Emilia Sims | AL78: Raegan Sellers | AM78: 1 | AN78: 2 | AO78: 3 | AP78: 4 | AQ78: 6 | AR78: 5 | AS78: 8 | AT78: 7 | AU78: 3.11.9 | AV78: 3.07.2 | AW78: 2.58.6 | AX78: 2.56.4 | AY78: 2.43.5 | AZ78: 2.47.8 | BA78: 2.35.0 | BB78: 2.39.5 | BC78: 8 | BD78: 7 | BE78: 6 | BF78: 5 | BG78: 3 | BH78: 4 | BI78: 1 | BJ78: 2 | BK78: Wreake | BL78: Worc | BM78: Rad | BN78: Tam | BO78: Kett | BP78: DASH | BQ78: Bic | BR78: Ban | BS78: X | BT78: Y | BU78: R | BV78: F | BW78: I | BX78: B | BY78: P | BZ78: J | CC78: 37 | CD78: 42 | CE78: 27 | CF78: 32 | CG78: 22 | CH78: 17 | CI78: 12 | CJ78: 7
A79: =B78&"B" -> 25B | D79: =VLOOKUP(B78,EventsOrder,3,FALSE) -> 800m | E79: B | G79: XX | H79: YY | I79: FF | J79: JJ | K79: BB | L79: PP | M79: RR | N79: II | O79: 2.38.5 | P79: 2.46.8 | Q79: 2.51.5 | R79: 3.03.6 | S79: 3.10.7 | T79: 3.14.9 | U79: 3.15.7 | V79: 3.28.2 | W79: 0 | X79: 0 | Y79: FF | Z79: 0 | AA79: 0 | AB79: 0 | AC79: 0 | AD79: II | AE79: =IF(LEN(G79)=0,"",VLOOKUP($B78,IF($F78="F",TeamSheetFemale,TeamSheetMale),CC79,FALSE)) -> Flora Miskin-Young | AF79: Olivia Tonkinson | AG79: Alice Mason | AH79: Elizabeth Anderson | AI79: Libby Davis | AJ79: Erin Fabri | AK79: Amelia Brew | AL79: Imogen Nix | AM79: 5 | AN79: 3 | AO79: 4 | AP79: 1 | AQ79: 2 | AR79: 6 | AS79: 8 | AT79: 7 | AU79: 3.03.6 | AV79: 3.14.9 | AW79: 3.10.7 | AX79: 3.28.2 | AY79: 3.15.7 | AZ79: 2.51.5 | BA79: 2.38.5 | BB79: 2.46.8 | BC79: 4 | BD79: 6 | BE79: 5 | BF79: 8 | BG79: 7 | BH79: 3 | BI79: 1 | BJ79: 2 | BK79: Wreake | BL79: Worc | BM79: Tam | BN79: Ban | BO79: DASH | BP79: Bic | BQ79: Rad | BR79: Kett | BS79: X | BT79: Y | BU79: F | BV79: J | BW79: B | BX79: P | BY79: R | BZ79: I | CC79: 39 | CD79: 44 | CE79: 34 | CF79: 9 | CG79: 19 | CH79: 14 | CI79: 29 | CJ79: 24
A80: =B80&"A" -> 26A | B80: 26 | C80: =VLOOKUP(B80,EventsOrder,2,FALSE) -> 1.25 | D80: =VLOOKUP(B80,EventsOrder,4,FALSE) -> U15 Female | E80: A | F80: =IF(MID(D80,5,1)="F","F","M") -> F | G80: B | H80: R | I80: X | J80: Y | K80: P | L80: F | M80: I | O80: 2.29.4 | P80: 2.30.0 | Q80: 2.30.6 | R80: 2.31.6 | S80: 2.33.7 | T80: 2.41.0 | U80: 2.48.8 | W80: 0 | X80: 0 | Y80: 0 | Z80: 0 | AA80: 0 | AB80: 0 | AC80: 0 | AE80: =IF(LEN(G80)=0,"",VLOOKUP($B80,IF($F80="F",TeamSheetFemale,TeamSheetMale),CC80,FALSE)) -> Grace Slater | AF80: Martha Adams | AG80: Zena Challenger | AH80: Deanna Clarke | AI80: Molly Acton | AJ80: Sian Lewis | AK80: Olivia Knibb | AM80: 0 | AN80: 4 | AO80: 8 | AP80: 2 | AQ80: 7 | AR80: 3 | AS80: 6 | AT80: 5 | AU80: 0 | AV80: 2.33.7 | AW80: 2.29.4 | AX80: 2.48.8 | AY80: 2.30.0 | AZ80: 2.41.0 | BA80: 2.30.6 | BB80: 2.31.6 | BC80: 0 | BD80: 5 | BE80: 1 | BF80: 7 | BG80: 2 | BH80: 6 | BI80: 3 | BJ80: 4 | BK80: DASH | BL80: Rad | BM80: Wreake | BN80: Worc | BO80: Bic | BP80: Tam | BQ80: Kett | BR80: 0 | BS80: B | BT80: R | BU80: X | BV80: Y | BW80: P | BX80: F | BY80: I | CC80: 17 | CD80: 27 | CE80: 37 | CF80: 42 | CG80: 12 | CH80: 32 | CI80: 22
A81: =B80&"B" -> 26B | D81: =VLOOKUP(B80,EventsOrder,3,FALSE) -> 800m | E81: B | G81: XX | H81: RR | I81: YY | O81: 2.42.4 | P81: 2.51.9 | Q81: 2.52.5 | W81: 0 | X81: 0 | Y81: 0 | AE81: =IF(LEN(G81)=0,"",VLOOKUP($B80,IF($F80="F",TeamSheetFemale,TeamSheetMale),CC81,FALSE)) -> Sophie Thorpe | AF81: Hannah Mott | AG81: Elise Blake | AM81: 0 | AN81: 0 | AO81: 0 | AP81: 0 | AQ81: 7 | AR81: 0 | AS81: 8 | AT81: 6 | AU81: 0 | AV81: 0 | AW81: 0 | AX81: 0 | AY81: 2.51.9 | AZ81: 0 | BA81: 2.42.4 | BB81: 2.52.5 | BC81: 0 | BD81: 0 | BE81: 0 | BF81: 0 | BG81: 2 | BH81: 0 | BI81: 1 | BJ81: 3 | BK81: Wreake | BL81: Rad | BM81: Worc | BN81: 0 | BO81: 0 | BP81: 0 | BQ81: 0 | BR81: 0 | BS81: X | BT81: R | BU81: Y | CC81: 39 | CD81: 29 | CE81: 44
A82: =B82&"A" -> 27A | B82: 27 | C82: =VLOOKUP(B82,EventsOrder,2,FALSE) -> 1.35 | D82: =VLOOKUP(B82,EventsOrder,4,FALSE) -> U17 Men | E82: A | F82: =IF(MID(D82,5,1)="F","F","M") -> M | G82: R | O82: 15.6 | W82: 0 | AE82: =IF(LEN(G82)=0,"",VLOOKUP($B82,IF($F82="F",TeamSheetFemale,TeamSheetMale),CC82,FALSE)) -> Blake Strickland Bennett | AM82: 0 | AN82: 0 | AO82: 0 | AP82: 0 | AQ82: 8 | AR82: 0 | AS82: 0 | AT82: 0 | AU82: 0 | AV82: 0 | AW82: 0 | AX82: 0 | AY82: 15.6 | AZ82: 0 | BA82: 0 | BB82: 0 | BC82: =IF(ISNA(MATCH(BC$29,$BS82:$BZ82,0)),0,MATCH(BC$29,$BS82:$BZ82,0)) -> 0 | BD82: 0 | BE82: 0 | BF82: 0 | BG82: 1 | BH82: 0 | BI82: 0 | BJ82: 0 | BK82: Rad | BL82: 0 | BM82: 0 | BN82: 0 | BO82: 0 | BP82: 0 | BQ82: 0 | BR82: 0 | BS82: R | CC82: 27
A83: =B82&"B" -> 27B | D83: =VLOOKUP(B82,EventsOrder,3,FALSE) -> 100m hurdles | E83: B | G83: RR | O83: 15.2 | W83: 0 | AE83: =IF(LEN(G83)=0,"",VLOOKUP($B82,IF($F82="F",TeamSheetFemale,TeamSheetMale),CC83,FALSE)) -> Harry New | AM83: 0 | AN83: 0 | AO83: 0 | AP83: 0 | AQ83: 8 | AR83: 0 | AS83: 0 | AT83: 0 | AU83: 0 | AV83: 0 | AW83: 0 | AX83: 0 | AY83: 15.2 | AZ83: 0 | BA83: 0 | BB83: 0 | BC83: 0 | BD83: 0 | BE83: 0 | BF83: 0 | BG83: 1 | BH83: 0 | BI83: 0 | BJ83: 0 | BK83: Rad | BL83: 0 | BM83: 0 | BN83: 0 | BO83: 0 | BP83: 0 | BQ83: 0 | BR83: 0 | BS83: R | CC83: 29
A84: =B84&"A" -> 28A | B84: 28 | C84: =VLOOKUP(B84,EventsOrder,2,FALSE) -> 1.4 | D84: =VLOOKUP(B84,EventsOrder,4,FALSE) -> U17 F/Women | E84: A | F84: =IF(MID(D84,5,1)="F","F","M") -> F | G84: R | H84: I | I84: X | O84: 2.24.4 | P84: 3.32.2 | Q84: 2.44.5 | W84: 0 | X84: 0 | Y84: 0 | AE84: =IF(LEN(G84)=0,"",VLOOKUP($B84,IF($F84="F",TeamSheetFemale,TeamSheetMale),CC84,FALSE)) -> Faith Brew U20 | AF84: Harriett Jolley | AG84: Fern Harrison | AM84: 0 | AN84: 0 | AO84: 0 | AP84: 7 | AQ84: 8 | AR84: 0 | AS84: 6 | AT84: 0 | AU84: 0 | AV84: 0 | AW84: 0 | AX84: 3.32.2 | AY84: 2.24.4 | AZ84: 0 | BA84: 2.44.5 | BB84: 0 | BC84: 0 | BD84: 0 | BE84: 0 | BF84: 2 | BG84: 1 | BH84: 0 | BI84: 3 | BJ84: 0 | BK84: Rad | BL84: Kett | BM84: Wreake | BN84: 0 | BO84: 0 | BP84: 0 | BQ84: 0 | BR84: 0 | BS84: R | BT84: I | BU84: X | CC84: 27 | CD84: 22 | CE84: 37
A85: =B84&"B" -> 28B | D85: =VLOOKUP(B84,EventsOrder,3,FALSE) -> 800m | E85: B | G85: RR | H85: II | O85: 2.28.5 | P85: 2.36.3 | W85: 0 | X85: II | AE85: =IF(LEN(G85)=0,"",VLOOKUP($B84,IF($F84="F",TeamSheetFemale,TeamSheetMale),CC85,FALSE)) -> Jess Anstice U23 | AF85: Charlotte Maywood | AM85: 0 | AN85: 0 | AO85: 0 | AP85: 7 | AQ85: 8 | AR85: 0 | AS85: 0 | AT85: 0 | AU85: 0 | AV85: 0 | AW85: 0 | AX85: 2.36.3 | AY85: 2.28.5 | AZ85: 0 | BA85: 0 | BB85: 0 | BC85: 0 | BD85: 0 | BE85: 0 | BF85: 2 | BG85: 1 | BH85: 0 | BI85: 0 | BJ85: 0 | BK85: Rad | BL85: Kett | BM85: 0 | BN85: 0 | BO85: 0 | BP85: 0 | BQ85: 0 | BR85: 0 | BS85: R | BT85: I | CC85: 29 | CD85: 24
A86: =B86&"A" -> 29A | B86: 29 | C86: =VLOOKUP(B86,EventsOrder,2,FALSE) -> 1.5 | D86: =VLOOKUP(B86,EventsOrder,4,FALSE) -> U11 Female | E86: A | F86: =IF(MID(D86,5,1)="F","F","M") -> F | G86: J | H86: X | I86: F | J86: P | K86: Y | L86: B | M86: I | N86: R | O86: 2.03.3 | P86: 2.07.5 | Q86: 2.12.1 | R86: 2.16.5 | S86: 2.27.0 | T86: 2.28.5 | U86: 2.32.7 | V86: DNF | W86: 0 | X86: 0 | Y86: F | Z86: 0 | AA86: 0 | AB86: 0 | AC86: 0 | AD86: 0 | AE86: =IF(LEN(G86)=0,"",VLOOKUP($B86,IF($F86="F",TeamSheetFemale,TeamSheetMale),CC86,FALSE)) -> Tilly Lainchbury | AF86: Isla Cullen | AG86: Daisy Smith | AH86: Imogen Cox | AI86: Molly Davey | AJ86: Neve Gibbs | AK86: Niamh Sinnott | AL86: Lily Black | AM86: 8 | AN86: 5 | AO86: 3 | AP86: 2 | AQ86: 0 | AR86: 6 | AS86: 7 | AT86: 4 | AU86: 2.03.3 | AV86: 2.16.5 | AW86: 2.28.5 | AX86: 2.32.7 | AY86: DNF | AZ86: 2.12.1 | BA86: 2.07.5 | BB86: 2.27.0 | BC86: 1 | BD86: 4 | BE86: 6 | BF86: 7 | BG86: 8 | BH86: 3 | BI86: 2 | BJ86: 5 | BK86: Ban | BL86: Wreake | BM86: Tam | BN86: Bic | BO86: Worc | BP86: DASH | BQ86: Kett | BR86: Rad | BS86: J | BT86: X | BU86: F | BV86: P | BW86: Y | BX86: B | BY86: I | BZ86: R | CC86: 7 | CD86: 37 | CE86: 32 | CF86: 12 | CG86: 42 | CH86: 17 | CI86: 22 | CJ86: 27
A87: =B86&"B" -> 29B | D87: =VLOOKUP(B86,EventsOrder,3,FALSE) -> 600m | E87: B | G87: XX | H87: RR | I87: PP | J87: FF | K87: YY | L87: JJ | M87: BB | N87: II | O87: 1.59.4 | P87: 2.07.2 | Q87: 2.14.9 | R87: 2.19.5 | S87: 2.24.6 | T87: 2.30.8 | U87: 2.34.7 | V87: 2.36.2 | W87: 0 | X87: 0 | Y87: PP | Z87: FF | AA87: 0 | AB87: 0 | AC87: 0 | AD87: II | AE87: =IF(LEN(G87)=0,"",VLOOKUP($B86,IF($F86="F",TeamSheetFemale,TeamSheetMale),CC87,FALSE)) -> Sophie Dunbobbin | AF87: Ainhara Ly | AG87: Isla Bohannon | AH87: Madison Rose Blencowe | AI87: Georgia Wharton | AJ87: Ellie Williams | AK87: Kiera Davis | AL87: Isabella Brockway | AM87: 3 | AN87: 6 | AO87: 2 | AP87: 1 | AQ87: 7 | AR87: 5 | AS87: 8 | AT87: 4 | AU87: 2.30.8 | AV87: 2.14.9 | AW87: 2.34.7 | AX87: 2.36.2 | AY87: 2.07.2 | AZ87: 2.19.5 | BA87: 1.59.4 | BB87: 2.24.6 | BC87: 6 | BD87: 3 | BE87: 7 | BF87: 8 | BG87: 2 | BH87: 4 | BI87: 1 | BJ87: 5 | BK87: Wreake | BL87: Rad | BM87: Bic | BN87: Tam | BO87: Worc | BP87: Ban | BQ87: DASH | BR87: Kett | BS87: X | BT87: R | BU87: P | BV87: F | BW87: Y | BX87: J | BY87: B | BZ87: I | CC87: 39 | CD87: 29 | CE87: 14 | CF87: 34 | CG87: 44 | CH87: 9 | CI87: 19 | CJ87: 24
A88: =B88&"A" -> 30A | B88: 30 | C88: =VLOOKUP(B88,EventsOrder,2,FALSE) -> 1.55 | D88: =VLOOKUP(B88,EventsOrder,4,FALSE) -> U11 Female | E88: A | F88: =IF(MID(D88,5,1)="F","F","M") -> F | G88: X | H88: J | I88: R | J88: XX | K88: YY | L88: RR | O88: 2.01.7 | P88: 2.09.1 | Q88: 2.16.8 | R88: 2.37.1 | S88: 2.37.5 | T88: 2.46.2 | W88: 401 | X88: 559 | Y88: 523 | Z88: 402 | AA88: 115 | AB88: 525 | AE88: =IF(LEN(G88)=0,"",VLOOKUP($B88,IF($F88="F",TeamSheetFemale,TeamSheetMale),CC88,FALSE)) -> Harriett Lethridge | AF88: Olivia Cook | AG88: Audrey Winstone | AH88: Isabelle Parker | AI88: Beth Hallam | AJ88: Erin Bungay | AM88: 7 | AN88: 0 | AO88: 0 | AP88: 0 | AQ88: 6 | AR88: 0 | AS88: 8 | AT88: 4 | AU88: 2.09.1 | AV88: 0 | AW88: 0 | AX88: 0 | AY88: 2.16.8 | AZ88: 0 | BA88: 2.01.7 | BB88: 2.37.5 | BC88: 2 | BD88: 0 | BE88: 0 | BF88: 0 | BG88: 3 | BH88: 0 | BI88: 1 | BJ88: 5 | BK88: Wreake | BL88: Ban | BM88: Rad | BN88: Wreake | BO88: Worc | BP88: Rad | BQ88: 0 | BR88: 0 | BS88: X | BT88: J | BU88: R | BV88: X | BW88: Y | BX88: R | CC88: 37 | CD88: 7 | CE88: 27 | CF88: 39 | CG88: 44 | CH88: 29
A89: =B88&"B" -> 30B | D89: =VLOOKUP(B88,EventsOrder,3,FALSE) -> 600m | E89: B | AE89: =IF(LEN(G89)=0,"",VLOOKUP($B88,IF($F88="F",TeamSheetFemale,TeamSheetMale),CC89,FALSE)) ->  | AM89: 0 | AN89: 0 | AO89: 0 | AP89: 0 | AQ89: 0 | AR89: 0 | AS89: 0 | AT89: 0 | AU89: 0 | AV89: 0 | AW89: 0 | AX89: 0 | AY89: 0 | AZ89: 0 | BA89: 0 | BB89: 0 | BC89: 0 | BD89: 0 | BE89: 0 | BF89: 0 | BG89: 0 | BH89: 0 | BI89: 0 | BJ89: 0 | BK89: 0 | BL89: 0 | BM89: 0 | BN89: 0 | BO89: 0 | BP89: 0 | BQ89: 0 | BR89: 0
A90: =B90&"A" -> 31A | B90: 31 | C90: =VLOOKUP(B90,EventsOrder,2,FALSE) -> 1.4 | D90: =VLOOKUP(B90,EventsOrder,4,FALSE) -> U13 Female | E90: A | F90: =IF(MID(D90,5,1)="F","F","M") -> F | G90: Y | H90: I | I90: J | J90: F | K90: P | L90: R | M90: B | O90: 1.38 | P90: 1.25 | Q90: 1.25 | R90: 1.15 | S90: 1.15 | T90: 1.1 | U90: 1 | W90: 0 | X90: 0 | Y90: 0 | Z90: 0 | AA90: 0 | AB90: 0 | AC90: 0 | AE90: =IF(LEN(G90)=0,"",VLOOKUP($B90,IF($F90="F",TeamSheetFemale,TeamSheetMale),CC90,FALSE)) -> Amber Hopkins | AF90: Scarlett Maxwell-Munn | AG90: Sophie Howie | AH90: Sian Hubbard | AI90: Georgia Usher | AJ90: Kaela Nelson | AK90: Kiki Thurley | AM90: 6 | AN90: 4 | AO90: 2 | AP90: 7 | AQ90: 3 | AR90: 5 | AS90: 0 | AT90: 8 | AU90: 1.25 | AV90: 1.15 | AW90: 1 | AX90: 1.25 | AY90: 1.1 | AZ90: 1.15 | BA90: 0 | BB90: 1.38 | BC90: 3 | BD90: 5 | BE90: 7 | BF90: 2 | BG90: 6 | BH90: 4 | BI90: 0 | BJ90: 1 | BK90: Worc | BL90: Kett | BM90: Ban | BN90: Tam | BO90: Bic | BP90: Rad | BQ90: DASH | BR90: 0 | BS90: Y | BT90: I | BU90: J | BV90: F | BW90: P | BX90: R | BY90: B | CC90: =IF(LEN(G90)=0,"",HLOOKUP(BS90,$CC$26:$CJ$28,2,FALSE)+IF(LEN(G90)=2,2,0)) -> 42 | CD90: 22 | CE90: 7 | CF90: 32 | CG90: 12 | CH90: 27 | CI90: 17
A91: =B90&"B" -> 31B | D91: =VLOOKUP(B90,EventsOrder,3,FALSE) -> High Jump | E91: B | AE91: =IF(LEN(G91)=0,"",VLOOKUP($B90,IF($F90="F",TeamSheetFemale,TeamSheetMale),CC91,FALSE)) ->  | AM91: 0 | AN91: 0 | AO91: 0 | AP91: 0 | AQ91: 0 | AR91: 0 | AS91: 0 | AT91: 0 | AU91: 0 | AV91: 0 | AW91: 0 | AX91: 0 | AY91: 0 | AZ91: 0 | BA91: 0 | BB91: 0 | BC91: 0 | BD91: 0 | BE91: 0 | BF91: 0 | BG91: 0 | BH91: 0 | BI91: 0 | BJ91: 0 | BK91: 0 | BL91: 0 | BM91: 0 | BN91: 0 | BO91: 0 | BP91: 0 | BQ91: 0 | BR91: 0
A92: =B92&"A" -> 32A | B92: 32 | C92: =VLOOKUP(B92,EventsOrder,2,FALSE) -> 1.3 | D92: =VLOOKUP(B92,EventsOrder,4,FALSE) -> U17 Men | E92: A | F92: =IF(MID(D92,5,1)="F","F","M") -> M | G92: Y | H92: R | I92: B | J92: F | K92: X | O92: 6.23 | P92: 5.52 | Q92: 4.18 | R92: 4.06 | S92: 3.58 | W92: 0 | X92: 0 | Y92: 0 | Z92: 0 | AA92: 0 | AE92: =IF(LEN(G92)=0,"",VLOOKUP($B92,IF($F92="F",TeamSheetFemale,TeamSheetMale),CC92,FALSE)) -> Ollie Gould | AF92: Elliot Couse | AG92: Jayvana Pramolo | AH92: Andrew Woods | AI92: Charlie McGlinchey | AM92: 0 | AN92: 0 | AO92: 6 | AP92: 0 | AQ92: 7 | AR92: 5 | AS92: 4 | AT92: 8 | AU92: 0 | AV92: 0 | AW92: 4.18 | AX92: 0 | AY92: 5.52 | AZ92: 4.06 | BA92: 3.58 | BB92: 6.23 | BC92: 0 | BD92: 0 | BE92: 3 | BF92: 0 | BG92: 2 | BH92: 4 | BI92: 5 | BJ92: 1 | BK92: Worc | BL92: Rad | BM92: DASH | BN92: Tam | BO92: Wreake | BP92: 0 | BQ92: 0 | BR92: 0 | BS92: Y | BT92: R | BU92: B | BV92: F | BW92: X | CC92: =IF(LEN(G92)=0,"",HLOOKUP(BS92,$CC$26:$CJ$28,2,FALSE)+IF(LEN(G92)=2,2,0)) -> 42 | CD92: =IF(LEN(H92)=0,"",HLOOKUP(BT92,$CC$26:$CJ$28,2,FALSE)+IF(LEN(H92)=2,2,0)) -> 27 | CE92: =IF(LEN(I92)=0,"",HLOOKUP(BU92,$CC$26:$CJ$28,2,FALSE)+IF(LEN(I92)=2,2,0)) -> 17 | CF92: =IF(LEN(J92)=0,"",HLOOKUP(BV92,$CC$26:$CJ$28,2,FALSE)+IF(LEN(J92)=2,2,0)) -> 32 | CG92: =IF(LEN(K92)=0,"",HLOOKUP(BW92,$CC$26:$CJ$28,2,FALSE)+IF(LEN(K92)=2,2,0)) -> 37 | CH92: =IF(LEN(L92)=0,"",HLOOKUP(BX92,$CC$26:$CJ$28,2,FALSE)+IF(LEN(L92)=2,2,0)) ->  | CI92: =IF(LEN(M92)=0,"",HLOOKUP(BY92,$CC$26:$CJ$28,2,FALSE)+IF(LEN(M92)=2,2,0)) ->  | CJ92: =IF(LEN(N92)=0,"",HLOOKUP(BZ92,$CC$26:$CJ$28,2,FALSE)+IF(LEN(N92)=2,2,0)) -> 
A93: =B92&"B" -> 32B | D93: =VLOOKUP(B92,EventsOrder,3,FALSE) -> Long Jump | E93: B | G93: RR | H93: YY | O93: 5.23 | P93: 5.08 | W93: 0 | X93: 0 | AE93: =IF(LEN(G93)=0,"",VLOOKUP($B92,IF($F92="F",TeamSheetFemale,TeamSheetMale),CC93,FALSE)) -> Blake Strickland Bennett | AF93: Josh Bentley | AM93: 0 | AN93: 0 | AO93: 0 | AP93: 0 | AQ93: 8 | AR93: 0 | AS93: 0 | AT93: 7 | AU93: 0 | AV93: 0 | AW93: 0 | AX93: 0 | AY93: 5.23 | AZ93: 0 | BA93: 0 | BB93: 5.08 | BC93: 0 | BD93: 0 | BE93: 0 | BF93: 0 | BG93: 1 | BH93: 0 | BI93: 0 | BJ93: 2 | BK93: Rad | BL93: Worc | BM93: 0 | BN93: 0 | BO93: 0 | BP93: 0 | BQ93: 0 | BR93: 0 | BS93: R | BT93: Y | CC93: =IF(LEN(G93)=0,"",HLOOKUP(BS93,$CC$26:$CJ$28,2,FALSE)+IF(LEN(G93)=2,2,0)) -> 29 | CD93: 44
A94: =B94&"A" -> 33A | B94: 33 | C94: =VLOOKUP(B94,EventsOrder,2,FALSE) -> 2 | D94: =VLOOKUP(B94,EventsOrder,4,FALSE) -> U11 Male | E94: C | F94: =IF(MID(D94,5,1)="F","F","M") -> M | G94: I | H94: R | I94: J | J94: F | K94: X | L94: Y | M94: P | N94: B | O94: 1.50.8 | P94: 1.51.8 | Q94: 1.55.1 | R94: 2.01.5 | S94: 2.03.3 | T94: 2.04.7 | U94: 2.05.9 | V94: 2.15.0 | W94: 0 | X94: 0 | Y94: 0 | Z94: 0 | AA94: 0 | AB94: 0 | AC94: 0 | AD94: 0 | AE94: =IF(LEN(G94)=0,"",VLOOKUP($B94,IF($F94="F",TeamSheetFemale,TeamSheetMale),CC94,FALSE)) -> Alfie Frayne | AF94: Quinn Miell-Ingram | AG94: Ethan Aldous | AH94: Luca Bradley | AI94: Jonty Brotherton | AJ94: Ellis Hartland | AK94: Timothy Jones | AL94: Corey Lees | AM94: =IF(OR($F94="NS",AU94="DNF"),0,IF(BC94>0,$BK$29+1-BC94,0)) -> 6 | AN94: =IF(OR($F94="NS",AV94="DNF"),0,IF(BD94>0,$BK$29+1-BD94,0)) -> 2 | AO94: =IF(OR($F94="NS",AW94="DNF"),0,IF(BE94>0,$BK$29+1-BE94,0)) -> 1 | AP94: =IF(OR($F94="NS",AX94="DNF"),0,IF(BF94>0,$BK$29+1-BF94,0)) -> 8 | AQ94: =IF(OR($F94="NS",AY94="DNF"),0,IF(BG94>0,$BK$29+1-BG94,0)) -> 7 | AR94: =IF(OR($F94="NS",AZ94="DNF"),0,IF(BH94>0,$BK$29+1-BH94,0)) -> 5 | AS94: =IF(OR($F94="NS",BA94="DNF"),0,IF(BI94>0,$BK$29+1-BI94,0)) -> 4 | AT94: =IF(OR($F94="NS",BB94="DNF"),0,IF(BJ94>0,$BK$29+1-BJ94,0)) -> 3 | AU94: 1.55.1 | AV94: 2.05.9 | AW94: 2.15.0 | AX94: 1.50.8 | AY94: 1.51.8 | AZ94: 2.01.5 | BA94: 2.03.3 | BB94: 2.04.7 | BC94: 3 | BD94: 7 | BE94: 8 | BF94: 1 | BG94: 2 | BH94: 4 | BI94: 5 | BJ94: 6 | BK94: Kett | BL94: Rad | BM94: Ban | BN94: Tam | BO94: Wreake | BP94: Worc | BQ94: Bic | BR94: DASH | BS94: I | BT94: R | BU94: J | BV94: F | BW94: X | BX94: Y | BY94: P | BZ94: B | CC94: =IF(LEN(G94)=0,"",HLOOKUP(BS94,$CC$26:$CJ$28,2,FALSE)+IF(LEN(G94)=2,2,0)) -> 22 | CD94: =IF(LEN(H94)=0,"",HLOOKUP(BT94,$CC$26:$CJ$28,2,FALSE)+IF(LEN(H94)=2,2,0)) -> 27 | CE94: 7 | CF94: 32 | CG94: 37 | CH94: 42 | CI94: 12 | CJ94: 17
A95: =B94&"B" -> 33B | D95: =VLOOKUP(B94,EventsOrder,3,FALSE) -> 600m | E95: D | G95: JJ | H95: II | I95: RR | J95: FF | K95: BB | L95: YY | M95: PP | N95: XX | O95: 1.58.7 | P95: 2.03.4 | Q95: 2.08.9 | R95: 2.09.1 | S95: 2.11.9 | T95: 2.16.9 | U95: 2.18.3 | V95: 2.22.6 | W95: 0 | X95: II | Y95: 0 | Z95: FF | AA95: 0 | AB95: 0 | AC95: PP | AD95: 0 | AE95: =IF(LEN(G95)=0,"",VLOOKUP($B94,IF($F94="F",TeamSheetFemale,TeamSheetMale),CC95,FALSE)) -> Ruben Snelson | AF95: Theo Crick | AG95: Jake Edwards | AH95: Ashley Johnson | AI95: Reece Lees | AJ95: Jack Adams | AK95: Seion Alexander | AL95: Theo York | AM95: 8 | AN95: 2 | AO95: 4 | AP95: 7 | AQ95: 6 | AR95: 5 | AS95: 1 | AT95: 3 | AU95: 1.58.7 | AV95: 2.18.3 | AW95: 2.11.9 | AX95: 2.03.4 | AY95: 2.08.9 | AZ95: 2.09.1 | BA95: 2.22.6 | BB95: 2.16.9 | BC95: 1 | BD95: 7 | BE95: 5 | BF95: 2 | BG95: 3 | BH95: 4 | BI95: 8 | BJ95: 6 | BK95: Ban | BL95: Kett | BM95: Rad | BN95: Tam | BO95: DASH | BP95: Worc | BQ95: Bic | BR95: Wreake | BS95: J | BT95: I | BU95: R | BV95: F | BW95: B | BX95: Y | BY95: P | BZ95: X | CC95: =IF(LEN(G95)=0,"",HLOOKUP(BS95,$CC$26:$CJ$28,2,FALSE)+IF(LEN(G95)=2,2,0)) -> 9 | CD95: 24 | CE95: 29 | CF95: 34 | CG95: 19 | CH95: 44 | CI95: 14 | CJ95: 39
A96: =B96&"A" -> 34A | B96: 34 | C96: =VLOOKUP(B96,EventsOrder,2,FALSE) -> 2.05 | D96: =VLOOKUP(B96,EventsOrder,4,FALSE) -> U11 Male | E96: A | F96: =IF(MID(D96,5,1)="F","F","M") -> M | G96: J | H96: YY | I96: JJ | J96: RR | K96: I | L96: Y | O96: 2.03.2 | P96: 2.03.5 | Q96: 2.05.2 | R96: 2.14.7 | S96: 2.21.4 | T96: 2.27.5 | W96: 554 | X96: 108 | Y96: 555 | Z96: 524 | AA96: 61 | AB96: 107 | AE96: =IF(LEN(G96)=0,"",VLOOKUP($B96,IF($F96="F",TeamSheetFemale,TeamSheetMale),CC96,FALSE)) -> Leo Anderson | AF96: Linus Burnage | AG96: Archie Street | AH96: Caspar Cumberland | AI96: Ellis Watts | AJ96: Henry Adams | AM96: 8 | AN96: 0 | AO96: 0 | AP96: 4 | AQ96: 5 | AR96: 0 | AS96: 0 | AT96: 7 | AU96: 2.03.2 | AV96: 0 | AW96: 0 | AX96: 2.21.4 | AY96: 2.14.7 | AZ96: 0 | BA96: 0 | BB96: 2.03.5 | BC96: 1 | BD96: 0 | BE96: 0 | BF96: 5 | BG96: 4 | BH96: 0 | BI96: 0 | BJ96: 2 | BK96: Ban | BL96: Worc | BM96: Ban | BN96: Rad | BO96: Kett | BP96: Worc | BQ96: 0 | BR96: 0 | BS96: J | BT96: Y | BU96: J | BV96: R | BW96: I | BX96: Y | CC96: =IF(LEN(G96)=0,"",HLOOKUP(BS96,$CC$26:$CJ$28,2,FALSE)+IF(LEN(G96)=2,2,0)) -> 7 | CD96: 44 | CE96: 9 | CF96: 29 | CG96: 22 | CH96: 42
A97: =B96&"B" -> 34B | D97: =VLOOKUP(B96,EventsOrder,3,FALSE) -> 600m | E97: B | AE97: =IF(LEN(G97)=0,"",VLOOKUP($B96,IF($F96="F",TeamSheetFemale,TeamSheetMale),CC97,FALSE)) ->  | AM97: 0 | AN97: 0 | AO97: 0 | AP97: 0 | AQ97: 0 | AR97: 0 | AS97: 0 | AT97: 0 | AU97: 0 | AV97: 0 | AW97: 0 | AX97: 0 | AY97: 0 | AZ97: 0 | BA97: 0 | BB97: 0 | BC97: 0 | BD97: 0 | BE97: 0 | BF97: 0 | BG97: 0 | BH97: 0 | BI97: 0 | BJ97: 0 | BK97: 0 | BL97: 0 | BM97: 0 | BN97: 0 | BO97: 0 | BP97: 0 | BQ97: 0 | BR97: 0
A98: =B98&"A" -> 35A | B98: 35 | C98: =VLOOKUP(B98,EventsOrder,2,FALSE) -> 2.1 | D98: =VLOOKUP(B98,EventsOrder,4,FALSE) -> U13 Female | E98: A | F98: =IF(MID(D98,5,1)="F","F","M") -> F | G98: F | H98: X | I98: J | J98: Y | K98: I | L98: R | M98: P | N98: B | O98: 14.4 | P98: 14.5 | Q98: 14.5 | R98: 14.7 | S98: 14.8 | T98: 15 | U98: 15.3 | V98: 16.4 | W98: 0 | X98: 0 | Y98: 0 | Z98: 0 | AA98: 0 | AB98: 0 | AC98: 0 | AD98: 0 | AE98: =IF(LEN(G98)=0,"",VLOOKUP($B98,IF($F98="F",TeamSheetFemale,TeamSheetMale),CC98,FALSE)) -> Niamh Kilgallen | AF98: Isobel Orencas | AG98: Tegan Armstrong | AH98: Lottie Bentley | AI98: Charlotte Cox | AJ98: Poppy Edwards | AK98: Erin Fabri | AL98: Hannah Gadd | AM98: 6 | AN98: 2 | AO98: 1 | AP98: 4 | AQ98: 3 | AR98: 8 | AS98: 7 | AT98: 5 | AU98: 14.5 | AV98: 15.3 | AW98: 16.4 | AX98: 14.8 | AY98: 15 | AZ98: 14.4 | BA98: 14.5 | BB98: 14.7 | BC98: =IF(ISNA(MATCH(BC$29,$BS98:$BZ98,0)),0,MATCH(BC$29,$BS98:$BZ98,0)) -> 3 | BD98: 7 | BE98: 8 | BF98: 5 | BG98: 6 | BH98: 1 | BI98: 2 | BJ98: 4 | BK98: Tam | BL98: Wreake | BM98: Ban | BN98: Worc | BO98: Kett | BP98: Rad | BQ98: Bic | BR98: DASH | BS98: F | BT98: X | BU98: J | BV98: Y | BW98: I | BX98: R | BY98: P | BZ98: B | CC98: 32 | CD98: 37 | CE98: 7 | CF98: 42 | CG98: 22 | CH98: 27 | CI98: 12 | CJ98: 17
A99: =B98&"B" -> 35B | D99: =VLOOKUP(B98,EventsOrder,3,FALSE) -> 100m | E99: B | G99: YY | H99: JJ | I99: RR | J99: FF | K99: II | L99: XX | M99: PP | O99: 14.8 | P99: 15.3 | Q99: 15.4 | R99: 15.7 | S99: 16 | T99: 16.2 | U99: 16.8 | W99: 0 | X99: 0 | Y99: 0 | Z99: FF | AA99: II | AB99: 0 | AC99: 0 | AE99: =IF(LEN(G99)=0,"",VLOOKUP($B98,IF($F98="F",TeamSheetFemale,TeamSheetMale),CC99,FALSE)) -> Evelyn Clarke | AF99: Maddy Dowden | AG99: Erin McMillian | AH99: Emily Pearce | AI99: Robyn Beale | AJ99: Isabelle Wilson | AK99: Imogen Ansell | AM99: 7 | AN99: 2 | AO99: 0 | AP99: 4 | AQ99: 6 | AR99: 5 | AS99: 3 | AT99: 8 | AU99: =OFFSET($N99,0,BC99) -> 15.3 | AV99: =OFFSET($N99,0,BD99) -> 16.8 | AW99: =OFFSET($N99,0,BE99) -> 0 | AX99: =OFFSET($N99,0,BF99) -> 16 | AY99: 15.4 | AZ99: 15.7 | BA99: 16.2 | BB99: 14.8 | BC99: 2 | BD99: 7 | BE99: 0 | BF99: 5 | BG99: 3 | BH99: 4 | BI99: 6 | BJ99: 1 | BK99: Worc | BL99: Ban | BM99: Rad | BN99: Tam | BO99: Kett | BP99: Wreake | BQ99: Bic | BR99: 0 | BS99: Y | BT99: J | BU99: R | BV99: F | BW99: I | BX99: X | BY99: P | CC99: 44 | CD99: 9 | CE99: 29 | CF99: 34 | CG99: 24 | CH99: 39 | CI99: 14
A100: =B100&"A" -> 36A | B100: 36 | C100: =VLOOKUP(B100,EventsOrder,2,FALSE) -> 2.15 | D100: =VLOOKUP(B100,EventsOrder,4,FALSE) -> U15 Female | E100: C | F100: =IF(MID(D100,5,1)="F","F","M") -> F | G100: X | H100: Y | I100: I | J100: B | K100: J | L100: R | M100: F | N100: P | O100: 13.4 | P100: 13.5 | Q100: 13.5 | R100: 13.8 | S100: 13.8 | T100: 14.1 | U100: 14.1 | V100: 14.5 | W100: 0 | X100: 0 | Y100: 0 | Z100: 0 | AA100: 0 | AB100: 0 | AC100: 0 | AD100: 0 | AE100: =IF(LEN(G100)=0,"",VLOOKUP($B100,IF($F100="F",TeamSheetFemale,TeamSheetMale),CC100,FALSE)) -> Josie Orange | AF100: Sarah-Jane Ollis | AG100: Annabelle Clotworthy | AH100: Isobel Fisher | AI100: Sydney Sellers | AJ100: Olivia Butler | AK100: Sian Lewis | AL100: Lauren Garside | AM100: 4 | AN100: 1 | AO100: 5 | AP100: 6 | AQ100: 3 | AR100: 2 | AS100: 8 | AT100: 7 | AU100: 13.8 | AV100: 14.5 | AW100: 13.8 | AX100: 13.5 | AY100: 14.1 | AZ100: 14.1 | BA100: 13.4 | BB100: 13.5 | BC100: 5 | BD100: 8 | BE100: 4 | BF100: 3 | BG100: 6 | BH100: 7 | BI100: 1 | BJ100: 2 | BK100: Wreake | BL100: Worc | BM100: Kett | BN100: DASH | BO100: Ban | BP100: Rad | BQ100: Tam | BR100: Bic | BS100: X | BT100: Y | BU100: I | BV100: B | BW100: J | BX100: R | BY100: F | BZ100: P | CC100: 37 | CD100: 42 | CE100: 22 | CF100: 17 | CG100: 7 | CH100: 27 | CI100: 32 | CJ100: 12
A101: =B100&"B" -> 36B | D101: =VLOOKUP(B100,EventsOrder,3,FALSE) -> 100m | E101: D | G101: II | H101: XX | I101: BB | J101: RR | K101: PP | O101: 13.7 | P101: 13.7 | Q101: 14.2 | R101: 14.6 | S101: 14.9 | W101: II | X101: 0 | Y101: 0 | Z101: 0 | AA101: 0 | AE101: =IF(LEN(G101)=0,"",VLOOKUP($B100,IF($F100="F",TeamSheetFemale,TeamSheetMale),CC101,FALSE)) -> Alex Beale | AF101: Poppy Tott-Buswell | AG101: Niamh Darby | AH101: Robyn Swain | AI101: Charotte Hewett | AM101: 0 | AN101: 4 | AO101: 6 | AP101: 8 | AQ101: 5 | AR101: 0 | AS101: 7 | AT101: 0 | AU101: 0 | AV101: 14.9 | AW101: 14.2 | AX101: 13.7 | AY101: 14.6 | AZ101: 0 | BA101: 13.7 | BB101: 0 | BC101: 0 | BD101: 5 | BE101: 3 | BF101: 1 | BG101: 4 | BH101: 0 | BI101: 2 | BJ101: 0 | BK101: Kett | BL101: Wreake | BM101: DASH | BN101: Rad | BO101: Bic | BP101: 0 | BQ101: 0 | BR101: 0 | BS101: I | BT101: X | BU101: B | BV101: R | BW101: P | CC101: 24 | CD101: 39 | CE101: 19 | CF101: 29 | CG101: 14
A102: =B102&"A" -> 37A | B102: 37 | C102: =VLOOKUP(B102,EventsOrder,2,FALSE) -> 1.5 | D102: =VLOOKUP(B102,EventsOrder,4,FALSE) -> U17 Female | E102: A | F102: =IF(MID(D102,5,1)="F","F","M") -> F | G102: R | H102: Y | I102: J | J102: X | K102: B | L102: F | M102: I | O102: 10.87 | P102: 9.58 | Q102: 8.53 | R102: 7.02 | S102: 6.78 | T102: 6.58 | U102: 5.38 | W102: 0 | X102: 0 | Y102: 0 | Z102: 0 | AA102: 0 | AB102: F | AC102: 0 | AE102: =IF(LEN(G102)=0,"",VLOOKUP($B102,IF($F102="F",TeamSheetFemale,TeamSheetMale),CC102,FALSE)) -> Petrina Chantler-Edmond | AF102: Cara Clarke | AG102: Paige Cooper | AH102: Megan Luxford | AI102: Lauren Millward | AJ102: Laura Lewis (Senior) | AK102: Harriett Jolley | AM102: 6 | AN102: 0 | AO102: 4 | AP102: 2 | AQ102: 8 | AR102: 3 | AS102: 5 | AT102: 7 | AU102: 8.53 | AV102: 0 | AW102: 6.78 | AX102: 5.38 | AY102: 10.87 | AZ102: 6.58 | BA102: 7.02 | BB102: 9.58 | BC102: 3 | BD102: 0 | BE102: 5 | BF102: 7 | BG102: 1 | BH102: 6 | BI102: 4 | BJ102: 2 | BK102: Rad | BL102: Worc | BM102: Ban | BN102: Wreake | BO102: DASH | BP102: Tam | BQ102: Kett | BR102: 0 | BS102: R | BT102: Y | BU102: J | BV102: X | BW102: B | BX102: F | BY102: I | CC102: 27 | CD102: 42 | CE102: 7 | CF102: 37 | CG102: 17 | CH102: 32 | CI102: 22
A103: =B102&"B" -> 37B | D103: =VLOOKUP(B102,EventsOrder,3,FALSE) -> Shot (U17) | E103: B | G103: RR | H103: YY | I103: II | O103: 9.92 | P103: 8.45 | Q103: 4.69 | W103: 0 | X103: 0 | Y103: 0 | AE103: =IF(LEN(G103)=0,"",VLOOKUP($B102,IF($F102="F",TeamSheetFemale,TeamSheetMale),CC103,FALSE)) -> Victoria Harte | AF103: Hannah Kenwright | AG103: Charlotte Maywood | AM103: 0 | AN103: 0 | AO103: 0 | AP103: 6 | AQ103: 8 | AR103: 0 | AS103: 0 | AT103: 7 | AU103: 0 | AV103: 0 | AW103: 0 | AX103: 4.69 | AY103: 9.92 | AZ103: 0 | BA103: 0 | BB103: 8.45 | BC103: 0 | BD103: 0 | BE103: 0 | BF103: 3 | BG103: 1 | BH103: 0 | BI103: 0 | BJ103: 2 | BK103: Rad | BL103: Worc | BM103: Kett | BN103: 0 | BO103: 0 | BP103: 0 | BQ103: 0 | BR103: 0 | BS103: R | BT103: Y | BU103: I | CC103: 29 | CD103: 44 | CE103: 24
A104: =B104&"A" -> 38A | B104: 38 | C104: =VLOOKUP(B104,EventsOrder,2,FALSE) -> 1.5 | D104: =VLOOKUP(B104,EventsOrder,4,FALSE) -> U13 Female | E104: A | F104: =IF(MID(D104,5,1)="F","F","M") -> F | G104: Y | H104: J | I104: X | J104: I | K104: B | L104: P | M104: R | N104: F | O104: 18.38 | P104: 15.34 | Q104: 15.05 | R104: 14.06 | S104: 13.65 | T104: 12.54 | U104: 12.31 | V104: 11.2 | W104: 0 | X104: 0 | Y104: 0 | Z104: 0 | AA104: 0 | AB104: 0 | AC104: 0 | AD104: 0 | AE104: =IF(LEN(G104)=0,"",VLOOKUP($B104,IF($F104="F",TeamSheetFemale,TeamSheetMale),CC104,FALSE)) -> Lucy Marriott | AF104: Lucy Thompson | AG104: Katie Parker | AH104: Charlotte Cox | AI104: Zara Gibbs | AJ104: Amber Parker | AK104: Amelia Brew | AL104: Alice Mason | AM104: 7 | AN104: 3 | AO104: 4 | AP104: 5 | AQ104: 2 | AR104: 1 | AS104: 6 | AT104: 8 | AU104: 15.34 | AV104: 12.54 | AW104: 13.65 | AX104: 14.06 | AY104: 12.31 | AZ104: 11.2 | BA104: 15.05 | BB104: 18.38 | BC104: 2 | BD104: 6 | BE104: 5 | BF104: 4 | BG104: 7 | BH104: 8 | BI104: 3 | BJ104: 1 | BK104: Worc | BL104: Ban | BM104: Wreake | BN104: Kett | BO104: DASH | BP104: Bic | BQ104: Rad | BR104: Tam | BS104: Y | BT104: J | BU104: X | BV104: I | BW104: B | BX104: P | BY104: R | BZ104: F | CC104: 42 | CD104: 7 | CE104: 37 | CF104: 22 | CG104: 17 | CH104: 12 | CI104: 27 | CJ104: 32
A105: =B104&"B" -> 38B | D105: =VLOOKUP(B104,EventsOrder,3,FALSE) -> Discus | E105: B | G105: BB | H105: XX | I105: YY | J105: JJ | K105: PP | L105: II | M105: FF | O105: 12.03 | P105: 10.59 | Q105: 10.4 | R105: 10.27 | S105: 9.83 | T105: 8.7 | U105: 5.18 | W105: 0 | X105: 0 | Y105: 0 | Z105: 0 | AA105: 0 | AB105: II | AC105: FF | AE105: =IF(LEN(G105)=0,"",VLOOKUP($B104,IF($F104="F",TeamSheetFemale,TeamSheetMale),CC105,FALSE)) -> Alina Gunnard | AF105: Aoife Brotherton | AG105: Amy Dale | AH105: Nikola Bishop | AI105: Amelia Cox | AJ105: Maddie Moxey | AK105: Emily Pearce | AM105: 5 | AN105: 4 | AO105: 8 | AP105: 3 | AQ105: 0 | AR105: 2 | AS105: 7 | AT105: 6 | AU105: 10.27 | AV105: 9.83 | AW105: 12.03 | AX105: 8.7 | AY105: 0 | AZ105: 5.18 | BA105: 10.59 | BB105: 10.4 | BC105: 4 | BD105: 5 | BE105: 1 | BF105: 6 | BG105: 0 | BH105: 7 | BI105: 2 | BJ105: 3 | BK105: DASH | BL105: Wreake | BM105: Worc | BN105: Ban | BO105: Bic | BP105: Kett | BQ105: Tam | BR105: 0 | BS105: B | BT105: X | BU105: Y | BV105: J | BW105: P | BX105: I | BY105: F | CC105: 19 | CD105: 39 | CE105: 44 | CF105: 9 | CG105: 14 | CH105: 24 | CI105: 34
A106: =B106&"A" -> 39A | B106: 39 | C106: =VLOOKUP(B106,EventsOrder,2,FALSE) -> 1.5 | D106: =VLOOKUP(B106,EventsOrder,4,FALSE) -> U15 Male | E106: A | F106: =IF(MID(D106,5,1)="F","F","M") -> M | AE106: =IF(LEN(G106)=0,"",VLOOKUP($B106,IF($F106="F",TeamSheetFemale,TeamSheetMale),CC106,FALSE)) ->  | AM106: 0 | AN106: 0 | AO106: 0 | AP106: 0 | AQ106: 0 | AR106: 0 | AS106: 0 | AT106: 0 | AU106: 0 | AV106: 0 | AW106: 0 | AX106: 0 | AY106: 0 | AZ106: 0 | BA106: 0 | BB106: 0 | BC106: 0 | BD106: 0 | BE106: 0 | BF106: 0 | BG106: 0 | BH106: 0 | BI106: 0 | BJ106: 0 | BK106: 0 | BL106: 0 | BM106: 0 | BN106: 0 | BO106: 0 | BP106: 0 | BQ106: 0 | BR106: 0
A107: =B106&"B" -> 39B | D107: =VLOOKUP(B106,EventsOrder,3,FALSE) -> Javelin | E107: B | AE107: =IF(LEN(G107)=0,"",VLOOKUP($B106,IF($F106="F",TeamSheetFemale,TeamSheetMale),CC107,FALSE)) ->  | AM107: 0 | AN107: 0 | AO107: 0 | AP107: 0 | AQ107: 0 | AR107: 0 | AS107: 0 | AT107: 0 | AU107: 0 | AV107: 0 | AW107: 0 | AX107: 0 | AY107: 0 | AZ107: 0 | BA107: 0 | BB107: 0 | BC107: 0 | BD107: 0 | BE107: 0 | BF107: 0 | BG107: 0 | BH107: 0 | BI107: 0 | BJ107: 0 | BK107: 0 | BL107: 0 | BM107: 0 | BN107: 0 | BO107: 0 | BP107: 0 | BQ107: 0 | BR107: 0
A108: =B108&"A" -> 40A | B108: 40 | C108: =VLOOKUP(B108,EventsOrder,2,FALSE) -> 2.2 | D108: =VLOOKUP(B108,EventsOrder,4,FALSE) -> U17 F/Women | E108: A | F108: =IF(MID(D108,5,1)="F","F","M") -> F | G108: Y | H108: R | I108: X | J108: B | K108: P | L108: I | O108: 13 | P108: 13.3 | Q108: 13.5 | R108: 13.7 | S108: 14 | T108: 14.1 | W108: 0 | X108: 0 | Y108: 0 | Z108: 0 | AA108: 0 | AB108: 0 | AE108: =IF(LEN(G108)=0,"",VLOOKUP($B108,IF($F108="F",TeamSheetFemale,TeamSheetMale),CC108,FALSE)) -> Cara Clarke | AF108: Leah Brown | AG108: Ella Grainger | AH108: Lauren Millward | AI108: U20 Emily Benfield | AJ108: Niamh Monaghan | AM108: 0 | AN108: 4 | AO108: 5 | AP108: 3 | AQ108: 7 | AR108: 0 | AS108: 6 | AT108: 8 | AU108: 0 | AV108: 14 | AW108: 13.7 | AX108: 14.1 | AY108: 13.3 | AZ108: 0 | BA108: 13.5 | BB108: 13 | BC108: 0 | BD108: 5 | BE108: 4 | BF108: 6 | BG108: 2 | BH108: 0 | BI108: 3 | BJ108: 1 | BK108: Worc | BL108: Rad | BM108: Wreake | BN108: DASH | BO108: Bic | BP108: Kett | BQ108: 0 | BR108: 0 | BS108: Y | BT108: R | BU108: X | BV108: B | BW108: P | BX108: I | CC108: 42 | CD108: 27 | CE108: 37 | CF108: 17 | CG108: 12 | CH108: 22
A109: =B108&"B" -> 40B | D109: =VLOOKUP(B108,EventsOrder,3,FALSE) -> 100m | E109: B | G109: YY | H109: BB | I109: RR | J109: XX | K109: II | O109: 13.1 | P109: 13.7 | Q109: 13.9 | R109: 14 | S109: 14.3 | W109: 0 | X109: 0 | Y109: 0 | Z109: 0 | AA109: II | AE109: =IF(LEN(G109)=0,"",VLOOKUP($B108,IF($F108="F",TeamSheetFemale,TeamSheetMale),CC109,FALSE)) -> Georgia Clarke | AF109: Zara Millward | AG109: Megan Baker | AH109: Megan Luxford | AI109: Niamh Ruffles | AM109: 0 | AN109: 0 | AO109: 7 | AP109: 4 | AQ109: 6 | AR109: 0 | AS109: 5 | AT109: 8 | AU109: 0 | AV109: 0 | AW109: 13.7 | AX109: 14.3 | AY109: 13.9 | AZ109: 0 | BA109: 14 | BB109: 13.1 | BC109: 0 | BD109: 0 | BE109: 2 | BF109: 5 | BG109: 3 | BH109: 0 | BI109: 4 | BJ109: 1 | BK109: Worc | BL109: DASH | BM109: Rad | BN109: Wreake | BO109: Kett | BP109: 0 | BQ109: 0 | BR109: 0 | BS109: Y | BT109: B | BU109: R | BV109: X | BW109: I | CC109: 44 | CD109: 19 | CE109: 29 | CF109: 39 | CG109: 24
A110: =B110&"A" -> 41A | B110: 41 | C110: =VLOOKUP(B110,EventsOrder,2,FALSE) -> 2.25 | D110: =VLOOKUP(B110,EventsOrder,4,FALSE) -> U13 Male | E110: A | F110: =IF(MID(D110,5,1)="F","F","M") -> M | G110: I | H110: X | I110: J | J110: B | K110: Y | L110: P | M110: R | N110: F | O110: 13.2 | P110: 13.5 | Q110: 13.7 | R110: 13.7 | S110: 14 | T110: 14.5 | U110: 14.9 | V110: 15.2 | W110: 0 | X110: 0 | Y110: 0 | Z110: 0 | AA110: 0 | AB110: P | AC110: 0 | AD110: 0 | AE110: =IF(LEN(G110)=0,"",VLOOKUP($B110,IF($F110="F",TeamSheetFemale,TeamSheetMale),CC110,FALSE)) -> Max Mowforth | AF110: David Seidu | AG110: Christopher Charles | AH110: Jack Compton | AI110: Adam Dudley | AJ110: Ryan Simpson | AK110: Samuel Rose | AL110: Oran Au | AM110: 6 | AN110: 3 | AO110: 5 | AP110: 8 | AQ110: 2 | AR110: 1 | AS110: 7 | AT110: 4 | AU110: 13.7 | AV110: 14.5 | AW110: 13.7 | AX110: 13.2 | AY110: 14.9 | AZ110: 15.2 | BA110: 13.5 | BB110: 14 | BC110: 3 | BD110: 6 | BE110: 4 | BF110: 1 | BG110: 7 | BH110: 8 | BI110: 2 | BJ110: 5 | BK110: Kett | BL110: Wreake | BM110: Ban | BN110: DASH | BO110: Worc | BP110: Bic | BQ110: Rad | BR110: Tam | BS110: I | BT110: X | BU110: J | BV110: B | BW110: Y | BX110: P | BY110: R | BZ110: F | CC110: 22 | CD110: 37 | CE110: 7 | CF110: 17 | CG110: 42 | CH110: 12 | CI110: 27 | CJ110: 32
A111: =B110&"B" -> 41B | D111: =VLOOKUP(B110,EventsOrder,3,FALSE) -> 100m | E111: B | G111: II | H111: BB | I111: JJ | J111: FF | K111: RR | L111: YY | M111: PP | N111: XX | O111: 14.1 | P111: 14.4 | Q111: 14.4 | R111: 14.8 | S111: 14.8 | T111: 14.9 | U111: 15.4 | V111: 16.5 | W111: II | X111: 0 | Y111: 0 | Z111: FF | AA111: 0 | AB111: 0 | AC111: PP | AD111: 0 | AE111: =IF(LEN(G111)=0,"",VLOOKUP($B110,IF($F110="F",TeamSheetFemale,TeamSheetMale),CC111,FALSE)) -> Cole Sinnott | AF111: Tom Fallon | AG111: Archie Jones | AH111: Kai Buckley | AI111: Theau Seabrook | AJ111: Harry Cunningham | AK111: Michael Cadle | AL111: Mackenzie Bloxham | AM111: 6 | AN111: 2 | AO111: 7 | AP111: 8 | AQ111: 4 | AR111: 5 | AS111: 1 | AT111: 3 | AU111: 14.4 | AV111: 15.4 | AW111: 14.4 | AX111: 14.1 | AY111: 14.8 | AZ111: 14.8 | BA111: 16.5 | BB111: 14.9 | BC111: 3 | BD111: 7 | BE111: 2 | BF111: 1 | BG111: 5 | BH111: 4 | BI111: 8 | BJ111: 6 | BK111: Kett | BL111: DASH | BM111: Ban | BN111: Tam | BO111: Rad | BP111: Worc | BQ111: Bic | BR111: Wreake | BS111: I | BT111: B | BU111: J | BV111: F | BW111: R | BX111: Y | BY111: P | BZ111: X | CC111: 24 | CD111: 19 | CE111: 9 | CF111: 34 | CG111: 29 | CH111: 44 | CI111: 14 | CJ111: 39
A112: =B112&"A" -> 42A | B112: 42 | C112: =VLOOKUP(B112,EventsOrder,2,FALSE) -> 2.3 | D112: =VLOOKUP(B112,EventsOrder,4,FALSE) -> U15 Male | E112: A | F112: =IF(MID(D112,5,1)="F","F","M") -> M | G112: X | H112: R | I112: I | J112: J | K112: Y | L112: B | M112: F | N112: P | O112: 12.2 | P112: 12.4 | Q112: 12.4 | R112: 12.5 | S112: 12.6 | T112: 13.3 | U112: 13.5 | V112: 14 | W112: 0 | X112: 0 | Y112: 0 | Z112: 0 | AA112: 0 | AB112: 0 | AC112: 0 | AD112: P | AE112: =IF(LEN(G112)=0,"",VLOOKUP($B112,IF($F112="F",TeamSheetFemale,TeamSheetMale),CC112,FALSE)) -> Euan Jones | AF112: Daniel Gifford | AG112: Dylan Mukhtar | AH112: WillAndrews | AI112: Marco Miller | AJ112: Talinder Kumar | AK112: James Sherriff | AL112: Will Simms | AM112: 5 | AN112: 1 | AO112: 3 | AP112: 6 | AQ112: 7 | AR112: 2 | AS112: 8 | AT112: 4 | AU112: 12.5 | AV112: 14 | AW112: 13.3 | AX112: 12.4 | AY112: 12.4 | AZ112: 13.5 | BA112: 12.2 | BB112: 12.6 | BC112: 4 | BD112: 8 | BE112: 6 | BF112: 3 | BG112: 2 | BH112: 7 | BI112: 1 | BJ112: 5 | BK112: Wreake | BL112: Rad | BM112: Kett | BN112: Ban | BO112: Worc | BP112: DASH | BQ112: Tam | BR112: Bic | BS112: X | BT112: R | BU112: I | BV112: J | BW112: Y | BX112: B | BY112: F | BZ112: P | CC112: 37 | CD112: 27 | CE112: 22 | CF112: 7 | CG112: 42 | CH112: 17 | CI112: 32 | CJ112: 12
A113: =B112&"B" -> 42B | D113: =VLOOKUP(B112,EventsOrder,3,FALSE) -> 100m | E113: B | G113: XX | H113: YY | I113: RR | O113: 13.4 | P113: 13.5 | Q113: 16 | W113: 0 | X113: 0 | Y113: 0 | AE113: =IF(LEN(G113)=0,"",VLOOKUP($B112,IF($F112="F",TeamSheetFemale,TeamSheetMale),CC113,FALSE)) -> Josh Rocks | AF113: Charlie Bloomfield | AG113: Richard Bungay | AM113: 0 | AN113: 0 | AO113: 0 | AP113: 0 | AQ113: 6 | AR113: 0 | AS113: 8 | AT113: 7 | AU113: 0 | AV113: 0 | AW113: 0 | AX113: 0 | AY113: 16 | AZ113: 0 | BA113: 13.4 | BB113: 13.5 | BC113: 0 | BD113: 0 | BE113: 0 | BF113: 0 | BG113: 3 | BH113: 0 | BI113: 1 | BJ113: 2 | BK113: Wreake | BL113: Worc | BM113: Rad | BN113: 0 | BO113: 0 | BP113: 0 | BQ113: 0 | BR113: 0 | BS113: X | BT113: Y | BU113: R | CC113: 39 | CD113: 44 | CE113: 29
A114: =B114&"A" -> 43A | B114: 43 | C114: =VLOOKUP(B114,EventsOrder,2,FALSE) -> 2.35 | D114: =VLOOKUP(B114,EventsOrder,4,FALSE) -> U17 Men | E114: A | F114: =IF(MID(D114,5,1)="F","F","M") -> M | G114: J | H114: Y | I114: R | J114: I | O114: 11.7 | P114: 11.7 | Q114: 11.8 | R114: 12 | W114: 0 | X114: 0 | Y114: 0 | Z114: 0 | AE114: =IF(LEN(G114)=0,"",VLOOKUP($B114,IF($F114="F",TeamSheetFemale,TeamSheetMale),CC114,FALSE)) -> Ollie Sprio | AF114: Claudio Oliviera | AG114: Harry New | AH114: Tyrese Paris-Smith | AM114: 8 | AN114: 0 | AO114: 0 | AP114: 5 | AQ114: 6 | AR114: 0 | AS114: 0 | AT114: 7 | AU114: 11.7 | AV114: 0 | AW114: 0 | AX114: 12 | AY114: 11.8 | AZ114: 0 | BA114: 0 | BB114: 11.7 | BC114: =IF(ISNA(MATCH(BC$29,$BS114:$BZ114,0)),0,MATCH(BC$29,$BS114:$BZ114,0)) -> 1 | BD114: 0 | BE114: 0 | BF114: 4 | BG114: 3 | BH114: 0 | BI114: 0 | BJ114: 2 | BK114: Ban | BL114: Worc | BM114: Rad | BN114: Kett | BO114: 0 | BP114: 0 | BQ114: 0 | BR114: 0 | BS114: J | BT114: Y | BU114: R | BV114: I | CC114: 7 | CD114: 42 | CE114: 27 | CF114: 22
A115: =B114&"B" -> 43B | D115: =VLOOKUP(B114,EventsOrder,3,FALSE) -> 100m | E115: B | G115: YY | H115: II | I115: JJ | J115: RR | O115: 11.8 | P115: 12.2 | Q115: 12.8 | R115: 12.8 | W115: 0 | X115: II | Y115: 0 | Z115: 0 | AE115: =IF(LEN(G115)=0,"",VLOOKUP($B114,IF($F114="F",TeamSheetFemale,TeamSheetMale),CC115,FALSE)) -> Reiss Francis | AF115: Achim Loibl | AG115: Felix Noble | AH115: Brett Halsey | AM115: 6 | AN115: 0 | AO115: 0 | AP115: 7 | AQ115: 5 | AR115: 0 | AS115: 0 | AT115: 8 | AU115: 12.8 | AV115: 0 | AW115: 0 | AX115: 12.2 | AY115: 12.8 | AZ115: 0 | BA115: 0 | BB115: 11.8 | BC115: 3 | BD115: 0 | BE115: 0 | BF115: 2 | BG115: 4 | BH115: 0 | BI115: 0 | BJ115: 1 | BK115: Worc | BL115: Kett | BM115: Ban | BN115: Rad | BO115: 0 | BP115: 0 | BQ115: 0 | BR115: 0 | BS115: Y | BT115: I | BU115: J | BV115: R | CC115: 44 | CD115: 24 | CE115: 9 | CF115: 29
A116: =B116&"A" -> 44A | B116: 44 | C116: =VLOOKUP(B116,EventsOrder,2,FALSE) -> 2.1 | D116: =VLOOKUP(B116,EventsOrder,4,FALSE) -> U11 Female | E116: A | F116: =IF(MID(D116,5,1)="F","F","M") -> F | G116: RR | H116: J | I116: F | J116: XX | K116: P | L116: YY | M116: I | N116: B | O116: 3.36 | P116: 3.3 | Q116: 3.26 | R116: 3.21 | S116: 3.19 | T116: 2.89 | U116: 2.7 | V116: 2.43 | W116: 0 | X116: 0 | Y116: F | Z116: 0 | AA116: 0 | AB116: 0 | AC116: 0 | AD116: 0 | AE116: =IF(LEN(G116)=0,"",VLOOKUP($B116,IF($F116="F",TeamSheetFemale,TeamSheetMale),CC116,FALSE)) -> Lily Black | AF116: Eimear Moss | AG116: Saoirse Au | AH116: Sophie Dunbobbin | AI116: Imogen Cox | AJ116: Alice Dixon | AK116: Kate Nelis | AL116: Ella Pearson | AM116: 7 | AN116: 4 | AO116: 1 | AP116: 2 | AQ116: 8 | AR116: 6 | AS116: 5 | AT116: 3 | AU116: 3.3 | AV116: 3.19 | AW116: 2.43 | AX116: 2.7 | AY116: 3.36 | AZ116: 3.26 | BA116: 3.21 | BB116: 2.89 | BC116: 2 | BD116: 5 | BE116: 8 | BF116: 7 | BG116: 1 | BH116: 3 | BI116: 4 | BJ116: 6 | BK116: Rad | BL116: Ban | BM116: Tam | BN116: Wreake | BO116: Bic | BP116: Worc | BQ116: Kett | BR116: DASH | BS116: R | BT116: J | BU116: F | BV116: X | BW116: P | BX116: Y | BY116: I | BZ116: B | CC116: 29 | CD116: 7 | CE116: 32 | CF116: 39 | CG116: 12 | CH116: 44 | CI116: 22 | CJ116: 17
A117: =B116&"B" -> 44B | D117: =VLOOKUP(B116,EventsOrder,3,FALSE) -> Long Jump | E117: B | G117: PP | H117: R | I117: FF | J117: JJ | K117: X | L117: II | M117: Y | N117: BB | O117: 3.11 | P117: 3.05 | Q117: 3.05 | R117: 2.95 | S117: 2.91 | T117: 2.44 | U117: 2.33 | V117: 2.26 | W117: PP | X117: 0 | Y117: FF | Z117: 0 | AA117: 0 | AB117: II | AC117: 0 | AD117: 0 | AE117: =IF(LEN(G117)=0,"",VLOOKUP($B116,IF($F116="F",TeamSheetFemale,TeamSheetMale),CC117,FALSE)) -> Josephine Parker | AF117: Audrey Winstone | AG117: Angelica Ramkee | AH117: Tilly Lainchbury | AI117: Isla Cullen | AJ117: Isabella Brockway | AK117: Beth Hallam | AL117: Kiera Adams | AM117: 5 | AN117: 8 | AO117: 1 | AP117: 3 | AQ117: 7 | AR117: 6 | AS117: 4 | AT117: 2 | AU117: 2.95 | AV117: 3.11 | AW117: 2.26 | AX117: 2.44 | AY117: 3.05 | AZ117: 3.05 | BA117: 2.91 | BB117: 2.33 | BC117: 4 | BD117: 1 | BE117: 8 | BF117: 6 | BG117: 2 | BH117: 3 | BI117: 5 | BJ117: 7 | BK117: Bic | BL117: Rad | BM117: Tam | BN117: Ban | BO117: Wreake | BP117: Kett | BQ117: Worc | BR117: DASH | BS117: P | BT117: R | BU117: F | BV117: J | BW117: X | BX117: I | BY117: Y | BZ117: B | CC117: 14 | CD117: 27 | CE117: 34 | CF117: 9 | CG117: 37 | CH117: 24 | CI117: 42 | CJ117: 19
A118: =B118&"A" -> 45A | B118: 45 | C118: =VLOOKUP(B118,EventsOrder,2,FALSE) -> 2.25 | D118: =VLOOKUP(B118,EventsOrder,4,FALSE) -> U15 Male | E118: A | F118: =IF(MID(D118,5,1)="F","F","M") -> M | G118: I | H118: Y | I118: B | J118: P | O118: 1.6 | P118: 1.57 | Q118: 1.51 | R118: 1.4 | W118: 0 | X118: 0 | Y118: 0 | Z118: P | AE118: =IF(LEN(G118)=0,"",VLOOKUP($B118,IF($F118="F",TeamSheetFemale,TeamSheetMale),CC118,FALSE)) -> Lewis-Morgan Barton | AF118: Andrew Jay | AG118: Tom Slater | AH118: Jamil Welham | AM118: 0 | AN118: 5 | AO118: 6 | AP118: 8 | AQ118: 0 | AR118: 0 | AS118: 0 | AT118: 7 | AU118: 0 | AV118: 1.4 | AW118: 1.51 | AX118: 1.6 | AY118: 0 | AZ118: 0 | BA118: 0 | BB118: 1.57 | BC118: 0 | BD118: 4 | BE118: 3 | BF118: 1 | BG118: 0 | BH118: 0 | BI118: 0 | BJ118: 2 | BK118: Kett | BL118: Worc | BM118: DASH | BN118: Bic | BO118: 0 | BP118: 0 | BQ118: 0 | BR118: 0 | BS118: I | BT118: Y | BU118: B | BV118: P | CC118: 22 | CD118: 42 | CE118: 17 | CF118: 12
A119: =B118&"B" -> 45B | D119: =VLOOKUP(B118,EventsOrder,3,FALSE) -> High Jump | E119: B | AE119: =IF(LEN(G119)=0,"",VLOOKUP($B118,IF($F118="F",TeamSheetFemale,TeamSheetMale),CC119,FALSE)) ->  | AM119: 0 | AN119: 0 | AO119: 0 | AP119: 0 | AQ119: 0 | AR119: 0 | AS119: 0 | AT119: 0 | AU119: 0 | AV119: 0 | AW119: 0 | AX119: 0 | AY119: 0 | AZ119: 0 | BA119: 0 | BB119: 0 | BC119: 0 | BD119: 0 | BE119: 0 | BF119: 0 | BG119: 0 | BH119: 0 | BI119: 0 | BJ119: 0 | BK119: 0 | BL119: 0 | BM119: 0 | BN119: 0 | BO119: 0 | BP119: 0 | BQ119: 0 | BR119: 0
A120: =B120&"A" -> 46A | B120: 46 | C120: =VLOOKUP(B120,EventsOrder,2,FALSE) ->  | D120: =VLOOKUP(B120,EventsOrder,4,FALSE) ->  | E120: A | F120: =IF(MID(D120,5,1)="F","F","M") ->  | AE120: =IF(LEN(G120)=0,"",VLOOKUP($B120,IF($F120="F",TeamSheetFemale,TeamSheetMale),CC120,FALSE)) ->  | AU120: 0 | AV120: 0 | AW120: 0 | AX120: 0 | AY120: 0 | AZ120: 0 | BA120: 0 | BB120: 0 | BC120: 0 | BD120: 0 | BE120: 0 | BF120: 0 | BG120: 0 | BH120: 0 | BI120: 0 | BJ120: 0 | BK120: 0 | BL120: 0 | BM120: 0 | BN120: 0 | BO120: 0 | BP120: 0 | BQ120: 0 | BR120: 0
A121: =B120&"B" -> 46B | D121: =VLOOKUP(B120,EventsOrder,3,FALSE) ->  | E121: B | AE121: =IF(LEN(G121)=0,"",VLOOKUP($B120,IF($F120="F",TeamSheetFemale,TeamSheetMale),CC121,FALSE)) ->  | AM121: 0 | AN121: 0 | AO121: 0 | AP121: 0 | AQ121: 0 | AR121: 0 | AS121: 0 | AT121: 0 | AU121: 0 | AV121: 0 | AW121: 0 | AX121: 0 | AY121: 0 | AZ121: 0 | BA121: 0 | BB121: 0 | BC121: 0 | BD121: 0 | BE121: 0 | BF121: 0 | BG121: 0 | BH121: 0 | BI121: 0 | BJ121: 0 | BK121: 0 | BL121: 0 | BM121: 0 | BN121: 0 | BO121: 0 | BP121: 0 | BQ121: 0 | BR121: 0
A122: =B122&"A" -> 47A | B122: 47 | C122: =VLOOKUP(B122,EventsOrder,2,FALSE) ->  | D122: =VLOOKUP(B122,EventsOrder,4,FALSE) ->  | E122: A | F122: =IF(MID(D122,5,1)="F","F","M") ->  | AE122: =IF(LEN(G122)=0,"",VLOOKUP($B122,IF($F122="F",TeamSheetFemale,TeamSheetMale),CC122,FALSE)) ->  | AU122: 0 | AV122: 0 | AW122: 0 | AX122: 0 | AY122: 0 | AZ122: 0 | BA122: 0 | BB122: 0 | BC122: 0 | BD122: 0 | BE122: 0 | BF122: 0 | BG122: 0 | BH122: 0 | BI122: 0 | BJ122: 0 | BK122: 0 | BL122: 0 | BM122: 0 | BN122: 0 | BO122: 0 | BP122: 0 | BQ122: 0 | BR122: 0
A123: =B122&"B" -> 47B | D123: =VLOOKUP(B122,EventsOrder,3,FALSE) ->  | E123: B | AE123: =IF(LEN(G123)=0,"",VLOOKUP($B122,IF($F122="F",TeamSheetFemale,TeamSheetMale),CC123,FALSE)) ->  | AM123: 0 | AN123: 0 | AO123: 0 | AP123: 0 | AQ123: 0 | AR123: 0 | AS123: 0 | AT123: 0 | AU123: 0 | AV123: 0 | AW123: 0 | AX123: 0 | AY123: 0 | AZ123: 0 | BA123: 0 | BB123: 0 | BC123: 0 | BD123: 0 | BE123: 0 | BF123: 0 | BG123: 0 | BH123: 0 | BI123: 0 | BJ123: 0 | BK123: 0 | BL123: 0 | BM123: 0 | BN123: 0 | BO123: 0 | BP123: 0 | BQ123: 0 | BR123: 0
A124: =B124&"A" -> 48A | B124: 48 | C124: =VLOOKUP(B124,EventsOrder,2,FALSE) ->  | D124: =VLOOKUP(B124,EventsOrder,4,FALSE) ->  | E124: A | F124: =IF(MID(D124,5,1)="F","F","M") ->  | AE124: =IF(LEN(G124)=0,"",VLOOKUP($B124,IF($F124="F",TeamSheetFemale,TeamSheetMale),CC124,FALSE)) ->  | AU124: 0 | AV124: 0 | AW124: 0 | AX124: 0 | AY124: 0 | AZ124: 0 | BA124: 0 | BB124: 0 | BC124: 0 | BD124: 0 | BE124: 0 | BF124: 0 | BG124: 0 | BH124: 0 | BI124: 0 | BJ124: 0 | BK124: =IF(LEN(G124)>0,VLOOKUP(LEFT(G124,1),Clubs,5,FALSE),0) -> 0 | BL124: =IF(LEN(H124)>0,VLOOKUP(LEFT(H124,1),Clubs,5,FALSE),0) -> 0 | BM124: =IF(LEN(I124)>0,VLOOKUP(LEFT(I124,1),Clubs,5,FALSE),0) -> 0 | BN124: =IF(LEN(J124)>0,VLOOKUP(LEFT(J124,1),Clubs,5,FALSE),0) -> 0 | BO124: =IF(LEN(K124)>0,VLOOKUP(LEFT(K124,1),Clubs,5,FALSE),0) -> 0 | BP124: =IF(LEN(L124)>0,VLOOKUP(LEFT(L124,1),Clubs,5,FALSE),0) -> 0 | BQ124: =IF(LEN(M124)>0,VLOOKUP(LEFT(M124,1),Clubs,5,FALSE),0) -> 0 | BR124: =IF(LEN(N124)>0,VLOOKUP(LEFT(N124,1),Clubs,5,FALSE),0) -> 0 | BS124: =LEFT(G124,1) -> 
A125: =B124&"B" -> 48B | D125: =VLOOKUP(B124,EventsOrder,3,FALSE) ->  | E125: B | AE125: =IF(LEN(G125)=0,"",VLOOKUP($B124,IF($F124="F",TeamSheetFemale,TeamSheetMale),CC125,FALSE)) ->  | AM125: 0 | AN125: 0 | AO125: 0 | AP125: 0 | AQ125: 0 | AR125: 0 | AS125: 0 | AT125: 0 | AU125: 0 | AV125: 0 | AW125: 0 | AX125: 0 | AY125: =OFFSET($N125,0,BG125) -> 0 | AZ125: =OFFSET($N125,0,BH125) -> 0 | BA125: =OFFSET($N125,0,BI125) -> 0 | BB125: =OFFSET($N125,0,BJ125) -> 0 | BC125: 0 | BD125: 0 | BE125: 0 | BF125: 0 | BG125: 0 | BH125: 0 | BI125: 0 | BJ125: 0 | BK125: 0 | BL125: 0 | BM125: 0 | BN125: 0 | BO125: 0 | BP125: 0 | BQ125: 0 | BR125: 0 | BT125: =LEFT(H125,1) ->  | BU125: =LEFT(I125,1) ->  | BV125: =LEFT(J125,1) ->  | BW125: =LEFT(K125,1) ->  | BX125: =LEFT(L125,1) ->  | BY125: =LEFT(M125,1) ->  | BZ125: =LEFT(N125,1) -> 
A126: =B126&"A" -> 49A | B126: 49 | C126: =VLOOKUP(B126,EventsOrder,2,FALSE) ->  | D126: =VLOOKUP(B126,EventsOrder,4,FALSE) ->  | E126: A | F126: =IF(MID(D126,5,1)="F","F","M") ->  | AE126: =IF(LEN(G126)=0,"",VLOOKUP($B126,IF($F126="F",TeamSheetFemale,TeamSheetMale),CC126,FALSE)) ->  | AM126: =IF(OR($F126="NS",AU126="DNF"),0,IF(BC126>0,$BK$29+1-BC126,0)) ->  | AN126: =IF(OR($F126="NS",AV126="DNF"),0,IF(BD126>0,$BK$29+1-BD126,0)) ->  | AO126: =IF(OR($F126="NS",AW126="DNF"),0,IF(BE126>0,$BK$29+1-BE126,0)) ->  | AP126: =IF(OR($F126="NS",AX126="DNF"),0,IF(BF126>0,$BK$29+1-BF126,0)) ->  | AQ126: =IF(OR($F126="NS",AY126="DNF"),0,IF(BG126>0,$BK$29+1-BG126,0)) ->  | AR126: =IF(OR($F126="NS",AZ126="DNF"),0,IF(BH126>0,$BK$29+1-BH126,0)) ->  | AS126: =IF(OR($F126="NS",BA126="DNF"),0,IF(BI126>0,$BK$29+1-BI126,0)) ->  | AT126: =IF(OR($F126="NS",BB126="DNF"),0,IF(BJ126>0,$BK$29+1-BJ126,0)) ->  | AU126: 0 | AV126: 0 | AW126: 0 | AX126: 0 | AY126: 0 | AZ126: 0 | BA126: 0 | BB126: 0 | BC126: 0 | BD126: 0 | BE126: 0 | BF126: 0 | BG126: 0 | BH126: 0 | BI126: 0 | BJ126: 0 | BK126: 0 | BL126: 0 | BM126: 0 | BN126: 0 | BO126: 0 | BP126: 0 | BQ126: 0 | BR126: 0
A127: =B126&"B" -> 49B | D127: =VLOOKUP(B126,EventsOrder,3,FALSE) ->  | E127: B | AE127: =IF(LEN(G127)=0,"",VLOOKUP($B126,IF($F126="F",TeamSheetFemale,TeamSheetMale),CC127,FALSE)) ->  | AM127: 0 | AN127: 0 | AO127: 0 | AP127: 0 | AQ127: 0 | AR127: 0 | AS127: 0 | AT127: 0 | AU127: 0 | AV127: 0 | AW127: 0 | AX127: 0 | AY127: 0 | AZ127: 0 | BA127: 0 | BB127: 0 | BC127: 0 | BD127: 0 | BE127: 0 | BF127: 0 | BG127: 0 | BH127: 0 | BI127: 0 | BJ127: 0 | BK127: 0 | BL127: 0 | BM127: 0 | BN127: 0 | BO127: 0 | BP127: 0 | BQ127: 0 | BR127: 0
A128: =B128&"A" -> 50A | B128: 50 | C128: =VLOOKUP(B128,EventsOrder,2,FALSE) -> 2.4 | D128: =VLOOKUP(B128,EventsOrder,4,FALSE) -> U15 Female | E128: A | F128: =IF(MID(D128,5,1)="F","F","M") -> F | G128: B | H128: Y | I128: I | J128: P | K128: R | L128: F | M128: X | N128: J | O128: 43.1 | P128: 43.2 | Q128: 43.9 | R128: 46.5 | S128: 47.2 | T128: 47.5 | U128: 49.8 | V128: 49.9 | W128: 0 | X128: 0 | Y128: 0 | Z128: 0 | AA128: 0 | AB128: 0 | AC128: 0 | AD128: 0 | AE128: =IF(LEN(G128)=0,"",VLOOKUP($B128,IF($F128="F",TeamSheetFemale,TeamSheetMale),CC128,FALSE)) -> Emma Shorwood | AF128: Danielle Hopkins | AG128: Emily Williams | AH128: Molly Acton | AI128: Martha Adams | AJ128: Sian Lewis | AK128: Rachel Nealon | AL128: Sydney Sellers | AM128: 1 | AN128: 5 | AO128: 8 | AP128: 6 | AQ128: 4 | AR128: 3 | AS128: 2 | AT128: 7 | AU128: 49.9 | AV128: 46.5 | AW128: 43.1 | AX128: 43.9 | AY128: 47.2 | AZ128: 47.5 | BA128: 49.8 | BB128: 43.2 | BC128: 8 | BD128: 4 | BE128: 1 | BF128: 3 | BG128: 5 | BH128: 6 | BI128: 7 | BJ128: 2 | BK128: DASH | BL128: Worc | BM128: Kett | BN128: Bic | BO128: Rad | BP128: Tam | BQ128: Wreake | BR128: Ban | BS128: B | BT128: Y | BU128: I | BV128: P | BW128: R | BX128: F | BY128: X | BZ128: J | CC128: =IF(LEN(G128)=0,"",HLOOKUP(BS128,$CC$26:$CJ$28,2,FALSE)+IF(LEN(G128)=2,2,0)) -> 17 | CD128: 42 | CE128: 22 | CF128: 12 | CG128: 27 | CH128: 32 | CI128: 37 | CJ128: 7
A129: =B128&"B" -> 50B | D129: =VLOOKUP(B128,EventsOrder,3,FALSE) -> 300m | E129: B | G129: XX | H129: BB | I129: RR | J129: II | K129: YY | L129: JJ | O129: 43.9 | P129: 46.4 | Q129: 47.7 | R129: 48.8 | S129: 49.7 | T129: 51.6 | W129: 0 | X129: 0 | Y129: 0 | Z129: II | AA129: 0 | AB129: 0 | AE129: =IF(LEN(G129)=0,"",VLOOKUP($B128,IF($F128="F",TeamSheetFemale,TeamSheetMale),CC129,FALSE)) -> Zena Challenger | AF129: Claudia Lee | AG129: Rachel Burton | AH129: Blainne Conway | AI129: Elise Blake | AJ129: Elizabeth Eskender | AM129: 3 | AN129: 0 | AO129: 7 | AP129: 5 | AQ129: 6 | AR129: 0 | AS129: 8 | AT129: 4 | AU129: 51.6 | AV129: 0 | AW129: 46.4 | AX129: 48.8 | AY129: 47.7 | AZ129: 0 | BA129: 43.9 | BB129: 49.7 | BC129: 6 | BD129: 0 | BE129: 2 | BF129: 4 | BG129: 3 | BH129: 0 | BI129: 1 | BJ129: 5 | BK129: Wreake | BL129: DASH | BM129: Rad | BN129: Kett | BO129: Worc | BP129: Ban | BQ129: 0 | BR129: 0 | BS129: X | BT129: B | BU129: R | BV129: I | BW129: Y | BX129: J | CC129: 39 | CD129: 19 | CE129: 29 | CF129: 24 | CG129: 44 | CH129: 9
A130: =B130&"A" -> 51A | B130: 51 | C130: =VLOOKUP(B130,EventsOrder,2,FALSE) -> 2.45 | D130: =VLOOKUP(B130,EventsOrder,4,FALSE) -> U17 F/Women | E130: A | F130: =IF(MID(D130,5,1)="F","F","M") -> F | G130: R | H130: I | I130: J | O130: 45.4 | P130: 46.3 | Q130: 46.4 | W130: 0 | X130: 0 | Y130: 0 | AE130: =IF(LEN(G130)=0,"",VLOOKUP($B130,IF($F130="F",TeamSheetFemale,TeamSheetMale),CC130,FALSE)) -> Stephanie Mott | AF130: Niamh Monaghan | AG130: Rebecca Scott | AM130: 6 | AN130: 0 | AO130: 0 | AP130: 7 | AQ130: 8 | AR130: 0 | AS130: 0 | AT130: 0 | AU130: 46.4 | AV130: 0 | AW130: 0 | AX130: 46.3 | AY130: 45.4 | AZ130: 0 | BA130: 0 | BB130: 0 | BC130: =IF(ISNA(MATCH(BC$29,$BS130:$BZ130,0)),0,MATCH(BC$29,$BS130:$BZ130,0)) -> 3 | BD130: 0 | BE130: 0 | BF130: 2 | BG130: 1 | BH130: 0 | BI130: 0 | BJ130: 0 | BK130: Rad | BL130: Kett | BM130: Ban | BN130: 0 | BO130: 0 | BP130: 0 | BQ130: 0 | BR130: 0 | BS130: R | BT130: I | BU130: J | CC130: 27 | CD130: 22 | CE130: 7
A131: =B130&"B" -> 51B | D131: =VLOOKUP(B130,EventsOrder,3,FALSE) -> 300m | E131: B | G131: II | H131: RR | O131: 45.3 | P131: 46.2 | W131: II | X131: 0 | AE131: =IF(LEN(G131)=0,"",VLOOKUP($B130,IF($F130="F",TeamSheetFemale,TeamSheetMale),CC131,FALSE)) -> Harriett Jolley | AF131: Leah Brown | AM131: 0 | AN131: 0 | AO131: 0 | AP131: 8 | AQ131: 7 | AR131: 0 | AS131: 0 | AT131: 0 | AU131: =OFFSET($N131,0,BC131) -> 0 | AV131: =OFFSET($N131,0,BD131) -> 0 | AW131: =OFFSET($N131,0,BE131) -> 0 | AX131: =OFFSET($N131,0,BF131) -> 45.3 | AY131: 46.2 | AZ131: 0 | BA131: 0 | BB131: 0 | BC131: 0 | BD131: 0 | BE131: 0 | BF131: 1 | BG131: 2 | BH131: 0 | BI131: 0 | BJ131: 0 | BK131: Kett | BL131: Rad | BM131: 0 | BN131: 0 | BO131: 0 | BP131: 0 | BQ131: 0 | BR131: 0 | BS131: I | BT131: R | CC131: 24 | CD131: 29
A132: =B132&"A" -> 52A | B132: 52 | C132: =VLOOKUP(B132,EventsOrder,2,FALSE) -> 2.4 | D132: =VLOOKUP(B132,EventsOrder,4,FALSE) -> U13 Male | E132: A | F132: =IF(MID(D132,5,1)="F","F","M") -> M | G132: I | H132: Y | I132: F | J132: XX | K132: B | L132: P | M132: R | O132: 7.48 | P132: 5.78 | Q132: 5 | R132: 4.94 | S132: 4.78 | T132: 4.64 | U132: 4.41 | W132: 0 | X132: 0 | Y132: 0 | Z132: 0 | AA132: 0 | AB132: P | AC132: 0 | AE132: =IF(LEN(G132)=0,"",VLOOKUP($B132,IF($F132="F",TeamSheetFemale,TeamSheetMale),CC132,FALSE)) -> Samuel Harrison | AF132: Alex Santafe | AG132: Kai Buckley | AH132: Matthew Reuben | AI132: John Sparry | AJ132: Samuel Rayson | AK132: Benjamin Cumberland | AM132: 0 | AN132: 3 | AO132: 4 | AP132: 8 | AQ132: 2 | AR132: 6 | AS132: 5 | AT132: 7 | AU132: 0 | AV132: 4.64 | AW132: 4.78 | AX132: 7.48 | AY132: 4.41 | AZ132: 5 | BA132: 4.94 | BB132: 5.78 | BC132: 0 | BD132: 6 | BE132: 5 | BF132: 1 | BG132: 7 | BH132: 3 | BI132: 4 | BJ132: 2 | BK132: Kett | BL132: Worc | BM132: Tam | BN132: Wreake | BO132: DASH | BP132: Bic | BQ132: Rad | BR132: 0 | BS132: I | BT132: Y | BU132: F | BV132: X | BW132: B | BX132: P | BY132: R | CC132: 22 | CD132: 42 | CE132: 32 | CF132: 39 | CG132: 17 | CH132: 12 | CI132: 27
A133: =B132&"B" -> 52B | D133: =VLOOKUP(B132,EventsOrder,3,FALSE) -> Shot | E133: B | G133: YY | H133: FF | I133: RR | J133: PP | K133: X | L133: BB | M133: II | O133: 5.78 | P133: 4.39 | Q133: 4.22 | R133: 3.82 | S133: 3.69 | T133: 3.67 | U133: 2.71 | W133: 0 | X133: FF | Y133: 0 | Z133: PP | AA133: 0 | AB133: 0 | AC133: II | AE133: =IF(LEN(G133)=0,"",VLOOKUP($B132,IF($F132="F",TeamSheetFemale,TeamSheetMale),CC133,FALSE)) -> Spike Burnage | AF133: Daniel Aston | AG133: Rowan Miell-Ingram | AH133: Sean Lock | AI133: David Seidu | AJ133: Nathan Pearson | AK133: Ben Brooker | AM133: 0 | AN133: 5 | AO133: 3 | AP133: 2 | AQ133: 6 | AR133: 7 | AS133: 4 | AT133: 8 | AU133: 0 | AV133: 3.82 | AW133: 3.67 | AX133: 2.71 | AY133: 4.22 | AZ133: 4.39 | BA133: 3.69 | BB133: 5.78 | BC133: 0 | BD133: 4 | BE133: 6 | BF133: 7 | BG133: 3 | BH133: 2 | BI133: 5 | BJ133: 1 | BK133: Worc | BL133: Tam | BM133: Rad | BN133: Bic | BO133: Wreake | BP133: DASH | BQ133: Kett | BR133: 0 | BS133: Y | BT133: F | BU133: R | BV133: P | BW133: X | BX133: B | BY133: I | CC133: 44 | CD133: 34 | CE133: 29 | CF133: 14 | CG133: 37 | CH133: 19 | CI133: 24
A134: =B134&"A" -> 53A | B134: 53 | C134: =VLOOKUP(B134,EventsOrder,2,FALSE) -> 2.4 | D134: =VLOOKUP(B134,EventsOrder,4,FALSE) -> U17 Female | E134: A | F134: =IF(MID(D134,5,1)="F","F","M") -> F | G134: R | H134: J | I134: Y | J134: X | O134: 22.76 | P134: 17.94 | Q134: 13.99 | R134: 10.54 | W134: 0 | X134: 0 | Y134: 0 | Z134: 0 | AE134: =IF(LEN(G134)=0,"",VLOOKUP($B134,IF($F134="F",TeamSheetFemale,TeamSheetMale),CC134,FALSE)) -> Petrina Chantler-Edmond | AF134: Paige Cooper | AG134: Cara Clarke | AH134: Fern Harrison | AM134: 7 | AN134: 0 | AO134: 0 | AP134: 0 | AQ134: 8 | AR134: 0 | AS134: 5 | AT134: 6 | AU134: 17.94 | AV134: 0 | AW134: 0 | AX134: 0 | AY134: 22.76 | AZ134: 0 | BA134: 10.54 | BB134: 13.99 | BC134: 2 | BD134: 0 | BE134: 0 | BF134: 0 | BG134: 1 | BH134: 0 | BI134: 4 | BJ134: 3 | BK134: Rad | BL134: Ban | BM134: Worc | BN134: Wreake | BO134: 0 | BP134: 0 | BQ134: 0 | BR134: 0 | BS134: R | BT134: J | BU134: Y | BV134: X | CC134: 27 | CD134: 7 | CE134: 42 | CF134: 37
A135: =B134&"B" -> 53B | D135: =VLOOKUP(B134,EventsOrder,3,FALSE) -> Discus (U17) | E135: B | G135: RR | H135: JJ | O135: 12.75 | P135: 11.65 | W135: 0 | X135: 0 | AE135: =IF(LEN(G135)=0,"",VLOOKUP($B134,IF($F134="F",TeamSheetFemale,TeamSheetMale),CC135,FALSE)) -> Stephanie Mott | AF135: Helen Dubber | AM135: 7 | AN135: 0 | AO135: 0 | AP135: 0 | AQ135: 8 | AR135: 0 | AS135: 0 | AT135: 0 | AU135: 11.65 | AV135: 0 | AW135: 0 | AX135: 0 | AY135: 12.75 | AZ135: 0 | BA135: 0 | BB135: 0 | BC135: 2 | BD135: 0 | BE135: 0 | BF135: 0 | BG135: 1 | BH135: 0 | BI135: 0 | BJ135: 0 | BK135: Rad | BL135: Ban | BM135: 0 | BN135: 0 | BO135: 0 | BP135: 0 | BQ135: 0 | BR135: 0 | BS135: R | BT135: J | CC135: 29 | CD135: 9
A136: =B136&"A" -> 54A | B136: 54 | C136: =VLOOKUP(B136,EventsOrder,2,FALSE) -> 2.4 | D136: =VLOOKUP(B136,EventsOrder,4,FALSE) -> U15 Female | E136: A | F136: =IF(MID(D136,5,1)="F","F","M") -> F | AE136: =IF(LEN(G136)=0,"",VLOOKUP($B136,IF($F136="F",TeamSheetFemale,TeamSheetMale),CC136,FALSE)) ->  | AM136: 0 | AN136: 0 | AO136: 0 | AP136: 0 | AQ136: 0 | AR136: 0 | AS136: 0 | AT136: 0 | AU136: 0 | AV136: 0 | AW136: 0 | AX136: 0 | AY136: 0 | AZ136: 0 | BA136: 0 | BB136: 0 | BC136: 0 | BD136: 0 | BE136: 0 | BF136: 0 | BG136: 0 | BH136: 0 | BI136: 0 | BJ136: 0 | BK136: 0 | BL136: 0 | BM136: 0 | BN136: 0 | BO136: 0 | BP136: 0 | BQ136: 0 | BR136: 0
A137: =B136&"B" -> 54B | D137: =VLOOKUP(B136,EventsOrder,3,FALSE) -> Javelin | E137: B | AE137: =IF(LEN(G137)=0,"",VLOOKUP($B136,IF($F136="F",TeamSheetFemale,TeamSheetMale),CC137,FALSE)) ->  | AM137: 0 | AN137: 0 | AO137: 0 | AP137: 0 | AQ137: 0 | AR137: 0 | AS137: 0 | AT137: 0 | AU137: 0 | AV137: 0 | AW137: 0 | AX137: 0 | AY137: 0 | AZ137: 0 | BA137: 0 | BB137: 0 | BC137: 0 | BD137: 0 | BE137: 0 | BF137: 0 | BG137: 0 | BH137: 0 | BI137: 0 | BJ137: 0 | BK137: 0 | BL137: 0 | BM137: 0 | BN137: 0 | BO137: 0 | BP137: 0 | BQ137: 0 | BR137: 0
A138: =B138&"A" -> 55A | B138: 55 | C138: =VLOOKUP(B138,EventsOrder,2,FALSE) -> 2.55 | D138: =VLOOKUP(B138,EventsOrder,4,FALSE) -> U15 Male | E138: A | F138: =IF(MID(D138,5,1)="F","F","M") -> M | G138: P | H138: I | I138: F | J138: B | K138: X | L138: J | M138: Y | N138: R | O138: 40.5 | P138: 41 | Q138: 42.8 | R138: 43.5 | S138: 46 | T138: 46.7 | U138: 47.2 | V138: 54.3 | W138: P | X138: 0 | Y138: 0 | Z138: 0 | AA138: 0 | AB138: 0 | AC138: 0 | AD138: 0 | AE138: =IF(LEN(G138)=0,"",VLOOKUP($B138,IF($F138="F",TeamSheetFemale,TeamSheetMale),CC138,FALSE)) -> Jamil Welham | AF138: Henri Codling | AG138: Max Kent | AH138: Adam Boon | AI138: Roman Watson-Quilter | AJ138: Skip Snelson | AK138: Sam Davey | AL138: Cameron King | AM138: 3 | AN138: 8 | AO138: 5 | AP138: 7 | AQ138: 1 | AR138: 6 | AS138: 4 | AT138: 2 | AU138: 46.7 | AV138: 40.5 | AW138: 43.5 | AX138: 41 | AY138: 54.3 | AZ138: 42.8 | BA138: 46 | BB138: 47.2 | BC138: 6 | BD138: 1 | BE138: 4 | BF138: 2 | BG138: 8 | BH138: 3 | BI138: 5 | BJ138: 7 | BK138: Bic | BL138: Kett | BM138: Tam | BN138: DASH | BO138: Wreake | BP138: Ban | BQ138: Worc | BR138: Rad | BS138: P | BT138: I | BU138: F | BV138: B | BW138: X | BX138: J | BY138: Y | BZ138: R | CC138: 12 | CD138: 22 | CE138: 32 | CF138: 17 | CG138: 37 | CH138: 7 | CI138: 42 | CJ138: 27
A139: =B138&"B" -> 55B | D139: =VLOOKUP(B138,EventsOrder,3,FALSE) -> 300m | E139: B | G139: II | H139: BB | I139: XX | J139: RR | O139: 44.7 | P139: 44.7 | Q139: 49.3 | R139: 57.7 | W139: II | X139: 0 | Y139: 0 | Z139: 0 | AE139: =IF(LEN(G139)=0,"",VLOOKUP($B138,IF($F138="F",TeamSheetFemale,TeamSheetMale),CC139,FALSE)) -> Ethan Nelis | AF139: Talinder Kumar | AG139: Lucca Watson-Quilter | AH139: Richard Bungay | AM139: 0 | AN139: 0 | AO139: 7 | AP139: 8 | AQ139: 5 | AR139: 0 | AS139: 6 | AT139: 0 | AU139: 0 | AV139: 0 | AW139: 44.7 | AX139: 44.7 | AY139: 57.7 | AZ139: 0 | BA139: 49.3 | BB139: 0 | BC139: 0 | BD139: 0 | BE139: 2 | BF139: 1 | BG139: 4 | BH139: 0 | BI139: 3 | BJ139: 0 | BK139: Kett | BL139: DASH | BM139: Wreake | BN139: Rad | BO139: 0 | BP139: 0 | BQ139: 0 | BR139: 0 | BS139: I | BT139: B | BU139: X | BV139: R | CC139: 24 | CD139: 19 | CE139: 39 | CF139: 29
A140: =B140&"A" -> 56A | B140: 56 | C140: =VLOOKUP(B140,EventsOrder,2,FALSE) -> 2.5 | D140: =VLOOKUP(B140,EventsOrder,4,FALSE) -> U13 Female | E140: A | F140: =IF(MID(D140,5,1)="F","F","M") -> F | G140: J | H140: I | I140: XX | J140: R | K140: F | L140: P | M140: BB | N140: Y | O140: 4.18 | P140: 3.77 | Q140: 3.73 | R140: 3.65 | S140: 3.6 | T140: 3.41 | U140: 3.35 | V140: 3.01 | W140: 0 | X140: 0 | Y140: 0 | Z140: 0 | AA140: 0 | AB140: 0 | AC140: 0 | AD140: 0 | AE140: =IF(LEN(G140)=0,"",VLOOKUP($B140,IF($F140="F",TeamSheetFemale,TeamSheetMale),CC140,FALSE)) -> Tegan Armstrong | AF140: Millie Webb | AG140: Flora Miskin-Young | AH140: Erin Mcmillan | AI140: Sian Hubbard | AJ140: Amelia Cox | AK140: Alina Gunnard | AL140: Katie Dudley | AM140: 8 | AN140: 3 | AO140: 2 | AP140: 7 | AQ140: 5 | AR140: 4 | AS140: 6 | AT140: 1 | AU140: 4.18 | AV140: 3.41 | AW140: 3.35 | AX140: 3.77 | AY140: 3.65 | AZ140: 3.6 | BA140: 3.73 | BB140: 3.01 | BC140: 1 | BD140: 6 | BE140: 7 | BF140: 2 | BG140: 4 | BH140: 5 | BI140: 3 | BJ140: 8 | BK140: Ban | BL140: Kett | BM140: Wreake | BN140: Rad | BO140: Tam | BP140: Bic | BQ140: DASH | BR140: Worc | BS140: J | BT140: I | BU140: X | BV140: R | BW140: F | BX140: P | BY140: B | BZ140: Y | CC140: 7 | CD140: 22 | CE140: 39 | CF140: 27 | CG140: 32 | CH140: 12 | CI140: 19 | CJ140: 42
A141: =B140&"B" -> 56B | D141: =VLOOKUP(B140,EventsOrder,3,FALSE) -> Long Jump | E141: B | G141: X | H141: FF | I141: JJ | J141: II | K141: RR | L141: PP | M141: B | N141: YY | O141: 3.63 | P141: 3.56 | Q141: 3.55 | R141: 3.55 | S141: 3.52 | T141: 3.29 | U141: 3.11 | V141: 2.44 | W141: 0 | X141: FF | Y141: 0 | Z141: II | AA141: 0 | AB141: 0 | AC141: 0 | AD141: 0 | AE141: =IF(LEN(G141)=0,"",VLOOKUP($B140,IF($F140="F",TeamSheetFemale,TeamSheetMale),CC141,FALSE)) -> Isobel Orencas | AF141: Niamh Kilgallen | AG141: Elizabeth Anderson | AH141: Robyn Beale | AI141: Poppy Edwards | AJ141: emilia simms | AK141: Libby Davis | AL141: Bethany Harris | AM141: 6 | AN141: 3 | AO141: 2 | AP141: 5 | AQ141: 4 | AR141: 7 | AS141: 8 | AT141: 1 | AU141: 3.55 | AV141: 3.29 | AW141: 3.11 | AX141: 3.55 | AY141: 3.52 | AZ141: 3.56 | BA141: 3.63 | BB141: 2.44 | BC141: 3 | BD141: 6 | BE141: 7 | BF141: 4 | BG141: 5 | BH141: 2 | BI141: 1 | BJ141: 8 | BK141: Wreake | BL141: Tam | BM141: Ban | BN141: Kett | BO141: Rad | BP141: Bic | BQ141: DASH | BR141: Worc | BS141: X | BT141: F | BU141: J | BV141: I | BW141: R | BX141: P | BY141: B | BZ141: Y | CC141: 37 | CD141: 34 | CE141: 9 | CF141: 24 | CG141: 29 | CH141: 14 | CI141: 17 | CJ141: 44
A142: =B142&"A" -> 57A | B142: 57 | C142: =VLOOKUP(B142,EventsOrder,2,FALSE) -> 3 | D142: =VLOOKUP(B142,EventsOrder,4,FALSE) -> U17 Men | E142: A | F142: =IF(MID(D142,5,1)="F","F","M") -> M | G142: Y | H142: R | I142: F | J142: B | K142: X | O142: 53.6 | P142: 57 | Q142: 57.3 | R142: 58.1 | S142: 62.4 | W142: 0 | X142: 0 | Y142: 0 | Z142: 0 | AA142: 0 | AE142: =IF(LEN(G142)=0,"",VLOOKUP($B142,IF($F142="F",TeamSheetFemale,TeamSheetMale),CC142,FALSE)) -> Sam Lowe | AF142: Rory Sear | AG142: Andrew Woods | AH142: Jayvana Pramolo | AI142: George Palmer | AM142: 0 | AN142: 0 | AO142: 5 | AP142: 0 | AQ142: 7 | AR142: 6 | AS142: 4 | AT142: 8 | AU142: 0 | AV142: 0 | AW142: 58.1 | AX142: 0 | AY142: 57 | AZ142: 57.3 | BA142: 62.4 | BB142: 53.6 | BC142: 0 | BD142: 0 | BE142: 4 | BF142: 0 | BG142: 2 | BH142: 3 | BI142: 5 | BJ142: 1 | BK142: Worc | BL142: Rad | BM142: Tam | BN142: DASH | BO142: Wreake | BP142: 0 | BQ142: 0 | BR142: 0 | BS142: Y | BT142: R | BU142: F | BV142: B | BW142: X | CC142: 42 | CD142: =IF(LEN(H142)=0,"",HLOOKUP(BT142,$CC$26:$CJ$28,2,FALSE)+IF(LEN(H142)=2,2,0)) -> 27 | CE142: =IF(LEN(I142)=0,"",HLOOKUP(BU142,$CC$26:$CJ$28,2,FALSE)+IF(LEN(I142)=2,2,0)) -> 32 | CF142: =IF(LEN(J142)=0,"",HLOOKUP(BV142,$CC$26:$CJ$28,2,FALSE)+IF(LEN(J142)=2,2,0)) -> 17 | CG142: =IF(LEN(K142)=0,"",HLOOKUP(BW142,$CC$26:$CJ$28,2,FALSE)+IF(LEN(K142)=2,2,0)) -> 37 | CH142: =IF(LEN(L142)=0,"",HLOOKUP(BX142,$CC$26:$CJ$28,2,FALSE)+IF(LEN(L142)=2,2,0)) ->  | CI142: =IF(LEN(M142)=0,"",HLOOKUP(BY142,$CC$26:$CJ$28,2,FALSE)+IF(LEN(M142)=2,2,0)) ->  | CJ142: =IF(LEN(N142)=0,"",HLOOKUP(BZ142,$CC$26:$CJ$28,2,FALSE)+IF(LEN(N142)=2,2,0)) -> 
A143: =B142&"B" -> 57B | D143: =VLOOKUP(B142,EventsOrder,3,FALSE) -> 400m | E143: B | G143: RR | O143: 56.9 | W143: 0 | AE143: =IF(LEN(G143)=0,"",VLOOKUP($B142,IF($F142="F",TeamSheetFemale,TeamSheetMale),CC143,FALSE)) -> Sam Nelson | AM143: 0 | AN143: 0 | AO143: 0 | AP143: 0 | AQ143: 8 | AR143: 0 | AS143: 0 | AT143: 0 | AU143: 0 | AV143: 0 | AW143: 0 | AX143: 0 | AY143: 56.9 | AZ143: 0 | BA143: 0 | BB143: 0 | BC143: 0 | BD143: 0 | BE143: 0 | BF143: 0 | BG143: 1 | BH143: 0 | BI143: 0 | BJ143: 0 | BK143: Rad | BL143: 0 | BM143: 0 | BN143: 0 | BO143: 0 | BP143: 0 | BQ143: 0 | BR143: 0 | BS143: R | CC143: 29
A144: =B144&"A" -> 58A | B144: 58 | C144: =VLOOKUP(B144,EventsOrder,2,FALSE) -> 3.1 | D144: =VLOOKUP(B144,EventsOrder,4,FALSE) -> U11 Female | E144: A | F144: =IF(MID(D144,5,1)="F","F","M") -> F | G144: X | H144: P | I144: I | J144: F | K144: J | L144: R | M144: Y | N144: B | O144: 11.5 | P144: 11.6 | Q144: 11.7 | R144: 11.7 | S144: 11.9 | T144: 12.2 | U144: 13 | V144: 14.4 | W144: 0 | X144: 0 | Y144: 0 | Z144: F | AA144: 0 | AB144: 0 | AC144: 0 | AD144: 0 | AE144: =IF(LEN(G144)=0,"",VLOOKUP($B144,IF($F144="F",TeamSheetFemale,TeamSheetMale),CC144,FALSE)) -> Kiyomi Topham | AF144: Josephine Parker | AG144: Kate Nelis | AH144: Saoirse Au | AI144: Eimear Moss | AJ144: Audrey Winstone | AK144: Molly Davey | AL144: Kiera Adams | AM144: 4 | AN144: 7 | AO144: 1 | AP144: 6 | AQ144: 3 | AR144: 5 | AS144: 8 | AT144: 2 | AU144: 11.9 | AV144: 11.6 | AW144: 14.4 | AX144: 11.7 | AY144: 12.2 | AZ144: 11.7 | BA144: 11.5 | BB144: 13 | BC144: 5 | BD144: 2 | BE144: 8 | BF144: 3 | BG144: 6 | BH144: 4 | BI144: 1 | BJ144: 7 | BK144: Wreake | BL144: Bic | BM144: Kett | BN144: Tam | BO144: Ban | BP144: Rad | BQ144: Worc | BR144: DASH | BS144: X | BT144: P | BU144: I | BV144: F | BW144: J | BX144: R | BY144: Y | BZ144: B | CC144: 37 | CD144: 12 | CE144: 22 | CF144: 32 | CG144: 7 | CH144: 27 | CI144: 42 | CJ144: 17
A145: =B144&"B" -> 58B | D145: =VLOOKUP(B144,EventsOrder,3,FALSE) -> 75m | E145: B | G145: PP | H145: RR | I145: XX | J145: II | K145: JJ | L145: FF | M145: BB | N145: YY | O145: 11.7 | P145: 12.5 | Q145: 12.5 | R145: 12.9 | S145: 12.9 | T145: 13 | U145: 13.3 | V145: 13.4 | W145: PP | X145: 0 | Y145: 0 | Z145: II | AA145: 0 | AB145: FF | AC145: 0 | AD145: 0 | AE145: =IF(LEN(G145)=0,"",VLOOKUP($B144,IF($F144="F",TeamSheetFemale,TeamSheetMale),CC145,FALSE)) -> Isla Bohannon | AF145: Lily Black | AG145: Bronte Cameron | AH145: Niamh Sinnott | AI145: Ellie Williams | AJ145: Angelica Ramkee | AK145: Neve Gibbs | AL145: Georgia Wharton | AM145: 4 | AN145: 8 | AO145: 2 | AP145: 5 | AQ145: 7 | AR145: 3 | AS145: 6 | AT145: 1 | AU145: 12.9 | AV145: 11.7 | AW145: 13.3 | AX145: 12.9 | AY145: 12.5 | AZ145: 13 | BA145: 12.5 | BB145: 13.4 | BC145: 5 | BD145: 1 | BE145: 7 | BF145: 4 | BG145: 2 | BH145: 6 | BI145: 3 | BJ145: 8 | BK145: Bic | BL145: Rad | BM145: Wreake | BN145: Kett | BO145: Ban | BP145: Tam | BQ145: DASH | BR145: Worc | BS145: P | BT145: R | BU145: X | BV145: I | BW145: J | BX145: F | BY145: B | BZ145: Y | CC145: 14 | CD145: 29 | CE145: 39 | CF145: 24 | CG145: 9 | CH145: 34 | CI145: 19 | CJ145: 44
A146: =B146&"A" -> 59A | B146: 59 | C146: =VLOOKUP(B146,EventsOrder,2,FALSE) -> 3.15 | D146: =VLOOKUP(B146,EventsOrder,4,FALSE) -> U11 Female | E146: A | F146: =IF(MID(D146,5,1)="F","F","M") -> F | G146: FF | H146: J | I146: X | J146: RR | K146: Y | O146: 12.5 | P146: 12.7 | Q146: 12.7 | R146: 14.3 | S146: 14.5 | W146: 26 | X146: 558 | Y146: 401 | Z146: 525 | AA146: 117 | AE146: =IF(LEN(G146)=0,"",VLOOKUP($B146,IF($F146="F",TeamSheetFemale,TeamSheetMale),CC146,FALSE)) -> Madison Rose Blencowe | AF146: Tilly Lainchbury | AG146: Harriett Lethridge | AH146: Erin Bungay | AI146: Jasmine Stokes | AM146: 7 | AN146: 0 | AO146: 0 | AP146: 0 | AQ146: 5 | AR146: 8 | AS146: 6 | AT146: 4 | AU146: 12.7 | AV146: 0 | AW146: 0 | AX146: 0 | AY146: 14.3 | AZ146: 12.5 | BA146: 12.7 | BB146: 14.5 | BC146: =IF(ISNA(MATCH(BC$29,$BS146:$BZ146,0)),0,MATCH(BC$29,$BS146:$BZ146,0)) -> 2 | BD146: 0 | BE146: 0 | BF146: 0 | BG146: 4 | BH146: 1 | BI146: 3 | BJ146: 5 | BK146: Tam | BL146: Ban | BM146: Wreake | BN146: Rad | BO146: Worc | BP146: 0 | BQ146: 0 | BR146: 0 | BS146: F | BT146: J | BU146: X | BV146: R | BW146: Y | CC146: 34 | CD146: 7 | CE146: 37 | CF146: 29 | CG146: 42
A147: =B146&"B" -> 59B | D147: =VLOOKUP(B146,EventsOrder,3,FALSE) -> 75m | E147: B | G147: R | H147: JJ | I147: F | J147: YY | K147: XX | L147: B | O147: 12.3 | P147: 12.5 | Q147: 12.9 | R147: 13.5 | S147: 14 | T147: 14.8 | W147: 524 | X147: 559 | Y147: 25 | Z147: 120 | AA147: 402 | AB147: 201 | AE147: =IF(LEN(G147)=0,"",VLOOKUP($B146,IF($F146="F",TeamSheetFemale,TeamSheetMale),CC147,FALSE)) -> Ainhara Ly | AF147: Olivia Cook | AG147: Daisy Smith | AH147: Alice Dixon | AI147: Isabelle Parker | AJ147: Ella Pearson | AM147: 7 | AN147: 0 | AO147: 3 | AP147: 0 | AQ147: 8 | AR147: 6 | AS147: 4 | AT147: 5 | AU147: 12.5 | AV147: 0 | AW147: 14.8 | AX147: 0 | AY147: 12.3 | AZ147: 12.9 | BA147: 14 | BB147: 13.5 | BC147: 2 | BD147: 0 | BE147: 6 | BF147: 0 | BG147: 1 | BH147: 3 | BI147: 5 | BJ147: 4 | BK147: Rad | BL147: Ban | BM147: Tam | BN147: Worc | BO147: Wreake | BP147: DASH | BQ147: 0 | BR147: 0 | BS147: R | BT147: J | BU147: F | BV147: Y | BW147: X | BX147: B | CC147: 27 | CD147: 9 | CE147: 32 | CF147: 44 | CG147: 39 | CH147: 17
A148: =B148&"A" -> 60A | B148: 60 | C148: =VLOOKUP(B148,EventsOrder,2,FALSE) -> 3.1 | D148: =VLOOKUP(B148,EventsOrder,4,FALSE) -> U17 F/Women | E148: A | F148: =IF(MID(D148,5,1)="F","F","M") -> F | G148: J | H148: Y | I148: R | O148: 1.45 | P148: 1.35 | Q148: 1.35 | W148: 0 | X148: 0 | Y148: 0 | AE148: =IF(LEN(G148)=0,"",VLOOKUP($B148,IF($F148="F",TeamSheetFemale,TeamSheetMale),CC148,FALSE)) -> Rebecca Scott | AF148: Grace Murray | AG148: Megan Baker | AM148: 8 | AN148: 0 | AO148: 0 | AP148: 0 | AQ148: 6 | AR148: 0 | AS148: 0 | AT148: 7 | AU148: 1.45 | AV148: 0 | AW148: 0 | AX148: 0 | AY148: 1.35 | AZ148: 0 | BA148: 0 | BB148: 1.35 | BC148: 1 | BD148: 0 | BE148: 0 | BF148: 0 | BG148: 3 | BH148: 0 | BI148: 0 | BJ148: 2 | BK148: Ban | BL148: Worc | BM148: Rad | BN148: 0 | BO148: 0 | BP148: 0 | BQ148: 0 | BR148: 0 | BS148: J | BT148: Y | BU148: R | CC148: 7 | CD148: 42 | CE148: 27
A149: =B148&"B" -> 60B | D149: =VLOOKUP(B148,EventsOrder,3,FALSE) -> High Jump | E149: B | AE149: =IF(LEN(G149)=0,"",VLOOKUP($B148,IF($F148="F",TeamSheetFemale,TeamSheetMale),CC149,FALSE)) ->  | AM149: 0 | AN149: 0 | AO149: 0 | AP149: 0 | AQ149: 0 | AR149: 0 | AS149: 0 | AT149: 0 | AU149: 0 | AV149: 0 | AW149: 0 | AX149: 0 | AY149: 0 | AZ149: 0 | BA149: 0 | BB149: 0 | BC149: 0 | BD149: 0 | BE149: 0 | BF149: 0 | BG149: 0 | BH149: 0 | BI149: 0 | BJ149: 0 | BK149: 0 | BL149: 0 | BM149: 0 | BN149: 0 | BO149: 0 | BP149: 0 | BQ149: 0 | BR149: 0
A150: =B150&"A" -> 61A | B150: 61 | C150: =VLOOKUP(B150,EventsOrder,2,FALSE) -> 3.2 | D150: =VLOOKUP(B150,EventsOrder,4,FALSE) -> U11 Male | E150: A | F150: =IF(MID(D150,5,1)="F","F","M") -> M | G150: P | H150: J | I150: B | J150: F | K150: I | L150: Y | M150: R | N150: X | O150: 11.2 | P150: 11.4 | Q150: 11.7 | R150: 11.8 | S150: 12 | T150: 12.4 | U150: 12.6 | V150: 13.4 | W150: 0 | X150: 0 | Y150: 0 | Z150: 0 | AA150: 0 | AB150: 0 | AC150: 0 | AD150: 0 | AE150: =IF(LEN(G150)=0,"",VLOOKUP($B150,IF($F150="F",TeamSheetFemale,TeamSheetMale),CC150,FALSE)) -> Joshua Parker | AF150: Ethan Aldous | AG150: Joel Harrison | AH150: Luca Bradley | AI150: Aaron Holloway | AJ150: Linus Burnage | AK150: Jake Edwards | AL150: Theo York | AM150: 7 | AN150: 8 | AO150: 6 | AP150: 4 | AQ150: 2 | AR150: 5 | AS150: 1 | AT150: 3 | AU150: 11.4 | AV150: 11.2 | AW150: 11.7 | AX150: 12 | AY150: 12.6 | AZ150: 11.8 | BA150: 13.4 | BB150: 12.4 | BC150: 2 | BD150: 1 | BE150: 3 | BF150: 5 | BG150: 7 | BH150: 4 | BI150: 8 | BJ150: 6 | BK150: Bic | BL150: Ban | BM150: DASH | BN150: Tam | BO150: Kett | BP150: Worc | BQ150: Rad | BR150: Wreake | BS150: P | BT150: J | BU150: B | BV150: F | BW150: I | BX150: Y | BY150: R | BZ150: X | CC150: 12 | CD150: 7 | CE150: 17 | CF150: 32 | CG150: 22 | CH150: 42 | CI150: 27 | CJ150: 37
A151: =B150&"B" -> 61B | D151: =VLOOKUP(B150,EventsOrder,3,FALSE) -> 75m | E151: B | G151: JJ | H151: FF | I151: YY | J151: XX | K151: PP | L151: II | M151: RR | O151: 11.3 | P151: 11.7 | Q151: 11.9 | R151: 11.9 | S151: 12 | T151: 12.2 | U151: 13.7 | W151: 0 | X151: FF | Y151: 0 | Z151: 0 | AA151: PP | AB151: II | AC151: 0 | AE151: =IF(LEN(G151)=0,"",VLOOKUP($B150,IF($F150="F",TeamSheetFemale,TeamSheetMale),CC151,FALSE)) -> Leo Anderson | AF151: Ashley Johnson | AG151: Harry Ferrett | AH151: Sam Orange | AI151: Timothy Jones | AJ151: Oliver McAllister | AK151: Caspar Cumberland | AM151: 8 | AN151: 4 | AO151: 0 | AP151: 3 | AQ151: 2 | AR151: 7 | AS151: 5 | AT151: 6 | AU151: 11.3 | AV151: 12 | AW151: 0 | AX151: 12.2 | AY151: 13.7 | AZ151: 11.7 | BA151: 11.9 | BB151: 11.9 | BC151: 1 | BD151: 5 | BE151: 0 | BF151: 6 | BG151: 7 | BH151: 2 | BI151: 4 | BJ151: 3 | BK151: Ban | BL151: Tam | BM151: Worc | BN151: Wreake | BO151: Bic | BP151: Kett | BQ151: Rad | BR151: 0 | BS151: J | BT151: F | BU151: Y | BV151: X | BW151: P | BX151: I | BY151: R | CC151: 9 | CD151: 34 | CE151: 44 | CF151: 39 | CG151: 14 | CH151: 24 | CI151: 29
A152: =B152&"A" -> 62A | B152: 62 | C152: =VLOOKUP(B152,EventsOrder,2,FALSE) -> 3.25 | D152: =VLOOKUP(B152,EventsOrder,4,FALSE) -> U11 Male | E152: A | F152: =IF(MID(D152,5,1)="F","F","M") -> M | G152: I | H152: JJ | I152: YY | J152: JJ | K152: II | L152: YY | O152: 12 | P152: 12.5 | Q152: 12.6 | R152: 12.6 | S152: 12.8 | T152: 13.9 | W152: 58 | X152: 557 | Y152: 109 | Z152: 557 | AA152: 59 | AB152: 109 | AE152: =IF(LEN(G152)=0,"",VLOOKUP($B152,IF($F152="F",TeamSheetFemale,TeamSheetMale),CC152,FALSE)) -> Theo Crick | AF152: Ruben Snelson | AG152: Jack Adams | AH152: Ruben Snelson | AI152: Ellis Watts | AJ152: Jack Adams | AM152: 7 | AN152: 0 | AO152: 0 | AP152: 8 | AQ152: 0 | AR152: 0 | AS152: 0 | AT152: 6 | AU152: 12.5 | AV152: 0 | AW152: 0 | AX152: 12 | AY152: 0 | AZ152: 0 | BA152: 0 | BB152: 12.6 | BC152: 2 | BD152: 0 | BE152: 0 | BF152: 1 | BG152: 0 | BH152: 0 | BI152: 0 | BJ152: 3 | BK152: Kett | BL152: Ban | BM152: Worc | BN152: Ban | BO152: Kett | BP152: Worc | BQ152: 0 | BR152: 0 | BS152: I | BT152: J | BU152: Y | BV152: J | BW152: I | BX152: Y | CC152: 22 | CD152: 9 | CE152: 44 | CF152: 9 | CG152: 24 | CH152: 44
A153: =B152&"B" -> 62B | D153: =VLOOKUP(B152,EventsOrder,3,FALSE) -> 75m | E153: B | AE153: =IF(LEN(G153)=0,"",VLOOKUP($B152,IF($F152="F",TeamSheetFemale,TeamSheetMale),CC153,FALSE)) ->  | AM153: 0 | AN153: 0 | AO153: 0 | AP153: 0 | AQ153: 0 | AR153: 0 | AS153: 0 | AT153: 0 | AU153: 0 | AV153: 0 | AW153: 0 | AX153: 0 | AY153: 0 | AZ153: 0 | BA153: 0 | BB153: 0 | BC153: 0 | BD153: 0 | BE153: 0 | BF153: 0 | BG153: 0 | BH153: 0 | BI153: 0 | BJ153: 0 | BK153: 0 | BL153: 0 | BM153: 0 | BN153: 0 | BO153: 0 | BP153: 0 | BQ153: 0 | BR153: 0
A154: =B154&"A" -> 63A | B154: 63 | C154: =VLOOKUP(B154,EventsOrder,2,FALSE) -> 3.35 | D154: =VLOOKUP(B154,EventsOrder,4,FALSE) -> U13 Female | E154: A | F154: =IF(MID(D154,5,1)="F","F","M") -> F | G154: Y | H154: X | I154: I | J154: J | K154: R | L154: P | M154: F | N154: B | O154: 30.1 | P154: 30.2 | Q154: 30.6 | R154: 31.4 | S154: 32.5 | T154: 34 | U154: 34.4 | V154: 34.6 | W154: 0 | X154: 0 | Y154: 0 | Z154: 0 | AA154: 0 | AB154: 0 | AC154: 0 | AD154: 0 | AE154: =IF(LEN(G154)=0,"",VLOOKUP($B154,IF($F154="F",TeamSheetFemale,TeamSheetMale),CC154,FALSE)) -> Aimee Cochrane | AF154: Isobel Orencas | AG154: Millie Webb | AH154: Raegan Sellers | AI154: Maddison Hurley | AJ154: Emilia Sims | AK154: Sian Hubbard | AL154: Hannah Gadd | AM154: 5 | AN154: 3 | AO154: 1 | AP154: 6 | AQ154: 4 | AR154: 2 | AS154: 7 | AT154: 8 | AU154: 31.4 | AV154: 34 | AW154: 34.6 | AX154: 30.6 | AY154: 32.5 | AZ154: 34.4 | BA154: 30.2 | BB154: 30.1 | BC154: 4 | BD154: 6 | BE154: 8 | BF154: 3 | BG154: 5 | BH154: 7 | BI154: 2 | BJ154: 1 | BK154: Worc | BL154: Wreake | BM154: Kett | BN154: Ban | BO154: Rad | BP154: Bic | BQ154: Tam | BR154: DASH | BS154: Y | BT154: X | BU154: I | BV154: J | BW154: R | BX154: P | BY154: F | BZ154: B | CC154: 42 | CD154: 37 | CE154: 22 | CF154: 7 | CG154: 27 | CH154: 12 | CI154: 32 | CJ154: 17
A155: =B154&"B" -> 63B | D155: =VLOOKUP(B154,EventsOrder,3,FALSE) -> 200m | E155: B | G155: YY | H155: II | I155: RR | J155: JJ | K155: XX | L155: PP | M155: FF | O155: 30.5 | P155: 31.1 | Q155: 31.7 | R155: 31.8 | S155: 33 | T155: 34.2 | U155: 34.3 | W155: 0 | X155: II | Y155: 0 | Z155: 0 | AA155: 0 | AB155: 0 | AC155: FF | AE155: =IF(LEN(G155)=0,"",VLOOKUP($B154,IF($F154="F",TeamSheetFemale,TeamSheetMale),CC155,FALSE)) -> Jemima Hobby | AF155: Scarlett Maxwell-Munn | AG155: Kaela Nelson | AH155: Sophie Howie | AI155: Rebecca Cullen | AJ155: Imogen Ansell | AK155: Georgina Weal | AM155: 5 | AN155: 3 | AO155: 0 | AP155: 7 | AQ155: 6 | AR155: 2 | AS155: 4 | AT155: 8 | AU155: 31.8 | AV155: 34.2 | AW155: 0 | AX155: 31.1 | AY155: 31.7 | AZ155: 34.3 | BA155: 33 | BB155: 30.5 | BC155: 4 | BD155: 6 | BE155: 0 | BF155: 2 | BG155: 3 | BH155: 7 | BI155: 5 | BJ155: 1 | BK155: Worc | BL155: Kett | BM155: Rad | BN155: Ban | BO155: Wreake | BP155: Bic | BQ155: Tam | BR155: 0 | BS155: Y | BT155: I | BU155: R | BV155: J | BW155: X | BX155: P | BY155: F | CC155: 44 | CD155: 24 | CE155: 29 | CF155: 9 | CG155: 39 | CH155: 14 | CI155: 34
A156: =B156&"A" -> 64A | B156: 64 | C156: =VLOOKUP(B156,EventsOrder,2,FALSE) -> 3.2 | D156: =VLOOKUP(B156,EventsOrder,4,FALSE) -> U13 Male | E156: A | F156: =IF(MID(D156,5,1)="F","F","M") -> M | G156: RR | H156: B | I156: F | J156: I | K156: P | L156: YY | M156: J | N156: XX | O156: 4.22 | P156: 4.13 | Q156: 4.03 | R156: 3.98 | S156: 3.97 | T156: 3.89 | U156: 3.7 | V156: 3.69 | W156: 0 | X156: 0 | Y156: 0 | Z156: 0 | AA156: P | AB156: 0 | AC156: 0 | AD156: 0 | AE156: =IF(LEN(G156)=0,"",VLOOKUP($B156,IF($F156="F",TeamSheetFemale,TeamSheetMale),CC156,FALSE)) -> Samuel Rose | AF156: Jack Compton | AG156: Kai Buckley | AH156: Cole Sinnott | AI156: Ben Groves | AJ156: Reuben Taylor-George | AK156: Archie Jones | AL156: Matthew Reuben | AM156: 2 | AN156: 4 | AO156: 7 | AP156: 5 | AQ156: 8 | AR156: 6 | AS156: 1 | AT156: 3 | AU156: 3.7 | AV156: 3.97 | AW156: 4.13 | AX156: 3.98 | AY156: 4.22 | AZ156: 4.03 | BA156: 3.69 | BB156: 3.89 | BC156: 7 | BD156: 5 | BE156: 2 | BF156: 4 | BG156: 1 | BH156: 3 | BI156: 8 | BJ156: 6 | BK156: Rad | BL156: DASH | BM156: Tam | BN156: Kett | BO156: Bic | BP156: Worc | BQ156: Ban | BR156: Wreake | BS156: R | BT156: B | BU156: F | BV156: I | BW156: P | BX156: Y | BY156: J | BZ156: X | CC156: 29 | CD156: 17 | CE156: 32 | CF156: 22 | CG156: 12 | CH156: 44 | CI156: 7 | CJ156: 39
A157: =B156&"B" -> 64B | D157: =VLOOKUP(B156,EventsOrder,3,FALSE) -> Long Jump | E157: B | G157: PP | H157: Y | I157: BB | J157: R | K157: FF | L157: X | O157: 3.87 | P157: 3.78 | Q157: 3.72 | R157: 3.68 | S157: 3.53 | T157: 3.44 | W157: PP | X157: 0 | Y157: 0 | Z157: 0 | AA157: FF | AB157: 0 | AE157: =IF(LEN(G157)=0,"",VLOOKUP($B156,IF($F156="F",TeamSheetFemale,TeamSheetMale),CC157,FALSE)) -> Samuel Rayson | AF157: Harry Cunningham | AG157: Nathan Pearson | AH157: Benjamin Cumberland | AI157: Oran Au | AJ157: Euan Gibbs | AM157: 0 | AN157: 8 | AO157: 6 | AP157: 0 | AQ157: 5 | AR157: 4 | AS157: 3 | AT157: 7 | AU157: 0 | AV157: 3.87 | AW157: 3.72 | AX157: 0 | AY157: 3.68 | AZ157: 3.53 | BA157: 3.44 | BB157: 3.78 | BC157: 0 | BD157: 1 | BE157: 3 | BF157: 0 | BG157: 4 | BH157: 5 | BI157: 6 | BJ157: 2 | BK157: Bic | BL157: Worc | BM157: DASH | BN157: Rad | BO157: Tam | BP157: Wreake | BQ157: 0 | BR157: 0 | BS157: P | BT157: Y | BU157: B | BV157: R | BW157: F | BX157: X | CC157: 14 | CD157: 42 | CE157: 19 | CF157: 27 | CG157: 34 | CH157: 37
A158: =B158&"A" -> 65A | B158: 65 | C158: =VLOOKUP(B158,EventsOrder,2,FALSE) -> 3.3 | D158: =VLOOKUP(B158,EventsOrder,4,FALSE) -> U13 Female | E158: A | F158: =IF(MID(D158,5,1)="F","F","M") -> F | G158: YY | H158: P | I158: JJ | J158: I | K158: B | L158: F | M158: XX | N158: RR | O158: 6.35 | P158: 6.34 | Q158: 6.1 | R158: 5.58 | S158: 5.57 | T158: 5.57 | U158: 5.15 | V158: 4.2 | W158: 0 | X158: 0 | Y158: 0 | Z158: 0 | AA158: 0 | AB158: 0 | AC158: 0 | AD158: 0 | AE158: =IF(LEN(G158)=0,"",VLOOKUP($B158,IF($F158="F",TeamSheetFemale,TeamSheetMale),CC158,FALSE)) -> Amber Hopkins | AF158: Amber Parker | AG158: Maddy Dowden | AH158: Charlotte Cox | AI158: Zara Gibbs | AJ158: Alice Mason | AK158: Isabelle Wilson | AL158: Maddison Hurley | AM158: =IF(OR($F158="NS",AU158="DNF"),0,IF(BC158>0,$BK$29+1-BC158,0)) -> 6 | AN158: =IF(OR($F158="NS",AV158="DNF"),0,IF(BD158>0,$BK$29+1-BD158,0)) -> 7 | AO158: =IF(OR($F158="NS",AW158="DNF"),0,IF(BE158>0,$BK$29+1-BE158,0)) -> 4 | AP158: =IF(OR($F158="NS",AX158="DNF"),0,IF(BF158>0,$BK$29+1-BF158,0)) -> 5 | AQ158: =IF(OR($F158="NS",AY158="DNF"),0,IF(BG158>0,$BK$29+1-BG158,0)) -> 1 | AR158: =IF(OR($F158="NS",AZ158="DNF"),0,IF(BH158>0,$BK$29+1-BH158,0)) -> 3 | AS158: =IF(OR($F158="NS",BA158="DNF"),0,IF(BI158>0,$BK$29+1-BI158,0)) -> 2 | AT158: =IF(OR($F158="NS",BB158="DNF"),0,IF(BJ158>0,$BK$29+1-BJ158,0)) -> 8 | AU158: 6.1 | AV158: 6.34 | AW158: 5.57 | AX158: 5.58 | AY158: 4.2 | AZ158: 5.57 | BA158: 5.15 | BB158: 6.35 | BC158: 3 | BD158: 2 | BE158: 5 | BF158: 4 | BG158: 8 | BH158: 6 | BI158: 7 | BJ158: 1 | BK158: Worc | BL158: Bic | BM158: Ban | BN158: Kett | BO158: DASH | BP158: Tam | BQ158: Wreake | BR158: Rad | BS158: Y | BT158: P | BU158: J | BV158: I | BW158: B | BX158: F | BY158: X | BZ158: R | CC158: 44 | CD158: 12 | CE158: 9 | CF158: 22 | CG158: 17 | CH158: 32 | CI158: 39 | CJ158: 29
A159: =B158&"B" -> 65B | D159: =VLOOKUP(B158,EventsOrder,3,FALSE) -> Shot | E159: B | G159: Y | H159: J | I159: X | J159: PP | K159: BB | L159: R | M159: FF | N159: II | O159: 6.07 | P159: 5.5 | Q159: 5.06 | R159: 4.52 | S159: 4.45 | T159: 4.06 | U159: 3.33 | V159: 2.85 | W159: 0 | X159: 0 | Y159: 0 | Z159: 0 | AA159: 0 | AB159: 0 | AC159: FF | AD159: II | AE159: =IF(LEN(G159)=0,"",VLOOKUP($B158,IF($F158="F",TeamSheetFemale,TeamSheetMale),CC159,FALSE)) -> Ani Patrick | AF159: Lucy Thompson | AG159: Indie King | AH159: Erin Fabri | AI159: Alina Gunnard | AJ159: Amelia Brew | AK159: Tegan Vickery | AL159: Imogen Nix | AM159: 7 | AN159: 5 | AO159: 4 | AP159: 1 | AQ159: 3 | AR159: 2 | AS159: 6 | AT159: 8 | AU159: 5.5 | AV159: 4.52 | AW159: 4.45 | AX159: 2.85 | AY159: 4.06 | AZ159: 3.33 | BA159: 5.06 | BB159: 6.07 | BC159: 2 | BD159: 4 | BE159: 5 | BF159: 8 | BG159: 6 | BH159: 7 | BI159: 3 | BJ159: 1 | BK159: Worc | BL159: Ban | BM159: Wreake | BN159: Bic | BO159: DASH | BP159: Rad | BQ159: Tam | BR159: Kett | BS159: Y | BT159: J | BU159: X | BV159: P | BW159: B | BX159: R | BY159: F | BZ159: I | CC159: 42 | CD159: 7 | CE159: 37 | CF159: 14 | CG159: 19 | CH159: 27 | CI159: 34 | CJ159: 24
A160: =B160&"A" -> 66A | B160: 66 | C160: =VLOOKUP(B160,EventsOrder,2,FALSE) -> 3.3 | D160: =VLOOKUP(B160,EventsOrder,4,FALSE) -> U15 Male | E160: A | F160: =IF(MID(D160,5,1)="F","F","M") -> M | G160: R | H160: P | I160: I | J160: BB | K160: Y | L160: X | M160: F | O160: 27.54 | P160: 17.68 | Q160: 16.36 | R160: 13.87 | S160: 13.4 | T160: 12.61 | U160: 11.57 | W160: 0 | X160: P | Y160: 0 | Z160: 0 | AA160: 0 | AB160: 0 | AC160: 0 | AE160: =IF(LEN(G160)=0,"",VLOOKUP($B160,IF($F160="F",TeamSheetFemale,TeamSheetMale),CC160,FALSE)) -> Will Smith | AF160: Will Simms | AG160: Henri Codling | AH160: Harry Walters | AI160: Reece Westwood | AJ160: Roman Watson-Quilter | AK160: James Sherriff | AM160: 0 | AN160: 7 | AO160: 5 | AP160: 6 | AQ160: 8 | AR160: 2 | AS160: 3 | AT160: 4 | AU160: 0 | AV160: 17.68 | AW160: 13.87 | AX160: 16.36 | AY160: 27.54 | AZ160: 11.57 | BA160: 12.61 | BB160: 13.4 | BC160: 0 | BD160: 2 | BE160: 4 | BF160: 3 | BG160: 1 | BH160: 7 | BI160: 6 | BJ160: 5 | BK160: Rad | BL160: Bic | BM160: Kett | BN160: DASH | BO160: Worc | BP160: Wreake | BQ160: Tam | BR160: 0 | BS160: R | BT160: P | BU160: I | BV160: B | BW160: Y | BX160: X | BY160: F | CC160: =IF(LEN(G160)=0,"",HLOOKUP(BS160,$CC$26:$CJ$28,2,FALSE)+IF(LEN(G160)=2,2,0)) -> 27 | CD160: 12 | CE160: 22 | CF160: 19 | CG160: 42 | CH160: 37 | CI160: 32
A161: =B160&"B" -> 66B | D161: =VLOOKUP(B160,EventsOrder,3,FALSE) -> Discus | E161: B | G161: II | H161: PP | I161: FF | J161: XX | K161: B | O161: 14.79 | P161: 14.57 | Q161: 11.41 | R161: 11.23 | S161: 9.75 | W161: II | X161: PP | Y161: FF | Z161: 0 | AA161: 0 | AE161: =IF(LEN(G161)=0,"",VLOOKUP($B160,IF($F160="F",TeamSheetFemale,TeamSheetMale),CC161,FALSE)) -> Dylan Bowley | AF161: Samuel Worfolk | AG161: Max Kent | AH161: Lucca Watson-Quilter | AI161: Zak Thurley | AM161: 0 | AN161: 7 | AO161: 4 | AP161: 8 | AQ161: 0 | AR161: 6 | AS161: 5 | AT161: 0 | AU161: 0 | AV161: 14.57 | AW161: 9.75 | AX161: 14.79 | AY161: 0 | AZ161: 11.41 | BA161: 11.23 | BB161: 0 | BC161: 0 | BD161: 2 | BE161: 5 | BF161: 1 | BG161: 0 | BH161: 3 | BI161: 4 | BJ161: 0 | BK161: Kett | BL161: Bic | BM161: Tam | BN161: Wreake | BO161: DASH | BP161: 0 | BQ161: 0 | BR161: 0 | BS161: I | BT161: P | BU161: F | BV161: X | BW161: B | CC161: 24 | CD161: 14 | CE161: 34 | CF161: 39 | CG161: 17
A162: =B162&"A" -> 67A | B162: 67 | C162: =VLOOKUP(B162,EventsOrder,2,FALSE) -> 3.3 | D162: =VLOOKUP(B162,EventsOrder,4,FALSE) -> U17 Men | E162: A | F162: =IF(MID(D162,5,1)="F","F","M") -> M | AE162: =IF(LEN(G162)=0,"",VLOOKUP($B162,IF($F162="F",TeamSheetFemale,TeamSheetMale),CC162,FALSE)) ->  | AM162: 0 | AN162: 0 | AO162: 0 | AP162: 0 | AQ162: 0 | AR162: 0 | AS162: 0 | AT162: 0 | AU162: 0 | AV162: 0 | AW162: 0 | AX162: 0 | AY162: 0 | AZ162: 0 | BA162: 0 | BB162: 0 | BC162: =IF(ISNA(MATCH(BC$29,$BS162:$BZ162,0)),0,MATCH(BC$29,$BS162:$BZ162,0)) -> 0 | BD162: 0 | BE162: 0 | BF162: 0 | BG162: 0 | BH162: 0 | BI162: 0 | BJ162: 0 | BK162: 0 | BL162: 0 | BM162: 0 | BN162: 0 | BO162: 0 | BP162: 0 | BQ162: 0 | BR162: 0
A163: =B162&"B" -> 67B | D163: =VLOOKUP(B162,EventsOrder,3,FALSE) -> Javelin | E163: B | AE163: =IF(LEN(G163)=0,"",VLOOKUP($B162,IF($F162="F",TeamSheetFemale,TeamSheetMale),CC163,FALSE)) ->  | AM163: 0 | AN163: 0 | AO163: 0 | AP163: 0 | AQ163: 0 | AR163: 0 | AS163: 0 | AT163: 0 | AU163: =OFFSET($N163,0,BC163) -> 0 | AV163: =OFFSET($N163,0,BD163) -> 0 | AW163: =OFFSET($N163,0,BE163) -> 0 | AX163: =OFFSET($N163,0,BF163) -> 0 | AY163: 0 | AZ163: 0 | BA163: 0 | BB163: 0 | BC163: 0 | BD163: 0 | BE163: 0 | BF163: 0 | BG163: 0 | BH163: 0 | BI163: 0 | BJ163: 0 | BK163: 0 | BL163: 0 | BM163: 0 | BN163: 0 | BO163: 0 | BP163: 0 | BQ163: 0 | BR163: 0
A164: =B164&"A" -> 68A | B164: 68 | C164: =VLOOKUP(B164,EventsOrder,2,FALSE) -> 3.4 | D164: =VLOOKUP(B164,EventsOrder,4,FALSE) -> U15 Female | E164: A | F164: =IF(MID(D164,5,1)="F","F","M") -> F | G164: X | H164: I | I164: F | J164: R | K164: Y | L164: B | M164: P | N164: J | O164: 27.4 | P164: 27.5 | Q164: 27.9 | R164: 28.1 | S164: 28.4 | T164: 28.7 | U164: 31 | V164: 32 | W164: 0 | X164: 0 | Y164: 0 | Z164: 0 | AA164: 0 | AB164: 0 | AC164: 0 | AD164: 0 | AE164: =IF(LEN(G164)=0,"",VLOOKUP($B164,IF($F164="F",TeamSheetFemale,TeamSheetMale),CC164,FALSE)) -> Josie Orange | AF164: Ellen Smith | AG164: Eve Clawley | AH164: Holly Griffiths-Brown | AI164: Lydia Wehling | AJ164: Claudia Lee | AK164: Charlotte Hewett | AL164: Emelina Darvell | AM164: 1 | AN164: 2 | AO164: 3 | AP164: 7 | AQ164: 5 | AR164: 6 | AS164: 8 | AT164: 4 | AU164: 32 | AV164: 31 | AW164: 28.7 | AX164: 27.5 | AY164: 28.1 | AZ164: 27.9 | BA164: 27.4 | BB164: 28.4 | BC164: 8 | BD164: 7 | BE164: 6 | BF164: 2 | BG164: 4 | BH164: 3 | BI164: 1 | BJ164: 5 | BK164: Wreake | BL164: Kett | BM164: Tam | BN164: Rad | BO164: Worc | BP164: DASH | BQ164: Bic | BR164: Ban | BS164: X | BT164: I | BU164: F | BV164: R | BW164: Y | BX164: B | BY164: P | BZ164: J | CC164: 37 | CD164: 22 | CE164: 32 | CF164: 27 | CG164: 42 | CH164: 17 | CI164: 12 | CJ164: 7
A165: =B164&"B" -> 68B | D165: =VLOOKUP(B164,EventsOrder,3,FALSE) -> 200m | E165: B | G165: BB | H165: YY | I165: XX | J165: II | K165: RR | O165: 28.3 | P165: 28.4 | Q165: 28.6 | R165: 29.2 | S165: 29.8 | W165: 0 | X165: 0 | Y165: 0 | Z165: II | AA165: 0 | AE165: =IF(LEN(G165)=0,"",VLOOKUP($B164,IF($F164="F",TeamSheetFemale,TeamSheetMale),CC165,FALSE)) -> Grace Slater | AF165: Deanna Clarke | AG165: Poppy Tott-Buswell | AH165: Harmony Hart | AI165: Olivia Butler | AM165: 0 | AN165: 0 | AO165: 8 | AP165: 5 | AQ165: 4 | AR165: 0 | AS165: 6 | AT165: 7 | AU165: 0 | AV165: 0 | AW165: 28.3 | AX165: 29.2 | AY165: 29.8 | AZ165: 0 | BA165: 28.6 | BB165: 28.4 | BC165: 0 | BD165: 0 | BE165: 1 | BF165: 4 | BG165: 5 | BH165: 0 | BI165: 3 | BJ165: 2 | BK165: DASH | BL165: Worc | BM165: Wreake | BN165: Kett | BO165: Rad | BP165: 0 | BQ165: 0 | BR165: 0 | BS165: B | BT165: Y | BU165: X | BV165: I | BW165: R | CC165: 19 | CD165: 44 | CE165: 39 | CF165: 24 | CG165: 29
A166: =B166&"A" -> 69A | B166: 69 | C166: =VLOOKUP(B166,EventsOrder,2,FALSE) -> 3.45 | D166: =VLOOKUP(B166,EventsOrder,4,FALSE) -> U17 F/Women | E166: A | F166: =IF(MID(D166,5,1)="F","F","M") -> F | G166: I | H166: Y | I166: R | J166: X | K166: B | L166: J | M166: P | O166: 26.1 | P166: 26.8 | Q166: 28.2 | R166: 28.5 | S166: 28.8 | T166: 29.9 | U166: 31 | W166: 0 | X166: 0 | Y166: 0 | Z166: 0 | AA166: 0 | AB166: 0 | AC166: 0 | AE166: =IF(LEN(G166)=0,"",VLOOKUP($B166,IF($F166="F",TeamSheetFemale,TeamSheetMale),CC166,FALSE)) -> Erin Healy | AF166: Hannah Kenwright | AG166: Stephanie Mott | AH166: Ella Grainger | AI166: Lauren Millward | AJ166: Helen Dubber | AK166: U20 Emily Benfield | AM166: 3 | AN166: 2 | AO166: 4 | AP166: 8 | AQ166: 6 | AR166: 0 | AS166: 5 | AT166: 7 | AU166: 29.9 | AV166: 31 | AW166: 28.8 | AX166: 26.1 | AY166: 28.2 | AZ166: 0 | BA166: 28.5 | BB166: 26.8 | BC166: 6 | BD166: 7 | BE166: 5 | BF166: 1 | BG166: 3 | BH166: 0 | BI166: 4 | BJ166: 2 | BK166: Kett | BL166: Worc | BM166: Rad | BN166: Wreake | BO166: DASH | BP166: Ban | BQ166: Bic | BR166: 0 | BS166: I | BT166: Y | BU166: R | BV166: X | BW166: B | BX166: J | BY166: P | CC166: 22 | CD166: 42 | CE166: 27 | CF166: 37 | CG166: 17 | CH166: 7 | CI166: 12
A167: =B166&"B" -> 69B | D167: =VLOOKUP(B166,EventsOrder,3,FALSE) -> 200m | E167: B | G167: II | H167: RR | I167: XX | J167: YY | O167: 27.7 | P167: 28.3 | Q167: 29.6 | R167: 30.2 | W167: II | X167: 0 | Y167: 0 | Z167: 0 | AE167: =IF(LEN(G167)=0,"",VLOOKUP($B166,IF($F166="F",TeamSheetFemale,TeamSheetMale),CC167,FALSE)) -> Ellie Boulton | AF167: Jess Anstice U23 | AG167: Megan Luxford | AH167: Becky Donnelly (senior) | AM167: 0 | AN167: 0 | AO167: 0 | AP167: 8 | AQ167: 7 | AR167: 0 | AS167: 6 | AT167: 5 | AU167: 0 | AV167: 0 | AW167: 0 | AX167: 27.7 | AY167: 28.3 | AZ167: 0 | BA167: 29.6 | BB167: 30.2 | BC167: 0 | BD167: 0 | BE167: 0 | BF167: 1 | BG167: 2 | BH167: 0 | BI167: 3 | BJ167: 4 | BK167: Kett | BL167: Rad | BM167: Wreake | BN167: Worc | BO167: 0 | BP167: 0 | BQ167: 0 | BR167: 0 | BS167: I | BT167: R | BU167: X | BV167: Y | CC167: 24 | CD167: 29 | CE167: 39 | CF167: 44
A168: =B168&"A" -> 70A | B168: 70 | C168: =VLOOKUP(B168,EventsOrder,2,FALSE) -> 3.5 | D168: =VLOOKUP(B168,EventsOrder,4,FALSE) -> U13 Male | E168: A | F168: =IF(MID(D168,5,1)="F","F","M") -> M | G168: I | H168: X | I168: J | J168: Y | K168: F | L168: P | M168: R | N168: B | O168: 27.2 | P168: 27.6 | Q168: 28.5 | R168: 29.6 | S168: 29.7 | T168: 30 | U168: 30.4 | V168: 30.5 | W168: 0 | X168: 0 | Y168: 0 | Z168: 0 | AA168: 0 | AB168: P | AC168: 0 | AD168: 0 | AE168: =IF(LEN(G168)=0,"",VLOOKUP($B168,IF($F168="F",TeamSheetFemale,TeamSheetMale),CC168,FALSE)) -> Max Mowforth | AF168: David Seidu | AG168: Christopher Charles | AH168: Adam Dudley | AI168: Oran Au | AJ168: Callum Hewett | AK168: Samuel Rose | AL168: Tom Fallon | AM168: 6 | AN168: 3 | AO168: 1 | AP168: 8 | AQ168: 2 | AR168: 4 | AS168: 7 | AT168: 5 | AU168: 28.5 | AV168: 30 | AW168: 30.5 | AX168: 27.2 | AY168: 30.4 | AZ168: 29.7 | BA168: 27.6 | BB168: 29.6 | BC168: 3 | BD168: 6 | BE168: 8 | BF168: 1 | BG168: 7 | BH168: 5 | BI168: 2 | BJ168: 4 | BK168: Kett | BL168: Wreake | BM168: Ban | BN168: Worc | BO168: Tam | BP168: Bic | BQ168: Rad | BR168: DASH | BS168: I | BT168: X | BU168: J | BV168: Y | BW168: F | BX168: P | BY168: R | BZ168: B | CC168: 22 | CD168: 37 | CE168: 7 | CF168: 42 | CG168: 32 | CH168: 12 | CI168: 27 | CJ168: 17
A169: =B168&"B" -> 70B | D169: =VLOOKUP(B168,EventsOrder,3,FALSE) -> 200m | E169: B | G169: II | H169: YY | I169: XX | J169: BB | K169: PP | L169: FF | M169: RR | O169: 27.5 | P169: 30.1 | Q169: 32 | R169: 32.4 | S169: 32.9 | T169: 33.6 | U169: 33.9 | W169: II | X169: 0 | Y169: 0 | Z169: 0 | AA169: PP | AB169: FF | AC169: 0 | AE169: =IF(LEN(G169)=0,"",VLOOKUP($B168,IF($F168="F",TeamSheetFemale,TeamSheetMale),CC169,FALSE)) -> Samuel Harrison | AF169: Reuben Taylor-George | AG169: Ethan Patel | AH169: Nathan Pearson | AI169: Ryan Simpson | AJ169: Kian Dickson | AK169: Joshua Cumberlnad | AM169: 0 | AN169: 4 | AO169: 5 | AP169: 8 | AQ169: 2 | AR169: 3 | AS169: 6 | AT169: 7 | AU169: 0 | AV169: 32.9 | AW169: 32.4 | AX169: 27.5 | AY169: 33.9 | AZ169: 33.6 | BA169: 32 | BB169: 30.1 | BC169: 0 | BD169: 5 | BE169: 4 | BF169: 1 | BG169: 7 | BH169: 6 | BI169: 3 | BJ169: 2 | BK169: Kett | BL169: Worc | BM169: Wreake | BN169: DASH | BO169: Bic | BP169: Tam | BQ169: Rad | BR169: 0 | BS169: I | BT169: Y | BU169: X | BV169: B | BW169: P | BX169: F | BY169: R | CC169: 24 | CD169: 44 | CE169: 39 | CF169: 19 | CG169: 14 | CH169: 34 | CI169: 29
A170: =B170&"A" -> 71A | B170: 71 | C170: =VLOOKUP(B170,EventsOrder,2,FALSE) -> 3.55 | D170: =VLOOKUP(B170,EventsOrder,4,FALSE) -> U15 Male | E170: A | F170: =IF(MID(D170,5,1)="F","F","M") -> M | G170: Y | H170: X | I170: B | J170: I | K170: R | L170: J | M170: F | O170: 24.2 | P170: 24.9 | Q170: 25.2 | R170: 25.3 | S170: 26.1 | T170: 26.6 | U170: 30.6 | W170: 0 | X170: 0 | Y170: 0 | Z170: 0 | AA170: 0 | AB170: 0 | AC170: 0 | AE170: =IF(LEN(G170)=0,"",VLOOKUP($B170,IF($F170="F",TeamSheetFemale,TeamSheetMale),CC170,FALSE)) -> Darian Moore | AF170: Euan Jones | AG170: Tom Slater | AH170: Dylan Mukhtar | AI170: Daniel Gifford | AJ170: Will Andrews | AK170: James Walker | AM170: 3 | AN170: 0 | AO170: 6 | AP170: 5 | AQ170: 4 | AR170: 2 | AS170: 7 | AT170: 8 | AU170: 26.6 | AV170: 0 | AW170: 25.2 | AX170: 25.3 | AY170: 26.1 | AZ170: 30.6 | BA170: 24.9 | BB170: 24.2 | BC170: 6 | BD170: 0 | BE170: 3 | BF170: 4 | BG170: 5 | BH170: 7 | BI170: 2 | BJ170: 1 | BK170: Worc | BL170: Wreake | BM170: DASH | BN170: Kett | BO170: Rad | BP170: Ban | BQ170: Tam | BR170: 0 | BS170: Y | BT170: X | BU170: B | BV170: I | BW170: R | BX170: J | BY170: F | CC170: 42 | CD170: 37 | CE170: 17 | CF170: 22 | CG170: 27 | CH170: 7 | CI170: 32
A171: =B170&"B" -> 71B | D171: =VLOOKUP(B170,EventsOrder,3,FALSE) -> 200m | E171: B | G171: II | H171: YY | I171: XX | J171: RR | O171: NTR | P171: NTR | Q171: NTR | R171: NTR | W171: II | X171: 0 | Y171: 0 | Z171: 0 | AE171: =IF(LEN(G171)=0,"",VLOOKUP($B170,IF($F170="F",TeamSheetFemale,TeamSheetMale),CC171,FALSE)) -> Lewis-Morgan Barton | AF171: Andrew Jay | AG171: Josh Rocks | AH171: Richard Bungay | AM171: 0 | AN171: 0 | AO171: 0 | AP171: 8 | AQ171: 5 | AR171: 0 | AS171: 6 | AT171: 7 | AU171: 0 | AV171: 0 | AW171: 0 | AX171: NTR | AY171: NTR | AZ171: 0 | BA171: NTR | BB171: NTR | BC171: 0 | BD171: 0 | BE171: 0 | BF171: 1 | BG171: 4 | BH171: 0 | BI171: 3 | BJ171: 2 | BK171: Kett | BL171: Worc | BM171: Wreake | BN171: Rad | BO171: 0 | BP171: 0 | BQ171: 0 | BR171: 0 | BS171: I | BT171: Y | BU171: X | BV171: R | CC171: 24 | CD171: 44 | CE171: 39 | CF171: 29
A172: =B172&"A" -> 72A | B172: 72 | C172: =VLOOKUP(B172,EventsOrder,2,FALSE) -> 4 | D172: =VLOOKUP(B172,EventsOrder,4,FALSE) -> U17 Men | E172: A | F172: =IF(MID(D172,5,1)="F","F","M") -> M | G172: Y | H172: R | I172: J | J172: I | O172: 23 | P172: 23 | Q172: 23.1 | R172: 24.6 | W172: 0 | X172: 0 | Y172: 0 | Z172: 0 | AE172: =IF(LEN(G172)=0,"",VLOOKUP($B172,IF($F172="F",TeamSheetFemale,TeamSheetMale),CC172,FALSE)) -> Ollie Gould | AF172: Harry New | AG172: Ollie Sprio | AH172: Tyrese Paris-Smith | AM172: 6 | AN172: 0 | AO172: 0 | AP172: 5 | AQ172: 7 | AR172: 0 | AS172: 0 | AT172: 8 | AU172: 23.1 | AV172: 0 | AW172: 0 | AX172: 24.6 | AY172: 23 | AZ172: 0 | BA172: 0 | BB172: 23 | BC172: 3 | BD172: 0 | BE172: 0 | BF172: 4 | BG172: 2 | BH172: 0 | BI172: 0 | BJ172: 1 | BK172: Worc | BL172: Rad | BM172: Ban | BN172: Kett | BO172: 0 | BP172: 0 | BQ172: 0 | BR172: 0 | BS172: Y | BT172: R | BU172: J | BV172: I | CC172: 42 | CD172: 27 | CE172: 7 | CF172: 22
A173: =B172&"B" -> 72B | D173: =VLOOKUP(B172,EventsOrder,3,FALSE) -> 200m | E173: B | G173: RR | H173: YY | I173: II | J173: JJ | O173: 23.6 | P173: 23.9 | Q173: 24.2 | R173: 24.7 | W173: 0 | X173: 0 | Y173: II | Z173: 0 | AE173: =IF(LEN(G173)=0,"",VLOOKUP($B172,IF($F172="F",TeamSheetFemale,TeamSheetMale),CC173,FALSE)) -> Elliot Couse | AF173: Josh Bentley | AG173: Achim Loibl | AH173: Felix Noble | AM173: 5 | AN173: 0 | AO173: 0 | AP173: 6 | AQ173: 8 | AR173: 0 | AS173: 0 | AT173: 7 | AU173: 24.7 | AV173: 0 | AW173: 0 | AX173: 24.2 | AY173: 23.6 | AZ173: 0 | BA173: 0 | BB173: 23.9 | BC173: 4 | BD173: 0 | BE173: 0 | BF173: 3 | BG173: 1 | BH173: 0 | BI173: 0 | BJ173: 2 | BK173: Rad | BL173: Worc | BM173: Kett | BN173: Ban | BO173: 0 | BP173: 0 | BQ173: 0 | BR173: 0 | BS173: R | BT173: Y | BU173: I | BV173: J | CC173: 29 | CD173: 44 | CE173: 24 | CF173: 9
A174: =B174&"A" -> 73A | B174: 73 | C174: =VLOOKUP(B174,EventsOrder,2,FALSE) -> 4.2 | D174: =VLOOKUP(B174,EventsOrder,4,FALSE) -> U13 Male | E174: A | F174: =IF(MID(D174,5,1)="F","F","M") -> M | G174: R | H174: I | I174: P | J174: Y | K174: X | O174: 4.58.8 | P174: 5.04.5 | Q174: 5.24.4 | R174: 5.26.0 | S174: 5.29.7 | W174: 0 | X174: 0 | Y174: P | Z174: 0 | AA174: 0 | AE174: =IF(LEN(G174)=0,"",VLOOKUP($B174,IF($F174="F",TeamSheetFemale,TeamSheetMale),CC174,FALSE)) -> Benjamin Cumberland | AF174: Ollie Read | AG174: Sean Lock | AH174: Ronan Williams | AI174: Mackenzie Bloxham | AM174: 0 | AN174: 6 | AO174: 0 | AP174: 7 | AQ174: 8 | AR174: 0 | AS174: 4 | AT174: 5 | AU174: 0 | AV174: 5.24.4 | AW174: 0 | AX174: 5.04.5 | AY174: 4.58.8 | AZ174: 0 | BA174: 5.29.7 | BB174: 5.26.0 | BC174: 0 | BD174: 3 | BE174: 0 | BF174: 2 | BG174: 1 | BH174: 0 | BI174: 5 | BJ174: 4 | BK174: Rad | BL174: Kett | BM174: Bic | BN174: Worc | BO174: Wreake | BP174: 0 | BQ174: 0 | BR174: 0 | BS174: R | BT174: I | BU174: P | BV174: Y | BW174: X | CC174: 27 | CD174: =IF(LEN(H174)=0,"",HLOOKUP(BT174,$CC$26:$CJ$28,2,FALSE)+IF(LEN(H174)=2,2,0)) -> 22 | CE174: =IF(LEN(I174)=0,"",HLOOKUP(BU174,$CC$26:$CJ$28,2,FALSE)+IF(LEN(I174)=2,2,0)) -> 12 | CF174: =IF(LEN(J174)=0,"",HLOOKUP(BV174,$CC$26:$CJ$28,2,FALSE)+IF(LEN(J174)=2,2,0)) -> 42 | CG174: =IF(LEN(K174)=0,"",HLOOKUP(BW174,$CC$26:$CJ$28,2,FALSE)+IF(LEN(K174)=2,2,0)) -> 37 | CH174: =IF(LEN(L174)=0,"",HLOOKUP(BX174,$CC$26:$CJ$28,2,FALSE)+IF(LEN(L174)=2,2,0)) ->  | CI174: =IF(LEN(M174)=0,"",HLOOKUP(BY174,$CC$26:$CJ$28,2,FALSE)+IF(LEN(M174)=2,2,0)) ->  | CJ174: =IF(LEN(N174)=0,"",HLOOKUP(BZ174,$CC$26:$CJ$28,2,FALSE)+IF(LEN(N174)=2,2,0)) -> 
A175: =B174&"B" -> 73B | D175: =VLOOKUP(B174,EventsOrder,3,FALSE) -> 1500m | E175: B | G175: XX | H175: YY | I175: RR | J175: PP | O175: 5.33.3 | P175: 5.37.6 | Q175: 5.45.2 | R175: 6.33.9 | W175: 0 | X175: 0 | Y175: 0 | Z175: PP | AE175: =IF(LEN(G175)=0,"",VLOOKUP($B174,IF($F174="F",TeamSheetFemale,TeamSheetMale),CC175,FALSE)) -> Matthew Reuben | AF175: Hugo Robinson | AG175: Euan Stillion | AH175: Ben Groves | AM175: 0 | AN175: 5 | AO175: 0 | AP175: 0 | AQ175: 6 | AR175: 0 | AS175: 8 | AT175: 7 | AU175: 0 | AV175: 6.33.9 | AW175: 0 | AX175: 0 | AY175: 5.45.2 | AZ175: 0 | BA175: 5.33.3 | BB175: 5.37.6 | BC175: 0 | BD175: 4 | BE175: 0 | BF175: 0 | BG175: 3 | BH175: 0 | BI175: 1 | BJ175: 2 | BK175: Wreake | BL175: Worc | BM175: Rad | BN175: Bic | BO175: 0 | BP175: 0 | BQ175: 0 | BR175: 0 | BS175: X | BT175: Y | BU175: R | BV175: P | CC175: 39 | CD175: 44 | CE175: 29 | CF175: 14
A176: =B176&"A" -> 74A | B176: 74 | C176: =VLOOKUP(B176,EventsOrder,2,FALSE) -> 4.1 | D176: =VLOOKUP(B176,EventsOrder,4,FALSE) -> U17 Men | E176: A | F176: =IF(MID(D176,5,1)="F","F","M") -> M | G176: Y | H176: R | O176: 1.7 | P176: 1.49 | W176: 0 | X176: 0 | AE176: =IF(LEN(G176)=0,"",VLOOKUP($B176,IF($F176="F",TeamSheetFemale,TeamSheetMale),CC176,FALSE)) -> Reiss Francis | AF176: Brett Halsey | AM176: 0 | AN176: 0 | AO176: 0 | AP176: 0 | AQ176: 7 | AR176: 0 | AS176: 0 | AT176: 8 | AU176: =OFFSET($N176,0,BC176) -> 0 | AV176: 0 | AW176: 0 | AX176: 0 | AY176: 1.49 | AZ176: 0 | BA176: 0 | BB176: 1.7 | BC176: 0 | BD176: 0 | BE176: 0 | BF176: 0 | BG176: 2 | BH176: 0 | BI176: 0 | BJ176: 1 | BK176: Worc | BL176: Rad | BM176: 0 | BN176: 0 | BO176: 0 | BP176: 0 | BQ176: 0 | BR176: 0 | BS176: Y | BT176: R | CC176: 42 | CD176: 27
A177: =B176&"B" -> 74B | D177: =VLOOKUP(B176,EventsOrder,3,FALSE) -> High Jump | E177: B | AE177: =IF(LEN(G177)=0,"",VLOOKUP($B176,IF($F176="F",TeamSheetFemale,TeamSheetMale),CC177,FALSE)) ->  | AM177: 0 | AN177: 0 | AO177: 0 | AP177: 0 | AQ177: 0 | AR177: 0 | AS177: 0 | AT177: 0 | AU177: 0 | AV177: 0 | AW177: 0 | AX177: 0 | AY177: 0 | AZ177: 0 | BA177: 0 | BB177: 0 | BC177: 0 | BD177: 0 | BE177: 0 | BF177: 0 | BG177: 0 | BH177: 0 | BI177: 0 | BJ177: 0 | BK177: 0 | BL177: 0 | BM177: 0 | BN177: 0 | BO177: 0 | BP177: 0 | BQ177: 0 | BR177: 0
A178: =B178&"A" -> 75A | B178: 75 | C178: =VLOOKUP(B178,EventsOrder,2,FALSE) -> 4 | D178: =VLOOKUP(B178,EventsOrder,4,FALSE) -> U17 F/Women | E178: A | F178: =IF(MID(D178,5,1)="F","F","M") -> F | G178: J | H178: Y | I178: R | J178: X | K178: P | L178: I | O178: 4.8 | P178: 4.62 | Q178: 4.58 | R178: 4.31 | S178: 4.23 | T178: 4.11 | W178: 0 | X178: 0 | Y178: 0 | Z178: 0 | AA178: 0 | AB178: 0 | AE178: =IF(LEN(G178)=0,"",VLOOKUP($B178,IF($F178="F",TeamSheetFemale,TeamSheetMale),CC178,FALSE)) -> Rebecca Scott | AF178: Becky Donnelly (senior) | AG178: Petrina Chantler-Edmond | AH178: Ella Grainger | AI178: U20 Emily Benfield | AJ178: Ellie Boulton | AM178: 8 | AN178: 4 | AO178: 0 | AP178: 3 | AQ178: 6 | AR178: 0 | AS178: 5 | AT178: 7 | AU178: 4.8 | AV178: 4.23 | AW178: 0 | AX178: 4.11 | AY178: 4.58 | AZ178: 0 | BA178: 4.31 | BB178: 4.62 | BC178: =IF(ISNA(MATCH(BC$29,$BS178:$BZ178,0)),0,MATCH(BC$29,$BS178:$BZ178,0)) -> 1 | BD178: 5 | BE178: 0 | BF178: 6 | BG178: 3 | BH178: 0 | BI178: 4 | BJ178: 2 | BK178: Ban | BL178: Worc | BM178: Rad | BN178: Wreake | BO178: Bic | BP178: Kett | BQ178: 0 | BR178: 0 | BS178: J | BT178: Y | BU178: R | BV178: X | BW178: P | BX178: I | CC178: 7 | CD178: 42 | CE178: 27 | CF178: 37 | CG178: 12 | CH178: 22
A179: =B178&"B" -> 75B | D179: =VLOOKUP(B178,EventsOrder,3,FALSE) -> Long Jump | E179: B | G179: RR | H179: II | I179: YY | J179: XX | O179: 4.14 | P179: 3.86 | Q179: 3.68 | R179: 2.54 | W179: 0 | X179: 0 | Y179: 0 | Z179: 0 | AE179: =IF(LEN(G179)=0,"",VLOOKUP($B178,IF($F178="F",TeamSheetFemale,TeamSheetMale),CC179,FALSE)) -> Leah Brown | AF179: Niamh Monaghan | AG179: Hannah Kenwright | AH179: Eve Cameron | AM179: 0 | AN179: 0 | AO179: 0 | AP179: 7 | AQ179: 8 | AR179: 0 | AS179: 5 | AT179: 6 | AU179: 0 | AV179: 0 | AW179: 0 | AX179: 3.86 | AY179: 4.14 | AZ179: 0 | BA179: 2.54 | BB179: 3.68 | BC179: 0 | BD179: 0 | BE179: 0 | BF179: 2 | BG179: 1 | BH179: 0 | BI179: 4 | BJ179: 3 | BK179: Rad | BL179: Kett | BM179: Worc | BN179: Wreake | BO179: 0 | BP179: 0 | BQ179: 0 | BR179: 0 | BS179: R | BT179: I | BU179: Y | BV179: X | CC179: 29 | CD179: 24 | CE179: 44 | CF179: 39
A180: =B180&"A" -> 76A | B180: 76 | C180: =VLOOKUP(B180,EventsOrder,2,FALSE) -> 4.3 | D180: =VLOOKUP(B180,EventsOrder,4,FALSE) -> U15 Male | E180: A | F180: =IF(MID(D180,5,1)="F","F","M") -> M | G180: B | H180: F | I180: Y | J180: J | K180: X | L180: P | M180: R | O180: 4.42.7 | P180: 4.46.3 | Q180: 4.47.4 | R180: 4.51.1 | S180: 5.00.7 | T180: 5.25.9 | U180: NTR | W180: 0 | X180: 0 | Y180: 0 | Z180: 0 | AA180: 0 | AB180: P | AC180: 0 | AE180: =IF(LEN(G180)=0,"",VLOOKUP($B180,IF($F180="F",TeamSheetFemale,TeamSheetMale),CC180,FALSE)) -> Harry Walters | AF180: Max Kent | AG180: James Dale | AH180: Skip Snelson | AI180: Roman Watson-Quilter | AJ180: Samuel Worfolk | AK180: Cameron King | AM180: 5 | AN180: 3 | AO180: 8 | AP180: 0 | AQ180: 2 | AR180: 7 | AS180: 4 | AT180: 6 | AU180: 4.51.1 | AV180: 5.25.9 | AW180: 4.42.7 | AX180: 0 | AY180: NTR | AZ180: 4.46.3 | BA180: 5.00.7 | BB180: 4.47.4 | BC180: 4 | BD180: 6 | BE180: 1 | BF180: 0 | BG180: 7 | BH180: 2 | BI180: 5 | BJ180: 3 | BK180: DASH | BL180: Tam | BM180: Worc | BN180: Ban | BO180: Wreake | BP180: Bic | BQ180: Rad | BR180: 0 | BS180: B | BT180: F | BU180: Y | BV180: J | BW180: X | BX180: P | BY180: R | CC180: 17 | CD180: 32 | CE180: 42 | CF180: 7 | CG180: 37 | CH180: 12 | CI180: 27
A181: =B180&"B" -> 76B | D181: =VLOOKUP(B180,EventsOrder,3,FALSE) -> 1500m | E181: B | G181: FF | H181: XX | O181: 4.46.8 | P181: 5.06.2 | W181: FF | X181: 0 | AE181: =IF(LEN(G181)=0,"",VLOOKUP($B180,IF($F180="F",TeamSheetFemale,TeamSheetMale),CC181,FALSE)) -> James Sherriff | AF181: Lucca Watson-Quilter | AM181: 0 | AN181: 0 | AO181: 0 | AP181: 0 | AQ181: 0 | AR181: 8 | AS181: 7 | AT181: 0 | AU181: 0 | AV181: 0 | AW181: 0 | AX181: 0 | AY181: 0 | AZ181: 4.46.8 | BA181: 5.06.2 | BB181: 0 | BC181: 0 | BD181: 0 | BE181: 0 | BF181: 0 | BG181: 0 | BH181: 1 | BI181: 2 | BJ181: 0 | BK181: Tam | BL181: Wreake | BM181: 0 | BN181: 0 | BO181: 0 | BP181: 0 | BQ181: 0 | BR181: 0 | BS181: F | BT181: X | CC181: 34 | CD181: 39
A182: =B182&"A" -> 77A | B182: 77 | C182: =VLOOKUP(B182,EventsOrder,2,FALSE) -> 4.2 | D182: =VLOOKUP(B182,EventsOrder,4,FALSE) -> U15 Female | E182: A | F182: =IF(MID(D182,5,1)="F","F","M") -> F | G182: Y | H182: F | I182: P | J182: J | K182: II | L182: RR | M182: B | N182: X | O182: 9.35 | P182: 7.67 | Q182: 7.57 | R182: 6.71 | S182: 6.41 | T182: 5.41 | U182: 4.81 | V182: 4.62 | W182: 0 | X182: 0 | Y182: 0 | Z182: 0 | AA182: II | AB182: 0 | AC182: 0 | AD182: 0 | AE182: =IF(LEN(G182)=0,"",VLOOKUP($B182,IF($F182="F",TeamSheetFemale,TeamSheetMale),CC182,FALSE)) -> Danielle Hopkins | AF182: Alice Jones | AG182: Lauren Garside | AH182: Emelina Darvell | AI182: Millie Toseland | AJ182: Hermione Jewel | AK182: Jasmine Pramolo | AL182: Rosie Timlock | AM182: 5 | AN182: 6 | AO182: 2 | AP182: 4 | AQ182: 3 | AR182: 7 | AS182: 1 | AT182: 8 | AU182: 6.71 | AV182: 7.57 | AW182: 4.81 | AX182: 6.41 | AY182: 5.41 | AZ182: 7.67 | BA182: 4.62 | BB182: 9.35 | BC182: 4 | BD182: 3 | BE182: 7 | BF182: 5 | BG182: 6 | BH182: 2 | BI182: 8 | BJ182: 1 | BK182: Worc | BL182: Tam | BM182: Bic | BN182: Ban | BO182: Kett | BP182: Rad | BQ182: DASH | BR182: Wreake | BS182: Y | BT182: F | BU182: P | BV182: J | BW182: I | BX182: R | BY182: B | BZ182: X | CC182: 42 | CD182: 32 | CE182: 12 | CF182: 7 | CG182: 24 | CH182: 29 | CI182: 17 | CJ182: 37
A183: =B182&"B" -> 77B | D183: =VLOOKUP(B182,EventsOrder,3,FALSE) -> Shot | E183: B | G183: YY | H183: I | I183: PP | J183: R | K183: XX | O183: 8.03 | P183: 5.51 | Q183: 5.06 | R183: 4.97 | S183: 3.38 | W183: 0 | X183: 0 | Y183: 0 | Z183: 0 | AA183: 0 | AE183: =IF(LEN(G183)=0,"",VLOOKUP($B182,IF($F182="F",TeamSheetFemale,TeamSheetMale),CC183,FALSE)) -> Katie Harris | AF183: Matilda Braithwaite | AG183: Holly Hunter | AH183: Hannah Mott | AI183: Ravenn Cook | AM183: 0 | AN183: 6 | AO183: 0 | AP183: 7 | AQ183: 5 | AR183: 0 | AS183: 4 | AT183: 8 | AU183: 0 | AV183: 5.06 | AW183: 0 | AX183: 5.51 | AY183: 4.97 | AZ183: 0 | BA183: 3.38 | BB183: 8.03 | BC183: 0 | BD183: 3 | BE183: 0 | BF183: 2 | BG183: 4 | BH183: 0 | BI183: 5 | BJ183: 1 | BK183: Worc | BL183: Kett | BM183: Bic | BN183: Rad | BO183: Wreake | BP183: 0 | BQ183: 0 | BR183: 0 | BS183: Y | BT183: I | BU183: P | BV183: R | BW183: X | CC183: 44 | CD183: 22 | CE183: 14 | CF183: 27 | CG183: 39
A184: =B184&"A" -> 78A | B184: 78 | C184: =VLOOKUP(B184,EventsOrder,2,FALSE) -> 4.2 | D184: =VLOOKUP(B184,EventsOrder,4,FALSE) -> U13 Male | E184: A | F184: =IF(MID(D184,5,1)="F","F","M") -> M | G184: YY | H184: RR | I184: XX | J184: P | K184: F | L184: B | O184: 14.17 | P184: 12.05 | Q184: 11.83 | R184: 10.79 | S184: 10.19 | T184: 9.83 | W184: 0 | X184: 0 | Y184: 0 | Z184: P | AA184: 0 | AB184: 0 | AE184: =IF(LEN(G184)=0,"",VLOOKUP($B184,IF($F184="F",TeamSheetFemale,TeamSheetMale),CC184,FALSE)) -> Riley Carpenter | AF184: Roan Stillion | AG184: Euan Gibbs | AH184: Callum Hewett | AI184: Daniel Aston | AJ184: John Sparry | AM184: 0 | AN184: 5 | AO184: 3 | AP184: 0 | AQ184: 7 | AR184: 4 | AS184: 6 | AT184: 8 | AU184: 0 | AV184: 10.79 | AW184: 9.83 | AX184: 0 | AY184: 12.05 | AZ184: 10.19 | BA184: 11.83 | BB184: 14.17 | BC184: 0 | BD184: 4 | BE184: 6 | BF184: 0 | BG184: 2 | BH184: 5 | BI184: 3 | BJ184: 1 | BK184: Worc | BL184: Rad | BM184: Wreake | BN184: Bic | BO184: Tam | BP184: DASH | BQ184: 0 | BR184: 0 | BS184: Y | BT184: R | BU184: X | BV184: P | BW184: F | BX184: B | CC184: 44 | CD184: 29 | CE184: 39 | CF184: 12 | CG184: 32 | CH184: 17
A185: =B184&"B" -> 78B | D185: =VLOOKUP(B184,EventsOrder,3,FALSE) -> Discus | E185: B | G185: Y | H185: FF | I185: PP | J185: R | K185: X | O185: 13.67 | P185: 10.17 | Q185: 9.87 | R185: 8.79 | S185: 8.18 | W185: 0 | X185: FF | Y185: PP | Z185: 0 | AA185: 0 | AE185: =IF(LEN(G185)=0,"",VLOOKUP($B184,IF($F184="F",TeamSheetFemale,TeamSheetMale),CC185,FALSE)) -> Alex Santafe | AF185: Kian Dickson | AG185: Ryan Simpson | AH185: Joshua Cumberland | AI185: Ethan Patel | AM185: 0 | AN185: 6 | AO185: 0 | AP185: 0 | AQ185: 5 | AR185: 7 | AS185: 4 | AT185: 8 | AU185: 0 | AV185: 9.87 | AW185: 0 | AX185: 0 | AY185: 8.79 | AZ185: 10.17 | BA185: 8.18 | BB185: 13.67 | BC185: 0 | BD185: 3 | BE185: 0 | BF185: 0 | BG185: 4 | BH185: 2 | BI185: 5 | BJ185: 1 | BK185: Worc | BL185: Tam | BM185: Bic | BN185: Rad | BO185: Wreake | BP185: 0 | BQ185: 0 | BR185: 0 | BS185: Y | BT185: F | BU185: P | BV185: R | BW185: X | CC185: 42 | CD185: 34 | CE185: 14 | CF185: 27 | CG185: 37
A186: =B186&"A" -> 79A | B186: 79 | C186: =VLOOKUP(B186,EventsOrder,2,FALSE) -> 4.2 | D186: =VLOOKUP(B186,EventsOrder,4,FALSE) -> U13 Female | E186: A | F186: =IF(MID(D186,5,1)="F","F","M") -> F | AE186: =IF(LEN(G186)=0,"",VLOOKUP($B186,IF($F186="F",TeamSheetFemale,TeamSheetMale),CC186,FALSE)) ->  | AM186: 0 | AN186: 0 | AO186: 0 | AP186: 0 | AQ186: 0 | AR186: 0 | AS186: 0 | AT186: 0 | AU186: 0 | AV186: 0 | AW186: 0 | AX186: 0 | AY186: 0 | AZ186: 0 | BA186: 0 | BB186: 0 | BC186: 0 | BD186: 0 | BE186: 0 | BF186: 0 | BG186: 0 | BH186: 0 | BI186: 0 | BJ186: 0 | BK186: 0 | BL186: 0 | BM186: 0 | BN186: 0 | BO186: 0 | BP186: 0 | BQ186: 0 | BR186: 0
A187: =B186&"B" -> 79B | D187: =VLOOKUP(B186,EventsOrder,3,FALSE) -> Javelin | E187: B | AE187: =IF(LEN(G187)=0,"",VLOOKUP($B186,IF($F186="F",TeamSheetFemale,TeamSheetMale),CC187,FALSE)) ->  | AM187: 0 | AN187: 0 | AO187: 0 | AP187: 0 | AQ187: 0 | AR187: 0 | AS187: 0 | AT187: 0 | AU187: 0 | AV187: 0 | AW187: 0 | AX187: 0 | AY187: 0 | AZ187: 0 | BA187: 0 | BB187: 0 | BC187: 0 | BD187: 0 | BE187: 0 | BF187: 0 | BG187: 0 | BH187: 0 | BI187: 0 | BJ187: 0 | BK187: 0 | BL187: 0 | BM187: 0 | BN187: 0 | BO187: 0 | BP187: 0 | BQ187: 0 | BR187: 0
A188: =B188&"A" -> 80A | B188: 80 | C188: =VLOOKUP(B188,EventsOrder,2,FALSE) -> 4.4 | D188: =VLOOKUP(B188,EventsOrder,4,FALSE) -> U17 Men | E188: A | F188: =IF(MID(D188,5,1)="F","F","M") -> M | G188: Y | H188: X | I188: I | J188: F | O188: 4.25.8 | P188: 4.30.2 | Q188: 4.43.8 | R188: 4.44.7 | W188: 0 | X188: 0 | Y188: 0 | Z188: 0 | AE188: =IF(LEN(G188)=0,"",VLOOKUP($B188,IF($F188="F",TeamSheetFemale,TeamSheetMale),CC188,FALSE)) -> Jake Cavens | AF188: Charlie McGlinchey | AG188: Josh Cannell | AH188: Andrew Woods | AM188: 0 | AN188: 0 | AO188: 0 | AP188: 6 | AQ188: 0 | AR188: 5 | AS188: 7 | AT188: 8 | AU188: 0 | AV188: 0 | AW188: 0 | AX188: 4.43.8 | AY188: 0 | AZ188: 4.44.7 | BA188: 4.30.2 | BB188: 4.25.8 | BC188: 0 | BD188: 0 | BE188: 0 | BF188: 3 | BG188: 0 | BH188: 4 | BI188: 2 | BJ188: 1 | BK188: =IF(LEN(G188)>0,VLOOKUP(LEFT(G188,1),Clubs,5,FALSE),0) -> Worc | BL188: =IF(LEN(H188)>0,VLOOKUP(LEFT(H188,1),Clubs,5,FALSE),0) -> Wreake | BM188: =IF(LEN(I188)>0,VLOOKUP(LEFT(I188,1),Clubs,5,FALSE),0) -> Kett | BN188: =IF(LEN(J188)>0,VLOOKUP(LEFT(J188,1),Clubs,5,FALSE),0) -> Tam | BO188: =IF(LEN(K188)>0,VLOOKUP(LEFT(K188,1),Clubs,5,FALSE),0) -> 0 | BP188: =IF(LEN(L188)>0,VLOOKUP(LEFT(L188,1),Clubs,5,FALSE),0) -> 0 | BQ188: =IF(LEN(M188)>0,VLOOKUP(LEFT(M188,1),Clubs,5,FALSE),0) -> 0 | BR188: =IF(LEN(N188)>0,VLOOKUP(LEFT(N188,1),Clubs,5,FALSE),0) -> 0 | BS188: =LEFT(G188,1) -> Y | BT188: X | BU188: I | BV188: F | CC188: 42 | CD188: 37 | CE188: 22 | CF188: 32
A189: =B188&"B" -> 80B | D189: =VLOOKUP(B188,EventsOrder,3,FALSE) -> 1500m | E189: B | G189: YY | O189: 4.39.8 | W189: 0 | AE189: =IF(LEN(G189)=0,"",VLOOKUP($B188,IF($F188="F",TeamSheetFemale,TeamSheetMale),CC189,FALSE)) -> Phil Capewell | AM189: 0 | AN189: 0 | AO189: 0 | AP189: 0 | AQ189: 0 | AR189: 0 | AS189: 0 | AT189: 8 | AU189: 0 | AV189: 0 | AW189: 0 | AX189: 0 | AY189: =OFFSET($N189,0,BG189) -> 0 | AZ189: =OFFSET($N189,0,BH189) -> 0 | BA189: =OFFSET($N189,0,BI189) -> 0 | BB189: =OFFSET($N189,0,BJ189) -> 4.39.8 | BC189: 0 | BD189: 0 | BE189: 0 | BF189: 0 | BG189: 0 | BH189: 0 | BI189: 0 | BJ189: 1 | BK189: Worc | BL189: 0 | BM189: 0 | BN189: 0 | BO189: 0 | BP189: 0 | BQ189: 0 | BR189: 0 | BS189: Y | BT189: =LEFT(H189,1) ->  | BU189: =LEFT(I189,1) ->  | BV189: =LEFT(J189,1) ->  | BW189: =LEFT(K189,1) ->  | BX189: =LEFT(L189,1) ->  | BY189: =LEFT(M189,1) ->  | BZ189: =LEFT(N189,1) ->  | CC189: 44
A190: =B190&"A" -> 81A | B190: 81 | C190: =VLOOKUP(B190,EventsOrder,2,FALSE) -> 4.5 | D190: =VLOOKUP(B190,EventsOrder,4,FALSE) -> U11 Fem/Male | E190: A | F190: =IF(MID(D190,5,1)="F","F","M") -> F | G190: P | H190: J | I190: I | J190: X | K190: R | L190: F | M190: Y | N190: B | O190: 62 | P190: 63 | Q190: 66.8 | R190: 67.3 | S190: 67.8 | T190: 68.4 | U190: 70.2 | V190: 72.9 | W190: 0 | X190: 0 | Y190: 0 | Z190: 0 | AA190: 0 | AB190: 0 | AC190: 0 | AD190: 0 | AE190: =IF(LEN(G190)=0,"",VLOOKUP($B190,IF($F190="F",TeamSheetFemale,TeamSheetMale),CC190,FALSE)) -> Bicester | AF190: Banbury | AG190: Kettering | AH190: Wreake Runners | AI190: Radley | AJ190: Tamworth | AK190: Worcester | AL190: Dudley & S'bridge | AM190: =IF(OR($F190="NS",AU190="DNF"),0,IF(BC190>0,$BK$29+1-BC190,0)) -> 7 | AN190: =IF(OR($F190="NS",AV190="DNF"),0,IF(BD190>0,$BK$29+1-BD190,0)) -> 8 | AO190: =IF(OR($F190="NS",AW190="DNF"),0,IF(BE190>0,$BK$29+1-BE190,0)) -> 1 | AP190: =IF(OR($F190="NS",AX190="DNF"),0,IF(BF190>0,$BK$29+1-BF190,0)) -> 6 | AQ190: =IF(OR($F190="NS",AY190="DNF"),0,IF(BG190>0,$BK$29+1-BG190,0)) -> 4 | AR190: =IF(OR($F190="NS",AZ190="DNF"),0,IF(BH190>0,$BK$29+1-BH190,0)) -> 3 | AS190: =IF(OR($F190="NS",BA190="DNF"),0,IF(BI190>0,$BK$29+1-BI190,0)) -> 5 | AT190: =IF(OR($F190="NS",BB190="DNF"),0,IF(BJ190>0,$BK$29+1-BJ190,0)) -> 2 | AU190: 63 | AV190: 62 | AW190: 72.9 | AX190: 66.8 | AY190: 67.8 | AZ190: 68.4 | BA190: 67.3 | BB190: 70.2 | BC190: 2 | BD190: 1 | BE190: 8 | BF190: 3 | BG190: 5 | BH190: 6 | BI190: 4 | BJ190: 7 | BK190: Bic | BL190: Ban | BM190: Kett | BN190: Wreake | BO190: Rad | BP190: Tam | BQ190: Worc | BR190: DASH | BS190: P | BT190: J | BU190: I | BV190: X | BW190: R | BX190: F | BY190: Y | BZ190: B | CC190: 12 | CD190: 7 | CE190: 22 | CF190: 37 | CG190: 27 | CH190: 32 | CI190: 42 | CJ190: 17
A191: =B190&"B" -> 81B | D191: =VLOOKUP(B190,EventsOrder,3,FALSE) -> 4 x 100m Mixed | E191: B | AE191: =IF(LEN(G191)=0,"",VLOOKUP($B190,IF($F190="F",TeamSheetFemale,TeamSheetMale),CC191,FALSE)) ->  | AM191: 0 | AN191: 0 | AO191: 0 | AP191: 0 | AQ191: 0 | AR191: 0 | AS191: 0 | AT191: 0 | AU191: 0 | AV191: 0 | AW191: 0 | AX191: 0 | AY191: 0 | AZ191: 0 | BA191: 0 | BB191: 0 | BC191: 0 | BD191: 0 | BE191: 0 | BF191: 0 | BG191: 0 | BH191: 0 | BI191: 0 | BJ191: 0 | BK191: 0 | BL191: 0 | BM191: 0 | BN191: 0 | BO191: 0 | BP191: 0 | BQ191: 0 | BR191: 0
A192: =B192&"A" -> 82A | B192: 82 | C192: =VLOOKUP(B192,EventsOrder,2,FALSE) -> 4.55 | D192: =VLOOKUP(B192,EventsOrder,4,FALSE) -> U13 Female | E192: A | F192: =IF(MID(D192,5,1)="F","F","M") -> F | G192: X | H192: J | I192: Y | J192: R | K192: F | L192: P | M192: I | N192: B | O192: 58.2 | P192: 60.4 | Q192: 60.6 | R192: 61.6 | S192: 62 | T192: 64 | U192: 64.6 | V192: 68.5 | W192: 0 | X192: 0 | Y192: 0 | Z192: 0 | AA192: 0 | AB192: 0 | AC192: 0 | AD192: 0 | AE192: =IF(LEN(G192)=0,"",VLOOKUP($B192,IF($F192="F",TeamSheetFemale,TeamSheetMale),CC192,FALSE)) -> Wreake Runners | AF192: Banbury | AG192: Worcester | AH192: Radley | AI192: Tamworth | AJ192: Bicester | AK192: Kettering Town Harriers | AL192: Dudley & S'bridge | AM192: 7 | AN192: 3 | AO192: 1 | AP192: 2 | AQ192: 5 | AR192: 4 | AS192: 8 | AT192: 6 | AU192: 60.4 | AV192: 64 | AW192: 68.5 | AX192: 64.6 | AY192: 61.6 | AZ192: 62 | BA192: 58.2 | BB192: 60.6 | BC192: 2 | BD192: 6 | BE192: 8 | BF192: 7 | BG192: 4 | BH192: 5 | BI192: 1 | BJ192: 3 | BK192: Wreake | BL192: Ban | BM192: Worc | BN192: Rad | BO192: Tam | BP192: Bic | BQ192: Kett | BR192: DASH | BS192: X | BT192: J | BU192: Y | BV192: R | BW192: F | BX192: P | BY192: I | BZ192: B | CC192: =IF(LEN(G192)=0,"",HLOOKUP(BS192,$CC$26:$CJ$28,2,FALSE)+IF(LEN(G192)=2,2,0)) -> 37 | CD192: 7 | CE192: 42 | CF192: 27 | CG192: 32 | CH192: 12 | CI192: 22 | CJ192: 17
A193: =B192&"B" -> 82B | D193: =VLOOKUP(B192,EventsOrder,3,FALSE) -> 4 x 100m | E193: B | AE193: =IF(LEN(G193)=0,"",VLOOKUP($B192,IF($F192="F",TeamSheetFemale,TeamSheetMale),CC193,FALSE)) ->  | AM193: 0 | AN193: 0 | AO193: 0 | AP193: 0 | AQ193: 0 | AR193: 0 | AS193: 0 | AT193: 0 | AU193: 0 | AV193: 0 | AW193: 0 | AX193: 0 | AY193: 0 | AZ193: 0 | BA193: 0 | BB193: 0 | BC193: 0 | BD193: 0 | BE193: 0 | BF193: 0 | BG193: 0 | BH193: 0 | BI193: 0 | BJ193: 0 | BK193: 0 | BL193: 0 | BM193: 0 | BN193: 0 | BO193: 0 | BP193: 0 | BQ193: 0 | BR193: 0
A194: =B194&"A" -> 83A | B194: 83 | C194: =VLOOKUP(B194,EventsOrder,2,FALSE) -> 5 | D194: =VLOOKUP(B194,EventsOrder,4,FALSE) -> U15 Female | E194: A | F194: =IF(MID(D194,5,1)="F","F","M") -> F | G194: Y | H194: I | I194: B | J194: X | K194: R | L194: P | O194: 52.2 | P194: 54 | Q194: 54.1 | R194: 55.6 | S194: 56.8 | T194: 58.5 | W194: 0 | X194: 0 | Y194: 0 | Z194: 0 | AA194: 0 | AB194: 0 | AE194: =IF(LEN(G194)=0,"",VLOOKUP($B194,IF($F194="F",TeamSheetFemale,TeamSheetMale),CC194,FALSE)) -> Worcester | AF194: Kettering Town Harriers | AG194: Dudley & S'bridge | AH194: Wreake Runners | AI194: Radley | AJ194: Bicester | AM194: 0 | AN194: 3 | AO194: 6 | AP194: 7 | AQ194: 4 | AR194: 0 | AS194: 5 | AT194: 8 | AU194: 0 | AV194: 58.5 | AW194: 54.1 | AX194: 54 | AY194: 56.8 | AZ194: 0 | BA194: 55.6 | BB194: 52.2 | BC194: =IF(ISNA(MATCH(BC$29,$BS194:$BZ194,0)),0,MATCH(BC$29,$BS194:$BZ194,0)) -> 0 | BD194: 6 | BE194: 3 | BF194: 2 | BG194: 5 | BH194: 0 | BI194: 4 | BJ194: 1 | BK194: Worc | BL194: Kett | BM194: DASH | BN194: Wreake | BO194: Rad | BP194: Bic | BQ194: 0 | BR194: 0 | BS194: Y | BT194: I | BU194: B | BV194: X | BW194: R | BX194: P | CC194: 42 | CD194: 22 | CE194: 17 | CF194: 37 | CG194: 27 | CH194: 12
A195: =B194&"B" -> 83B | D195: =VLOOKUP(B194,EventsOrder,3,FALSE) -> 4 x 100m | E195: B | AE195: =IF(LEN(G195)=0,"",VLOOKUP($B194,IF($F194="F",TeamSheetFemale,TeamSheetMale),CC195,FALSE)) ->  | AM195: 0 | AN195: 0 | AO195: 0 | AP195: 0 | AQ195: 0 | AR195: 0 | AS195: 0 | AT195: 0 | AU195: =OFFSET($N195,0,BC195) -> 0 | AV195: =OFFSET($N195,0,BD195) -> 0 | AW195: =OFFSET($N195,0,BE195) -> 0 | AX195: =OFFSET($N195,0,BF195) -> 0 | AY195: 0 | AZ195: 0 | BA195: 0 | BB195: 0 | BC195: 0 | BD195: 0 | BE195: 0 | BF195: 0 | BG195: 0 | BH195: 0 | BI195: 0 | BJ195: 0 | BK195: 0 | BL195: 0 | BM195: 0 | BN195: 0 | BO195: 0 | BP195: 0 | BQ195: 0 | BR195: 0
A196: =B196&"A" -> 84A | B196: 84 | C196: =VLOOKUP(B196,EventsOrder,2,FALSE) -> 5.05 | D196: =VLOOKUP(B196,EventsOrder,4,FALSE) -> U17 F/Women | E196: A | F196: =IF(MID(D196,5,1)="F","F","M") -> F | G196: Y | H196: R | I196: I | J196: X | O196: 53.4 | P196: 54 | Q196: 56.3 | R196: 56.3 | W196: 0 | X196: 0 | Y196: 0 | Z196: 0 | AE196: =IF(LEN(G196)=0,"",VLOOKUP($B196,IF($F196="F",TeamSheetFemale,TeamSheetMale),CC196,FALSE)) -> Worcester | AF196: Radley | AG196: Kettering | AH196: Wreake Runners | AM196: 0 | AN196: 0 | AO196: 0 | AP196: 6 | AQ196: 7 | AR196: 0 | AS196: 5 | AT196: 8 | AU196: 0 | AV196: 0 | AW196: 0 | AX196: 56.3 | AY196: 54 | AZ196: 0 | BA196: 56.3 | BB196: 53.4 | BC196: 0 | BD196: 0 | BE196: 0 | BF196: 3 | BG196: 2 | BH196: 0 | BI196: 4 | BJ196: 1 | BK196: Worc | BL196: Rad | BM196: Kett | BN196: Wreake | BO196: 0 | BP196: 0 | BQ196: 0 | BR196: 0 | BS196: Y | BT196: R | BU196: I | BV196: X | CC196: 42 | CD196: 27 | CE196: 22 | CF196: 37
A197: =B196&"B" -> 84B | D197: =VLOOKUP(B196,EventsOrder,3,FALSE) -> 4 x 100m | E197: B | AE197: =IF(LEN(G197)=0,"",VLOOKUP($B196,IF($F196="F",TeamSheetFemale,TeamSheetMale),CC197,FALSE)) ->  | AM197: 0 | AN197: 0 | AO197: 0 | AP197: 0 | AQ197: 0 | AR197: 0 | AS197: 0 | AT197: 0 | AU197: 0 | AV197: 0 | AW197: 0 | AX197: 0 | AY197: 0 | AZ197: 0 | BA197: 0 | BB197: 0 | BC197: 0 | BD197: 0 | BE197: 0 | BF197: 0 | BG197: 0 | BH197: 0 | BI197: 0 | BJ197: 0 | BK197: 0 | BL197: 0 | BM197: 0 | BN197: 0 | BO197: 0 | BP197: 0 | BQ197: 0 | BR197: 0
A198: =B198&"A" -> 85A | B198: 85 | C198: =VLOOKUP(B198,EventsOrder,2,FALSE) -> 5.1 | D198: =VLOOKUP(B198,EventsOrder,4,FALSE) -> U13 Male | E198: A | F198: =IF(MID(D198,5,1)="F","F","M") -> M | G198: I | H198: Y | I198: R | J198: P | K198: F | L198: X | O198: 53.7 | P198: 57.5 | Q198: 58.2 | R198: 60.1 | S198: 61.1 | T198: 64 | W198: 0 | X198: 0 | Y198: 0 | Z198: 0 | AA198: 0 | AB198: 0 | AE198: =IF(LEN(G198)=0,"",VLOOKUP($B198,IF($F198="F",TeamSheetFemale,TeamSheetMale),CC198,FALSE)) -> 0 | AF198: 0 | AG198: 0 | AH198: 0 | AI198: 0 | AJ198: 0 | AM198: 0 | AN198: 5 | AO198: 0 | AP198: 8 | AQ198: 6 | AR198: 4 | AS198: 3 | AT198: 7 | AU198: 0 | AV198: 60.1 | AW198: 0 | AX198: 53.7 | AY198: 58.2 | AZ198: 61.1 | BA198: 64 | BB198: 57.5 | BC198: 0 | BD198: 4 | BE198: 0 | BF198: 1 | BG198: 3 | BH198: 5 | BI198: 6 | BJ198: 2 | BK198: Kett | BL198: Worc | BM198: Rad | BN198: Bic | BO198: Tam | BP198: Wreake | BQ198: 0 | BR198: 0 | BS198: I | BT198: Y | BU198: R | BV198: P | BW198: F | BX198: X | CC198: 22 | CD198: 42 | CE198: 27 | CF198: 12 | CG198: 32 | CH198: 37
A199: =B198&"B" -> 85B | D199: =VLOOKUP(B198,EventsOrder,3,FALSE) -> 4 x 100m | E199: B | AE199: =IF(LEN(G199)=0,"",VLOOKUP($B198,IF($F198="F",TeamSheetFemale,TeamSheetMale),CC199,FALSE)) ->  | AM199: 0 | AN199: 0 | AO199: 0 | AP199: 0 | AQ199: 0 | AR199: 0 | AS199: 0 | AT199: 0 | AU199: 0 | AV199: 0 | AW199: 0 | AX199: 0 | AY199: 0 | AZ199: 0 | BA199: 0 | BB199: 0 | BC199: 0 | BD199: 0 | BE199: 0 | BF199: 0 | BG199: 0 | BH199: 0 | BI199: 0 | BJ199: 0 | BK199: 0 | BL199: 0 | BM199: 0 | BN199: 0 | BO199: 0 | BP199: 0 | BQ199: 0 | BR199: 0
A200: =B200&"A" -> 86A | B200: 86 | C200: =VLOOKUP(B200,EventsOrder,2,FALSE) -> 5.15 | D200: =VLOOKUP(B200,EventsOrder,4,FALSE) -> U15 Male | E200: A | F200: =IF(MID(D200,5,1)="F","F","M") -> M | G200: Y | H200: I | I200: B | J200: X | O200: 51.2 | P200: 53 | Q200: 53.3 | R200: 55 | W200: 0 | X200: 0 | Y200: 0 | Z200: 0 | AE200: =IF(LEN(G200)=0,"",VLOOKUP($B200,IF($F200="F",TeamSheetFemale,TeamSheetMale),CC200,FALSE)) -> Worcester | AF200: Kettering Town Harriers | AG200: Dudley & S'bridge | AH200: Wreake Runners | AM200: 0 | AN200: 0 | AO200: 6 | AP200: 7 | AQ200: 0 | AR200: 0 | AS200: 5 | AT200: 8 | AU200: 0 | AV200: 0 | AW200: 53.3 | AX200: 53 | AY200: 0 | AZ200: 0 | BA200: 55 | BB200: 51.2 | BC200: 0 | BD200: 0 | BE200: 3 | BF200: 2 | BG200: 0 | BH200: 0 | BI200: 4 | BJ200: 1 | BK200: Worc | BL200: Kett | BM200: DASH | BN200: Wreake | BO200: 0 | BP200: 0 | BQ200: 0 | BR200: 0 | BS200: Y | BT200: I | BU200: B | BV200: X | CC200: 42 | CD200: 22 | CE200: 17 | CF200: 37
A201: =B200&"B" -> 86B | D201: =VLOOKUP(B200,EventsOrder,3,FALSE) -> 4 x 100m | E201: B | AE201: =IF(LEN(G201)=0,"",VLOOKUP($B200,IF($F200="F",TeamSheetFemale,TeamSheetMale),CC201,FALSE)) ->  | AM201: 0 | AN201: 0 | AO201: 0 | AP201: 0 | AQ201: 0 | AR201: 0 | AS201: 0 | AT201: 0 | AU201: 0 | AV201: 0 | AW201: 0 | AX201: 0 | AY201: 0 | AZ201: 0 | BA201: 0 | BB201: 0 | BC201: 0 | BD201: 0 | BE201: 0 | BF201: 0 | BG201: 0 | BH201: 0 | BI201: 0 | BJ201: 0 | BK201: 0 | BL201: 0 | BM201: 0 | BN201: 0 | BO201: 0 | BP201: 0 | BQ201: 0 | BR201: 0
A202: =B202&"A" -> 87A | B202: 87 | C202: =VLOOKUP(B202,EventsOrder,2,FALSE) -> 5.2 | D202: =VLOOKUP(B202,EventsOrder,4,FALSE) -> U17 Men | E202: A | F202: =IF(MID(D202,5,1)="F","F","M") -> M | G202: Y | H202: R | O202: 44.7 | P202: 46.9 | W202: 0 | X202: 0 | AE202: =IF(LEN(G202)=0,"",VLOOKUP($B202,IF($F202="F",TeamSheetFemale,TeamSheetMale),CC202,FALSE)) -> Worcester | AF202: Radley | AM202: 0 | AN202: 0 | AO202: 0 | AP202: 0 | AQ202: 7 | AR202: 0 | AS202: 0 | AT202: 8 | AU202: 0 | AV202: 0 | AW202: 0 | AX202: 0 | AY202: 46.9 | AZ202: 0 | BA202: 0 | BB202: 44.7 | BC202: 0 | BD202: 0 | BE202: 0 | BF202: 0 | BG202: 2 | BH202: 0 | BI202: 0 | BJ202: 1 | BK202: Worc | BL202: Rad | BM202: 0 | BN202: 0 | BO202: 0 | BP202: 0 | BQ202: 0 | BR202: 0 | BS202: Y | BT202: R | CC202: 42 | CD202: 27
A203: =B202&"B" -> 87B | D203: =VLOOKUP(B202,EventsOrder,3,FALSE) -> 4 x 100m | E203: B | AE203: =IF(LEN(G203)=0,"",VLOOKUP($B202,IF($F202="F",TeamSheetFemale,TeamSheetMale),CC203,FALSE)) ->  | AM203: 0 | AN203: 0 | AO203: 0 | AP203: 0 | AQ203: 0 | AR203: 0 | AS203: 0 | AT203: 0 | AU203: 0 | AV203: 0 | AW203: 0 | AX203: 0 | AY203: 0 | AZ203: 0 | BA203: 0 | BB203: 0 | BC203: 0 | BD203: 0 | BE203: 0 | BF203: 0 | BG203: 0 | BH203: 0 | BI203: 0 | BJ203: 0 | BK203: 0 | BL203: 0 | BM203: 0 | BN203: 0 | BO203: 0 | BP203: 0 | BQ203: 0 | BR203: 0
A204: =B204&"A" -> 88A | B204: 88 | C204: =VLOOKUP(B204,EventsOrder,2,FALSE) -> 11.45 | D204: =VLOOKUP(B204,EventsOrder,4,FALSE) -> U13 Female | E204: A | F204: =IF(MID(D204,5,1)="F","F","M") -> F | G204: X | H204: Y | O204: 5.52.0 | P204: 6.12.7 | W204: 405 | X204: 104 | AE204: =IF(LEN(G204)=0,"",VLOOKUP($B204,IF($F204="F",TeamSheetFemale,TeamSheetMale),CC204,FALSE)) -> Isabelle Wilson | AF204: =IF(LEN(H204)=0,"",VLOOKUP($B204,IF($F204="F",TeamSheetFemale,TeamSheetMale),CD204,FALSE)) -> Emma Pound | AG204: =IF(LEN(I204)=0,"",VLOOKUP($B204,IF($F204="F",TeamSheetFemale,TeamSheetMale),CE204,FALSE)) ->  | AH204: =IF(LEN(J204)=0,"",VLOOKUP($B204,IF($F204="F",TeamSheetFemale,TeamSheetMale),CF204,FALSE)) ->  | AI204: =IF(LEN(K204)=0,"",VLOOKUP($B204,IF($F204="F",TeamSheetFemale,TeamSheetMale),CG204,FALSE)) ->  | AJ204: =IF(LEN(L204)=0,"",VLOOKUP($B204,IF($F204="F",TeamSheetFemale,TeamSheetMale),CH204,FALSE)) ->  | AK204: =IF(LEN(M204)=0,"",VLOOKUP($B204,IF($F204="F",TeamSheetFemale,TeamSheetMale),CI204,FALSE)) ->  | AL204: =IF(LEN(N204)=0,"",VLOOKUP($B204,IF($F204="F",TeamSheetFemale,TeamSheetMale),CJ204,FALSE)) ->  | AM204: 0 | AN204: 0 | AO204: 0 | AP204: 0 | AQ204: 0 | AR204: 0 | AS204: 8 | AT204: 7 | AU204: 0 | AV204: 0 | AW204: 0 | AX204: 0 | AY204: 0 | AZ204: 0 | BA204: 5.52.0 | BB204: 6.12.7 | BC204: 0 | BD204: 0 | BE204: 0 | BF204: 0 | BG204: 0 | BH204: 0 | BI204: 1 | BJ204: 2 | BK204: Wreake | BL204: Worc | BM204: 0 | BN204: 0 | BO204: 0 | BP204: 0 | BQ204: 0 | BR204: 0 | BS204: X | BT204: Y | CC204: 37 | CD204: 42
A205: =B204&"B" -> 88B | D205: =VLOOKUP(B204,EventsOrder,3,FALSE) -> 1500m | E205: B | AE205: =IF(LEN(G205)=0,"",VLOOKUP($B204,IF($F204="F",TeamSheetFemale,TeamSheetMale),CC205,FALSE)) ->  | AF205: =IF(LEN(H205)=0,"",VLOOKUP($B204,IF($F204="F",TeamSheetFemale,TeamSheetMale),CD205,FALSE)) ->  | AG205: =IF(LEN(I205)=0,"",VLOOKUP($B204,IF($F204="F",TeamSheetFemale,TeamSheetMale),CE205,FALSE)) ->  | AH205: =IF(LEN(J205)=0,"",VLOOKUP($B204,IF($F204="F",TeamSheetFemale,TeamSheetMale),CF205,FALSE)) ->  | AI205: =IF(LEN(K205)=0,"",VLOOKUP($B204,IF($F204="F",TeamSheetFemale,TeamSheetMale),CG205,FALSE)) ->  | AJ205: =IF(LEN(L205)=0,"",VLOOKUP($B204,IF($F204="F",TeamSheetFemale,TeamSheetMale),CH205,FALSE)) ->  | AK205: =IF(LEN(M205)=0,"",VLOOKUP($B204,IF($F204="F",TeamSheetFemale,TeamSheetMale),CI205,FALSE)) ->  | AL205: =IF(LEN(N205)=0,"",VLOOKUP($B204,IF($F204="F",TeamSheetFemale,TeamSheetMale),CJ205,FALSE)) ->  | AM205: 0 | AN205: 0 | AO205: 0 | AP205: 0 | AQ205: 0 | AR205: 0 | AS205: 0 | AT205: 0 | AU205: 0 | AV205: 0 | AW205: 0 | AX205: 0 | AY205: 0 | AZ205: 0 | BA205: 0 | BB205: 0 | BC205: 0 | BD205: 0 | BE205: 0 | BF205: 0 | BG205: 0 | BH205: 0 | BI205: 0 | BJ205: 0 | BK205: 0 | BL205: 0 | BM205: 0 | BN205: 0 | BO205: 0 | BP205: 0 | BQ205: 0 | BR205: 0
A206: =B206&"A" -> 89A | B206: 89 | C206: =VLOOKUP(B206,EventsOrder,2,FALSE) -> 11.55 | D206: =VLOOKUP(B206,EventsOrder,4,FALSE) -> U15 Female | E206: A | F206: =IF(MID(D206,5,1)="F","F","M") -> F | AE206: =IF(LEN(G206)=0,"",VLOOKUP($B206,IF($F206="F",TeamSheetFemale,TeamSheetMale),CC206,FALSE)) ->  | AF206: =IF(LEN(H206)=0,"",VLOOKUP($B206,IF($F206="F",TeamSheetFemale,TeamSheetMale),CD206,FALSE)) ->  | AG206: =IF(LEN(I206)=0,"",VLOOKUP($B206,IF($F206="F",TeamSheetFemale,TeamSheetMale),CE206,FALSE)) ->  | AH206: =IF(LEN(J206)=0,"",VLOOKUP($B206,IF($F206="F",TeamSheetFemale,TeamSheetMale),CF206,FALSE)) ->  | AI206: =IF(LEN(K206)=0,"",VLOOKUP($B206,IF($F206="F",TeamSheetFemale,TeamSheetMale),CG206,FALSE)) ->  | AJ206: =IF(LEN(L206)=0,"",VLOOKUP($B206,IF($F206="F",TeamSheetFemale,TeamSheetMale),CH206,FALSE)) ->  | AK206: =IF(LEN(M206)=0,"",VLOOKUP($B206,IF($F206="F",TeamSheetFemale,TeamSheetMale),CI206,FALSE)) ->  | AL206: =IF(LEN(N206)=0,"",VLOOKUP($B206,IF($F206="F",TeamSheetFemale,TeamSheetMale),CJ206,FALSE)) ->  | AM206: 0 | AN206: 0 | AO206: 0 | AP206: 0 | AQ206: 0 | AR206: 0 | AS206: 0 | AT206: 0 | AU206: 0 | AV206: 0 | AW206: 0 | AX206: 0 | AY206: 0 | AZ206: 0 | BA206: 0 | BB206: 0 | BC206: 0 | BD206: 0 | BE206: 0 | BF206: 0 | BG206: 0 | BH206: 0 | BI206: 0 | BJ206: 0 | BK206: 0 | BL206: 0 | BM206: 0 | BN206: 0 | BO206: 0 | BP206: 0 | BQ206: 0 | BR206: 0 | CD206: =IF(LEN(H206)=0,"",HLOOKUP(BT206,$CC$26:$CJ$28,2,FALSE)+IF(LEN(H206)=2,2,0)) ->  | CE206: =IF(LEN(I206)=0,"",HLOOKUP(BU206,$CC$26:$CJ$28,2,FALSE)+IF(LEN(I206)=2,2,0)) ->  | CF206: =IF(LEN(J206)=0,"",HLOOKUP(BV206,$CC$26:$CJ$28,2,FALSE)+IF(LEN(J206)=2,2,0)) ->  | CG206: =IF(LEN(K206)=0,"",HLOOKUP(BW206,$CC$26:$CJ$28,2,FALSE)+IF(LEN(K206)=2,2,0)) ->  | CH206: =IF(LEN(L206)=0,"",HLOOKUP(BX206,$CC$26:$CJ$28,2,FALSE)+IF(LEN(L206)=2,2,0)) ->  | CI206: =IF(LEN(M206)=0,"",HLOOKUP(BY206,$CC$26:$CJ$28,2,FALSE)+IF(LEN(M206)=2,2,0)) ->  | CJ206: =IF(LEN(N206)=0,"",HLOOKUP(BZ206,$CC$26:$CJ$28,2,FALSE)+IF(LEN(N206)=2,2,0)) -> 
A207: =B206&"B" -> 89B | D207: =VLOOKUP(B206,EventsOrder,3,FALSE) -> 1500m | E207: B | AE207: =IF(LEN(G207)=0,"",VLOOKUP($B206,IF($F206="F",TeamSheetFemale,TeamSheetMale),CC207,FALSE)) ->  | AF207: =IF(LEN(H207)=0,"",VLOOKUP($B206,IF($F206="F",TeamSheetFemale,TeamSheetMale),CD207,FALSE)) ->  | AG207: =IF(LEN(I207)=0,"",VLOOKUP($B206,IF($F206="F",TeamSheetFemale,TeamSheetMale),CE207,FALSE)) ->  | AH207: =IF(LEN(J207)=0,"",VLOOKUP($B206,IF($F206="F",TeamSheetFemale,TeamSheetMale),CF207,FALSE)) ->  | AI207: =IF(LEN(K207)=0,"",VLOOKUP($B206,IF($F206="F",TeamSheetFemale,TeamSheetMale),CG207,FALSE)) ->  | AJ207: =IF(LEN(L207)=0,"",VLOOKUP($B206,IF($F206="F",TeamSheetFemale,TeamSheetMale),CH207,FALSE)) ->  | AK207: =IF(LEN(M207)=0,"",VLOOKUP($B206,IF($F206="F",TeamSheetFemale,TeamSheetMale),CI207,FALSE)) ->  | AL207: =IF(LEN(N207)=0,"",VLOOKUP($B206,IF($F206="F",TeamSheetFemale,TeamSheetMale),CJ207,FALSE)) ->  | AM207: 0 | AN207: 0 | AO207: 0 | AP207: 0 | AQ207: 0 | AR207: 0 | AS207: 0 | AT207: 0 | AU207: 0 | AV207: 0 | AW207: 0 | AX207: 0 | AY207: 0 | AZ207: 0 | BA207: 0 | BB207: 0 | BC207: 0 | BD207: 0 | BE207: 0 | BF207: 0 | BG207: 0 | BH207: 0 | BI207: 0 | BJ207: 0 | BK207: 0 | BL207: 0 | BM207: 0 | BN207: 0 | BO207: 0 | BP207: 0 | BQ207: 0 | BR207: 0
A208: =B208&"A" -> 90A | B208: 90 | C208: =VLOOKUP(B208,EventsOrder,2,FALSE) -> 12.05 | D208: =VLOOKUP(B208,EventsOrder,4,FALSE) -> U17 F/Women | E208: A | F208: =IF(MID(D208,5,1)="F","F","M") -> F | AE208: =IF(LEN(G208)=0,"",VLOOKUP($B208,IF($F208="F",TeamSheetFemale,TeamSheetMale),CC208,FALSE)) ->  | AF208: =IF(LEN(H208)=0,"",VLOOKUP($B208,IF($F208="F",TeamSheetFemale,TeamSheetMale),CD208,FALSE)) ->  | AG208: =IF(LEN(I208)=0,"",VLOOKUP($B208,IF($F208="F",TeamSheetFemale,TeamSheetMale),CE208,FALSE)) ->  | AH208: =IF(LEN(J208)=0,"",VLOOKUP($B208,IF($F208="F",TeamSheetFemale,TeamSheetMale),CF208,FALSE)) ->  | AI208: =IF(LEN(K208)=0,"",VLOOKUP($B208,IF($F208="F",TeamSheetFemale,TeamSheetMale),CG208,FALSE)) ->  | AJ208: =IF(LEN(L208)=0,"",VLOOKUP($B208,IF($F208="F",TeamSheetFemale,TeamSheetMale),CH208,FALSE)) ->  | AK208: =IF(LEN(M208)=0,"",VLOOKUP($B208,IF($F208="F",TeamSheetFemale,TeamSheetMale),CI208,FALSE)) ->  | AL208: =IF(LEN(N208)=0,"",VLOOKUP($B208,IF($F208="F",TeamSheetFemale,TeamSheetMale),CJ208,FALSE)) ->  | AM208: 0 | AN208: 0 | AO208: 0 | AP208: 0 | AQ208: 0 | AR208: 0 | AS208: 0 | AT208: 0 | AU208: 0 | AV208: 0 | AW208: 0 | AX208: 0 | AY208: 0 | AZ208: 0 | BA208: 0 | BB208: 0 | BC208: 0 | BD208: 0 | BE208: 0 | BF208: 0 | BG208: 0 | BH208: 0 | BI208: 0 | BJ208: 0 | BK208: =IF(LEN(G208)>0,VLOOKUP(LEFT(G208,1),Clubs,5,FALSE),0) -> 0 | BL208: =IF(LEN(H208)>0,VLOOKUP(LEFT(H208,1),Clubs,5,FALSE),0) -> 0 | BM208: =IF(LEN(I208)>0,VLOOKUP(LEFT(I208,1),Clubs,5,FALSE),0) -> 0 | BN208: =IF(LEN(J208)>0,VLOOKUP(LEFT(J208,1),Clubs,5,FALSE),0) -> 0 | BO208: =IF(LEN(K208)>0,VLOOKUP(LEFT(K208,1),Clubs,5,FALSE),0) -> 0 | BP208: =IF(LEN(L208)>0,VLOOKUP(LEFT(L208,1),Clubs,5,FALSE),0) -> 0 | BQ208: =IF(LEN(M208)>0,VLOOKUP(LEFT(M208,1),Clubs,5,FALSE),0) -> 0 | BR208: =IF(LEN(N208)>0,VLOOKUP(LEFT(N208,1),Clubs,5,FALSE),0) -> 0 | BS208: =LEFT(G208,1) -> 
... 36 more rows

Sheet Results in Event Order
D1: Non-Scoring | G1: 31 | H1: 63 | I1: =G1+1 -> 32 | J1: =H1+1 -> 64 | K1: =I1+1 -> 33 | L1: 65 | M1: 34 | N1: 66 | O1: 35 | P1: 67 | Q1: 36 | R1: 68 | S1: 37 | T1: 69 | U1: 38 | V1: 70 | W1: ='Event Details'!C30 -> 0 | X1: =W1-1 -> -1 | Y1: -2 | Z1: -3 | AA1: -4 | AB1: -5 | AC1: -6 | AD1: -7
G2: 3 | H2: 15 | I2: =G2+2 -> 5 | J2: =H2+1 -> 16 | K2: =I2+2 -> 7 | L2: 17 | M2: =K2+2 -> 9 | N2: 18 | O2: =M2+2 -> 11 | P2: 19 | Q2: =O2+2 -> 13 | R2: 20 | S2: =Q2+2 -> 15 | T2: 21 | U2: =S2+2 -> 17 | V2: 22 | W2: 39 | X2: 40 | Y2: 41 | Z2: 42 | AA2: 43 | AB2: 44 | AC2: 45 | AD2: 46
D3: Scoring | G3: 31 | H3: 15 | I3: 32 | J3: 16 | K3: 33 | L3: 17 | M3: 34 | N3: 18 | O3: 35 | P3: 19 | Q3: 36 | R3: 20 | S3: 37 | T3: 21 | U3: 38 | V3: 22 | W3: ='Event Details'!C32 -> 8 | X3: =W3-1 -> 7 | Y3: 6 | Z3: 5 | AA3: 4 | AB3: 3 | AC3: 2 | AD3: 1
G4: 63 | H4: 31 | I4: 64 | J4: 32 | K4: 65 | L4: 33 | M4: 66 | N4: 34 | O4: 67 | P4: 35 | Q4: 68 | R4: 36 | S4: 69 | T4: 37 | U4: 70 | V4: 38 | W4: 39 | X4: 40 | Y4: 41 | Z4: 42 | AA4: 43 | AB4: 44 | AC4: 45 | AD4: 46
B5: Event No | K5: =CONCATENATE('Event Details'!D$5," ","Results in Events Order") -> Heart of England League Results in Events Order | W5: =W8 -> Banbury | X5: =X8 -> Bicester | Y5: Dudley & S'bridge | Z5: Kettering | AA5: Radley | AB5: Tamworth | AC5: Wreake Runners | AD5: Worcester
D6: Division | E6: ='Event Details'!D$9 -> 2 | K6: Venue | L6: ='Event Details'!F$17 -> Worcester | Q6: Date | R6: ='Event Details'!B$17 -> 5th June 2016
C7: Time | D7: Event | F7: NS | G7: First | I7: Second | K7: Third | M7: Fourth | O7: Fifth | Q7: Sixth | S7: Seventh | U7: Eighth | W7: =W10 -> J | X7: =X10 -> P | Y7: B | Z7: I | AA7: R | AB7: F | AC7: X | AD7: Y
B8: Event No | K8: =CONCATENATE('Event Details'!D$5," ","Results in Event Order") -> Heart of England League Results in Event Order | W8: ='Event Details'!$D22 -> Banbury | X8: ='Event Details'!D23 -> Bicester | Y8: ='Event Details'!D24 -> Dudley & S'bridge | Z8: ='Event Details'!D25 -> Kettering | AA8: ='Event Details'!D26 -> Radley | AB8: ='Event Details'!D27 -> Tamworth | AC8: ='Event Details'!D28 -> Wreake Runners | AD8: ='Event Details'!D29 -> Worcester
D9: Division | E9: ='Event Details'!D$9 -> 2 | K9: Venue | L9: ='Event Details'!F$17 -> Worcester | Q9: Date | R9: ='Event Details'!B$17 -> 5th June 2016
C10: Time | D10: Event | F10: NS | G10: First | I10: Second | K10: Third | M10: Fourth | O10: Fifth | Q10: Sixth | S10: Seventh | U10: Eighth | W10: ='Event Details'!C22 -> J | X10: ='Event Details'!C23 -> P | Y10: ='Event Details'!C24 -> B | Z10: ='Event Details'!C25 -> I | AA10: ='Event Details'!C26 -> R | AB10: ='Event Details'!C27 -> F | AC10: ='Event Details'!C28 -> X | AD10: ='Event Details'!C29 -> Y
A11: =B12&"A" -> 1A | D11: =VLOOKUP(B12,EventsOrder,4,FALSE) -> U13 Female | E11: A | G11: =VLOOKUP($A11,Results3,G$3,FALSE) -> Katie Parker | I11: =VLOOKUP($A11,Results3,I$3,FALSE) -> Georgia Usher | K11: =VLOOKUP($A11,Results3,K$3,FALSE) -> Ruby Jarman | M11: =VLOOKUP($A11,Results3,M$3,FALSE) -> Poppy Edwards | O11: =VLOOKUP($A11,Results3,O$3,FALSE) -> Tegan Vickery | Q11: =VLOOKUP($A11,Results3,Q$3,FALSE) -> Mia Brockway | S11: =VLOOKUP($A11,Results3,S$3,FALSE) -> Nikola Bishop | U11: =VLOOKUP($A11,Results3,U$3,FALSE) ->  | AE11: =IF(LEN(G11)>1,1,0) -> 1
A12: =B12&"A" -> 1A | B12: 1 | C12: =VLOOKUP(B12,EventsOrder,2,FALSE) -> 11.45 | G12: =VLOOKUP($A12,Results3,G$4,FALSE) -> Wreake | H12: =VLOOKUP($A12,Results3,H$3,FALSE) -> 5.12.0 | I12: =VLOOKUP($A12,Results3,I$4,FALSE) -> Bic | J12: =VLOOKUP($A12,Results3,J$3,FALSE) -> 5.41.7 | K12: =VLOOKUP($A12,Results3,K$4,FALSE) -> Worc | L12: =VLOOKUP($A12,Results3,L$3,FALSE) -> 5.44.0 | M12: =VLOOKUP($A12,Results3,M$4,FALSE) -> Rad | N12: =VLOOKUP($A12,Results3,N$3,FALSE) -> 5.45.6 | O12: =VLOOKUP($A12,Results3,O$4,FALSE) -> Tam | P12: =VLOOKUP($A12,Results3,P$3,FALSE) -> 5.56.2 | Q12: =VLOOKUP($A12,Results3,Q$4,FALSE) -> Kett | R12: =VLOOKUP($A12,Results3,R$3,FALSE) -> 6.02.7 | S12: =VLOOKUP($A12,Results3,S$4,FALSE) -> Ban | T12: =VLOOKUP($A12,Results3,T$3,FALSE) -> 6.08.2 | U12: =VLOOKUP($A12,Results3,U$4,FALSE) -> 0 | V12: =VLOOKUP($A12,Results3,V$3,FALSE) -> 0 | W12: =VLOOKUP($A12,Results3,W$4,FALSE) -> 2 | X12: =VLOOKUP($A12,Results3,X$4,FALSE) -> 7 | Y12: 0 | Z12: 3 | AA12: 5 | AB12: 4 | AC12: 8 | AD12: 6
A13: =B12&"B" -> 1B | D13: =VLOOKUP(B12,EventsOrder,3,FALSE) -> 1500m | E13: B | G13: =VLOOKUP($A13,Results3,G$3,FALSE) -> Aoife Brotherton | I13: =VLOOKUP($A13,Results3,I$3,FALSE) -> Megan Williams | K13: =VLOOKUP($A13,Results3,K$3,FALSE) -> Maddie Moxey | M13: =VLOOKUP($A13,Results3,M$3,FALSE) -> Amelia Cox | O13: =VLOOKUP($A13,Results3,O$3,FALSE) ->  | Q13: =VLOOKUP($A13,Results3,Q$3,FALSE) ->  | S13: =VLOOKUP($A13,Results3,S$3,FALSE) ->  | U13: =VLOOKUP($A13,Results3,U$3,FALSE) -> 
A14: =B12&"B" -> 1B | G14: =VLOOKUP($A14,Results3,G$4,FALSE) -> Wreake | H14: =VLOOKUP($A14,Results3,H$3,FALSE) -> 5.32.3 | I14: =VLOOKUP($A14,Results3,I$4,FALSE) -> Worc | J14: =VLOOKUP($A14,Results3,J$3,FALSE) -> 5.55.1 | K14: =VLOOKUP($A14,Results3,K$4,FALSE) -> Kett | L14: =VLOOKUP($A14,Results3,L$3,FALSE) -> 6.27.8 | M14: =VLOOKUP($A14,Results3,M$4,FALSE) -> Bic | N14: =VLOOKUP($A14,Results3,N$3,FALSE) -> DNF | O14: =VLOOKUP($A14,Results3,O$4,FALSE) -> 0 | P14: =VLOOKUP($A14,Results3,P$3,FALSE) -> 0 | Q14: =VLOOKUP($A14,Results3,Q$4,FALSE) -> 0 | R14: =VLOOKUP($A14,Results3,R$3,FALSE) -> 0 | S14: =VLOOKUP($A14,Results3,S$4,FALSE) -> 0 | T14: =VLOOKUP($A14,Results3,T$3,FALSE) -> 0 | U14: =VLOOKUP($A14,Results3,U$4,FALSE) -> 0 | V14: =VLOOKUP($A14,Results3,V$3,FALSE) -> 0 | W14: =VLOOKUP($A14,Results3,W$4,FALSE) -> 0 | X14: 0 | Y14: 0 | Z14: 6 | AA14: 0 | AB14: 0 | AC14: 8 | AD14: 7
A15: =B16&"A" -> 4A | D15: =VLOOKUP(B16,EventsOrder,4,FALSE) -> U15 Female | E15: A | G15: =VLOOKUP($A15,Results3,G$3,FALSE) -> Eve Clawley | I15: =VLOOKUP($A15,Results3,I$3,FALSE) -> Rachel Nealon | K15: =VLOOKUP($A15,Results3,K$3,FALSE) -> Holly Love | M15: =VLOOKUP($A15,Results3,M$3,FALSE) -> Rachel Burton | O15: =VLOOKUP($A15,Results3,O$3,FALSE) -> Daisy Robinson | Q15: =VLOOKUP($A15,Results3,Q$3,FALSE) -> Holly Hunter | S15: =VLOOKUP($A15,Results3,S$3,FALSE) ->  | U15: =VLOOKUP($A15,Results3,U$3,FALSE) ->  | AE15: =IF(LEN(G15)>1,1,0) -> 1
A16: =B16&"A" -> 4A | B16: 4 | C16: =VLOOKUP(B16,EventsOrder,2,FALSE) -> 11.55 | G16: =VLOOKUP($A16,Results3,G$4,FALSE) -> Tam | H16: =VLOOKUP($A16,Results3,H$3,FALSE) -> 4.58.5 | I16: =VLOOKUP($A16,Results3,I$4,FALSE) -> Wreake | J16: =VLOOKUP($A16,Results3,J$3,FALSE) -> 5.01.2 | K16: =VLOOKUP($A16,Results3,K$4,FALSE) -> Worc | L16: =VLOOKUP($A16,Results3,L$3,FALSE) -> 5.13.3 | M16: =VLOOKUP($A16,Results3,M$4,FALSE) -> Rad | N16: =VLOOKUP($A16,Results3,N$3,FALSE) -> 5.21.6 | O16: =VLOOKUP($A16,Results3,O$4,FALSE) -> Kett | P16: =VLOOKUP($A16,Results3,P$3,FALSE) -> 5.40.2 | Q16: =VLOOKUP($A16,Results3,Q$4,FALSE) -> Bic | R16: =VLOOKUP($A16,Results3,R$3,FALSE) -> 6.35.7 | S16: =VLOOKUP($A16,Results3,S$4,FALSE) -> 0 | T16: =VLOOKUP($A16,Results3,T$3,FALSE) -> 0 | U16: =VLOOKUP($A16,Results3,U$4,FALSE) -> 0 | V16: =VLOOKUP($A16,Results3,V$3,FALSE) -> 0 | W16: =VLOOKUP($A16,Results3,W$4,FALSE) -> 0 | X16: =VLOOKUP($A16,Results3,X$4,FALSE) -> 3 | Y16: 0 | Z16: 4 | AA16: 5 | AB16: 8 | AC16: 7 | AD16: 6
A17: =B16&"B" -> 4B | D17: =VLOOKUP(B16,EventsOrder,3,FALSE) -> 1500m | E17: B | G17: =VLOOKUP($A17,Results3,G$3,FALSE) -> Rosie Timlock | I17: =VLOOKUP($A17,Results3,I$3,FALSE) -> Hermione Jewel | K17: =VLOOKUP($A17,Results3,K$3,FALSE) -> Lauren Matthews | M17: =VLOOKUP($A17,Results3,M$3,FALSE) -> Isabella Moxey | O17: =VLOOKUP($A17,Results3,O$3,FALSE) ->  | Q17: =VLOOKUP($A17,Results3,Q$3,FALSE) ->  | S17: =VLOOKUP($A17,Results3,S$3,FALSE) ->  | U17: =VLOOKUP($A17,Results3,U$3,FALSE) -> 
A18: =B16&"B" -> 4B | G18: =VLOOKUP($A18,Results3,G$4,FALSE) -> Wreake | H18: =VLOOKUP($A18,Results3,H$3,FALSE) -> 5.16.0 | I18: =VLOOKUP($A18,Results3,I$4,FALSE) -> Rad | J18: =VLOOKUP($A18,Results3,J$3,FALSE) -> 5.24.1 | K18: =VLOOKUP($A18,Results3,K$4,FALSE) -> Worc | L18: =VLOOKUP($A18,Results3,L$3,FALSE) -> 5.31.6 | M18: =VLOOKUP($A18,Results3,M$4,FALSE) -> Kett | N18: =VLOOKUP($A18,Results3,N$3,FALSE) -> 6.53.8 | O18: =VLOOKUP($A18,Results3,O$4,FALSE) -> 0 | P18: =VLOOKUP($A18,Results3,P$3,FALSE) -> 0 | Q18: =VLOOKUP($A18,Results3,Q$4,FALSE) -> 0 | R18: =VLOOKUP($A18,Results3,R$3,FALSE) -> 0 | S18: =VLOOKUP($A18,Results3,S$4,FALSE) -> 0 | T18: =VLOOKUP($A18,Results3,T$3,FALSE) -> 0 | U18: =VLOOKUP($A18,Results3,U$4,FALSE) -> 0 | V18: =VLOOKUP($A18,Results3,V$3,FALSE) -> 0 | W18: =VLOOKUP($A18,Results3,W$4,FALSE) -> 0 | X18: 0 | Y18: 0 | Z18: 5 | AA18: 7 | AB18: 0 | AC18: 8 | AD18: 6
A19: =B20&"A" -> 5A | D19: =VLOOKUP(B20,EventsOrder,4,FALSE) -> U13 Male | E19: A | G19: =VLOOKUP($A19,Results3,G$3,FALSE) -> Cole Sinnott | I19: =VLOOKUP($A19,Results3,I$3,FALSE) -> Theau Seabrook | K19: =VLOOKUP($A19,Results3,K$3,FALSE) -> Jack Compton | M19: =VLOOKUP($A19,Results3,M$3,FALSE) -> Jacob Khan | O19: =VLOOKUP($A19,Results3,O$3,FALSE) ->  | Q19: =VLOOKUP($A19,Results3,Q$3,FALSE) ->  | S19: =VLOOKUP($A19,Results3,S$3,FALSE) ->  | U19: =VLOOKUP($A19,Results3,U$3,FALSE) ->  | AE19: =IF(LEN(G19)>1,1,0) -> 1
A20: =B20&"A" -> 5A | B20: 5 | C20: =VLOOKUP(B20,EventsOrder,2,FALSE) -> 12 | G20: =VLOOKUP($A20,Results3,G$4,FALSE) -> Kett | H20: =VLOOKUP($A20,Results3,H$3,FALSE) -> 1.35 | I20: =VLOOKUP($A20,Results3,I$4,FALSE) -> Rad | J20: =VLOOKUP($A20,Results3,J$3,FALSE) -> 1.3 | K20: =VLOOKUP($A20,Results3,K$4,FALSE) -> DASH | L20: =VLOOKUP($A20,Results3,L$3,FALSE) -> 1.2 | M20: =VLOOKUP($A20,Results3,M$4,FALSE) -> Worc | N20: =VLOOKUP($A20,Results3,N$3,FALSE) -> 1.1 | O20: =VLOOKUP($A20,Results3,O$4,FALSE) -> 0 | P20: =VLOOKUP($A20,Results3,P$3,FALSE) -> 0 | Q20: =VLOOKUP($A20,Results3,Q$4,FALSE) -> 0 | R20: =VLOOKUP($A20,Results3,R$3,FALSE) -> 0 | S20: =VLOOKUP($A20,Results3,S$4,FALSE) -> 0 | T20: =VLOOKUP($A20,Results3,T$3,FALSE) -> 0 | U20: =VLOOKUP($A20,Results3,U$4,FALSE) -> 0 | V20: =VLOOKUP($A20,Results3,V$3,FALSE) -> 0 | W20: =VLOOKUP($A20,Results3,W$4,FALSE) -> 0 | X20: =VLOOKUP($A20,Results3,X$4,FALSE) -> 0 | Y20: 6 | Z20: 8 | AA20: 7 | AB20: 0 | AC20: 0 | AD20: 5
A21: =B20&"B" -> 5B | D21: =VLOOKUP(B20,EventsOrder,3,FALSE) -> High Jump | E21: B | G21: =VLOOKUP($A21,Results3,G$3,FALSE) ->  | I21: =VLOOKUP($A21,Results3,I$3,FALSE) ->  | K21: =VLOOKUP($A21,Results3,K$3,FALSE) ->  | M21: =VLOOKUP($A21,Results3,M$3,FALSE) ->  | O21: =VLOOKUP($A21,Results3,O$3,FALSE) ->  | Q21: =VLOOKUP($A21,Results3,Q$3,FALSE) ->  | S21: =VLOOKUP($A21,Results3,S$3,FALSE) ->  | U21: =VLOOKUP($A21,Results3,U$3,FALSE) -> 
A22: =B20&"B" -> 5B | G22: =VLOOKUP($A22,Results3,G$4,FALSE) -> 0 | H22: =VLOOKUP($A22,Results3,H$3,FALSE) -> 0 | I22: =VLOOKUP($A22,Results3,I$4,FALSE) -> 0 | J22: =VLOOKUP($A22,Results3,J$3,FALSE) -> 0 | K22: =VLOOKUP($A22,Results3,K$4,FALSE) -> 0 | L22: =VLOOKUP($A22,Results3,L$3,FALSE) -> 0 | M22: =VLOOKUP($A22,Results3,M$4,FALSE) -> 0 | N22: =VLOOKUP($A22,Results3,N$3,FALSE) -> 0 | O22: =VLOOKUP($A22,Results3,O$4,FALSE) -> 0 | P22: =VLOOKUP($A22,Results3,P$3,FALSE) -> 0 | Q22: =VLOOKUP($A22,Results3,Q$4,FALSE) -> 0 | R22: =VLOOKUP($A22,Results3,R$3,FALSE) -> 0 | S22: =VLOOKUP($A22,Results3,S$4,FALSE) -> 0 | T22: =VLOOKUP($A22,Results3,T$3,FALSE) -> 0 | U22: =VLOOKUP($A22,Results3,U$4,FALSE) -> 0 | V22: =VLOOKUP($A22,Results3,V$3,FALSE) -> 0 | W22: =VLOOKUP($A22,Results3,W$4,FALSE) -> 0 | X22: 0 | Y22: 0 | Z22: 0 | AA22: 0 | AB22: 0 | AC22: 0 | AD22: 0
A23: =B24&"A" -> 6A | D23: =VLOOKUP(B24,EventsOrder,4,FALSE) -> U15 Male | E23: A | G23: =VLOOKUP($A23,Results3,G$3,FALSE) -> Darian Moore | I23: =VLOOKUP($A23,Results3,I$3,FALSE) -> Jamil Welham | K23: =VLOOKUP($A23,Results3,K$3,FALSE) -> Will Andrews | M23: =VLOOKUP($A23,Results3,M$3,FALSE) -> Ethan Nelis | O23: =VLOOKUP($A23,Results3,O$3,FALSE) -> Zak Thurley | Q23: =VLOOKUP($A23,Results3,Q$3,FALSE) -> Daniel Gifford | S23: =VLOOKUP($A23,Results3,S$3,FALSE) ->  | U23: =VLOOKUP($A23,Results3,U$3,FALSE) ->  | AE23: =IF(LEN(G23)>1,1,0) -> 1
A24: =B24&"A" -> 6A | B24: 6 | C24: =VLOOKUP(B24,EventsOrder,2,FALSE) -> 12 | G24: =VLOOKUP($A24,Results3,G$4,FALSE) -> Worc | H24: =VLOOKUP($A24,Results3,H$3,FALSE) -> 5.58 | I24: =VLOOKUP($A24,Results3,I$4,FALSE) -> Bic | J24: =VLOOKUP($A24,Results3,J$3,FALSE) -> 4.66 | K24: =VLOOKUP($A24,Results3,K$4,FALSE) -> Ban | L24: =VLOOKUP($A24,Results3,L$3,FALSE) -> 4.29 | M24: =VLOOKUP($A24,Results3,M$4,FALSE) -> Kett | N24: =VLOOKUP($A24,Results3,N$3,FALSE) -> 3.45 | O24: =VLOOKUP($A24,Results3,O$4,FALSE) -> DASH | P24: =VLOOKUP($A24,Results3,P$3,FALSE) -> 2.38 | Q24: =VLOOKUP($A24,Results3,Q$4,FALSE) -> Rad | R24: =VLOOKUP($A24,Results3,R$3,FALSE) -> NDR | S24: =VLOOKUP($A24,Results3,S$4,FALSE) -> 0 | T24: =VLOOKUP($A24,Results3,T$3,FALSE) -> 0 | U24: =VLOOKUP($A24,Results3,U$4,FALSE) -> 0 | V24: =VLOOKUP($A24,Results3,V$3,FALSE) -> 0 | W24: =VLOOKUP($A24,Results3,W$4,FALSE) -> 6 | X24: =VLOOKUP($A24,Results3,X$4,FALSE) -> 7 | Y24: 4 | Z24: 5 | AA24: 3 | AB24: 0 | AC24: 0 | AD24: 8
A25: =B24&"B" -> 6B | D25: =VLOOKUP(B24,EventsOrder,3,FALSE) -> Long Jump | E25: B | G25: =VLOOKUP($A25,Results3,G$3,FALSE) -> Marco Miller | I25: =VLOOKUP($A25,Results3,I$3,FALSE) ->  | K25: =VLOOKUP($A25,Results3,K$3,FALSE) ->  | M25: =VLOOKUP($A25,Results3,M$3,FALSE) ->  | O25: =VLOOKUP($A25,Results3,O$3,FALSE) ->  | Q25: =VLOOKUP($A25,Results3,Q$3,FALSE) ->  | S25: =VLOOKUP($A25,Results3,S$3,FALSE) ->  | U25: =VLOOKUP($A25,Results3,U$3,FALSE) ->  | AE25: =IF(LEN(G25)>1,1,0) -> 1
A26: =B24&"B" -> 6B | G26: =VLOOKUP($A26,Results3,G$4,FALSE) -> Worc | H26: =VLOOKUP($A26,Results3,H$3,FALSE) -> 4.03 | I26: =VLOOKUP($A26,Results3,I$4,FALSE) -> 0 | J26: =VLOOKUP($A26,Results3,J$3,FALSE) -> 0 | K26: =VLOOKUP($A26,Results3,K$4,FALSE) -> 0 | L26: =VLOOKUP($A26,Results3,L$3,FALSE) -> 0 | M26: =VLOOKUP($A26,Results3,M$4,FALSE) -> 0 | N26: =VLOOKUP($A26,Results3,N$3,FALSE) -> 0 | O26: =VLOOKUP($A26,Results3,O$4,FALSE) -> 0 | P26: =VLOOKUP($A26,Results3,P$3,FALSE) -> 0 | Q26: =VLOOKUP($A26,Results3,Q$4,FALSE) -> 0 | R26: =VLOOKUP($A26,Results3,R$3,FALSE) -> 0 | S26: =VLOOKUP($A26,Results3,S$4,FALSE) -> 0 | T26: =VLOOKUP($A26,Results3,T$3,FALSE) -> 0 | U26: =VLOOKUP($A26,Results3,U$4,FALSE) -> 0 | V26: =VLOOKUP($A26,Results3,V$3,FALSE) -> 0 | W26: =VLOOKUP($A26,Results3,W$4,FALSE) -> 0 | X26: 0 | Y26: 0 | Z26: 0 | AA26: 0 | AB26: 0 | AC26: 0 | AD26: 8
A27: =B28&"A" -> 7A | D27: =VLOOKUP(B28,EventsOrder,4,FALSE) -> U17 F/Women | E27: A | G27: =VLOOKUP($A27,Results3,G$3,FALSE) -> Charlotte Bush | I27: =VLOOKUP($A27,Results3,I$3,FALSE) -> Fern Harrison | K27: =VLOOKUP($A27,Results3,K$3,FALSE) -> Jess Anstice U23 | M27: =VLOOKUP($A27,Results3,M$3,FALSE) ->  | O27: =VLOOKUP($A27,Results3,O$3,FALSE) ->  | Q27: =VLOOKUP($A27,Results3,Q$3,FALSE) ->  | S27: =VLOOKUP($A27,Results3,S$3,FALSE) ->  | U27: =VLOOKUP($A27,Results3,U$3,FALSE) -> 
A28: =B28&"A" -> 7A | B28: 7 | C28: =VLOOKUP(B28,EventsOrder,2,FALSE) -> 12.05 | G28: =VLOOKUP($A28,Results3,G$4,FALSE) -> Tam | H28: =VLOOKUP($A28,Results3,H$3,FALSE) -> 5.12.1 | I28: =VLOOKUP($A28,Results3,I$4,FALSE) -> Wreake | J28: =VLOOKUP($A28,Results3,J$3,FALSE) -> 5.16.9 | K28: =VLOOKUP($A28,Results3,K$4,FALSE) -> Rad | L28: =VLOOKUP($A28,Results3,L$3,FALSE) -> 7.34.8 | M28: =VLOOKUP($A28,Results3,M$4,FALSE) -> 0 | N28: =VLOOKUP($A28,Results3,N$3,FALSE) -> 0 | O28: =VLOOKUP($A28,Results3,O$4,FALSE) -> 0 | P28: =VLOOKUP($A28,Results3,P$3,FALSE) -> 0 | Q28: =VLOOKUP($A28,Results3,Q$4,FALSE) -> 0 | R28: =VLOOKUP($A28,Results3,R$3,FALSE) -> 0 | S28: =VLOOKUP($A28,Results3,S$4,FALSE) -> 0 | T28: =VLOOKUP($A28,Results3,T$3,FALSE) -> 0 | U28: =VLOOKUP($A28,Results3,U$4,FALSE) -> 0 | V28: =VLOOKUP($A28,Results3,V$3,FALSE) -> 0 | W28: =VLOOKUP($A28,Results3,W$4,FALSE) -> 0 | X28: =VLOOKUP($A28,Results3,X$4,FALSE) -> 0 | Y28: 0 | Z28: 0 | AA28: 6 | AB28: 8 | AC28: 7 | AD28: 0 | AE28: =IF(LEN(G28)>1,1,0) -> 1
A29: =B28&"B" -> 7B | D29: =VLOOKUP(B28,EventsOrder,3,FALSE) -> 1500m | E29: B | G29: =VLOOKUP($A29,Results3,G$3,FALSE) -> Laura Lewis (Senior) | I29: =VLOOKUP($A29,Results3,I$3,FALSE) ->  | K29: =VLOOKUP($A29,Results3,K$3,FALSE) ->  | M29: =VLOOKUP($A29,Results3,M$3,FALSE) ->  | O29: =VLOOKUP($A29,Results3,O$3,FALSE) ->  | Q29: =VLOOKUP($A29,Results3,Q$3,FALSE) ->  | S29: =VLOOKUP($A29,Results3,S$3,FALSE) ->  | U29: =VLOOKUP($A29,Results3,U$3,FALSE) -> 
A30: =B28&"B" -> 7B | G30: =VLOOKUP($A30,Results3,G$4,FALSE) -> Tam | H30: =VLOOKUP($A30,Results3,H$3,FALSE) -> 5.59.0 | I30: =VLOOKUP($A30,Results3,I$4,FALSE) -> 0 | J30: =VLOOKUP($A30,Results3,J$3,FALSE) -> 0 | K30: =VLOOKUP($A30,Results3,K$4,FALSE) -> 0 | L30: =VLOOKUP($A30,Results3,L$3,FALSE) -> 0 | M30: =VLOOKUP($A30,Results3,M$4,FALSE) -> 0 | N30: =VLOOKUP($A30,Results3,N$3,FALSE) -> 0 | O30: =VLOOKUP($A30,Results3,O$4,FALSE) -> 0 | P30: =VLOOKUP($A30,Results3,P$3,FALSE) -> 0 | Q30: =VLOOKUP($A30,Results3,Q$4,FALSE) -> 0 | R30: =VLOOKUP($A30,Results3,R$3,FALSE) -> 0 | S30: =VLOOKUP($A30,Results3,S$4,FALSE) -> 0 | T30: =VLOOKUP($A30,Results3,T$3,FALSE) -> 0 | U30: =VLOOKUP($A30,Results3,U$4,FALSE) -> 0 | V30: =VLOOKUP($A30,Results3,V$3,FALSE) -> 0 | W30: =VLOOKUP($A30,Results3,W$4,FALSE) -> 0 | X30: 0 | Y30: 0 | Z30: 0 | AA30: 0 | AB30: 8 | AC30: 0 | AD30: 0
A31: =B32&"A" -> 8A | D31: =VLOOKUP(B32,EventsOrder,4,FALSE) -> U17 Men | E31: A | G31: =VLOOKUP($A31,Results3,G$3,FALSE) -> Reiss Francis | I31: =VLOOKUP($A31,Results3,I$3,FALSE) -> Harry Woodcock | K31: =VLOOKUP($A31,Results3,K$3,FALSE) -> Charlie McGlinchey | M31: =VLOOKUP($A31,Results3,M$3,FALSE) -> Josh Cannell | O31: =VLOOKUP($A31,Results3,O$3,FALSE) ->  | Q31: =VLOOKUP($A31,Results3,Q$3,FALSE) ->  | S31: =VLOOKUP($A31,Results3,S$3,FALSE) ->  | U31: =VLOOKUP($A31,Results3,U$3,FALSE) -> 
A32: =B32&"A" -> 8A | B32: 8 | C32: =VLOOKUP(B32,EventsOrder,2,FALSE) -> 12.15 | G32: =VLOOKUP($A32,Results3,G$4,FALSE) -> Worc | H32: =VLOOKUP($A32,Results3,H$3,FALSE) -> 8.41 | I32: =VLOOKUP($A32,Results3,I$4,FALSE) -> Rad | J32: =VLOOKUP($A32,Results3,J$3,FALSE) -> 8.33 | K32: =VLOOKUP($A32,Results3,K$4,FALSE) -> Wreake | L32: =VLOOKUP($A32,Results3,L$3,FALSE) -> 7.1 | M32: =VLOOKUP($A32,Results3,M$4,FALSE) -> Kett | N32: =VLOOKUP($A32,Results3,N$3,FALSE) -> 6.33 | O32: =VLOOKUP($A32,Results3,O$4,FALSE) -> 0 | P32: =VLOOKUP($A32,Results3,P$3,FALSE) -> 0 | Q32: =VLOOKUP($A32,Results3,Q$4,FALSE) -> 0 | R32: =VLOOKUP($A32,Results3,R$3,FALSE) -> 0 | S32: =VLOOKUP($A32,Results3,S$4,FALSE) -> 0 | T32: =VLOOKUP($A32,Results3,T$3,FALSE) -> 0 | U32: =VLOOKUP($A32,Results3,U$4,FALSE) -> 0 | V32: =VLOOKUP($A32,Results3,V$3,FALSE) -> 0 | W32: =VLOOKUP($A32,Results3,W$4,FALSE) -> 0 | X32: =VLOOKUP($A32,Results3,X$4,FALSE) -> 0 | Y32: 0 | Z32: 5 | AA32: 7 | AB32: 0 | AC32: 6 | AD32: 8
A33: =B32&"B" -> 8B | D33: =VLOOKUP(B32,EventsOrder,3,FALSE) -> Shot | E33: B | G33: =VLOOKUP($A33,Results3,G$3,FALSE) -> Rory Sear | I33: =VLOOKUP($A33,Results3,I$3,FALSE) -> Josh Bentley | K33: =VLOOKUP($A33,Results3,K$3,FALSE) ->  | M33: =VLOOKUP($A33,Results3,M$3,FALSE) ->  | O33: =VLOOKUP($A33,Results3,O$3,FALSE) ->  | Q33: =VLOOKUP($A33,Results3,Q$3,FALSE) ->  | S33: =VLOOKUP($A33,Results3,S$3,FALSE) ->  | U33: =VLOOKUP($A33,Results3,U$3,FALSE) -> 
A34: =B32&"B" -> 8B | G34: =VLOOKUP($A34,Results3,G$4,FALSE) -> Rad | H34: =VLOOKUP($A34,Results3,H$3,FALSE) -> 7.89 | I34: =VLOOKUP($A34,Results3,I$4,FALSE) -> Worc | J34: =VLOOKUP($A34,Results3,J$3,FALSE) -> 6.8 | K34: =VLOOKUP($A34,Results3,K$4,FALSE) -> 0 | L34: =VLOOKUP($A34,Results3,L$3,FALSE) -> 0 | M34: =VLOOKUP($A34,Results3,M$4,FALSE) -> 0 | N34: =VLOOKUP($A34,Results3,N$3,FALSE) -> 0 | O34: =VLOOKUP($A34,Results3,O$4,FALSE) -> 0 | P34: =VLOOKUP($A34,Results3,P$3,FALSE) -> 0 | Q34: =VLOOKUP($A34,Results3,Q$4,FALSE) -> 0 | R34: =VLOOKUP($A34,Results3,R$3,FALSE) -> 0 | S34: =VLOOKUP($A34,Results3,S$4,FALSE) -> 0 | T34: =VLOOKUP($A34,Results3,T$3,FALSE) -> 0 | U34: =VLOOKUP($A34,Results3,U$4,FALSE) -> 0 | V34: =VLOOKUP($A34,Results3,V$3,FALSE) -> 0 | W34: =VLOOKUP($A34,Results3,W$4,FALSE) -> 0 | X34: 0 | Y34: 0 | Z34: 0 | AA34: 8 | AB34: 0 | AC34: 0 | AD34: 7 | AE34: =IF(LEN(G34)>1,1,0) -> 1
A35: =B36&"A" -> 9A | D35: =VLOOKUP(B36,EventsOrder,4,FALSE) -> U15 Female | E35: A | G35: =VLOOKUP($A35,Results3,G$3,FALSE) -> Rachel Burton | I35: =VLOOKUP($A35,Results3,I$3,FALSE) -> Matilda Braithwaite | K35: =VLOOKUP($A35,Results3,K$3,FALSE) -> Samantha Bowkett | M35: =VLOOKUP($A35,Results3,M$3,FALSE) -> Elizabeth Eskender | O35: =VLOOKUP($A35,Results3,O$3,FALSE) -> Alice Jones | Q35: =VLOOKUP($A35,Results3,Q$3,FALSE) -> Molly Acton | S35: =VLOOKUP($A35,Results3,S$3,FALSE) -> Grace Slater | U35: =VLOOKUP($A35,Results3,U$3,FALSE) -> Rosie Timlock
